Workbook

Sheet Cover
A2: Cap and Floor Financial Model 1 (CFFM1) - Actual Cost of Debt (ACOD)
B3: Regime design model
C4: =MID(CELL("filename"),SEARCH("[",CELL("filename"))+1,SEARCH("]",CELL("filename"))-SEARCH("[",CELL("filename"))-1) -> Greenlink_Cap_and_Floor_Financial_Model_GCFFM1 for publication.xlsm
C5: DISCLAIMER: In the event of any inconsistency between this model and a project's licence, the licence conditions take precedence.
C6: For guidance on the use of the CFFM1 - ACOD, please refer to the CFFM1 Handbook - ACOD (CFFM1H - ACOD)
B8: Model key
E10: Sample | G10: Calculated value
E11: Sample | G11: Formula changes in cells to the right
E12: Sample | G12: Import from other sheet
E13: Sample | G13: Export to other sheet
E14: Sample | G14: Import from & export to other sheet
E15: Sample | G15: Initial input
E16: Sample | G16: Initial input for non-GB indexed portion (to be left empty if GB-indexed only)
E17: Sample | G17: Updated input
E18: Sample | G18: Notes and instructions
E19: Sample | G19: Cell intentionally blank
G20: Rows added to accommodate project-finance related inputs and calculations
B22: Contents
E24: Cover | G24: Model key and content directory
E25: Version Control | G25: Version control and log of changes
E26: Inputs | G26: Input data
E27: Data Sources | G27: Sources of input data
E28: Pre Op RAV | G28: Pre-operational RAV balances and project-finance eligible costs
E29: Finance | G29: Interest during construction, transaction costs, project-finance debt service
E30: Op RAV | G30: Operational RAV balances, return on RAV and RAV depreciation
E31: Allowances Cap | G31: Cap allowances (excluding tax) and annuitisation
E32: Allowances Floor | G32: Floor allowances (excluding tax) and annuitisation
E33: Tax Deductions | G33: Tax calculations
E34: Tax Cap | G34: Tax allowances at cap and annuitisation
E35: Tax Floor | G35: Tax allowances at floor and annuitisation
E36: Cap Floor Levels | G36: Cap and Floor values
B38: Checks
E40: Depreciation | G40: ='Op Rav'!I27 -> TRUE
E41: Debt tenor | G41: =Inputs!I157 -> FALSE
B43: End of sheet

Sheet Version Control
A1: Version control
B2: Version number | C2: File pathname | D2: Based on version | E2: Author or editor | F2: Date | G2: Description of changes | H2: Rationale for changes | I2: Location of changes | J2: Impact of changes on outputs | K2: Quality assurance performed? By? | L2: Comments on QA performed
B4: 1.1 | C4: link | D4: N/a | E4: Andrew Stone & Neill Aitken (NGV) | F4: 2017-01-31 | G4: N/a | H4: N/a | I4: N/a | J4: N/a | K4: Internal (ORE) and external (BDO) | L4: Comments reflected in version 1.1
B5: 2.1 | C5: link | D5: 1.1 | E5: Martin Namor | F5: 2019-03-20 | G5: CFFM split into CFFM1 (up to PCR) & CFFM2 (operations) | H5: Simplification and standardisation | I5: Throughout the model | J5: No impact | K5: Internal (ORE - Svitlana Voronkova) | L5: Comments reflected in version 2.2
B6: 2.2 | D6: 2.1 | E6: Martin Namor | F6: 2019-09-05 | G6: Minor changes | H6: Reflecting comments from QA and tidying up | I6: Throughout the model | J6: No impact | K6: Internal (ORE - Svitlana Voronkova) | L6: Further comments reflected in version 2.2
B7: 3.1 | D7: 2.2 | E7: Martin Namor & Greenlink & NeuConnect | F7: 2020-12-11 | G7: Inclusion of additional inputs and calculations relevant to project financing | H7: Allowing determination of actual floor level (AFL) in addition to notional floor level (NFL) | I7: Throughout the model | J7: Additional output (actual floor); Original outputs (notional cap and floor) unchanged | K7: Internal (ORE - Svitlana Voronkova) | L7: Comments reflected in version 3.1
B8: 3.2 | D8: 3.1 | E8: Martin Namor | F8: 2021-02-05 | G8: Changes required to remove post-tail AFL | H8: Allowing for AFL only during debt tenor and tail period | I8: Throughout the model | J8: Removal of post-tail AFL | K8: Internal (IC - Riccardo Rosselli; ORE - Svitlana Voronkova) | L8: Comments reflected in version 3.2
B9: 3.3 | D9: 3.2 | E9: Greenlink & NeuConnect | F9: 2021-05-14 | G9: Inclusion of additional dates and flags | H9: Correcting errors and allowing separate profiling for NFL and ACL | I9: Throughout the model | J9: No impact | K9: Internal (RF - Martin Namor; ORE - Svitlana Voronkova) | L9: Comments reflected in version 3.3
B10: 3.4 | D10: 3.3 | E10: Magdalena Rut | F10: 2022-08-08 | G10: Placeholder parameters replaced with Greenlink input parameters to generate C+F levels for the Greenlink project. | H10: Implementing the regime for Greenlink | I10: Throughout the model | J10: Medium | K10: Internal (ORE - Rahmatullah Kawsary) and External (Greenlink) | L10: Comments reflected in version 3.4

Sheet Inputs
A1: Inputs | H1: Licence
E2: Parameter | G2: Units | H2: Terminology | I2: Constant | K2: Annual values
B4: Indexation, currency and base year price term
E6: GB indexed portion of interconnector | G6: choice % | I6: 1
E7: Non-GB indexed portion of interconnector | G7: % | I7: =100%-I6 -> 0
E9: Currency of cost inputs | G9: choice | I9: £
E11: Base year price term | G11: choice | I11: £m 20/21 prices
B13: Variables set after financial close
C15: Actual values
E17: Year commencing | K17: =$I$148 -> 2013-01-01 | L17: =+K18+1 -> 2014-01-01 | M17: =+L18+1 -> 2015-01-01 | N17: =+M18+1 -> 2016-01-01 | O17: =+N18+1 -> 2017-01-01 | P17: =+O18+1 -> 2018-01-01 | Q17: =+P18+1 -> 2019-01-01 | R17: =+Q18+1 -> 2020-01-01 | S17: =+R18+1 -> 2021-01-01 | T17: =+S18+1 -> 2022-01-01 | U17: =+T18+1 -> 2023-01-01 | V17: =+U18+1 -> 2024-01-01 | W17: =+V18+1 -> 2025-01-01 | X17: =+W18+1 -> 2026-01-01 | Y17: =+X18+1 -> 2027-01-01 | Z17: =+Y18+1 -> 2028-01-01 | AA17: =+Z18+1 -> 2029-01-01 | AB17: =+AA18+1 -> 2030-01-01 | AC17: =+AB18+1 -> 2031-01-01 | AD17: =+AC18+1 -> 2032-01-01 | AE17: =+AD18+1 -> 2033-01-01 | AF17: =+AE18+1 -> 2034-01-01 | AG17: =+AF18+1 -> 2035-01-01 | AH17: =+AG18+1 -> 2036-01-01 | AI17: =+AH18+1 -> 2037-01-01 | AJ17: =+AI18+1 -> 2038-01-01 | AK17: =+AJ18+1 -> 2039-01-01 | AL17: =+AK18+1 -> 2040-01-01 | AM17: =+AL18+1 -> 2041-01-01 | AN17: =+AM18+1 -> 2042-01-01 | AO17: =+AN18+1 -> 2043-01-01 | AP17: =+AO18+1 -> 2044-01-01 | AQ17: =+AP18+1 -> 2045-01-01 | AR17: =+AQ18+1 -> 2046-01-01 | AS17: =+AR18+1 -> 2047-01-01 | AT17: =+AS18+1 -> 2048-01-01 | AU17: =+AT18+1 -> 2049-01-01 | AV17: =+AU18+1 -> 2050-01-01 | AW17: =+AV18+1 -> 2051-01-01 | AX17: =+AW18+1 -> 2052-01-01
E18: Year ending | K18: =EOMONTH(K17,11) -> 2013-12-31 | L18: =DATE(YEAR(K18) + 1, MONTH(K18), DAY(K18)) -> 2014-12-31 | M18: =DATE(YEAR(L18) + 1, MONTH(L18), DAY(L18)) -> 2015-12-31 | N18: =DATE(YEAR(M18) + 1, MONTH(M18), DAY(M18)) -> 2016-12-31 | O18: =DATE(YEAR(N18) + 1, MONTH(N18), DAY(N18)) -> 2017-12-31 | P18: =DATE(YEAR(O18) + 1, MONTH(O18), DAY(O18)) -> 2018-12-31 | Q18: =DATE(YEAR(P18) + 1, MONTH(P18), DAY(P18)) -> 2019-12-31 | R18: =DATE(YEAR(Q18) + 1, MONTH(Q18), DAY(Q18)) -> 2020-12-31 | S18: =DATE(YEAR(R18) + 1, MONTH(R18), DAY(R18)) -> 2021-12-31 | T18: =DATE(YEAR(S18) + 1, MONTH(S18), DAY(S18)) -> 2022-12-31 | U18: =DATE(YEAR(T18) + 1, MONTH(T18), DAY(T18)) -> 2023-12-31 | V18: =DATE(YEAR(U18) + 1, MONTH(U18), DAY(U18)) -> 2024-12-31 | W18: =DATE(YEAR(V18) + 1, MONTH(V18), DAY(V18)) -> 2025-12-31 | X18: =DATE(YEAR(W18) + 1, MONTH(W18), DAY(W18)) -> 2026-12-31 | Y18: =DATE(YEAR(X18) + 1, MONTH(X18), DAY(X18)) -> 2027-12-31 | Z18: =DATE(YEAR(Y18) + 1, MONTH(Y18), DAY(Y18)) -> 2028-12-31 | AA18: =DATE(YEAR(Z18) + 1, MONTH(Z18), DAY(Z18)) -> 2029-12-31 | AB18: =DATE(YEAR(AA18) + 1, MONTH(AA18), DAY(AA18)) -> 2030-12-31 | AC18: =DATE(YEAR(AB18) + 1, MONTH(AB18), DAY(AB18)) -> 2031-12-31 | AD18: =DATE(YEAR(AC18) + 1, MONTH(AC18), DAY(AC18)) -> 2032-12-31 | AE18: =DATE(YEAR(AD18) + 1, MONTH(AD18), DAY(AD18)) -> 2033-12-31 | AF18: =DATE(YEAR(AE18) + 1, MONTH(AE18), DAY(AE18)) -> 2034-12-31 | AG18: =DATE(YEAR(AF18) + 1, MONTH(AF18), DAY(AF18)) -> 2035-12-31 | AH18: =DATE(YEAR(AG18) + 1, MONTH(AG18), DAY(AG18)) -> 2036-12-31 | AI18: =DATE(YEAR(AH18) + 1, MONTH(AH18), DAY(AH18)) -> 2037-12-31 | AJ18: =DATE(YEAR(AI18) + 1, MONTH(AI18), DAY(AI18)) -> 2038-12-31 | AK18: =DATE(YEAR(AJ18) + 1, MONTH(AJ18), DAY(AJ18)) -> 2039-12-31 | AL18: =DATE(YEAR(AK18) + 1, MONTH(AK18), DAY(AK18)) -> 2040-12-31 | AM18: =DATE(YEAR(AL18) + 1, MONTH(AL18), DAY(AL18)) -> 2041-12-31 | AN18: =DATE(YEAR(AM18) + 1, MONTH(AM18), DAY(AM18)) -> 2042-12-31 | AO18: =DATE(YEAR(AN18) + 1, MONTH(AN18), DAY(AN18)) -> 2043-12-31 | AP18: =DATE(YEAR(AO18) + 1, MONTH(AO18), DAY(AO18)) -> 2044-12-31 | AQ18: =DATE(YEAR(AP18) + 1, MONTH(AP18), DAY(AP18)) -> 2045-12-31 | AR18: =DATE(YEAR(AQ18) + 1, MONTH(AQ18), DAY(AQ18)) -> 2046-12-31 | AS18: =DATE(YEAR(AR18) + 1, MONTH(AR18), DAY(AR18)) -> 2047-12-31 | AT18: =DATE(YEAR(AS18) + 1, MONTH(AS18), DAY(AS18)) -> 2048-12-31 | AU18: =DATE(YEAR(AT18) + 1, MONTH(AT18), DAY(AT18)) -> 2049-12-31 | AV18: =DATE(YEAR(AU18) + 1, MONTH(AU18), DAY(AU18)) -> 2050-12-31 | AW18: =DATE(YEAR(AV18) + 1, MONTH(AV18), DAY(AV18)) -> 2051-12-31 | AX18: =DATE(YEAR(AW18) + 1, MONTH(AW18), DAY(AW18)) -> 2052-12-31
E20: Development costs | G20: =CONCATENATE($I$9,"m nominal prices") -> £m nominal prices | K20: 0 | L20: 0 | M20: 0 | N20: 1.030922673 | O20: 0.7844395921 | P20: 1.496865984 | Q20: 3.55918815 | R20: 2.924437434 | S20: 1.504146168 | T20: 0 | U20: 0 | V20: 0 | W20: 0 | X20: 0 | Y20: 0 | Z20: 0 | AA20: 0 | AB20: 0 | AC20: 0 | AD20: 0 | AE20: 0 | AF20: 0 | AG20: 0 | AH20: 0 | AI20: 0 | AJ20: 0 | AK20: 0 | AL20: 0 | AM20: 0 | AN20: 0 | AO20: 0 | AP20: 0 | AQ20: 0 | AR20: 0 | AS20: 0 | AT20: 0 | AU20: 0 | AV20: 0 | AW20: 0 | AX20: 0
E21: Capex | G21: =CONCATENATE($I$9,"m nominal prices") -> £m nominal prices | K21: 0 | L21: 0 | M21: 0 | N21: 0 | O21: 0 | P21: 0 | Q21: 0 | R21: 0 | S21: 6.606053919 | T21: 80.14547933 | U21: 75.20220388 | V21: 44.34626288 | W21: 0 | X21: 0 | Y21: 0 | Z21: 0 | AA21: 0 | AB21: 0 | AC21: 0 | AD21: 0 | AE21: 0 | AF21: 0 | AG21: 0 | AH21: 0 | AI21: 0 | AJ21: 0 | AK21: 0 | AL21: 0 | AM21: 0 | AN21: 0 | AO21: 0 | AP21: 0 | AQ21: 0 | AR21: 0 | AS21: 0 | AT21: 0 | AU21: 0 | AV21: 0 | AW21: 0 | AX21: 0
E22: Spares | G22: £m nominal prices | K22: 0 | L22: 0 | M22: 0 | N22: 0 | O22: 0 | P22: 0 | Q22: 0 | R22: 0 | S22: 0 | T22: 0 | U22: 0 | V22: 0 | W22: 0 | X22: 0 | Y22: 0 | Z22: 0 | AA22: 0 | AB22: 0 | AC22: 0 | AD22: 0 | AE22: 0 | AF22: 0 | AG22: 0 | AH22: 0 | AI22: 0 | AJ22: 0 | AK22: 0 | AL22: 0 | AM22: 0 | AN22: 0 | AO22: 0 | AP22: 0 | AQ22: 0 | AR22: 0 | AS22: 0 | AT22: 0 | AU22: 0 | AV22: 0 | AW22: 0 | AX22: 0
E24: Base year UK RPI inflation index value (CHAW) | G24: Jan 1987 = 100 | H24: UK RPI index 2020/21 | I24: 294.1666667
E28: 12 month average UK RPI inflation index value (CHAW) | G28: =G24 -> Jan 1987 = 100 | H28: UK RPI index t | K28: 250.1083333 | L28: 256.0333333 | M28: 258.5416667 | N28: 263.05 | O28: 272.475 | P28: 281.5833333 | Q28: 288.8 | R28: 293.1416667 | S28: 305 | T28: =S28*(1+$I$179) -> 318.054 | U28: =T28*(1+$I$179) -> 331.6667112 | V28: =U28*(1+$I$179) -> 345.8620464 | W28: 360.664942 | X28: 376.1014015 | Y28: 392.1985415 | Z28: 408.9846391 | AA28: 426.4891817 | AB28: 444.7429186 | AC28: 463.7779156 | AD28: 483.6276103 | AE28: 504.3268721 | AF28: 525.9120622 | AG28: 548.4210985 | AH28: 571.8935215 | AI28: 596.3705642 | AJ28: 621.8952243 | AK28: 648.5123399 | AL28: 676.2686681 | AM28: 705.2129671 | AN28: 735.3960821 | AO28: 766.8710344 | AP28: 799.6931146 | AQ28: 833.91998 | AR28: 869.6117551 | AS28: 906.8311382 | AT28: 945.6435109 | AU28: 986.1170532 | AV28: 1028.322863 | AW28: 1072.335082 | AX28: 1118.231023
E32: Indexation factor | H32: =IF(I6=100%,"CRPIt","PPPIt") -> CRPIt | K32: =IF($I$6=100%,(K28/$I$24),($I$6*(K28/$I$24)+$I$7*(K29/$I$25)/(K30/$I$26))) -> 0.8502266289 | L32: =IF($I$6=100%,(L28/$I$24),($I$6*(L28/$I$24)+$I$7*(L29/$I$25)/(L30/$I$26))) -> 0.870368272 | M32: =IF($I$6=100%,(M28/$I$24),($I$6*(M28/$I$24)+$I$7*(M29/$I$25)/(M30/$I$26))) -> 0.8788951841 | N32: =IF($I$6=100%,(N28/$I$24),($I$6*(N28/$I$24)+$I$7*(N29/$I$25)/(N30/$I$26))) -> 0.8942209632 | O32: 0.9262606232 | P32: 0.957223796 | Q32: 0.9817563739 | R32: 0.9965155807 | S32: 1.036827195 | T32: 1.081203399 | U32: 1.127478905 | V32: 1.175735002 | W32: 1.22605646 | X32: 1.278531677 | Y32: 1.333252832 | Z32: 1.390316054 | AA32: 1.449821581 | AB32: 1.511873944 | AC32: 1.576582149 | AD32: 1.644059865 | AE32: 1.714425627 | AF32: 1.787803044 | AG32: 1.864321015 | AH32: 1.944113954 | AI32: 2.027322031 | AJ32: 2.114091414 | AK32: 2.204574527 | AL32: 2.298930316 | AM32: 2.397324534 | AN32: 2.499930024 | AO32: 2.606927029 | AP32: 2.718503506 | AQ32: 2.834855456 | AR32: 2.956187269 | AS32: 3.082712085 | AT32: 3.214652162 | AU32: 3.352239274 | AV32: 3.495715115 | AW32: 3.645331722 | AX32: 3.80135192
E34: =E20 -> Development costs | G34: =$I$11 -> £m 20/21 prices | K34: =IF($I$9="£",K20/K$32,K20/K$32/K$30) -> 0 | L34: =IF($I$9="£",L20/L$32,L20/L$32/L$30) -> 0 | M34: =IF($I$9="£",M20/M$32,M20/M$32/M$30) -> 0 | N34: =IF($I$9="£",N20/N$32,N20/N$32/N$30) -> 1.152872405 | O34: =IF($I$9="£",O20/O$32,O20/O$32/O$30) -> 0.846888632 | P34: 1.563757598 | Q34: 3.625327265 | R34: 2.93466303 | S34: 1.450720211 | T34: 0 | U34: 0 | V34: 0 | W34: 0 | X34: 0 | Y34: 0 | Z34: 0 | AA34: 0 | AB34: 0 | AC34: 0 | AD34: 0 | AE34: 0 | AF34: 0 | AG34: 0 | AH34: 0 | AI34: 0 | AJ34: 0 | AK34: 0 | AL34: 0 | AM34: 0 | AN34: 0 | AO34: 0 | AP34: 0 | AQ34: 0 | AR34: 0 | AS34: 0 | AT34: 0 | AU34: 0 | AV34: 0 | AW34: 0 | AX34: 0
E35: =E21 -> Capex | G35: =$I$11 -> £m 20/21 prices | K35: =IF($I$9="£",K21/K$32,K21/K$32/K$30) -> 0 | L35: 0 | M35: 0 | N35: 0 | O35: 0 | P35: 0 | Q35: 0 | R35: 0 | S35: 6.371412659 | T35: 74.12618141 | U35: 66.69943318 | V35: 37.7179065 | W35: 0 | X35: 0 | Y35: 0 | Z35: 0 | AA35: 0 | AB35: 0 | AC35: 0 | AD35: 0 | AE35: 0 | AF35: 0 | AG35: 0 | AH35: 0 | AI35: 0 | AJ35: 0 | AK35: 0 | AL35: 0 | AM35: 0 | AN35: 0 | AO35: 0 | AP35: 0 | AQ35: 0 | AR35: 0 | AS35: 0 | AT35: 0 | AU35: 0 | AV35: 0 | AW35: 0 | AX35: 0
E36: =E22 -> Spares | G36: £m 20/21 prices | K36: 0 | L36: 0 | M36: 0 | N36: 0 | O36: 0 | P36: 0 | Q36: 0 | R36: 0 | S36: 0 | T36: 0 | U36: 0 | V36: 0 | W36: 0 | X36: 0 | Y36: 0 | Z36: 0 | AA36: 0 | AB36: 0 | AC36: 0 | AD36: 0 | AE36: 0 | AF36: 0 | AG36: 0 | AH36: 0 | AI36: 0 | AJ36: 0 | AK36: 0 | AL36: 0 | AM36: 0 | AN36: 0 | AO36: 0 | AP36: 0 | AQ36: 0 | AR36: 0 | AS36: 0 | AT36: 0 | AU36: 0 | AV36: 0 | AW36: 0 | AX36: 0
C38: Ex-ante allowances for the operational period
E40: Operational Year | K40: Year 1 | L40: Year 2 | M40: Year 3 | N40: Year 4 | O40: Year 5 | P40: Year 6 | Q40: Year 7 | R40: Year 8 | S40: Year 9 | T40: Year 10 | U40: Year 11 | V40: Year 12 | W40: Year 13 | X40: Year 14 | Y40: Year 15 | Z40: Year 16 | AA40: Year 17 | AB40: Year 18 | AC40: Year 19 | AD40: Year 20 | AE40: Year 21 | AF40: Year 22 | AG40: Year 23 | AH40: Year 24 | AI40: Year 25
E42: Replacement Capex | G42: £m 2020 prices | K42: 0 | L42: 0 | M42: 0 | N42: 0 | O42: 0 | P42: 0 | Q42: 1.74 | R42: 0 | S42: 0 | T42: 0 | U42: 0 | V42: 0 | W42: 0 | X42: 0 | Y42: 1.74 | Z42: 1.74 | AA42: 0 | AB42: 0 | AC42: 0 | AD42: 0 | AE42: 0 | AF42: 0 | AG42: 2.175 | AH42: 0 | AI42: 0
E43: Decommissioning baseline | G43: £m 2020 prices | K43: 0.1528 | L43: 0.1528 | M43: 0.1528 | N43: 0.1528 | O43: 0.1528 | P43: 0.1528 | Q43: 0.1528 | R43: 0.1528 | S43: 0.1528 | T43: 0.1528 | U43: 0.1528 | V43: 0.1528 | W43: 0.1528 | X43: 0.1528 | Y43: 0.1528 | Z43: 0.1528 | AA43: 0.1528 | AB43: 0.1528 | AC43: 0.1528 | AD43: 0.1528 | AE43: 0.1528 | AF43: 0.1528 | AG43: 0.1528 | AH43: 0.1528 | AI43: 0.1528
E44: Controllable Opex | G44: £m 2020 prices | K44: 4.810256 | L44: 4.810256 | M44: 4.810256 | N44: 4.810256 | O44: 4.810256 | P44: 4.810256 | Q44: 4.810256 | R44: 4.810256 | S44: 4.810256 | T44: 4.810256 | U44: 4.810256 | V44: 4.810256 | W44: 4.810256 | X44: 4.810256 | Y44: 4.810256 | Z44: 4.810256 | AA44: 4.810256 | AB44: 4.810256 | AC44: 4.810256 | AD44: 4.810256 | AE44: 4.810256 | AF44: 4.810256 | AG44: 4.810256 | AH44: 4.810256 | AI44: 4.810256
E45: Non-controllable Opex baseline | G45: £m 2020 prices | K45: 1.227577 | L45: 1.227577 | M45: 1.227577 | N45: 1.227577 | O45: 1.227577 | P45: 1.227577 | Q45: 1.227577 | R45: 1.227577 | S45: 1.227577 | T45: 1.227577 | U45: 1.227577 | V45: 1.227577 | W45: 1.227577 | X45: 1.227577 | Y45: 1.227577 | Z45: 1.227577 | AA45: 1.227577 | AB45: 1.227577 | AC45: 1.227577 | AD45: 1.227577 | AE45: 1.227577 | AF45: 1.227577 | AG45: 1.227577 | AH45: 1.227577 | AI45: 1.227577
E47: =E24 -> Base year UK RPI inflation index value (CHAW) | G47: =G24 -> Jan 1987 = 100 | H47: =H24 -> UK RPI index 2020/21 | I47: =I24 -> 294.1666667
E48: =IF(E25="","",E25) ->  | G48: =IF(G25="","",G25) -> 
E49: =IF(E26="","",E26) -> 
E51: 2020 average UK RPI inflation index value (CHAW) | G51: =G24 -> Jan 1987 = 100 | I51: 293.1416667
E52: 2020 average Ireland CPI inflation index value | G52: =IF(G25="","",G25) -> 
E53: 2020 average exchange rate (XUMAERS) | G53: =IF(G26="","",G26) -> 
E55: =IF(E30="","",E30) ->  | G55: =IF(G30="","",G30) ->  | H55: =IF(H30="","",H30) -> 
E57: Indexation conversion from 2020 to 2020/21 terms | I57: =I51/$I$47 -> 0.9965155807
E59: =E42 -> Replacement Capex | G59: =$I$11 -> £m 20/21 prices | K59: =IF($I$9="£",K42/$I$57,K42/K$55/$I$57) -> 0 | L59: 0 | M59: 0 | N59: 0 | O59: 0 | P59: 0 | Q59: 1.746084089 | R59: 0 | S59: 0 | T59: 0 | U59: 0 | V59: 0 | W59: 0 | X59: 0 | Y59: 1.746084089 | Z59: 1.746084089 | AA59: 0 | AB59: 0 | AC59: 0 | AD59: 0 | AE59: 0 | AF59: 0 | AG59: 2.182605111 | AH59: 0 | AI59: 0
E60: =E43 -> Decommissioning baseline | G60: £m 20/21 prices | K60: 0.1533342809 | L60: 0.1533342809 | M60: 0.1533342809 | N60: 0.1533342809 | O60: 0.1533342809 | P60: 0.1533342809 | Q60: 0.1533342809 | R60: 0.1533342809 | S60: 0.1533342809 | T60: 0.1533342809 | U60: 0.1533342809 | V60: 0.1533342809 | W60: 0.1533342809 | X60: 0.1533342809 | Y60: 0.1533342809 | Z60: 0.1533342809 | AA60: 0.1533342809 | AB60: 0.1533342809 | AC60: 0.1533342809 | AD60: 0.1533342809 | AE60: 0.1533342809 | AF60: 0.1533342809 | AG60: 0.1533342809 | AH60: 0.1533342809 | AI60: 0.1533342809
E61: =E44 -> Controllable Opex | G61: £m 20/21 prices | K61: 4.827075555 | L61: 4.827075555 | M61: 4.827075555 | N61: 4.827075555 | O61: 4.827075555 | P61: 4.827075555 | Q61: 4.827075555 | R61: 4.827075555 | S61: 4.827075555 | T61: 4.827075555 | U61: 4.827075555 | V61: 4.827075555 | W61: 4.827075555 | X61: 4.827075555 | Y61: 4.827075555 | Z61: 4.827075555 | AA61: 4.827075555 | AB61: 4.827075555 | AC61: 4.827075555 | AD61: 4.827075555 | AE61: 4.827075555 | AF61: 4.827075555 | AG61: 4.827075555 | AH61: 4.827075555 | AI61: 4.827075555
E62: =E45 -> Non-controllable Opex baseline | G62: £m 20/21 prices | K62: 1.231869349 | L62: 1.231869349 | M62: 1.231869349 | N62: 1.231869349 | O62: 1.231869349 | P62: 1.231869349 | Q62: 1.231869349 | R62: 1.231869349 | S62: 1.231869349 | T62: 1.231869349 | U62: 1.231869349 | V62: 1.231869349 | W62: 1.231869349 | X62: 1.231869349 | Y62: 1.231869349 | Z62: 1.231869349 | AA62: 1.231869349 | AB62: 1.231869349 | AC62: 1.231869349 | AD62: 1.231869349 | AE62: 1.231869349 | AF62: 1.231869349 | AG62: 1.231869349 | AH62: 1.231869349 | AI62: 1.231869349
B64: Variables set at financial close
C66: Finance
E68: Cap return rate | G68: real annual % | I68: 0.081
E69: Floor return rate | G69: real annual % | I69: -0.0084
E70: Interest during construction (IDC) rate | G70: real annual % | I70: 0.0521
E71: Cost of debt (for tax) | G71: real annual % | I71: =I69 -> -0.0084
E73: Pre-operational notional gearing | G73: % | I73: 0.3977
E74: Operational notional gearing | G74: % | I74: 0.5
E76: Equity transaction costs | G76: % | I76: 0.05
E77: Debt transaction costs | G77: % | I77: 0.025
C79: Actual cost of debt (inputs are not the exact project values, selected to generate the exact actual floor level determined in the project finance financial model)
E81: Project finance key input: senior debt amount or gearing | G81: 1: Amount (£m) 2: Gearing (%) | I81: 1
E82: Project finance senior debt amount (input if 1; empty if 2) | G82: =CONCATENATE($I$9,"m nominal prices") -> £m nominal prices | I82: 253.1145
E83: Project finance actual gearing (input if 2; empty if 1) | G83: %
E85: Senior Debt tenor | G85: full years | I85: 22.59178082
E86: Senior Debt tail requirement | G86: full years | I86: 0
E87: DSCR sizing | G87: DSCRx | I87: 1.2
E89: Fixed rate - Construction | G89: nominal % | I89: 0.01314352189
E90: Fixed rate - Operation | G90: nominal % | I90: 0.0130107795
E92: Senior Debt construction margin | G92: nominal % | I92: 0.0177045
E93: of which: swap margin | G93: nominal % | I93: 0.0017045
E94: Senior Debt upfront fee | G94: nominal % | I94: 0.014
E95: Senior Debt commitment fee | G95: % of applicable margin | I95: 0.35
E97: Senior Debt drawdown year | G97: Year | K97: 1 | L97: 2 | M97: 3 | N97: 4 | O97: 5 | P97: 6 | Q97: 7 | R97: 8 | S97: 9 | T97: 10
E98: Senior Debt drawdown profile | G98: % | K98: 0.5057421548 | L98: 0.4942578452 | M98: 0 | N98: 0 | O98: 0 | P98: 0 | Q98: 0 | R98: 0 | S98: 0 | T98: 0
E100: Debt Service Reserve Facility/Account amount | G100: =CONCATENATE($I$9,"m nominal prices") -> £m nominal prices | I100: 8.788436695
E101: Debt Service Reserve Facility upfront fee | G101: nominal % | I101: 0.014
E102: Debt Service Reserve Facility construction margin | G102: nominal % | I102: 0.01601203646
E103: Debt Service Reserve Facility commitment fee | G103: % of applicable margin | I103: 0.35
E105: Cap and Floor Liquidity Facility amount | G105: =CONCATENATE($I$9,"m nominal prices") -> £m nominal prices | I105: 23.22109174
E106: Cap and Floor Liquidity Facility average outstanding loan | G106: £m nominal prices | I106: 0
E107: Cap and Floor Liquidity Facility upfront fee | G107: nominal % | I107: 0.014
E108: Cap and Floor Liquidity Facility construction margin | G108: nominal % | I108: 0.01603830372
E109: Cap and Floor Liquidity Facility commitment fee | G109: % of applicable margin | I109: 0.35
E111: Standby Debt Facility amount | G111: =CONCATENATE($I$9,"m nominal prices") -> £m nominal prices | I111: 0
E112: Standby Debt Facility upfront fee | G112: nominal % | I112: 0.014
E113: Standby Debt Facility construction margin | G113: nominal % | I113: 0.016
E114: Standby Debt Facility commitment fee | G114: % of applicable margin | I114: 0.35
E116: VAT Facility amount | G116: =CONCATENATE($I$9,"m nominal prices") -> £m nominal prices | I116: 0.4644218347
E117: VAT Facility average outstanding loan | G117: £m nominal prices | I117: 0.1918137857
E118: VAT Facility upfront fee | G118: nominal % | I118: 0.013
E119: VAT Facility construction margin | G119: nominal % | I119: 0.0125
E120: VAT Facility commitment fee | G120: % of applicable margin | I120: 0.35
E122: Other Facilities amount | G122: =CONCATENATE($I$9,"m nominal prices") -> £m nominal prices | I122: 12.5
E123: Other Facilities upfront fee | G123: nominal % | I123: 0.014
E124: Other Facilities construction margin | G124: nominal % | I124: 0.0165
E125: Other Facilities commitment fee | G125: % of applicable margin | I125: 0.35
E127: Debt Service Reserve: Facility or Account | G127: 1: DSRF 2: DSRA | I127: 1
E128: Switch for transaction costs in taxes | G128: 1: notional costs 2: actual costs | I128: 2
E130: Year commencing | K130: =$I$148 -> 2013-01-01 | L130: =+K131+1 -> 2014-01-01 | M130: =+L131+1 -> 2015-01-01 | N130: =+M131+1 -> 2016-01-01 | O130: =+N131+1 -> 2017-01-01 | P130: =+O131+1 -> 2018-01-01 | Q130: =+P131+1 -> 2019-01-01 | R130: =+Q131+1 -> 2020-01-01 | S130: =+R131+1 -> 2021-01-01 | T130: =+S131+1 -> 2022-01-01 | U130: =+T131+1 -> 2023-01-01 | V130: =+U131+1 -> 2024-01-01 | W130: =+V131+1 -> 2025-01-01 | X130: =+W131+1 -> 2026-01-01 | Y130: =+X131+1 -> 2027-01-01 | Z130: =+Y131+1 -> 2028-01-01 | AA130: =+Z131+1 -> 2029-01-01 | AB130: =+AA131+1 -> 2030-01-01 | AC130: =+AB131+1 -> 2031-01-01 | AD130: =+AC131+1 -> 2032-01-01 | AE130: =+AD131+1 -> 2033-01-01 | AF130: =+AE131+1 -> 2034-01-01 | AG130: =+AF131+1 -> 2035-01-01 | AH130: =+AG131+1 -> 2036-01-01 | AI130: =+AH131+1 -> 2037-01-01 | AJ130: =+AI131+1 -> 2038-01-01 | AK130: =+AJ131+1 -> 2039-01-01 | AL130: =+AK131+1 -> 2040-01-01 | AM130: =+AL131+1 -> 2041-01-01 | AN130: =+AM131+1 -> 2042-01-01 | AO130: =+AN131+1 -> 2043-01-01 | AP130: =+AO131+1 -> 2044-01-01 | AQ130: =+AP131+1 -> 2045-01-01 | AR130: =+AQ131+1 -> 2046-01-01 | AS130: =+AR131+1 -> 2047-01-01 | AT130: =+AS131+1 -> 2048-01-01 | AU130: =+AT131+1 -> 2049-01-01 | AV130: =+AU131+1 -> 2050-01-01 | AW130: =+AV131+1 -> 2051-01-01 | AX130: =+AW131+1 -> 2052-01-01
E131: Year ending | K131: =EOMONTH(K130,11) -> 2013-12-31 | L131: =DATE(YEAR(K131) + 1, MONTH(K131), DAY(K131)) -> 2014-12-31 | M131: =DATE(YEAR(L131) + 1, MONTH(L131), DAY(L131)) -> 2015-12-31 | N131: =DATE(YEAR(M131) + 1, MONTH(M131), DAY(M131)) -> 2016-12-31 | O131: =DATE(YEAR(N131) + 1, MONTH(N131), DAY(N131)) -> 2017-12-31 | P131: =DATE(YEAR(O131) + 1, MONTH(O131), DAY(O131)) -> 2018-12-31 | Q131: =DATE(YEAR(P131) + 1, MONTH(P131), DAY(P131)) -> 2019-12-31 | R131: =DATE(YEAR(Q131) + 1, MONTH(Q131), DAY(Q131)) -> 2020-12-31 | S131: =DATE(YEAR(R131) + 1, MONTH(R131), DAY(R131)) -> 2021-12-31 | T131: =DATE(YEAR(S131) + 1, MONTH(S131), DAY(S131)) -> 2022-12-31 | U131: =DATE(YEAR(T131) + 1, MONTH(T131), DAY(T131)) -> 2023-12-31 | V131: =DATE(YEAR(U131) + 1, MONTH(U131), DAY(U131)) -> 2024-12-31 | W131: =DATE(YEAR(V131) + 1, MONTH(V131), DAY(V131)) -> 2025-12-31 | X131: =DATE(YEAR(W131) + 1, MONTH(W131), DAY(W131)) -> 2026-12-31 | Y131: =DATE(YEAR(X131) + 1, MONTH(X131), DAY(X131)) -> 2027-12-31 | Z131: =DATE(YEAR(Y131) + 1, MONTH(Y131), DAY(Y131)) -> 2028-12-31 | AA131: =DATE(YEAR(Z131) + 1, MONTH(Z131), DAY(Z131)) -> 2029-12-31 | AB131: =DATE(YEAR(AA131) + 1, MONTH(AA131), DAY(AA131)) -> 2030-12-31 | AC131: =DATE(YEAR(AB131) + 1, MONTH(AB131), DAY(AB131)) -> 2031-12-31 | AD131: =DATE(YEAR(AC131) + 1, MONTH(AC131), DAY(AC131)) -> 2032-12-31 | AE131: =DATE(YEAR(AD131) + 1, MONTH(AD131), DAY(AD131)) -> 2033-12-31 | AF131: =DATE(YEAR(AE131) + 1, MONTH(AE131), DAY(AE131)) -> 2034-12-31 | AG131: =DATE(YEAR(AF131) + 1, MONTH(AF131), DAY(AF131)) -> 2035-12-31 | AH131: =DATE(YEAR(AG131) + 1, MONTH(AG131), DAY(AG131)) -> 2036-12-31 | AI131: =DATE(YEAR(AH131) + 1, MONTH(AH131), DAY(AH131)) -> 2037-12-31 | AJ131: =DATE(YEAR(AI131) + 1, MONTH(AI131), DAY(AI131)) -> 2038-12-31 | AK131: =DATE(YEAR(AJ131) + 1, MONTH(AJ131), DAY(AJ131)) -> 2039-12-31 | AL131: =DATE(YEAR(AK131) + 1, MONTH(AK131), DAY(AK131)) -> 2040-12-31 | AM131: =DATE(YEAR(AL131) + 1, MONTH(AL131), DAY(AL131)) -> 2041-12-31 | AN131: =DATE(YEAR(AM131) + 1, MONTH(AM131), DAY(AM131)) -> 2042-12-31 | AO131: =DATE(YEAR(AN131) + 1, MONTH(AN131), DAY(AN131)) -> 2043-12-31 | AP131: =DATE(YEAR(AO131) + 1, MONTH(AO131), DAY(AO131)) -> 2044-12-31 | AQ131: =DATE(YEAR(AP131) + 1, MONTH(AP131), DAY(AP131)) -> 2045-12-31 | AR131: =DATE(YEAR(AQ131) + 1, MONTH(AQ131), DAY(AQ131)) -> 2046-12-31 | AS131: =DATE(YEAR(AR131) + 1, MONTH(AR131), DAY(AR131)) -> 2047-12-31 | AT131: =DATE(YEAR(AS131) + 1, MONTH(AS131), DAY(AS131)) -> 2048-12-31 | AU131: =DATE(YEAR(AT131) + 1, MONTH(AT131), DAY(AT131)) -> 2049-12-31 | AV131: =DATE(YEAR(AU131) + 1, MONTH(AU131), DAY(AU131)) -> 2050-12-31 | AW131: =DATE(YEAR(AV131) + 1, MONTH(AV131), DAY(AV131)) -> 2051-12-31 | AX131: =DATE(YEAR(AW131) + 1, MONTH(AW131), DAY(AW131)) -> 2052-12-31
E133: Senior Debt repayment year | G133: Year | K133: =K171 -> 0 | L133: =L171 -> 0 | M133: 0 | N133: 0 | O133: 0 | P133: 0 | Q133: 0 | R133: 0 | S133: 0 | T133: 0 | U133: 0 | V133: 0.08469945355 | W133: 1.084699454 | X133: 2.084699454 | Y133: 3.084699454 | Z133: 4.084699454 | AA133: 5.084699454 | AB133: 6.084699454 | AC133: 7.084699454 | AD133: 8.084699454 | AE133: 9.084699454 | AF133: 10.08469945 | AG133: 11.08469945 | AH133: 12.08469945 | AI133: 13.08469945 | AJ133: 14.08469945 | AK133: 15.08469945 | AL133: 16.08469945 | AM133: 17.08469945 | AN133: 18.08469945 | AO133: 19.08469945 | AP133: 20.08469945 | AQ133: 21.08469945 | AR133: 22.08469945 | AS133: 22.58058986 | AT133: 0 | AU133: 0 | AV133: 0 | AW133: 0 | AX133: 0
E134: Senior Debt repayment profile | G134: % | V134: 0 | W134: 0.01943112133 | X134: 0.02437598917 | Y134: 0.02604695146 | Z134: 0.02958244724 | AA134: 0.03138361278 | AB134: 0.03201781862 | AC134: 0.02801434984 | AD134: 0.03580137648 | AE134: 0.04235618564 | AF134: 0.04399057074 | AG134: 0.04683001111 | AH134: 0.0468284142 | AI134: 0.05268936929 | AJ134: 0.05206847929 | AK134: 0.04573992834 | AL134: 0.04587787511 | AM134: 0.05616076474 | AN134: 0.05787967784 | AO134: 0.06207816142 | AP134: 0.06278318854 | AQ134: 0.06845716017 | AR134: 0.06978553204 | AS134: 0.01982101459 | AT134: 0
E136: Senior Debt operation margin (including swap margin) | G136: nominal % | V136: 0.0162045 | W136: 0.0162045 | X136: 0.0162045 | Y136: 0.0162045 | Z136: 0.0162045 | AA136: 0.01628919945 | AB136: 0.0172045 | AC136: 0.0172045 | AD136: 0.0172045 | AE136: 0.0172045 | AF136: 0.01728919945 | AG136: 0.0182045 | AH136: 0.0182045 | AI136: 0.0182045 | AJ136: 0.0182045 | AK136: 0.01828919945 | AL136: 0.0192045 | AM136: 0.0192045 | AN136: 0.0192045 | AO136: 0.0192045 | AP136: 0.01928919945 | AQ136: 0.0202045 | AR136: 0.0202045 | AS136: 0.0202045 | AT136: 0
E137: Debt Service Reserve Facility operation margin | G137: nominal % | V137: 0.01451203646 | W137: 0.01451203646 | X137: 0.01451203646 | Y137: 0.01451203646 | Z137: 0.01451203646 | AA137: 0.01459673591 | AB137: 0.01551203646 | AC137: 0.01551203646 | AD137: 0.01551203646 | AE137: 0.01551203646 | AF137: 0.01559673591 | AG137: 0.01651203646 | AH137: 0.01651203646 | AI137: 0.01651203646 | AJ137: 0.01651203646 | AK137: 0.01659673591 | AL137: 0.01751203646 | AM137: 0.01751203646 | AN137: 0.01751203646 | AO137: 0.01751203646 | AP137: 0.01759673591 | AQ137: 0.01851203646 | AR137: 0.01851203646 | AS137: 0.01851203646 | AT137: 0
E138: Cap and Floor Liquidity Facility operation margin | G138: nominal % | V138: 0.01453830372 | W138: 0.01453830372 | X138: 0.01453830372 | Y138: 0.01453830372 | Z138: 0.01453830372 | AA138: 0.01462300317 | AB138: 0.01553830372 | AC138: 0.01553830372 | AD138: 0.01553830372 | AE138: 0.01553830372 | AF138: 0.01562300317 | AG138: 0.01653830372 | AH138: 0.01653830372 | AI138: 0.01653830372 | AJ138: 0.01653830372 | AK138: 0.01662300317 | AL138: 0.01753830372 | AM138: 0.01753830372 | AN138: 0.01753830372 | AO138: 0.01753830372 | AP138: 0.01762300317 | AQ138: 0.01853830372 | AR138: 0.01853830372 | AS138: 0.01853830372 | AT138: 0
E139: Standby Debt Facility operation margin | G139: nominal % | V139: 0 | W139: 0 | X139: 0 | Y139: 0 | Z139: 0 | AA139: 0 | AB139: 0 | AC139: 0 | AD139: 0 | AE139: 0 | AF139: 0 | AG139: 0 | AH139: 0 | AI139: 0 | AJ139: 0 | AK139: 0 | AL139: 0 | AM139: 0 | AN139: 0 | AO139: 0 | AP139: 0 | AQ139: 0 | AR139: 0 | AS139: 0 | AT139: 0
E140: VAT Facility operation margin | G140: nominal % | V140: 0.0125 | W140: 0.0125 | X140: 0.0125 | Y140: 0.0125 | Z140: 0.0125 | AA140: 0.0125 | AB140: 0.0125 | AC140: 0.0125 | AD140: 0.0125 | AE140: 0.0125 | AF140: 0.0125 | AG140: 0.0125 | AH140: 0.0125 | AI140: 0.0125 | AJ140: 0.0125 | AK140: 0.0125 | AL140: 0.0125 | AM140: 0.0125 | AN140: 0.0125 | AO140: 0.0125 | AP140: 0.0125 | AQ140: 0.0125 | AR140: 0.0125 | AS140: 0.0125 | AT140: 0
E141: Other facilities operation margin | G141: nominal % | V141: 0.015 | W141: 0.015 | X141: 0.015 | Y141: 0.015 | Z141: 0.015 | AA141: 0.01508469945 | AB141: 0.016 | AC141: 0.016 | AD141: 0.016 | AE141: 0.016 | AF141: 0.01608469945 | AG141: 0.017 | AH141: 0.017 | AI141: 0.017 | AJ141: 0.017 | AK141: 0.01708469945 | AL141: 0.018 | AM141: 0.018 | AN141: 0.018 | AO141: 0.018 | AP141: 0.01808469945 | AQ141: 0.019 | AR141: 0.019 | AS141: 0.019 | AT141: 0
C143: Model operation
E145: Year commencing | K145: =$I$148 -> 2013-01-01 | L145: =+K146+1 -> 2014-01-01 | M145: =+L146+1 -> 2015-01-01 | N145: =+M146+1 -> 2016-01-01 | O145: =+N146+1 -> 2017-01-01 | P145: =+O146+1 -> 2018-01-01 | Q145: =+P146+1 -> 2019-01-01 | R145: =+Q146+1 -> 2020-01-01 | S145: =+R146+1 -> 2021-01-01 | T145: =+S146+1 -> 2022-01-01 | U145: =+T146+1 -> 2023-01-01 | V145: =+U146+1 -> 2024-01-01 | W145: =+V146+1 -> 2025-01-01 | X145: =+W146+1 -> 2026-01-01 | Y145: =+X146+1 -> 2027-01-01 | Z145: =+Y146+1 -> 2028-01-01 | AA145: =+Z146+1 -> 2029-01-01 | AB145: =+AA146+1 -> 2030-01-01 | AC145: =+AB146+1 -> 2031-01-01 | AD145: =+AC146+1 -> 2032-01-01 | AE145: =+AD146+1 -> 2033-01-01 | AF145: =+AE146+1 -> 2034-01-01 | AG145: =+AF146+1 -> 2035-01-01 | AH145: =+AG146+1 -> 2036-01-01 | AI145: =+AH146+1 -> 2037-01-01 | AJ145: =+AI146+1 -> 2038-01-01 | AK145: =+AJ146+1 -> 2039-01-01 | AL145: =+AK146+1 -> 2040-01-01 | AM145: =+AL146+1 -> 2041-01-01 | AN145: =+AM146+1 -> 2042-01-01 | AO145: =+AN146+1 -> 2043-01-01 | AP145: =+AO146+1 -> 2044-01-01 | AQ145: =+AP146+1 -> 2045-01-01 | AR145: =+AQ146+1 -> 2046-01-01 | AS145: =+AR146+1 -> 2047-01-01 | AT145: =+AS146+1 -> 2048-01-01 | AU145: =+AT146+1 -> 2049-01-01 | AV145: =+AU146+1 -> 2050-01-01 | AW145: =+AV146+1 -> 2051-01-01 | AX145: =+AW146+1 -> 2052-01-01
E146: Year ending | K146: =EOMONTH(K145,11) -> 2013-12-31 | L146: =DATE(YEAR(K146) + 1, MONTH(K146), DAY(K146)) -> 2014-12-31 | M146: =DATE(YEAR(L146) + 1, MONTH(L146), DAY(L146)) -> 2015-12-31 | N146: =DATE(YEAR(M146) + 1, MONTH(M146), DAY(M146)) -> 2016-12-31 | O146: =DATE(YEAR(N146) + 1, MONTH(N146), DAY(N146)) -> 2017-12-31 | P146: =DATE(YEAR(O146) + 1, MONTH(O146), DAY(O146)) -> 2018-12-31 | Q146: =DATE(YEAR(P146) + 1, MONTH(P146), DAY(P146)) -> 2019-12-31 | R146: =DATE(YEAR(Q146) + 1, MONTH(Q146), DAY(Q146)) -> 2020-12-31 | S146: =DATE(YEAR(R146) + 1, MONTH(R146), DAY(R146)) -> 2021-12-31 | T146: =DATE(YEAR(S146) + 1, MONTH(S146), DAY(S146)) -> 2022-12-31 | U146: =DATE(YEAR(T146) + 1, MONTH(T146), DAY(T146)) -> 2023-12-31 | V146: =DATE(YEAR(U146) + 1, MONTH(U146), DAY(U146)) -> 2024-12-31 | W146: =DATE(YEAR(V146) + 1, MONTH(V146), DAY(V146)) -> 2025-12-31 | X146: =DATE(YEAR(W146) + 1, MONTH(W146), DAY(W146)) -> 2026-12-31 | Y146: =DATE(YEAR(X146) + 1, MONTH(X146), DAY(X146)) -> 2027-12-31 | Z146: =DATE(YEAR(Y146) + 1, MONTH(Y146), DAY(Y146)) -> 2028-12-31 | AA146: =DATE(YEAR(Z146) + 1, MONTH(Z146), DAY(Z146)) -> 2029-12-31 | AB146: =DATE(YEAR(AA146) + 1, MONTH(AA146), DAY(AA146)) -> 2030-12-31 | AC146: =DATE(YEAR(AB146) + 1, MONTH(AB146), DAY(AB146)) -> 2031-12-31 | AD146: =DATE(YEAR(AC146) + 1, MONTH(AC146), DAY(AC146)) -> 2032-12-31 | AE146: =DATE(YEAR(AD146) + 1, MONTH(AD146), DAY(AD146)) -> 2033-12-31 | AF146: =DATE(YEAR(AE146) + 1, MONTH(AE146), DAY(AE146)) -> 2034-12-31 | AG146: =DATE(YEAR(AF146) + 1, MONTH(AF146), DAY(AF146)) -> 2035-12-31 | AH146: =DATE(YEAR(AG146) + 1, MONTH(AG146), DAY(AG146)) -> 2036-12-31 | AI146: =DATE(YEAR(AH146) + 1, MONTH(AH146), DAY(AH146)) -> 2037-12-31 | AJ146: =DATE(YEAR(AI146) + 1, MONTH(AI146), DAY(AI146)) -> 2038-12-31 | AK146: =DATE(YEAR(AJ146) + 1, MONTH(AJ146), DAY(AJ146)) -> 2039-12-31 | AL146: =DATE(YEAR(AK146) + 1, MONTH(AK146), DAY(AK146)) -> 2040-12-31 | AM146: =DATE(YEAR(AL146) + 1, MONTH(AL146), DAY(AL146)) -> 2041-12-31 | AN146: =DATE(YEAR(AM146) + 1, MONTH(AM146), DAY(AM146)) -> 2042-12-31 | AO146: =DATE(YEAR(AN146) + 1, MONTH(AN146), DAY(AN146)) -> 2043-12-31 | AP146: =DATE(YEAR(AO146) + 1, MONTH(AO146), DAY(AO146)) -> 2044-12-31 | AQ146: =DATE(YEAR(AP146) + 1, MONTH(AP146), DAY(AP146)) -> 2045-12-31 | AR146: =DATE(YEAR(AQ146) + 1, MONTH(AQ146), DAY(AQ146)) -> 2046-12-31 | AS146: =DATE(YEAR(AR146) + 1, MONTH(AR146), DAY(AR146)) -> 2047-12-31 | AT146: =DATE(YEAR(AS146) + 1, MONTH(AS146), DAY(AS146)) -> 2048-12-31 | AU146: =DATE(YEAR(AT146) + 1, MONTH(AT146), DAY(AT146)) -> 2049-12-31 | AV146: =DATE(YEAR(AU146) + 1, MONTH(AU146), DAY(AU146)) -> 2050-12-31 | AW146: =DATE(YEAR(AV146) + 1, MONTH(AV146), DAY(AV146)) -> 2051-12-31 | AX146: =DATE(YEAR(AW146) + 1, MONTH(AW146), DAY(AW146)) -> 2052-12-31
E148: Model start date | G148: date | I148: 2013-01-01
E149: Regime start date | G149: date | I149: 2022-05-01
E150: End date for IDC | G150: date | I150: 2024-11-30
E151: Start of operations | G151: date | I151: 2024-12-01
E152: Regime end date | G152: date | I152: =DATE(YEAR($I$149)+I155,MONTH($I$149),DAY($I$149))-1 -> 2047-04-30
E153: Debt end date | G153: date | I153: =EOMONTH(I151-1,I85*12) -> 2047-06-30
E154: Debt tail end date | G154: date | I154: =MIN(EOMONTH(I151-1,(I85+I86)*12),I152) -> 2047-04-30
E155: Number of operational years | G155: full years | I155: 25
E157: Debt tenor <= (Regime end date - Start of operations) | G157: check | I157: =I85<=ROUND((I152-I151)/365.25,0) -> FALSE
E159: Days in year | G159: days | K159: =K$146-K$145+1 -> 365 | L159: 365 | M159: =M$146-M$145+1 -> 365 | N159: =N$146-N$145+1 -> 366 | O159: 365 | P159: 365 | Q159: 365 | R159: 366 | S159: 365 | T159: 365 | U159: 365 | V159: 366 | W159: 365 | X159: 365 | Y159: 365 | Z159: 366 | AA159: 365 | AB159: 365 | AC159: 365 | AD159: 366 | AE159: 365 | AF159: 365 | AG159: 365 | AH159: 366 | AI159: 365 | AJ159: 365 | AK159: 365 | AL159: 366 | AM159: 365 | AN159: 365 | AO159: 365 | AP159: 366 | AQ159: 365 | AR159: 365 | AS159: 365 | AT159: 366 | AU159: 365 | AV159: 365 | AW159: 365 | AX159: 366
E160: IDC flag | G160: flag | K160: =IF($I$150>=K$146,1,IF($I$150>=K$145,($I$150-K$145+1)/K$159,0)) -> 1 | L160: =IF($I$150>=L$146,1,IF($I$150>=L$145,($I$150-L$145+1)/L$159,0)) -> 1 | M160: 1 | N160: 1 | O160: 1 | P160: 1 | Q160: 1 | R160: 1 | S160: 1 | T160: 1 | U160: 1 | V160: 0.9153005464 | W160: 0 | X160: 0 | Y160: 0 | Z160: 0 | AA160: 0 | AB160: 0 | AC160: 0 | AD160: 0 | AE160: 0 | AF160: 0 | AG160: 0 | AH160: 0 | AI160: 0 | AJ160: 0 | AK160: 0 | AL160: 0 | AM160: 0 | AN160: 0 | AO160: 0 | AP160: 0 | AQ160: 0 | AR160: 0 | AS160: 0 | AT160: 0 | AU160: 0 | AV160: 0 | AW160: 0 | AX160: 0
E161: Post-IDC and pre-operations flag | G161: flag | K161: =IF(OR(K160=1,K162=1),0,IF($I$151<K145,0,IF($I$151<K146,($I$151-(MAX($I$150+1,K145)))/K159,MIN(1,(K146-$I$150)/K159)))) -> 0 | L161: =IF(OR(L160=1,L162=1),0,IF($I$151<L145,0,IF($I$151<L146,($I$151-(MAX($I$150+1,L145)))/L159,MIN(1,(L146-$I$150)/L159)))) -> 0 | M161: 0 | N161: 0 | O161: 0 | P161: 0 | Q161: 0 | R161: 0 | S161: 0 | T161: 0 | U161: 0 | V161: 0 | W161: 0 | X161: 0 | Y161: 0 | Z161: 0 | AA161: 0 | AB161: 0 | AC161: 0 | AD161: 0 | AE161: 0 | AF161: 0 | AG161: 0 | AH161: 0 | AI161: 0 | AJ161: 0 | AK161: 0 | AL161: 0 | AM161: 0 | AN161: 0 | AO161: 0 | AP161: 0 | AQ161: 0 | AR161: 0 | AS161: 0 | AT161: 0 | AU161: 0 | AV161: 0 | AW161: 0 | AX161: 0
E162: Operations flag | G162: flag | K162: =IF(OR($I$151>K$146,$I$152<K$145),0,IF($I$151>=K$145,(K$146-$I$151+1)/K$159,IF($I$152<=K$146,($I$152-K$145+1)/K$159,1))) -> 0 | L162: 0 | M162: 0 | N162: 0 | O162: 0 | P162: 0 | Q162: 0 | R162: 0 | S162: 0 | T162: 0 | U162: 0 | V162: 0.08469945355 | W162: 1 | X162: 1 | Y162: 1 | Z162: 1 | AA162: 1 | AB162: 1 | AC162: 1 | AD162: 1 | AE162: 1 | AF162: 1 | AG162: 1 | AH162: 1 | AI162: 1 | AJ162: 1 | AK162: 1 | AL162: 1 | AM162: 1 | AN162: 1 | AO162: 1 | AP162: 1 | AQ162: 1 | AR162: 1 | AS162: 0.3287671233 | AT162: 0 | AU162: 0 | AV162: 0 | AW162: 0 | AX162: 0
E163: Regime flag | G163: flag | K163: =IF(OR($I$149>K$146,$I$152<K$145),0,IF($I$149>=K$145,(K$146-$I$149+1)/K$159,IF($I$152<=K$146,($I$152-K$145+1)/K$159,1))) -> 0 | L163: =IF(OR($I$149>L$146,$I$152<L$145),0,IF($I$149>=L$145,(L$146-$I$149+1)/L$159,IF($I$152<=L$146,($I$152-L$145+1)/L$159,1))) -> 0 | M163: 0 | N163: 0 | O163: 0 | P163: 0 | Q163: 0 | R163: 0 | S163: 0 | T163: 0.6712328767 | U163: 1 | V163: 1 | W163: 1 | X163: 1 | Y163: 1 | Z163: 1 | AA163: 1 | AB163: 1 | AC163: 1 | AD163: 1 | AE163: 1 | AF163: 1 | AG163: 1 | AH163: 1 | AI163: 1 | AJ163: 1 | AK163: 1 | AL163: 1 | AM163: 1 | AN163: 1 | AO163: 1 | AP163: 1 | AQ163: 1 | AR163: 1 | AS163: 0.3287671233 | AT163: 0 | AU163: 0 | AV163: 0 | AW163: 0 | AX163: 0
E164: Regime years | G164: count | K164: =ROUNDUP(SUM($K$163:K163)*(K163<>0),0) -> 0 | L164: =ROUNDUP(SUM($K$163:L163)*(L163<>0),0) -> 0 | M164: =ROUNDUP(SUM($K$163:M163)*(M163<>0),0) -> 0 | N164: =ROUNDUP(SUM($K$163:N163)*(N163<>0),0) -> 0 | O164: =ROUNDUP(SUM($K$163:O163)*(O163<>0),0) -> 0 | P164: =ROUNDUP(SUM($K$163:P163)*(P163<>0),0) -> 0 | Q164: =ROUNDUP(SUM($K$163:Q163)*(Q163<>0),0) -> 0 | R164: =ROUNDUP(SUM($K$163:R163)*(R163<>0),0) -> 0 | S164: =ROUNDUP(SUM($K$163:S163)*(S163<>0),0) -> 0 | T164: =ROUNDUP(SUM($K$163:T163)*(T163<>0),0) -> 1 | U164: =ROUNDUP(SUM($K$163:U163)*(U163<>0),0) -> 2 | V164: =ROUNDUP(SUM($K$163:V163)*(V163<>0),0) -> 3 | W164: =ROUNDUP(SUM($K$163:W163)*(W163<>0),0) -> 4 | X164: =ROUNDUP(SUM($K$163:X163)*(X163<>0),0) -> 5 | Y164: =ROUNDUP(SUM($K$163:Y163)*(Y163<>0),0) -> 6 | Z164: =ROUNDUP(SUM($K$163:Z163)*(Z163<>0),0) -> 7 | AA164: =ROUNDUP(SUM($K$163:AA163)*(AA163<>0),0) -> 8 | AB164: =ROUNDUP(SUM($K$163:AB163)*(AB163<>0),0) -> 9 | AC164: =ROUNDUP(SUM($K$163:AC163)*(AC163<>0),0) -> 10 | AD164: =ROUNDUP(SUM($K$163:AD163)*(AD163<>0),0) -> 11 | AE164: =ROUNDUP(SUM($K$163:AE163)*(AE163<>0),0) -> 12 | AF164: =ROUNDUP(SUM($K$163:AF163)*(AF163<>0),0) -> 13 | AG164: =ROUNDUP(SUM($K$163:AG163)*(AG163<>0),0) -> 14 | AH164: =ROUNDUP(SUM($K$163:AH163)*(AH163<>0),0) -> 15 | AI164: =ROUNDUP(SUM($K$163:AI163)*(AI163<>0),0) -> 16 | AJ164: =ROUNDUP(SUM($K$163:AJ163)*(AJ163<>0),0) -> 17 | AK164: =ROUNDUP(SUM($K$163:AK163)*(AK163<>0),0) -> 18 | AL164: =ROUNDUP(SUM($K$163:AL163)*(AL163<>0),0) -> 19 | AM164: =ROUNDUP(SUM($K$163:AM163)*(AM163<>0),0) -> 20 | AN164: =ROUNDUP(SUM($K$163:AN163)*(AN163<>0),0) -> 21 | AO164: =ROUNDUP(SUM($K$163:AO163)*(AO163<>0),0) -> 22 | AP164: =ROUNDUP(SUM($K$163:AP163)*(AP163<>0),0) -> 23 | AQ164: =ROUNDUP(SUM($K$163:AQ163)*(AQ163<>0),0) -> 24 | AR164: =ROUNDUP(SUM($K$163:AR163)*(AR163<>0),0) -> 25 | AS164: =ROUNDUP(SUM($K$163:AS163)*(AS163<>0),0) -> 25 | AT164: =ROUNDUP(SUM($K$163:AT163)*(AT163<>0),0) -> 0 | AU164: =ROUNDUP(SUM($K$163:AU163)*(AU163<>0),0) -> 0 | AV164: =ROUNDUP(SUM($K$163:AV163)*(AV163<>0),0) -> 0 | AW164: =ROUNDUP(SUM($K$163:AW163)*(AW163<>0),0) -> 0 | AX164: =ROUNDUP(SUM($K$163:AX163)*(AX163<>0),0) -> 0
E165: Transfer construction to operations flag - Notional | G165: flag | K165: =IF(AND(SUM(K34:K36)<>0,SUM(L34:$AY36)=0),1,0) -> 0 | L165: =IF(AND(SUM(L34:L36)<>0,SUM(M34:$AY36)=0),1,0) -> 0 | M165: =IF(AND(SUM(M34:M36)<>0,SUM(N34:$AY36)=0),1,0) -> 0 | N165: =IF(AND(SUM(N34:N36)<>0,SUM(O34:$AY36)=0),1,0) -> 0 | O165: =IF(AND(SUM(O34:O36)<>0,SUM(P34:$AY36)=0),1,0) -> 0 | P165: =IF(AND(SUM(P34:P36)<>0,SUM(Q34:$AY36)=0),1,0) -> 0 | Q165: =IF(AND(SUM(Q34:Q36)<>0,SUM(R34:$AY36)=0),1,0) -> 0 | R165: =IF(AND(SUM(R34:R36)<>0,SUM(S34:$AY36)=0),1,0) -> 0 | S165: =IF(AND(SUM(S34:S36)<>0,SUM(T34:$AY36)=0),1,0) -> 0 | T165: =IF(AND(SUM(T34:T36)<>0,SUM(U34:$AY36)=0),1,0) -> 0 | U165: =IF(AND(SUM(U34:U36)<>0,SUM(V34:$AY36)=0),1,0) -> 0 | V165: =IF(AND(SUM(V34:V36)<>0,SUM(W34:$AY36)=0),1,0) -> 1 | W165: =IF(AND(SUM(W34:W36)<>0,SUM(X34:$AY36)=0),1,0) -> 0 | X165: =IF(AND(SUM(X34:X36)<>0,SUM(Y34:$AY36)=0),1,0) -> 0 | Y165: =IF(AND(SUM(Y34:Y36)<>0,SUM(Z34:$AY36)=0),1,0) -> 0 | Z165: =IF(AND(SUM(Z34:Z36)<>0,SUM(AA34:$AY36)=0),1,0) -> 0 | AA165: =IF(AND(SUM(AA34:AA36)<>0,SUM(AB34:$AY36)=0),1,0) -> 0 | AB165: =IF(AND(SUM(AB34:AB36)<>0,SUM(AC34:$AY36)=0),1,0) -> 0 | AC165: =IF(AND(SUM(AC34:AC36)<>0,SUM(AD34:$AY36)=0),1,0) -> 0 | AD165: =IF(AND(SUM(AD34:AD36)<>0,SUM(AE34:$AY36)=0),1,0) -> 0 | AE165: =IF(AND(SUM(AE34:AE36)<>0,SUM(AF34:$AY36)=0),1,0) -> 0 | AF165: =IF(AND(SUM(AF34:AF36)<>0,SUM(AG34:$AY36)=0),1,0) -> 0 | AG165: =IF(AND(SUM(AG34:AG36)<>0,SUM(AH34:$AY36)=0),1,0) -> 0 | AH165: =IF(AND(SUM(AH34:AH36)<>0,SUM(AI34:$AY36)=0),1,0) -> 0 | AI165: =IF(AND(SUM(AI34:AI36)<>0,SUM(AJ34:$AY36)=0),1,0) -> 0 | AJ165: =IF(AND(SUM(AJ34:AJ36)<>0,SUM(AK34:$AY36)=0),1,0) -> 0 | AK165: =IF(AND(SUM(AK34:AK36)<>0,SUM(AL34:$AY36)=0),1,0) -> 0 | AL165: =IF(AND(SUM(AL34:AL36)<>0,SUM(AM34:$AY36)=0),1,0) -> 0 | AM165: =IF(AND(SUM(AM34:AM36)<>0,SUM(AN34:$AY36)=0),1,0) -> 0 | AN165: =IF(AND(SUM(AN34:AN36)<>0,SUM(AO34:$AY36)=0),1,0) -> 0 | AO165: =IF(AND(SUM(AO34:AO36)<>0,SUM(AP34:$AY36)=0),1,0) -> 0 | AP165: =IF(AND(SUM(AP34:AP36)<>0,SUM(AQ34:$AY36)=0),1,0) -> 0 | AQ165: =IF(AND(SUM(AQ34:AQ36)<>0,SUM(AR34:$AY36)=0),1,0) -> 0 | AR165: =IF(AND(SUM(AR34:AR36)<>0,SUM(AS34:$AY36)=0),1,0) -> 0 | AS165: =IF(AND(SUM(AS34:AS36)<>0,SUM(AT34:$AY36)=0),1,0) -> 0 | AT165: =IF(AND(SUM(AT34:AT36)<>0,SUM(AU34:$AY36)=0),1,0) -> 0 | AU165: =IF(AND(SUM(AU34:AU36)<>0,SUM(AV34:$AY36)=0),1,0) -> 0 | AV165: =IF(AND(SUM(AV34:AV36)<>0,SUM(AW34:$AY36)=0),1,0) -> 0 | AW165: =IF(AND(SUM(AW34:AW36)<>0,SUM(AX34:$AY36)=0),1,0) -> 0 | AX165: =IF(AND(SUM(AX34:AX36)<>0,SUM(AY34:$AY36)=0),1,0) -> 0
E166: Transfer construction to operations flag - ACOD | G166: flag | H166: ` | K166: =IF(AND($I$151<=K$146,$I$151>=K$145),1,0) -> 0 | L166: 0 | M166: =IF(AND($I$151<=M$146,$I$151>=M$145),1,0) -> 0 | N166: =IF(AND($I$151<=N$146,$I$151>=N$145),1,0) -> 0 | O166: 0 | P166: 0 | Q166: 0 | R166: 0 | S166: 0 | T166: 0 | U166: 0 | V166: 1 | W166: 0 | X166: 0 | Y166: 0 | Z166: 0 | AA166: 0 | AB166: 0 | AC166: 0 | AD166: 0 | AE166: 0 | AF166: 0 | AG166: 0 | AH166: 0 | AI166: 0 | AJ166: 0 | AK166: 0 | AL166: 0 | AM166: 0 | AN166: 0 | AO166: 0 | AP166: 0 | AQ166: 0 | AR166: 0 | AS166: 0 | AT166: 0 | AU166: 0 | AV166: 0 | AW166: 0 | AX166: 0
E167: Initial transaction costs flag | G167: flag | K167: =IF(AND(SUM($J35:K35)=0,L35>0),1,0) -> 0 | L167: =IF(AND(SUM($J35:L35)=0,M35>0),1,0) -> 0 | M167: =IF(AND(SUM($J35:M35)=0,N35>0),1,0) -> 0 | N167: =IF(AND(SUM($J35:N35)=0,O35>0),1,0) -> 0 | O167: =IF(AND(SUM($J35:O35)=0,P35>0),1,0) -> 0 | P167: =IF(AND(SUM($J35:P35)=0,Q35>0),1,0) -> 0 | Q167: =IF(AND(SUM($J35:Q35)=0,R35>0),1,0) -> 0 | R167: =IF(AND(SUM($J35:R35)=0,S35>0),1,0) -> 1 | S167: =IF(AND(SUM($J35:S35)=0,T35>0),1,0) -> 0 | T167: =IF(AND(SUM($J35:T35)=0,U35>0),1,0) -> 0 | U167: =IF(AND(SUM($J35:U35)=0,V35>0),1,0) -> 0 | V167: =IF(AND(SUM($J35:V35)=0,W35>0),1,0) -> 0 | W167: =IF(AND(SUM($J35:W35)=0,X35>0),1,0) -> 0 | X167: =IF(AND(SUM($J35:X35)=0,Y35>0),1,0) -> 0 | Y167: =IF(AND(SUM($J35:Y35)=0,Z35>0),1,0) -> 0 | Z167: =IF(AND(SUM($J35:Z35)=0,AA35>0),1,0) -> 0 | AA167: =IF(AND(SUM($J35:AA35)=0,AB35>0),1,0) -> 0 | AB167: =IF(AND(SUM($J35:AB35)=0,AC35>0),1,0) -> 0 | AC167: =IF(AND(SUM($J35:AC35)=0,AD35>0),1,0) -> 0 | AD167: =IF(AND(SUM($J35:AD35)=0,AE35>0),1,0) -> 0 | AE167: =IF(AND(SUM($J35:AE35)=0,AF35>0),1,0) -> 0 | AF167: =IF(AND(SUM($J35:AF35)=0,AG35>0),1,0) -> 0 | AG167: =IF(AND(SUM($J35:AG35)=0,AH35>0),1,0) -> 0 | AH167: =IF(AND(SUM($J35:AH35)=0,AI35>0),1,0) -> 0 | AI167: =IF(AND(SUM($J35:AI35)=0,AJ35>0),1,0) -> 0 | AJ167: =IF(AND(SUM($J35:AJ35)=0,AK35>0),1,0) -> 0 | AK167: =IF(AND(SUM($J35:AK35)=0,AL35>0),1,0) -> 0 | AL167: =IF(AND(SUM($J35:AL35)=0,AM35>0),1,0) -> 0 | AM167: =IF(AND(SUM($J35:AM35)=0,AN35>0),1,0) -> 0 | AN167: =IF(AND(SUM($J35:AN35)=0,AO35>0),1,0) -> 0 | AO167: =IF(AND(SUM($J35:AO35)=0,AP35>0),1,0) -> 0 | AP167: =IF(AND(SUM($J35:AP35)=0,AQ35>0),1,0) -> 0 | AQ167: =IF(AND(SUM($J35:AQ35)=0,AR35>0),1,0) -> 0 | AR167: =IF(AND(SUM($J35:AR35)=0,AS35>0),1,0) -> 0 | AS167: =IF(AND(SUM($J35:AS35)=0,AT35>0),1,0) -> 0 | AT167: =IF(AND(SUM($J35:AT35)=0,AU35>0),1,0) -> 0 | AU167: =IF(AND(SUM($J35:AU35)=0,AV35>0),1,0) -> 0 | AV167: =IF(AND(SUM($J35:AV35)=0,AW35>0),1,0) -> 0 | AW167: =IF(AND(SUM($J35:AW35)=0,AX35>0),1,0) -> 0 | AX167: =IF(AND(SUM($J35:AX35)=0,AY35>0),1,0) -> 0
E168: Financial close flag | G168: flag | K168: =IF(AND(SUM($J35:J35)=0,K35>0),1,0) -> 0 | L168: =IF(AND(SUM($J35:K35)=0,L35>0),1,0) -> 0 | M168: =IF(AND(SUM($J35:L35)=0,M35>0),1,0) -> 0 | N168: =IF(AND(SUM($J35:M35)=0,N35>0),1,0) -> 0 | O168: =IF(AND(SUM($J35:N35)=0,O35>0),1,0) -> 0 | P168: =IF(AND(SUM($J35:O35)=0,P35>0),1,0) -> 0 | Q168: =IF(AND(SUM($J35:P35)=0,Q35>0),1,0) -> 0 | R168: =IF(AND(SUM($J35:Q35)=0,R35>0),1,0) -> 0 | S168: =IF(AND(SUM($J35:R35)=0,S35>0),1,0) -> 1 | T168: =IF(AND(SUM($J35:S35)=0,T35>0),1,0) -> 0 | U168: =IF(AND(SUM($J35:T35)=0,U35>0),1,0) -> 0 | V168: =IF(AND(SUM($J35:U35)=0,V35>0),1,0) -> 0 | W168: =IF(AND(SUM($J35:V35)=0,W35>0),1,0) -> 0 | X168: =IF(AND(SUM($J35:W35)=0,X35>0),1,0) -> 0 | Y168: =IF(AND(SUM($J35:X35)=0,Y35>0),1,0) -> 0 | Z168: =IF(AND(SUM($J35:Y35)=0,Z35>0),1,0) -> 0 | AA168: =IF(AND(SUM($J35:Z35)=0,AA35>0),1,0) -> 0 | AB168: =IF(AND(SUM($J35:AA35)=0,AB35>0),1,0) -> 0 | AC168: =IF(AND(SUM($J35:AB35)=0,AC35>0),1,0) -> 0 | AD168: =IF(AND(SUM($J35:AC35)=0,AD35>0),1,0) -> 0 | AE168: =IF(AND(SUM($J35:AD35)=0,AE35>0),1,0) -> 0 | AF168: =IF(AND(SUM($J35:AE35)=0,AF35>0),1,0) -> 0 | AG168: =IF(AND(SUM($J35:AF35)=0,AG35>0),1,0) -> 0 | AH168: =IF(AND(SUM($J35:AG35)=0,AH35>0),1,0) -> 0 | AI168: =IF(AND(SUM($J35:AH35)=0,AI35>0),1,0) -> 0 | AJ168: =IF(AND(SUM($J35:AI35)=0,AJ35>0),1,0) -> 0 | AK168: =IF(AND(SUM($J35:AJ35)=0,AK35>0),1,0) -> 0 | AL168: =IF(AND(SUM($J35:AK35)=0,AL35>0),1,0) -> 0 | AM168: =IF(AND(SUM($J35:AL35)=0,AM35>0),1,0) -> 0 | AN168: =IF(AND(SUM($J35:AM35)=0,AN35>0),1,0) -> 0 | AO168: =IF(AND(SUM($J35:AN35)=0,AO35>0),1,0) -> 0 | AP168: =IF(AND(SUM($J35:AO35)=0,AP35>0),1,0) -> 0 | AQ168: =IF(AND(SUM($J35:AP35)=0,AQ35>0),1,0) -> 0 | AR168: =IF(AND(SUM($J35:AQ35)=0,AR35>0),1,0) -> 0 | AS168: =IF(AND(SUM($J35:AR35)=0,AS35>0),1,0) -> 0 | AT168: =IF(AND(SUM($J35:AS35)=0,AT35>0),1,0) -> 0 | AU168: =IF(AND(SUM($J35:AT35)=0,AU35>0),1,0) -> 0 | AV168: =IF(AND(SUM($J35:AU35)=0,AV35>0),1,0) -> 0 | AW168: =IF(AND(SUM($J35:AV35)=0,AW35>0),1,0) -> 0 | AX168: =IF(AND(SUM($J35:AW35)=0,AX35>0),1,0) -> 0
E169: Debt drawdown flag | G169: flag | K169: =(SUM($J$168:K168)>=1)*(SUM($J$166:K166)<1) -> 0 | L169: =(SUM($J$168:L168)>=1)*(SUM($J$166:L166)<1) -> 0 | M169: =(SUM($J$168:M168)>=1)*(SUM($J$166:M166)<1) -> 0 | N169: =(SUM($J$168:N168)>=1)*(SUM($J$166:N166)<1) -> 0 | O169: =(SUM($J$168:O168)>=1)*(SUM($J$166:O166)<1) -> 0 | P169: =(SUM($J$168:P168)>=1)*(SUM($J$166:P166)<1) -> 0 | Q169: =(SUM($J$168:Q168)>=1)*(SUM($J$166:Q166)<1) -> 0 | R169: =(SUM($J$168:R168)>=1)*(SUM($J$166:R166)<1) -> 0 | S169: =(SUM($J$168:S168)>=1)*(SUM($J$166:S166)<1) -> 1 | T169: =(SUM($J$168:T168)>=1)*(SUM($J$166:T166)<1) -> 1 | U169: =(SUM($J$168:U168)>=1)*(SUM($J$166:U166)<1) -> 1 | V169: =(SUM($J$168:V168)>=1)*(SUM($J$166:V166)<1) -> 0 | W169: =(SUM($J$168:W168)>=1)*(SUM($J$166:W166)<1) -> 0 | X169: =(SUM($J$168:X168)>=1)*(SUM($J$166:X166)<1) -> 0 | Y169: =(SUM($J$168:Y168)>=1)*(SUM($J$166:Y166)<1) -> 0 | Z169: =(SUM($J$168:Z168)>=1)*(SUM($J$166:Z166)<1) -> 0 | AA169: =(SUM($J$168:AA168)>=1)*(SUM($J$166:AA166)<1) -> 0 | AB169: =(SUM($J$168:AB168)>=1)*(SUM($J$166:AB166)<1) -> 0 | AC169: =(SUM($J$168:AC168)>=1)*(SUM($J$166:AC166)<1) -> 0 | AD169: =(SUM($J$168:AD168)>=1)*(SUM($J$166:AD166)<1) -> 0 | AE169: =(SUM($J$168:AE168)>=1)*(SUM($J$166:AE166)<1) -> 0 | AF169: =(SUM($J$168:AF168)>=1)*(SUM($J$166:AF166)<1) -> 0 | AG169: =(SUM($J$168:AG168)>=1)*(SUM($J$166:AG166)<1) -> 0 | AH169: =(SUM($J$168:AH168)>=1)*(SUM($J$166:AH166)<1) -> 0 | AI169: =(SUM($J$168:AI168)>=1)*(SUM($J$166:AI166)<1) -> 0 | AJ169: =(SUM($J$168:AJ168)>=1)*(SUM($J$166:AJ166)<1) -> 0 | AK169: =(SUM($J$168:AK168)>=1)*(SUM($J$166:AK166)<1) -> 0 | AL169: =(SUM($J$168:AL168)>=1)*(SUM($J$166:AL166)<1) -> 0 | AM169: =(SUM($J$168:AM168)>=1)*(SUM($J$166:AM166)<1) -> 0 | AN169: =(SUM($J$168:AN168)>=1)*(SUM($J$166:AN166)<1) -> 0 | AO169: =(SUM($J$168:AO168)>=1)*(SUM($J$166:AO166)<1) -> 0 | AP169: =(SUM($J$168:AP168)>=1)*(SUM($J$166:AP166)<1) -> 0 | AQ169: =(SUM($J$168:AQ168)>=1)*(SUM($J$166:AQ166)<1) -> 0 | AR169: =(SUM($J$168:AR168)>=1)*(SUM($J$166:AR166)<1) -> 0 | AS169: =(SUM($J$168:AS168)>=1)*(SUM($J$166:AS166)<1) -> 0 | AT169: =(SUM($J$168:AT168)>=1)*(SUM($J$166:AT166)<1) -> 0 | AU169: =(SUM($J$168:AU168)>=1)*(SUM($J$166:AU166)<1) -> 0 | AV169: =(SUM($J$168:AV168)>=1)*(SUM($J$166:AV166)<1) -> 0 | AW169: =(SUM($J$168:AW168)>=1)*(SUM($J$166:AW166)<1) -> 0 | AX169: =(SUM($J$168:AX168)>=1)*(SUM($J$166:AX166)<1) -> 0
E170: Debt repayment flag | G170: flag | K170: =IF(OR($I$151>K$146,$I$153<K$145),0,IF($I$151>=K$145,(K$146-$I$151+1)/K$159,IF($I$153<=K$146,($I$153-K$145+1)/K$159,1))) -> 0 | L170: =IF(OR($I$151>L$146,$I$153<L$145),0,IF($I$151>=L$145,(L$146-$I$151+1)/L$159,IF($I$153<=L$146,($I$153-L$145+1)/L$159,1))) -> 0 | M170: 0 | N170: 0 | O170: 0 | P170: 0 | Q170: 0 | R170: 0 | S170: 0 | T170: 0 | U170: 0 | V170: 0.08469945355 | W170: 1 | X170: 1 | Y170: 1 | Z170: 1 | AA170: 1 | AB170: 1 | AC170: 1 | AD170: 1 | AE170: 1 | AF170: 1 | AG170: 1 | AH170: 1 | AI170: 1 | AJ170: 1 | AK170: 1 | AL170: 1 | AM170: 1 | AN170: 1 | AO170: 1 | AP170: 1 | AQ170: 1 | AR170: 1 | AS170: 0.495890411 | AT170: 0 | AU170: 0 | AV170: 0 | AW170: 0 | AX170: 0
E171: Debt repayment years | G171: count | K171: =SUM($K$170:K170)*(K170<>0) -> 0 | L171: =SUM($K$170:L170)*(L170<>0) -> 0 | M171: =SUM($K$170:M170)*(M170<>0) -> 0 | N171: =SUM($K$170:N170)*(N170<>0) -> 0 | O171: =SUM($K$170:O170)*(O170<>0) -> 0 | P171: =SUM($K$170:P170)*(P170<>0) -> 0 | Q171: =SUM($K$170:Q170)*(Q170<>0) -> 0 | R171: =SUM($K$170:R170)*(R170<>0) -> 0 | S171: =SUM($K$170:S170)*(S170<>0) -> 0 | T171: =SUM($K$170:T170)*(T170<>0) -> 0 | U171: =SUM($K$170:U170)*(U170<>0) -> 0 | V171: =SUM($K$170:V170)*(V170<>0) -> 0.08469945355 | W171: =SUM($K$170:W170)*(W170<>0) -> 1.084699454 | X171: =SUM($K$170:X170)*(X170<>0) -> 2.084699454 | Y171: =SUM($K$170:Y170)*(Y170<>0) -> 3.084699454 | Z171: =SUM($K$170:Z170)*(Z170<>0) -> 4.084699454 | AA171: =SUM($K$170:AA170)*(AA170<>0) -> 5.084699454 | AB171: =SUM($K$170:AB170)*(AB170<>0) -> 6.084699454 | AC171: =SUM($K$170:AC170)*(AC170<>0) -> 7.084699454 | AD171: =SUM($K$170:AD170)*(AD170<>0) -> 8.084699454 | AE171: =SUM($K$170:AE170)*(AE170<>0) -> 9.084699454 | AF171: =SUM($K$170:AF170)*(AF170<>0) -> 10.08469945 | AG171: =SUM($K$170:AG170)*(AG170<>0) -> 11.08469945 | AH171: =SUM($K$170:AH170)*(AH170<>0) -> 12.08469945 | AI171: =SUM($K$170:AI170)*(AI170<>0) -> 13.08469945 | AJ171: =SUM($K$170:AJ170)*(AJ170<>0) -> 14.08469945 | AK171: =SUM($K$170:AK170)*(AK170<>0) -> 15.08469945 | AL171: =SUM($K$170:AL170)*(AL170<>0) -> 16.08469945 | AM171: =SUM($K$170:AM170)*(AM170<>0) -> 17.08469945 | AN171: =SUM($K$170:AN170)*(AN170<>0) -> 18.08469945 | AO171: =SUM($K$170:AO170)*(AO170<>0) -> 19.08469945 | AP171: =SUM($K$170:AP170)*(AP170<>0) -> 20.08469945 | AQ171: =SUM($K$170:AQ170)*(AQ170<>0) -> 21.08469945 | AR171: =SUM($K$170:AR170)*(AR170<>0) -> 22.08469945 | AS171: =SUM($K$170:AS170)*(AS170<>0) -> 22.58058986 | AT171: =SUM($K$170:AT170)*(AT170<>0) -> 0 | AU171: =SUM($K$170:AU170)*(AU170<>0) -> 0 | AV171: =SUM($K$170:AV170)*(AV170<>0) -> 0 | AW171: =SUM($K$170:AW170)*(AW170<>0) -> 0 | AX171: =SUM($K$170:AX170)*(AX170<>0) -> 0
E172: Debt tail flag | G172: flag | K172: =IF(OR($I$151>K$146,$I$154<K$145),0,IF($I$151>=K$145,(K$146-$I$151+1)/K$159,IF($I$154<=K$146,($I$154-K$145+1)/K$159,1)))-K170 -> 0 | L172: =IF(OR($I$151>L$146,$I$154<L$145),0,IF($I$151>=L$145,(L$146-$I$151+1)/L$159,IF($I$154<=L$146,($I$154-L$145+1)/L$159,1)))-L170 -> 0 | M172: 0 | N172: 0 | O172: 0 | P172: 0 | Q172: 0 | R172: 0 | S172: 0 | T172: 0 | U172: 0 | V172: 0 | W172: 0 | X172: 0 | Y172: 0 | Z172: 0 | AA172: 0 | AB172: 0 | AC172: 0 | AD172: 0 | AE172: 0 | AF172: 0 | AG172: 0 | AH172: 0 | AI172: 0 | AJ172: 0 | AK172: 0 | AL172: 0 | AM172: 0 | AN172: 0 | AO172: 0 | AP172: 0 | AQ172: 0 | AR172: 0 | AS172: -0.1671232877 | AT172: 0 | AU172: 0 | AV172: 0 | AW172: 0 | AX172: 0
C174: Tax - Financial years
E176: Year commencing | K176: =K17 -> 2013-01-01 | L176: =+K177+1 -> 2014-01-01 | M176: =+L177+1 -> 2015-01-01 | N176: =+M177+1 -> 2016-01-01 | O176: 2017-01-01 | P176: 2018-01-01 | Q176: 2019-01-01 | R176: 2020-01-01 | S176: 2021-01-01 | T176: 2022-01-01 | U176: 2023-01-01 | V176: 2024-01-01 | W176: 2025-01-01 | X176: 2026-01-01 | Y176: 2027-01-01 | Z176: 2028-01-01 | AA176: 2029-01-01 | AB176: 2030-01-01 | AC176: 2031-01-01 | AD176: 2032-01-01 | AE176: 2033-01-01 | AF176: 2034-01-01 | AG176: 2035-01-01 | AH176: 2036-01-01 | AI176: 2037-01-01 | AJ176: 2038-01-01 | AK176: 2039-01-01 | AL176: 2040-01-01 | AM176: 2041-01-01 | AN176: 2042-01-01 | AO176: 2043-01-01 | AP176: 2044-01-01 | AQ176: 2045-01-01 | AR176: 2046-01-01 | AS176: 2047-01-01 | AT176: 2048-01-01 | AU176: 2049-01-01 | AV176: 2050-01-01 | AW176: 2051-01-01 | AX176: 2052-01-01
E177: Year ending | K177: =K18 -> 2013-12-31 | L177: =DATE(YEAR(K177) + 1, MONTH(K177), DAY(K177)) -> 2014-12-31 | M177: 2015-12-31 | N177: 2016-12-31 | O177: 2017-12-31 | P177: 2018-12-31 | Q177: 2019-12-31 | R177: 2020-12-31 | S177: 2021-12-31 | T177: 2022-12-31 | U177: 2023-12-31 | V177: 2024-12-31 | W177: 2025-12-31 | X177: 2026-12-31 | Y177: 2027-12-31 | Z177: 2028-12-31 | AA177: 2029-12-31 | AB177: 2030-12-31 | AC177: 2031-12-31 | AD177: 2032-12-31 | AE177: 2033-12-31 | AF177: 2034-12-31 | AG177: 2035-12-31 | AH177: 2036-12-31 | AI177: 2037-12-31 | AJ177: 2038-12-31 | AK177: 2039-12-31 | AL177: 2040-12-31 | AM177: 2041-12-31 | AN177: 2042-12-31 | AO177: 2043-12-31 | AP177: 2044-12-31 | AQ177: 2045-12-31 | AR177: 2046-12-31 | AS177: 2047-12-31 | AT177: 2048-12-31 | AU177: 2049-12-31 | AV177: 2050-12-31 | AW177: 2051-12-31 | AX177: 2052-12-31
E179: Long-term expected UK RPI inflation | G179: % | I179: 0.0428
E180: =E24 -> Base year UK RPI inflation index value (CHAW) | G180: =G24 -> Jan 1987 = 100 | H180: =H24 -> UK RPI index 2020/21 | I180: =I24 -> 294.1666667
E182: =E28 -> 12 month average UK RPI inflation index value (CHAW) | G182: =G28 -> Jan 1987 = 100 | H182: =H28 -> UK RPI index t | K182: =K28 -> 250.1083333 | L182: 256.0333333 | M182: 258.5416667 | N182: 263.05 | O182: 272.475 | P182: 281.5833333 | Q182: 288.8 | R182: 293.1416667 | S182: 305 | T182: 318.054 | U182: 331.6667112 | V182: 345.8620464 | W182: 360.664942 | X182: 376.1014015 | Y182: 392.1985415 | Z182: 408.9846391 | AA182: 426.4891817 | AB182: 444.7429186 | AC182: 463.7779156 | AD182: 483.6276103 | AE182: 504.3268721 | AF182: 525.9120622 | AG182: 548.4210985 | AH182: 571.8935215 | AI182: 596.3705642 | AJ182: 621.8952243 | AK182: 648.5123399 | AL182: 676.2686681 | AM182: 705.2129671 | AN182: 735.3960821 | AO182: 766.8710344 | AP182: 799.6931146 | AQ182: 833.91998 | AR182: 869.6117551 | AS182: 906.8311382 | AT182: 945.6435109 | AU182: 986.1170532 | AV182: 1028.322863 | AW182: 1072.335082 | AX182: 1118.231023
E183: UK RPI inflation uplift from 2019/20 term | G183: scalar | K183: =K182/$I$180 -> 0.8502266289 | L183: =L182/$I$180 -> 0.870368272 | M183: 0.8788951841 | N183: 0.8942209632 | O183: 0.9262606232 | P183: 0.957223796 | Q183: 0.9817563739 | R183: 0.9965155807 | S183: 1.036827195 | T183: 1.081203399 | U183: 1.127478905 | V183: 1.175735002 | W183: 1.22605646 | X183: 1.278531677 | Y183: 1.333252832 | Z183: 1.390316054 | AA183: 1.449821581 | AB183: 1.511873944 | AC183: 1.576582149 | AD183: 1.644059865 | AE183: 1.714425627 | AF183: 1.787803044 | AG183: 1.864321015 | AH183: 1.944113954 | AI183: 2.027322031 | AJ183: 2.114091414 | AK183: 2.204574527 | AL183: 2.298930316 | AM183: 2.397324534 | AN183: 2.499930024 | AO183: 2.606927029 | AP183: 2.718503506 | AQ183: 2.834855456 | AR183: 2.956187269 | AS183: 3.082712085 | AT183: 3.214652162 | AU183: 3.352239274 | AV183: 3.495715115 | AW183: 3.645331722 | AX183: 3.80135192
C185: Tax - Operational years
E187: Operational Year | K187: Year 1 | L187: Year 2 | M187: Year 3 | N187: Year 4 | O187: Year 5 | P187: Year 6 | Q187: Year 7 | R187: Year 8 | S187: Year 9 | T187: Year 10 | U187: Year 11 | V187: Year 12 | W187: Year 13 | X187: Year 14 | Y187: Year 15 | Z187: Year 16 | AA187: Year 17 | AB187: Year 18 | AC187: Year 19 | AD187: Year 20 | AE187: Year 21 | AF187: Year 22 | AG187: Year 23 | AH187: Year 24 | AI187: Year 25
E189: Corporation tax rate | G189: % | K189: 0.25 | L189: 0.25 | M189: 0.25 | N189: 0.25 | O189: 0.25 | P189: 0.25 | Q189: 0.25 | R189: 0.25 | S189: 0.25 | T189: 0.25 | U189: 0.25 | V189: 0.25 | W189: 0.25 | X189: 0.25 | Y189: 0.25 | Z189: 0.25 | AA189: 0.25 | AB189: 0.25 | AC189: 0.25 | AD189: 0.25 | AE189: 0.25 | AF189: 0.25 | AG189: 0.25 | AH189: 0.25 | AI189: 0.25
E190: Capital allowance rate (declining balance) | G190: % | K190: 0.06 | L190: 0.06 | M190: 0.06 | N190: 0.06 | O190: 0.06 | P190: 0.06 | Q190: 0.06 | R190: 0.06 | S190: 0.06 | T190: 0.06 | U190: 0.06 | V190: 0.06 | W190: 0.06 | X190: 0.06 | Y190: 0.06 | Z190: 0.06 | AA190: 0.06 | AB190: 0.06 | AC190: 0.06 | AD190: 0.06 | AE190: 0.06 | AF190: 0.06 | AG190: 0.06 | AH190: 0.06 | AI190: 0.06
E192: =E179 -> Long-term expected UK RPI inflation | G192: % | I192: =I179 -> 0.0428
E193: Start of price base year | G193: date | I193: 2020-04-01
E194: End of price base year | G194: date | I194: =EOMONTH(I193,11) -> 2021-03-31
E195: UK RPI uplift from 2020/21 term to start of regime | G195: scalar | I195: =(1+$I$192)^((I149-AVERAGE(I193,I194))/365.25) -> 1.06856935
C197: Tax - Annuity
E199: Tax element of Cap and Floor annuity previously calculated and fixed | G199: choice | I199: No
B201: End of sheet

Sheet Data Sources
A1: Data Sources | H1: Licence | I1: Reference row in
E2: Parameter | G2: Units | H2: Terminology | I2: Inputs sheet | K2: Source | L2: Link
B4: Indexation, currency and base year price term
E6: =Inputs!E6 -> GB indexed portion of interconnector | G6: =Inputs!G6 -> choice % | I6: =ROW(Inputs!E6) -> 6 | K6: Project's licence
E7: =Inputs!E9 -> Currency of cost inputs | G7: =Inputs!G9 -> choice | I7: =ROW(Inputs!E9) -> 9 | K7: Final Project Assessment decision
E8: =Inputs!E11 -> Base year price term | G8: =Inputs!G11 -> choice | I8: =ROW(Inputs!E11) -> 11 | K8: Project's licence
B10: Variables set after financial close
C12: Actual values
E14: =Inputs!E20 -> Development costs | G14: =Inputs!G20 -> £m nominal prices | I14: =ROW(Inputs!E20) -> 20 | K14: Final Project Assessment decision
E15: =Inputs!E21 -> Capex | G15: =Inputs!G21 -> £m nominal prices | I15: =ROW(Inputs!E21) -> 21 | K15: Final Project Assessment decision
E16: =Inputs!E22 -> Spares | G16: =Inputs!G22 -> £m nominal prices | I16: =ROW(Inputs!E22) -> 22 | K16: Final Project Assessment decision
E18: =Inputs!E24 -> Base year UK RPI inflation index value (CHAW) | G18: =Inputs!G24 -> Jan 1987 = 100 | H18: =Inputs!H24 -> UK RPI index 2020/21 | I18: =ROW(Inputs!E24) -> 24 | K18: Office for National Statistics | L18: RPI All Items Index: Jan 1987=100
E19: =Inputs!E25 -> 0 | G19: =Inputs!G25 -> 0 | I19: =ROW(Inputs!E25) -> 25
E20: =Inputs!E26 -> 0 | G20: =Inputs!G26 -> 0 | I20: =ROW(Inputs!E26) -> 26 | K20: Bank of England | L20: XUMARES
E22: =Inputs!E28 -> 12 month average UK RPI inflation index value (CHAW) | G22: =Inputs!G28 -> Jan 1987 = 100 | H22: =Inputs!H28 -> UK RPI index t | I22: =ROW(Inputs!E28) -> 28 | K22: Office for National Statistics | L22: RPI All Items Index: Jan 1987=100
E23: =Inputs!E29 -> 0 | G23: =Inputs!G29 -> 0 | I23: =ROW(Inputs!E29) -> 29
E24: =Inputs!E30 -> 0 | G24: =Inputs!G30 -> 0 | I24: =ROW(Inputs!E30) -> 30 | K24: Bank of England | L24: XUMAERS
C26: Ex-ante allowances for the operational period
E28: =Inputs!E42 -> Replacement Capex | G28: =Inputs!G42 -> £m 2020 prices | I28: =ROW(Inputs!E42) -> 42 | K28: Final Project Assessment decision
E29: =Inputs!E43 -> Decommissioning baseline | G29: =Inputs!G43 -> £m 2020 prices | I29: =ROW(Inputs!E43) -> 43 | K29: Final Project Assessment decision
E30: =Inputs!E44 -> Controllable Opex | G30: =Inputs!G44 -> £m 2020 prices | I30: =ROW(Inputs!E44) -> 44 | K30: Final Project Assessment decision
E31: =Inputs!E45 -> Non-controllable Opex baseline | G31: =Inputs!G45 -> £m 2020 prices | I31: =ROW(Inputs!E45) -> 45 | K31: Final Project Assessment decision
E33: =Inputs!E51 -> 2020 average UK RPI inflation index value (CHAW) | G33: =Inputs!G51 -> Jan 1987 = 100 | I33: =ROW(Inputs!E51) -> 51 | K33: Office for National Statistics | L33: RPI All Items Index: Jan 1987=100
E34: =Inputs!E52 -> 2020 average Ireland CPI inflation index value | G34: =Inputs!G52 ->  | I34: =ROW(Inputs!E52) -> 52
E35: =Inputs!E53 -> 2020 average exchange rate (XUMAERS) | G35: =Inputs!G53 ->  | I35: =ROW(Inputs!E53) -> 53 | K35: Bank of England | L35: XUMAERS
E37: =Inputs!E55 ->  | G37: =Inputs!G55 ->  | H37: =Inputs!H55 ->  | I37: =ROW(Inputs!E55) -> 55 | K37: Bank of England | L37: XUMAERS
B39: Variables set at financial close
C41: Finance
E43: =Inputs!E68 -> Cap return rate | G43: =Inputs!G68 -> real annual % | I43: =ROW(Inputs!E68) -> 68 | K43: Ofgem's determination based on FID date
E44: =Inputs!E69 -> Floor return rate | G44: =Inputs!G69 -> real annual % | I44: =ROW(Inputs!E69) -> 69 | K44: Ofgem's determination based on FID date
E45: =Inputs!E70 -> Interest during construction (IDC) rate | G45: =Inputs!G70 -> real annual % | I45: =ROW(Inputs!E70) -> 70 | K45: Ofgem's determination based on FID date
E47: =Inputs!E73 -> Pre-operational notional gearing | G47: =Inputs!G73 -> % | I47: =ROW(Inputs!E73) -> 73 | K47: Ofgem's determination based on FID date
E48: =Inputs!E74 -> Operational notional gearing | G48: =Inputs!G74 -> % | I48: =ROW(Inputs!E74) -> 74 | K48: Window 1 policy decision (fixed for Window 1 projects)
E50: =Inputs!E76 -> Equity transaction costs | G50: =Inputs!G76 -> % | I50: =ROW(Inputs!E76) -> 76 | K50: Window 1 policy decision (fixed for Window 1 projects)
E51: =Inputs!E77 -> Debt transaction costs | G51: =Inputs!G77 -> % | I51: =ROW(Inputs!E77) -> 77 | K51: Window 1 policy decision (fixed for Window 1 projects)
C53: Actual cost of debt
E55: =Inputs!E81 -> Project finance key input: senior debt amount or gearing | G55: =Inputs!G81 -> 1: Amount (£m) 2: Gearing (%) | I55: =ROW(Inputs!E81) -> 81 | K55: Developer's Final Project Assessment submission
E56: =Inputs!E82 -> Project finance senior debt amount (input if 1; empty if 2) | G56: =Inputs!G82 -> £m nominal prices | I56: =ROW(Inputs!E82) -> 82 | K56: Developer's Final Project Assessment submission
E57: =Inputs!E83 -> Project finance actual gearing (input if 2; empty if 1) | G57: =Inputs!G83 -> % | I57: =ROW(Inputs!E83) -> 83 | K57: Developer's Final Project Assessment submission
E59: =Inputs!E85 -> Senior Debt tenor | G59: =Inputs!G85 -> full years | I59: =ROW(Inputs!E85) -> 85 | K59: Developer's Final Project Assessment submission
E60: =Inputs!E86 -> Senior Debt tail requirement | G60: =Inputs!G86 -> full years | I60: =ROW(Inputs!E86) -> 86 | K60: Developer's Final Project Assessment submission
E61: =Inputs!E87 -> DSCR sizing | G61: =Inputs!G87 -> DSCRx | I61: =ROW(Inputs!E87) -> 87 | K61: Developer's Final Project Assessment submission
E63: =Inputs!E89 -> Fixed rate - Construction | G63: =Inputs!G89 -> nominal % | I63: =ROW(Inputs!E89) -> 89 | K63: Developer's Final Project Assessment submission
E64: =Inputs!E90 -> Fixed rate - Operation | G64: =Inputs!G90 -> nominal % | I64: =ROW(Inputs!E90) -> 90 | K64: Developer's Final Project Assessment submission
E66: =Inputs!E92 -> Senior Debt construction margin | G66: =Inputs!G92 -> nominal % | I66: =ROW(Inputs!E92) -> 92 | K66: Developer's Final Project Assessment submission
E67: =Inputs!E93 -> of which: swap margin | G67: =Inputs!G93 -> nominal % | I67: =ROW(Inputs!E93) -> 93 | K67: Developer's Final Project Assessment submission
E68: =Inputs!E94 -> Senior Debt upfront fee | G68: =Inputs!G94 -> nominal % | I68: =ROW(Inputs!E94) -> 94 | K68: Developer's Final Project Assessment submission
E69: =Inputs!E95 -> Senior Debt commitment fee | G69: =Inputs!G95 -> % of applicable margin | I69: =ROW(Inputs!E95) -> 95 | K69: Developer's Final Project Assessment submission
E71: =Inputs!E97 -> Senior Debt drawdown year | G71: =Inputs!G97 -> Year | I71: =ROW(Inputs!E97) -> 97 | K71: Developer's Final Project Assessment submission
E72: =Inputs!E98 -> Senior Debt drawdown profile | G72: =Inputs!G98 -> % | I72: =ROW(Inputs!E98) -> 98 | K72: Developer's Final Project Assessment submission
E74: =Inputs!E100 -> Debt Service Reserve Facility/Account amount | G74: =Inputs!G100 -> £m nominal prices | I74: =ROW(Inputs!E100) -> 100 | K74: Developer's Final Project Assessment submission
E75: =Inputs!E101 -> Debt Service Reserve Facility upfront fee | G75: =Inputs!G101 -> nominal % | I75: =ROW(Inputs!E101) -> 101 | K75: Developer's Final Project Assessment submission
E76: =Inputs!E102 -> Debt Service Reserve Facility construction margin | G76: =Inputs!G102 -> nominal % | I76: =ROW(Inputs!E102) -> 102 | K76: Developer's Final Project Assessment submission
E77: =Inputs!E103 -> Debt Service Reserve Facility commitment fee | G77: =Inputs!G103 -> % of applicable margin | I77: =ROW(Inputs!E103) -> 103 | K77: Developer's Final Project Assessment submission
E79: =Inputs!E105 -> Cap and Floor Liquidity Facility amount | G79: =Inputs!G105 -> £m nominal prices | I79: =ROW(Inputs!E105) -> 105 | K79: Developer's Final Project Assessment submission
E80: =Inputs!E107 -> Cap and Floor Liquidity Facility upfront fee | G80: =Inputs!G107 -> nominal % | I80: =ROW(Inputs!E107) -> 107 | K80: Developer's Final Project Assessment submission
E81: =Inputs!E108 -> Cap and Floor Liquidity Facility construction margin | G81: =Inputs!G108 -> nominal % | I81: =ROW(Inputs!E108) -> 108 | K81: Developer's Final Project Assessment submission
E82: =Inputs!E109 -> Cap and Floor Liquidity Facility commitment fee | G82: =Inputs!G109 -> % of applicable margin | I82: =ROW(Inputs!E109) -> 109 | K82: Developer's Final Project Assessment submission
E84: =Inputs!E111 -> Standby Debt Facility amount | G84: =Inputs!G111 -> £m nominal prices | I84: =ROW(Inputs!E111) -> 111 | K84: Developer's Final Project Assessment submission
E85: =Inputs!E112 -> Standby Debt Facility upfront fee | G85: =Inputs!G112 -> nominal % | I85: =ROW(Inputs!E112) -> 112 | K85: Developer's Final Project Assessment submission
E86: =Inputs!E113 -> Standby Debt Facility construction margin | G86: =Inputs!G113 -> nominal % | I86: =ROW(Inputs!E113) -> 113 | K86: Developer's Final Project Assessment submission
E87: =Inputs!E114 -> Standby Debt Facility commitment fee | G87: =Inputs!G114 -> % of applicable margin | I87: =ROW(Inputs!E114) -> 114 | K87: Developer's Final Project Assessment submission
E89: =Inputs!E116 -> VAT Facility amount | G89: =Inputs!G116 -> £m nominal prices | I89: =ROW(Inputs!E116) -> 116 | K89: Developer's Final Project Assessment submission
E90: =Inputs!E117 -> VAT Facility average outstanding loan | G90: =Inputs!G117 -> £m nominal prices | I90: =ROW(Inputs!E117) -> 117 | K90: Developer's Final Project Assessment submission
E91: =Inputs!E118 -> VAT Facility upfront fee | G91: =Inputs!G118 -> nominal % | I91: =ROW(Inputs!E118) -> 118 | K91: Developer's Final Project Assessment submission
E92: =Inputs!E119 -> VAT Facility construction margin | G92: =Inputs!G119 -> nominal % | I92: =ROW(Inputs!E119) -> 119 | K92: Developer's Final Project Assessment submission
E93: =Inputs!E120 -> VAT Facility commitment fee | G93: =Inputs!G120 -> % of applicable margin | I93: =ROW(Inputs!E120) -> 120 | K93: Developer's Final Project Assessment submission
E95: =Inputs!E122 -> Other Facilities amount | G95: =Inputs!G122 -> £m nominal prices | I95: =ROW(Inputs!E122) -> 122 | K95: Developer's Final Project Assessment submission
E96: =Inputs!E123 -> Other Facilities upfront fee | G96: =Inputs!G123 -> nominal % | I96: =ROW(Inputs!E123) -> 123 | K96: Developer's Final Project Assessment submission
E97: =Inputs!E124 -> Other Facilities construction margin | G97: =Inputs!G124 -> nominal % | I97: =ROW(Inputs!E124) -> 124 | K97: Developer's Final Project Assessment submission
E98: =Inputs!E125 -> Other Facilities commitment fee | G98: =Inputs!G125 -> % of applicable margin | I98: =ROW(Inputs!E125) -> 125 | K98: Developer's Final Project Assessment submission
E100: =Inputs!E127 -> Debt Service Reserve: Facility or Account | G100: =Inputs!G127 -> 1: DSRF 2: DSRA | I100: =ROW(Inputs!E127) -> 127 | K100: Developer's Final Project Assessment submission
E101: =Inputs!E128 -> Switch for transaction costs in taxes | G101: =Inputs!G128 -> 1: notional costs 2: actual costs | I101: =ROW(Inputs!E128) -> 128 | K101: Developer's Final Project Assessment submission
E103: =Inputs!E133 -> Senior Debt repayment year | G103: =Inputs!G133 -> Year | I103: =ROW(Inputs!E133) -> 133 | K103: Developer's Final Project Assessment submission
E104: =Inputs!E134 -> Senior Debt repayment profile | G104: =Inputs!G134 -> % | I104: =ROW(Inputs!E134) -> 134 | K104: Developer's Final Project Assessment submission
E106: =Inputs!E136 -> Senior Debt operation margin (including swap margin) | G106: =Inputs!G136 -> nominal % | I106: =ROW(Inputs!E136) -> 136 | K106: Developer's Final Project Assessment submission
E107: =Inputs!E137 -> Debt Service Reserve Facility operation margin | G107: =Inputs!G137 -> nominal % | I107: =ROW(Inputs!E137) -> 137 | K107: Developer's Final Project Assessment submission
E108: =Inputs!E138 -> Cap and Floor Liquidity Facility operation margin | G108: =Inputs!G138 -> nominal % | I108: =ROW(Inputs!E138) -> 138 | K108: Developer's Final Project Assessment submission
E109: =Inputs!E139 -> Standby Debt Facility operation margin | G109: =Inputs!G139 -> nominal % | I109: =ROW(Inputs!E139) -> 139 | K109: Developer's Final Project Assessment submission
E110: =Inputs!E140 -> VAT Facility operation margin | G110: =Inputs!G140 -> nominal % | I110: =ROW(Inputs!E140) -> 140 | K110: Developer's Final Project Assessment submission
E111: =Inputs!E141 -> Other facilities operation margin | G111: =Inputs!G141 -> nominal % | I111: =ROW(Inputs!E141) -> 141 | K111: Developer's Final Project Assessment submission
C113: Model operation
E115: =Inputs!E149 -> Regime start date | G115: =Inputs!G149 -> date | I115: =ROW(Inputs!I149) -> 149 | K115: Final Project Assessment decision
E116: =Inputs!E150 -> End date for IDC | G116: =Inputs!G150 -> date | I116: =ROW(Inputs!I150) -> 150 | K116: Final Project Assessment decision
E117: =Inputs!E151 -> Start of operations | G117: =Inputs!G151 -> date | I117: =ROW(Inputs!I151) -> 151 | K117: Final Project Assessment decision
E118: =Inputs!E155 -> Number of operational years | G118: =Inputs!G155 -> full years | I118: =ROW(Inputs!I155) -> 155 | K118: Project's licence
C120: Tax - Financial years
E122: =Inputs!E179 -> Long-term expected UK RPI inflation | G122: =Inputs!G179 -> % | I122: =ROW(Inputs!E179) -> 179 | K122: Ofgem's determination based on FID date
E123: =Inputs!E182 -> 12 month average UK RPI inflation index value (CHAW) | G123: =Inputs!G182 -> Jan 1987 = 100 | H123: =Inputs!H182 -> UK RPI index t | I123: =ROW(Inputs!E182) -> 182 | K123: Office for National Statistics | L123: RPI All Items Index: Jan 1987=100
C125: Tax - Operational years
E127: =Inputs!E189 -> Corporation tax rate | G127: =Inputs!G189 -> % | I127: =ROW(Inputs!E189) -> 189 | K127: Ofgem's determination based on FID date
E128: =Inputs!E190 -> Capital allowance rate (declining balance) | G128: =Inputs!G190 -> % | I128: =ROW(Inputs!E190) -> 190 | K128: Ofgem's determination based on FID date
E129: =Inputs!E193 -> Start of price base year | G129: =Inputs!G193 -> date | I129: =ROW(Inputs!E193) -> 193 | K129: Project's licence
C131: Tax - Annuity
E133: =Inputs!E199 -> Tax element of Cap and Floor annuity previously calculated and fixed | G133: =Inputs!G199 -> choice | I133: =ROW(Inputs!E199) -> 199 | K133: N/a at Final Project Assessment
B135: End of sheet

Sheet Pre Op RAV
A1: Pre Op RAV | H1: Licence
E2: Parameter | G2: Units | H2: Terminology | I2: Constant | K2: Annual values
E3: Year commencing | K3: =Inputs!K17 -> 2013-01-01 | L3: =+K4+1 -> 2014-01-01 | M3: =+L4+1 -> 2015-01-01 | N3: =+M4+1 -> 2016-01-01 | O3: 2017-01-01 | P3: 2018-01-01 | Q3: 2019-01-01 | R3: 2020-01-01 | S3: 2021-01-01 | T3: 2022-01-01 | U3: 2023-01-01 | V3: 2024-01-01 | W3: 2025-01-01 | X3: 2026-01-01 | Y3: 2027-01-01 | Z3: 2028-01-01 | AA3: 2029-01-01 | AB3: 2030-01-01 | AC3: 2031-01-01 | AD3: 2032-01-01 | AE3: 2033-01-01 | AF3: 2034-01-01 | AG3: 2035-01-01 | AH3: 2036-01-01 | AI3: 2037-01-01 | AJ3: 2038-01-01 | AK3: 2039-01-01 | AL3: 2040-01-01 | AM3: 2041-01-01 | AN3: 2042-01-01 | AO3: 2043-01-01 | AP3: 2044-01-01 | AQ3: 2045-01-01 | AR3: 2046-01-01 | AS3: 2047-01-01 | AT3: 2048-01-01 | AU3: 2049-01-01 | AV3: 2050-01-01 | AW3: 2051-01-01 | AX3: 2052-01-01
E4: Year ending | K4: =Inputs!K18 -> 2013-12-31 | L4: =DATE(YEAR(K4) + 1, MONTH(K4), DAY(K4)) -> 2014-12-31 | M4: 2015-12-31 | N4: 2016-12-31 | O4: 2017-12-31 | P4: 2018-12-31 | Q4: 2019-12-31 | R4: 2020-12-31 | S4: 2021-12-31 | T4: 2022-12-31 | U4: 2023-12-31 | V4: 2024-12-31 | W4: 2025-12-31 | X4: 2026-12-31 | Y4: 2027-12-31 | Z4: 2028-12-31 | AA4: 2029-12-31 | AB4: 2030-12-31 | AC4: 2031-12-31 | AD4: 2032-12-31 | AE4: 2033-12-31 | AF4: 2034-12-31 | AG4: 2035-12-31 | AH4: 2036-12-31 | AI4: 2037-12-31 | AJ4: 2038-12-31 | AK4: 2039-12-31 | AL4: 2040-12-31 | AM4: 2041-12-31 | AN4: 2042-12-31 | AO4: 2043-12-31 | AP4: 2044-12-31 | AQ4: 2045-12-31 | AR4: 2046-12-31 | AS4: 2047-12-31 | AT4: 2048-12-31 | AU4: 2049-12-31 | AV4: 2050-12-31 | AW4: 2051-12-31 | AX4: 2052-12-31
B6: Flags
E8: IDC flag | G8: flag | K8: =Inputs!K160 -> 1 | L8: =Inputs!L160 -> 1 | M8: =Inputs!M160 -> 1 | N8: =Inputs!N160 -> 1 | O8: =Inputs!O160 -> 1 | P8: =Inputs!P160 -> 1 | Q8: =Inputs!Q160 -> 1 | R8: =Inputs!R160 -> 1 | S8: =Inputs!S160 -> 1 | T8: =Inputs!T160 -> 1 | U8: =Inputs!U160 -> 1 | V8: =Inputs!V160 -> 0.9153005464 | W8: =Inputs!W160 -> 0 | X8: =Inputs!X160 -> 0 | Y8: =Inputs!Y160 -> 0 | Z8: =Inputs!Z160 -> 0 | AA8: =Inputs!AA160 -> 0 | AB8: =Inputs!AB160 -> 0 | AC8: =Inputs!AC160 -> 0 | AD8: =Inputs!AD160 -> 0 | AE8: =Inputs!AE160 -> 0 | AF8: =Inputs!AF160 -> 0 | AG8: =Inputs!AG160 -> 0 | AH8: =Inputs!AH160 -> 0 | AI8: =Inputs!AI160 -> 0 | AJ8: =Inputs!AJ160 -> 0 | AK8: =Inputs!AK160 -> 0 | AL8: =Inputs!AL160 -> 0 | AM8: =Inputs!AM160 -> 0 | AN8: =Inputs!AN160 -> 0 | AO8: =Inputs!AO160 -> 0 | AP8: =Inputs!AP160 -> 0 | AQ8: =Inputs!AQ160 -> 0 | AR8: =Inputs!AR160 -> 0 | AS8: =Inputs!AS160 -> 0 | AT8: =Inputs!AT160 -> 0 | AU8: =Inputs!AU160 -> 0 | AV8: =Inputs!AV160 -> 0 | AW8: =Inputs!AW160 -> 0 | AX8: =Inputs!AX160 -> 0
E9: Post-IDC and pre-operations flag | G9: flag | K9: =Inputs!K161 -> 0 | L9: =Inputs!L161 -> 0 | M9: =Inputs!M161 -> 0 | N9: =Inputs!N161 -> 0 | O9: =Inputs!O161 -> 0 | P9: =Inputs!P161 -> 0 | Q9: =Inputs!Q161 -> 0 | R9: =Inputs!R161 -> 0 | S9: =Inputs!S161 -> 0 | T9: =Inputs!T161 -> 0 | U9: =Inputs!U161 -> 0 | V9: =Inputs!V161 -> 0 | W9: =Inputs!W161 -> 0 | X9: =Inputs!X161 -> 0 | Y9: =Inputs!Y161 -> 0 | Z9: =Inputs!Z161 -> 0 | AA9: =Inputs!AA161 -> 0 | AB9: =Inputs!AB161 -> 0 | AC9: =Inputs!AC161 -> 0 | AD9: =Inputs!AD161 -> 0 | AE9: =Inputs!AE161 -> 0 | AF9: =Inputs!AF161 -> 0 | AG9: =Inputs!AG161 -> 0 | AH9: =Inputs!AH161 -> 0 | AI9: =Inputs!AI161 -> 0 | AJ9: =Inputs!AJ161 -> 0 | AK9: =Inputs!AK161 -> 0 | AL9: =Inputs!AL161 -> 0 | AM9: =Inputs!AM161 -> 0 | AN9: =Inputs!AN161 -> 0 | AO9: =Inputs!AO161 -> 0 | AP9: =Inputs!AP161 -> 0 | AQ9: =Inputs!AQ161 -> 0 | AR9: =Inputs!AR161 -> 0 | AS9: =Inputs!AS161 -> 0 | AT9: =Inputs!AT161 -> 0 | AU9: =Inputs!AU161 -> 0 | AV9: =Inputs!AV161 -> 0 | AW9: =Inputs!AW161 -> 0 | AX9: =Inputs!AX161 -> 0
E10: Operations flag | G10: flag | K10: =Inputs!K162 -> 0 | L10: =Inputs!L162 -> 0 | M10: =Inputs!M162 -> 0 | N10: =Inputs!N162 -> 0 | O10: =Inputs!O162 -> 0 | P10: =Inputs!P162 -> 0 | Q10: =Inputs!Q162 -> 0 | R10: =Inputs!R162 -> 0 | S10: =Inputs!S162 -> 0 | T10: =Inputs!T162 -> 0 | U10: =Inputs!U162 -> 0 | V10: =Inputs!V162 -> 0.08469945355 | W10: =Inputs!W162 -> 1 | X10: =Inputs!X162 -> 1 | Y10: =Inputs!Y162 -> 1 | Z10: =Inputs!Z162 -> 1 | AA10: =Inputs!AA162 -> 1 | AB10: =Inputs!AB162 -> 1 | AC10: =Inputs!AC162 -> 1 | AD10: =Inputs!AD162 -> 1 | AE10: =Inputs!AE162 -> 1 | AF10: =Inputs!AF162 -> 1 | AG10: =Inputs!AG162 -> 1 | AH10: =Inputs!AH162 -> 1 | AI10: =Inputs!AI162 -> 1 | AJ10: =Inputs!AJ162 -> 1 | AK10: =Inputs!AK162 -> 1 | AL10: =Inputs!AL162 -> 1 | AM10: =Inputs!AM162 -> 1 | AN10: =Inputs!AN162 -> 1 | AO10: =Inputs!AO162 -> 1 | AP10: =Inputs!AP162 -> 1 | AQ10: =Inputs!AQ162 -> 1 | AR10: =Inputs!AR162 -> 1 | AS10: =Inputs!AS162 -> 0.3287671233 | AT10: =Inputs!AT162 -> 0 | AU10: =Inputs!AU162 -> 0 | AV10: =Inputs!AV162 -> 0 | AW10: =Inputs!AW162 -> 0 | AX10: =Inputs!AX162 -> 0
E11: Transfer construction to operations flag - Notional | G11: flag | K11: =Inputs!K165 -> 0 | L11: =Inputs!L165 -> 0 | M11: =Inputs!M165 -> 0 | N11: =Inputs!N165 -> 0 | O11: =Inputs!O165 -> 0 | P11: =Inputs!P165 -> 0 | Q11: =Inputs!Q165 -> 0 | R11: =Inputs!R165 -> 0 | S11: =Inputs!S165 -> 0 | T11: =Inputs!T165 -> 0 | U11: =Inputs!U165 -> 0 | V11: =Inputs!V165 -> 1 | W11: =Inputs!W165 -> 0 | X11: =Inputs!X165 -> 0 | Y11: =Inputs!Y165 -> 0 | Z11: =Inputs!Z165 -> 0 | AA11: =Inputs!AA165 -> 0 | AB11: =Inputs!AB165 -> 0 | AC11: =Inputs!AC165 -> 0 | AD11: =Inputs!AD165 -> 0 | AE11: =Inputs!AE165 -> 0 | AF11: =Inputs!AF165 -> 0 | AG11: =Inputs!AG165 -> 0 | AH11: =Inputs!AH165 -> 0 | AI11: =Inputs!AI165 -> 0 | AJ11: =Inputs!AJ165 -> 0 | AK11: =Inputs!AK165 -> 0 | AL11: =Inputs!AL165 -> 0 | AM11: =Inputs!AM165 -> 0 | AN11: =Inputs!AN165 -> 0 | AO11: =Inputs!AO165 -> 0 | AP11: =Inputs!AP165 -> 0 | AQ11: =Inputs!AQ165 -> 0 | AR11: =Inputs!AR165 -> 0 | AS11: =Inputs!AS165 -> 0 | AT11: =Inputs!AT165 -> 0 | AU11: =Inputs!AU165 -> 0 | AV11: =Inputs!AV165 -> 0 | AW11: =Inputs!AW165 -> 0 | AX11: =Inputs!AX165 -> 0
E12: Transfer construction to operations flag - ACOD | G12: flag | K12: =Inputs!K166 -> 0 | L12: =Inputs!L166 -> 0 | M12: =Inputs!M166 -> 0 | N12: =Inputs!N166 -> 0 | O12: =Inputs!O166 -> 0 | P12: =Inputs!P166 -> 0 | Q12: =Inputs!Q166 -> 0 | R12: =Inputs!R166 -> 0 | S12: =Inputs!S166 -> 0 | T12: =Inputs!T166 -> 0 | U12: =Inputs!U166 -> 0 | V12: =Inputs!V166 -> 1 | W12: =Inputs!W166 -> 0 | X12: =Inputs!X166 -> 0 | Y12: =Inputs!Y166 -> 0 | Z12: =Inputs!Z166 -> 0 | AA12: =Inputs!AA166 -> 0 | AB12: =Inputs!AB166 -> 0 | AC12: =Inputs!AC166 -> 0 | AD12: =Inputs!AD166 -> 0 | AE12: =Inputs!AE166 -> 0 | AF12: =Inputs!AF166 -> 0 | AG12: =Inputs!AG166 -> 0 | AH12: =Inputs!AH166 -> 0 | AI12: =Inputs!AI166 -> 0 | AJ12: =Inputs!AJ166 -> 0 | AK12: =Inputs!AK166 -> 0 | AL12: =Inputs!AL166 -> 0 | AM12: =Inputs!AM166 -> 0 | AN12: =Inputs!AN166 -> 0 | AO12: =Inputs!AO166 -> 0 | AP12: =Inputs!AP166 -> 0 | AQ12: =Inputs!AQ166 -> 0 | AR12: =Inputs!AR166 -> 0 | AS12: =Inputs!AS166 -> 0 | AT12: =Inputs!AT166 -> 0 | AU12: =Inputs!AU166 -> 0 | AV12: =Inputs!AV166 -> 0 | AW12: =Inputs!AW166 -> 0 | AX12: =Inputs!AX166 -> 0
E13: Financial close flag | G13: flag | K13: =Inputs!K168 -> 0 | L13: =Inputs!L168 -> 0 | M13: =Inputs!M168 -> 0 | N13: =Inputs!N168 -> 0 | O13: =Inputs!O168 -> 0 | P13: =Inputs!P168 -> 0 | Q13: =Inputs!Q168 -> 0 | R13: =Inputs!R168 -> 0 | S13: =Inputs!S168 -> 1 | T13: =Inputs!T168 -> 0 | U13: =Inputs!U168 -> 0 | V13: =Inputs!V168 -> 0 | W13: =Inputs!W168 -> 0 | X13: =Inputs!X168 -> 0 | Y13: =Inputs!Y168 -> 0 | Z13: =Inputs!Z168 -> 0 | AA13: =Inputs!AA168 -> 0 | AB13: =Inputs!AB168 -> 0 | AC13: =Inputs!AC168 -> 0 | AD13: =Inputs!AD168 -> 0 | AE13: =Inputs!AE168 -> 0 | AF13: =Inputs!AF168 -> 0 | AG13: =Inputs!AG168 -> 0 | AH13: =Inputs!AH168 -> 0 | AI13: =Inputs!AI168 -> 0 | AJ13: =Inputs!AJ168 -> 0 | AK13: =Inputs!AK168 -> 0 | AL13: =Inputs!AL168 -> 0 | AM13: =Inputs!AM168 -> 0 | AN13: =Inputs!AN168 -> 0 | AO13: =Inputs!AO168 -> 0 | AP13: =Inputs!AP168 -> 0 | AQ13: =Inputs!AQ168 -> 0 | AR13: =Inputs!AR168 -> 0 | AS13: =Inputs!AS168 -> 0 | AT13: =Inputs!AT168 -> 0 | AU13: =Inputs!AU168 -> 0 | AV13: =Inputs!AV168 -> 0 | AW13: =Inputs!AW168 -> 0 | AX13: =Inputs!AX168 -> 0
B15: RAV
C17: Pre-operational
E19: Opening pre-operational RAV (before transfers) | G19: =Inputs!$I$11 -> £m 20/21 prices | L19: =K26 -> 0 | M19: =L26 -> 0 | N19: 0 | O19: 1.182142252 | P19: 2.112121834 | Q19: 3.825622637 | R19: 7.74230692 | S19: 11.1548512 | T19: 19.75674503 | U19: 96.79421477 | V19: =U26 -> 170.2300335 | W19: 0 | X19: 0 | Y19: 0 | Z19: 0 | AA19: 0 | AB19: 0 | AC19: 0 | AD19: 0 | AE19: 0 | AF19: 0 | AG19: 0 | AH19: 0 | AI19: 0 | AJ19: 0 | AK19: 0 | AL19: 0 | AM19: 0 | AN19: 0 | AO19: 0 | AP19: 0 | AQ19: 0 | AR19: 0 | AS19: 0 | AT19: 0 | AU19: 0 | AV19: 0 | AW19: 0 | AX19: 0
E20: =Inputs!E34 -> Development costs | G20: =Inputs!$I$11 -> £m 20/21 prices | K20: =Inputs!K34 -> 0 | L20: =Inputs!L34 -> 0 | M20: =Inputs!M34 -> 0 | N20: =Inputs!N34 -> 1.152872405 | O20: =Inputs!O34 -> 0.846888632 | P20: =Inputs!P34 -> 1.563757598 | Q20: =Inputs!Q34 -> 3.625327265 | R20: =Inputs!R34 -> 2.93466303 | S20: =Inputs!S34 -> 1.450720211 | T20: =Inputs!T34 -> 0 | U20: =Inputs!U34 -> 0 | V20: =Inputs!V34 -> 0 | W20: =Inputs!W34 -> 0 | X20: =Inputs!X34 -> 0 | Y20: =Inputs!Y34 -> 0 | Z20: =Inputs!Z34 -> 0 | AA20: =Inputs!AA34 -> 0 | AB20: =Inputs!AB34 -> 0 | AC20: =Inputs!AC34 -> 0 | AD20: =Inputs!AD34 -> 0 | AE20: =Inputs!AE34 -> 0 | AF20: =Inputs!AF34 -> 0 | AG20: =Inputs!AG34 -> 0 | AH20: =Inputs!AH34 -> 0 | AI20: =Inputs!AI34 -> 0 | AJ20: =Inputs!AJ34 -> 0 | AK20: =Inputs!AK34 -> 0 | AL20: =Inputs!AL34 -> 0 | AM20: =Inputs!AM34 -> 0 | AN20: =Inputs!AN34 -> 0 | AO20: =Inputs!AO34 -> 0 | AP20: =Inputs!AP34 -> 0 | AQ20: =Inputs!AQ34 -> 0 | AR20: =Inputs!AR34 -> 0 | AS20: =Inputs!AS34 -> 0 | AT20: =Inputs!AT34 -> 0 | AU20: =Inputs!AU34 -> 0 | AV20: =Inputs!AV34 -> 0 | AW20: =Inputs!AW34 -> 0 | AX20: =Inputs!AX34 -> 0
E21: =Inputs!E35 -> Capex | G21: =Inputs!$I$11 -> £m 20/21 prices | K21: =Inputs!K35 -> 0 | L21: =Inputs!L35 -> 0 | M21: =Inputs!M35 -> 0 | N21: =Inputs!N35 -> 0 | O21: =Inputs!O35 -> 0 | P21: =Inputs!P35 -> 0 | Q21: =Inputs!Q35 -> 0 | R21: =Inputs!R35 -> 0 | S21: =Inputs!S35 -> 6.371412659 | T21: =Inputs!T35 -> 74.12618141 | U21: =Inputs!U35 -> 66.69943318 | V21: =Inputs!V35 -> 37.7179065 | W21: =Inputs!W35 -> 0 | X21: =Inputs!X35 -> 0 | Y21: =Inputs!Y35 -> 0 | Z21: =Inputs!Z35 -> 0 | AA21: =Inputs!AA35 -> 0 | AB21: =Inputs!AB35 -> 0 | AC21: =Inputs!AC35 -> 0 | AD21: =Inputs!AD35 -> 0 | AE21: =Inputs!AE35 -> 0 | AF21: =Inputs!AF35 -> 0 | AG21: =Inputs!AG35 -> 0 | AH21: =Inputs!AH35 -> 0 | AI21: =Inputs!AI35 -> 0 | AJ21: =Inputs!AJ35 -> 0 | AK21: =Inputs!AK35 -> 0 | AL21: =Inputs!AL35 -> 0 | AM21: =Inputs!AM35 -> 0 | AN21: =Inputs!AN35 -> 0 | AO21: =Inputs!AO35 -> 0 | AP21: =Inputs!AP35 -> 0 | AQ21: =Inputs!AQ35 -> 0 | AR21: =Inputs!AR35 -> 0 | AS21: =Inputs!AS35 -> 0 | AT21: =Inputs!AT35 -> 0 | AU21: =Inputs!AU35 -> 0 | AV21: =Inputs!AV35 -> 0 | AW21: =Inputs!AW35 -> 0 | AX21: =Inputs!AX35 -> 0
E22: =Inputs!E36 -> Spares | G22: =Inputs!$I$11 -> £m 20/21 prices | K22: =Inputs!K36 -> 0 | L22: =Inputs!L36 -> 0 | M22: =Inputs!M36 -> 0 | N22: =Inputs!N36 -> 0 | O22: =Inputs!O36 -> 0 | P22: =Inputs!P36 -> 0 | Q22: =Inputs!Q36 -> 0 | R22: =Inputs!R36 -> 0 | S22: =Inputs!S36 -> 0 | T22: =Inputs!T36 -> 0 | U22: =Inputs!U36 -> 0 | V22: =Inputs!V36 -> 0 | W22: =Inputs!W36 -> 0 | X22: =Inputs!X36 -> 0 | Y22: =Inputs!Y36 -> 0 | Z22: =Inputs!Z36 -> 0 | AA22: =Inputs!AA36 -> 0 | AB22: =Inputs!AB36 -> 0 | AC22: =Inputs!AC36 -> 0 | AD22: =Inputs!AD36 -> 0 | AE22: =Inputs!AE36 -> 0 | AF22: =Inputs!AF36 -> 0 | AG22: =Inputs!AG36 -> 0 | AH22: =Inputs!AH36 -> 0 | AI22: =Inputs!AI36 -> 0 | AJ22: =Inputs!AJ36 -> 0 | AK22: =Inputs!AK36 -> 0 | AL22: =Inputs!AL36 -> 0 | AM22: =Inputs!AM36 -> 0 | AN22: =Inputs!AN36 -> 0 | AO22: =Inputs!AO36 -> 0 | AP22: =Inputs!AP36 -> 0 | AQ22: =Inputs!AQ36 -> 0 | AR22: =Inputs!AR36 -> 0 | AS22: =Inputs!AS36 -> 0 | AT22: =Inputs!AT36 -> 0 | AU22: =Inputs!AU36 -> 0 | AV22: =Inputs!AV36 -> 0 | AW22: =Inputs!AW36 -> 0 | AX22: =Inputs!AX36 -> 0
E23: =Finance!E28 -> Capitalised interest during construction | G23: =Inputs!$I$11 -> £m 20/21 prices | K23: =Finance!K28 -> 0 | L23: =Finance!L28 -> 0 | M23: =Finance!M28 -> 0 | N23: =Finance!N28 -> 0.02926984666 | O23: =Finance!O28 -> 0.08309095032 | P23: =Finance!P28 -> 0.1497432048 | Q23: =Finance!Q28 -> 0.2913570185 | R23: =Finance!R28 -> 0.4778812535 | S23: =Finance!S28 -> 0.7797609559 | T23: =Finance!T28 -> 2.911288334 | U23: =Finance!U28 -> 6.736385572 | V23: =Finance!V28 -> 8.974802552 | W23: =Finance!W28 -> 0 | X23: =Finance!X28 -> 0 | Y23: =Finance!Y28 -> 0 | Z23: =Finance!Z28 -> 0 | AA23: =Finance!AA28 -> 0 | AB23: =Finance!AB28 -> 0 | AC23: =Finance!AC28 -> 0 | AD23: =Finance!AD28 -> 0 | AE23: =Finance!AE28 -> 0 | AF23: =Finance!AF28 -> 0 | AG23: =Finance!AG28 -> 0 | AH23: =Finance!AH28 -> 0 | AI23: =Finance!AI28 -> 0 | AJ23: =Finance!AJ28 -> 0 | AK23: =Finance!AK28 -> 0 | AL23: =Finance!AL28 -> 0 | AM23: =Finance!AM28 -> 0 | AN23: =Finance!AN28 -> 0 | AO23: =Finance!AO28 -> 0 | AP23: =Finance!AP28 -> 0 | AQ23: =Finance!AQ28 -> 0 | AR23: =Finance!AR28 -> 0 | AS23: =Finance!AS28 -> 0 | AT23: =Finance!AT28 -> 0 | AU23: =Finance!AU28 -> 0 | AV23: =Finance!AV28 -> 0 | AW23: =Finance!AW28 -> 0 | AX23: =Finance!AX28 -> 0
E24: Closing pre-operational RAV (after IDC) | G24: =Inputs!$I$11 -> £m 20/21 prices | K24: =SUM(K19:K23) -> 0 | L24: 0 | M24: 0 | N24: 1.182142252 | O24: 2.112121834 | P24: 3.825622637 | Q24: 7.74230692 | R24: 11.1548512 | S24: 19.75674503 | T24: 96.79421477 | U24: 170.2300335 | V24: =SUM(V19:V23) -> 216.9227426 | W24: 0 | X24: 0 | Y24: 0 | Z24: 0 | AA24: 0 | AB24: 0 | AC24: 0 | AD24: 0 | AE24: 0 | AF24: 0 | AG24: 0 | AH24: 0 | AI24: 0 | AJ24: 0 | AK24: 0 | AL24: 0 | AM24: 0 | AN24: 0 | AO24: 0 | AP24: 0 | AQ24: 0 | AR24: 0 | AS24: 0 | AT24: 0 | AU24: 0 | AV24: 0 | AW24: 0 | AX24: 0
E25: Pre-operational RAV transfers | G25: =Inputs!$I$11 -> £m 20/21 prices | K25: =-K24*K11 -> 0 | L25: =-L24*L11 -> 0 | M25: 0 | N25: 0 | O25: 0 | P25: 0 | Q25: 0 | R25: 0 | S25: 0 | T25: 0 | U25: 0 | V25: -216.9227426 | W25: 0 | X25: 0 | Y25: 0 | Z25: 0 | AA25: 0 | AB25: 0 | AC25: 0 | AD25: 0 | AE25: 0 | AF25: 0 | AG25: 0 | AH25: 0 | AI25: 0 | AJ25: 0 | AK25: 0 | AL25: 0 | AM25: 0 | AN25: 0 | AO25: 0 | AP25: 0 | AQ25: 0 | AR25: 0 | AS25: 0 | AT25: 0 | AU25: 0 | AV25: 0 | AW25: 0 | AX25: 0
E26: Closing pre-operational RAV (after IDC) - adjusted for RAV transfers | G26: =Inputs!$I$11 -> £m 20/21 prices | K26: =SUM(K24:K25) -> 0 | L26: 0 | M26: 0 | N26: 1.182142252 | O26: 2.112121834 | P26: 3.825622637 | Q26: 7.74230692 | R26: 11.1548512 | S26: 19.75674503 | T26: 96.79421477 | U26: =SUM(U24:U25) -> 170.2300335 | V26: =SUM(V24:V25) -> 0 | W26: 0 | X26: 0 | Y26: 0 | Z26: 0 | AA26: 0 | AB26: 0 | AC26: 0 | AD26: 0 | AE26: 0 | AF26: 0 | AG26: 0 | AH26: 0 | AI26: 0 | AJ26: 0 | AK26: 0 | AL26: 0 | AM26: 0 | AN26: 0 | AO26: 0 | AP26: 0 | AQ26: 0 | AR26: 0 | AS26: 0 | AT26: 0 | AU26: 0 | AV26: 0 | AW26: 0 | AX26: 0
B28: Actual cost of debt
C30: Development costs
E32: Opening development costs (before transfers) | G32: =CONCATENATE(Inputs!$I$9,"m nominal prices") -> £m nominal prices | L32: =K36 -> 0 | M32: =L36 -> 0 | N32: 0 | O32: 1.030922673 | P32: 1.815362265 | Q32: 3.312228249 | R32: 6.871416398 | S32: 9.795853832 | T32: 0 | U32: 0 | V32: 0 | W32: 0 | X32: 0 | Y32: 0 | Z32: 0 | AA32: 0 | AB32: 0 | AC32: 0 | AD32: 0 | AE32: 0 | AF32: 0 | AG32: 0 | AH32: 0 | AI32: 0 | AJ32: 0 | AK32: 0 | AL32: 0 | AM32: 0 | AN32: 0 | AO32: 0 | AP32: 0 | AQ32: 0 | AR32: 0 | AS32: 0 | AT32: 0 | AU32: 0 | AV32: 0 | AW32: 0 | AX32: 0
E33: Development costs | G33: =CONCATENATE(Inputs!$I$9,"m nominal prices") -> £m nominal prices | K33: =Inputs!K20 -> 0 | L33: =Inputs!L20 -> 0 | M33: =Inputs!M20 -> 0 | N33: =Inputs!N20 -> 1.030922673 | O33: =Inputs!O20 -> 0.7844395921 | P33: =Inputs!P20 -> 1.496865984 | Q33: =Inputs!Q20 -> 3.55918815 | R33: =Inputs!R20 -> 2.924437434 | S33: =Inputs!S20 -> 1.504146168 | T33: =Inputs!T20 -> 0 | U33: =Inputs!U20 -> 0 | V33: =Inputs!V20 -> 0 | W33: =Inputs!W20 -> 0 | X33: =Inputs!X20 -> 0 | Y33: =Inputs!Y20 -> 0 | Z33: =Inputs!Z20 -> 0 | AA33: =Inputs!AA20 -> 0 | AB33: =Inputs!AB20 -> 0 | AC33: =Inputs!AC20 -> 0 | AD33: =Inputs!AD20 -> 0 | AE33: =Inputs!AE20 -> 0 | AF33: =Inputs!AF20 -> 0 | AG33: =Inputs!AG20 -> 0 | AH33: =Inputs!AH20 -> 0 | AI33: =Inputs!AI20 -> 0 | AJ33: =Inputs!AJ20 -> 0 | AK33: =Inputs!AK20 -> 0 | AL33: =Inputs!AL20 -> 0 | AM33: =Inputs!AM20 -> 0 | AN33: =Inputs!AN20 -> 0 | AO33: =Inputs!AO20 -> 0 | AP33: =Inputs!AP20 -> 0 | AQ33: =Inputs!AQ20 -> 0 | AR33: =Inputs!AR20 -> 0 | AS33: =Inputs!AS20 -> 0 | AT33: =Inputs!AT20 -> 0 | AU33: =Inputs!AU20 -> 0 | AV33: =Inputs!AV20 -> 0 | AW33: =Inputs!AW20 -> 0 | AX33: =Inputs!AX20 -> 0
E34: Closing development costs (before transfers) | G34: =CONCATENATE(Inputs!$I$9,"m nominal prices") -> £m nominal prices | K34: =SUM(K32:K33) -> 0 | L34: 0 | M34: 0 | N34: 1.030922673 | O34: 1.815362265 | P34: 3.312228249 | Q34: 6.871416398 | R34: 9.795853832 | S34: 11.3 | T34: 0 | U34: 0 | V34: 0 | W34: 0 | X34: 0 | Y34: 0 | Z34: 0 | AA34: 0 | AB34: 0 | AC34: 0 | AD34: 0 | AE34: 0 | AF34: 0 | AG34: 0 | AH34: 0 | AI34: 0 | AJ34: 0 | AK34: 0 | AL34: 0 | AM34: 0 | AN34: 0 | AO34: 0 | AP34: 0 | AQ34: 0 | AR34: 0 | AS34: 0 | AT34: 0 | AU34: 0 | AV34: 0 | AW34: 0 | AX34: 0
E35: Development costs transfers | G35: =CONCATENATE(Inputs!$I$9,"m nominal prices") -> £m nominal prices | K35: =-K34*K13 -> 0 | L35: =-L34*L13 -> 0 | M35: =-M34*M13 -> 0 | N35: =-N34*N13 -> 0 | O35: =-O34*O13 -> 0 | P35: 0 | Q35: 0 | R35: 0 | S35: -11.3 | T35: 0 | U35: 0 | V35: 0 | W35: 0 | X35: 0 | Y35: 0 | Z35: 0 | AA35: 0 | AB35: 0 | AC35: 0 | AD35: 0 | AE35: 0 | AF35: 0 | AG35: 0 | AH35: 0 | AI35: 0 | AJ35: 0 | AK35: 0 | AL35: 0 | AM35: 0 | AN35: 0 | AO35: 0 | AP35: 0 | AQ35: 0 | AR35: 0 | AS35: 0 | AT35: 0 | AU35: 0 | AV35: 0 | AW35: 0 | AX35: 0
E36: Closing development costs (after transfers) | G36: =CONCATENATE(Inputs!$I$9,"m nominal prices") -> £m nominal prices | K36: =SUM(K34:K35) -> 0 | L36: 0 | M36: 0 | N36: 1.030922673 | O36: 1.815362265 | P36: 3.312228249 | Q36: 6.871416398 | R36: 9.795853832 | S36: 0 | T36: 0 | U36: =SUM(U34:U35) -> 0 | V36: =SUM(V34:V35) -> 0 | W36: 0 | X36: 0 | Y36: 0 | Z36: 0 | AA36: 0 | AB36: 0 | AC36: 0 | AD36: 0 | AE36: 0 | AF36: 0 | AG36: 0 | AH36: 0 | AI36: 0 | AJ36: 0 | AK36: 0 | AL36: 0 | AM36: 0 | AN36: 0 | AO36: 0 | AP36: 0 | AQ36: 0 | AR36: 0 | AS36: 0 | AT36: 0 | AU36: 0 | AV36: 0 | AW36: 0 | AX36: 0
C38: Pre-operational costs
E40: Opening eligible costs | G40: =CONCATENATE(Inputs!$I$9,"m nominal prices") -> £m nominal prices | L40: =K48 -> 0 | M40: =L48 -> 0 | N40: 0 | O40: 0 | P40: 0 | Q40: 0 | R40: 0 | S40: 0 | T40: 26.9861859 | U40: 115.1976475 | V40: 198.4658336 | W40: 0 | X40: 0 | Y40: 0 | Z40: 0 | AA40: 0 | AB40: 0 | AC40: 0 | AD40: 0 | AE40: 0 | AF40: 0 | AG40: 0 | AH40: 0 | AI40: 0 | AJ40: 0 | AK40: 0 | AL40: 0 | AM40: 0 | AN40: 0 | AO40: 0 | AP40: 0 | AQ40: 0 | AR40: 0 | AS40: 0 | AT40: 0 | AU40: 0 | AV40: 0 | AW40: 0 | AX40: 0
E41: Development costs transfers | G41: =CONCATENATE(Inputs!$I$9,"m nominal prices") -> £m nominal prices | K41: =-K35 -> 0 | L41: =-L35 -> 0 | M41: 0 | N41: 0 | O41: 0 | P41: 0 | Q41: 0 | R41: 0 | S41: 11.3 | T41: 0 | U41: 0 | V41: 0 | W41: 0 | X41: 0 | Y41: 0 | Z41: 0 | AA41: 0 | AB41: 0 | AC41: 0 | AD41: 0 | AE41: 0 | AF41: 0 | AG41: 0 | AH41: 0 | AI41: 0 | AJ41: 0 | AK41: 0 | AL41: 0 | AM41: 0 | AN41: 0 | AO41: 0 | AP41: 0 | AQ41: 0 | AR41: 0 | AS41: 0 | AT41: 0 | AU41: 0 | AV41: 0 | AW41: 0 | AX41: 0
E42: Capex | G42: =CONCATENATE(Inputs!$I$9,"m nominal prices") -> £m nominal prices | K42: =Inputs!K21 -> 0 | L42: =Inputs!L21 -> 0 | M42: =Inputs!M21 -> 0 | N42: =Inputs!N21 -> 0 | O42: =Inputs!O21 -> 0 | P42: =Inputs!P21 -> 0 | Q42: =Inputs!Q21 -> 0 | R42: =Inputs!R21 -> 0 | S42: =Inputs!S21 -> 6.606053919 | T42: =Inputs!T21 -> 80.14547933 | U42: =Inputs!U21 -> 75.20220388 | V42: =Inputs!V21 -> 44.34626288 | W42: =Inputs!W21 -> 0 | X42: =Inputs!X21 -> 0 | Y42: =Inputs!Y21 -> 0 | Z42: =Inputs!Z21 -> 0 | AA42: =Inputs!AA21 -> 0 | AB42: =Inputs!AB21 -> 0 | AC42: =Inputs!AC21 -> 0 | AD42: =Inputs!AD21 -> 0 | AE42: =Inputs!AE21 -> 0 | AF42: =Inputs!AF21 -> 0 | AG42: =Inputs!AG21 -> 0 | AH42: =Inputs!AH21 -> 0 | AI42: =Inputs!AI21 -> 0 | AJ42: =Inputs!AJ21 -> 0 | AK42: =Inputs!AK21 -> 0 | AL42: =Inputs!AL21 -> 0 | AM42: =Inputs!AM21 -> 0 | AN42: =Inputs!AN21 -> 0 | AO42: =Inputs!AO21 -> 0 | AP42: =Inputs!AP21 -> 0 | AQ42: =Inputs!AQ21 -> 0 | AR42: =Inputs!AR21 -> 0 | AS42: =Inputs!AS21 -> 0 | AT42: =Inputs!AT21 -> 0 | AU42: =Inputs!AU21 -> 0 | AV42: =Inputs!AV21 -> 0 | AW42: =Inputs!AW21 -> 0 | AX42: =Inputs!AX21 -> 0
E43: Spares | G43: =CONCATENATE(Inputs!$I$9,"m nominal prices") -> £m nominal prices | K43: =Inputs!K22 -> 0 | L43: =Inputs!L22 -> 0 | M43: =Inputs!M22 -> 0 | N43: =Inputs!N22 -> 0 | O43: =Inputs!O22 -> 0 | P43: =Inputs!P22 -> 0 | Q43: =Inputs!Q22 -> 0 | R43: =Inputs!R22 -> 0 | S43: =Inputs!S22 -> 0 | T43: =Inputs!T22 -> 0 | U43: =Inputs!U22 -> 0 | V43: =Inputs!V22 -> 0 | W43: =Inputs!W22 -> 0 | X43: =Inputs!X22 -> 0 | Y43: =Inputs!Y22 -> 0 | Z43: =Inputs!Z22 -> 0 | AA43: =Inputs!AA22 -> 0 | AB43: =Inputs!AB22 -> 0 | AC43: =Inputs!AC22 -> 0 | AD43: =Inputs!AD22 -> 0 | AE43: =Inputs!AE22 -> 0 | AF43: =Inputs!AF22 -> 0 | AG43: =Inputs!AG22 -> 0 | AH43: =Inputs!AH22 -> 0 | AI43: =Inputs!AI22 -> 0 | AJ43: =Inputs!AJ22 -> 0 | AK43: =Inputs!AK22 -> 0 | AL43: =Inputs!AL22 -> 0 | AM43: =Inputs!AM22 -> 0 | AN43: =Inputs!AN22 -> 0 | AO43: =Inputs!AO22 -> 0 | AP43: =Inputs!AP22 -> 0 | AQ43: =Inputs!AQ22 -> 0 | AR43: =Inputs!AR22 -> 0 | AS43: =Inputs!AS22 -> 0 | AT43: =Inputs!AT22 -> 0 | AU43: =Inputs!AU22 -> 0 | AV43: =Inputs!AV22 -> 0 | AW43: =Inputs!AW22 -> 0 | AX43: =Inputs!AX22 -> 0
E44: DSRA funding | G44: =CONCATENATE(Inputs!$I$9,"m nominal prices") -> £m nominal prices | K44: =Finance!K155 -> 0 | L44: =Finance!L155 -> 0 | M44: =Finance!M155 -> 0 | N44: =Finance!N155 -> 0 | O44: =Finance!O155 -> 0 | P44: =Finance!P155 -> 0 | Q44: =Finance!Q155 -> 0 | R44: =Finance!R155 -> 0 | S44: =Finance!S155 -> 0 | T44: =Finance!T155 -> 0 | U44: =Finance!U155 -> 0 | V44: =Finance!V155 -> 0 | W44: =Finance!W155 -> 0 | X44: =Finance!X155 -> 0 | Y44: =Finance!Y155 -> 0 | Z44: =Finance!Z155 -> 0 | AA44: =Finance!AA155 -> 0 | AB44: =Finance!AB155 -> 0 | AC44: =Finance!AC155 -> 0 | AD44: =Finance!AD155 -> 0 | AE44: =Finance!AE155 -> 0 | AF44: =Finance!AF155 -> 0 | AG44: =Finance!AG155 -> 0 | AH44: =Finance!AH155 -> 0 | AI44: =Finance!AI155 -> 0 | AJ44: =Finance!AJ155 -> 0 | AK44: =Finance!AK155 -> 0 | AL44: =Finance!AL155 -> 0 | AM44: =Finance!AM155 -> 0 | AN44: =Finance!AN155 -> 0 | AO44: =Finance!AO155 -> 0 | AP44: =Finance!AP155 -> 0 | AQ44: =Finance!AQ155 -> 0 | AR44: =Finance!AR155 -> 0 | AS44: =Finance!AS155 -> 0 | AT44: =Finance!AT155 -> 0 | AU44: =Finance!AU155 -> 0 | AV44: =Finance!AV155 -> 0 | AW44: =Finance!AW155 -> 0 | AX44: =Finance!AX155 -> 0
E45: Financial expenses during construction | G45: =CONCATENATE(Inputs!$I$9,"m nominal prices") -> £m nominal prices | K45: =Finance!K114 -> 0 | L45: =Finance!L114 -> 0 | M45: =Finance!M114 -> 0 | N45: =Finance!N114 -> 0 | O45: =Finance!O114 -> 0 | P45: =Finance!P114 -> 0 | Q45: =Finance!Q114 -> 0 | R45: =Finance!R114 -> 0 | S45: =Finance!S114 -> 9.080131981 | T45: =Finance!T114 -> 8.065982271 | U45: =Finance!U114 -> 8.065982271 | V45: =Finance!V114 -> 0 | W45: =Finance!W114 -> 0 | X45: =Finance!X114 -> 0 | Y45: =Finance!Y114 -> 0 | Z45: =Finance!Z114 -> 0 | AA45: =Finance!AA114 -> 0 | AB45: =Finance!AB114 -> 0 | AC45: =Finance!AC114 -> 0 | AD45: =Finance!AD114 -> 0 | AE45: =Finance!AE114 -> 0 | AF45: =Finance!AF114 -> 0 | AG45: =Finance!AG114 -> 0 | AH45: =Finance!AH114 -> 0 | AI45: =Finance!AI114 -> 0 | AJ45: =Finance!AJ114 -> 0 | AK45: =Finance!AK114 -> 0 | AL45: =Finance!AL114 -> 0 | AM45: =Finance!AM114 -> 0 | AN45: =Finance!AN114 -> 0 | AO45: =Finance!AO114 -> 0 | AP45: =Finance!AP114 -> 0 | AQ45: =Finance!AQ114 -> 0 | AR45: =Finance!AR114 -> 0 | AS45: =Finance!AS114 -> 0 | AT45: =Finance!AT114 -> 0 | AU45: =Finance!AU114 -> 0 | AV45: =Finance!AV114 -> 0 | AW45: =Finance!AW114 -> 0 | AX45: =Finance!AX114 -> 0
E46: Closing eligible costs | G46: =CONCATENATE(Inputs!$I$9,"m nominal prices") -> £m nominal prices | K46: =SUM(K40:K45) -> 0 | L46: =SUM(L40:L45) -> 0 | M46: 0 | N46: 0 | O46: 0 | P46: 0 | Q46: 0 | R46: 0 | S46: 26.9861859 | T46: 115.1976475 | U46: 198.4658336 | V46: 242.8120965 | W46: 0 | X46: 0 | Y46: 0 | Z46: 0 | AA46: 0 | AB46: 0 | AC46: 0 | AD46: 0 | AE46: 0 | AF46: 0 | AG46: 0 | AH46: 0 | AI46: 0 | AJ46: 0 | AK46: 0 | AL46: 0 | AM46: 0 | AN46: 0 | AO46: 0 | AP46: 0 | AQ46: 0 | AR46: 0 | AS46: 0 | AT46: 0 | AU46: 0 | AV46: 0 | AW46: 0 | AX46: 0
E47: Eligible costs transfer | G47: =CONCATENATE(Inputs!$I$9,"m nominal prices") -> £m nominal prices | K47: =-K46*K12 -> 0 | L47: =-L46*L12 -> 0 | M47: 0 | N47: 0 | O47: 0 | P47: 0 | Q47: 0 | R47: 0 | S47: 0 | T47: 0 | U47: 0 | V47: -242.8120965 | W47: =-W46*W12 -> 0 | X47: 0 | Y47: 0 | Z47: 0 | AA47: 0 | AB47: 0 | AC47: 0 | AD47: 0 | AE47: 0 | AF47: 0 | AG47: 0 | AH47: 0 | AI47: 0 | AJ47: 0 | AK47: 0 | AL47: 0 | AM47: 0 | AN47: 0 | AO47: 0 | AP47: 0 | AQ47: 0 | AR47: 0 | AS47: 0 | AT47: 0 | AU47: 0 | AV47: 0 | AW47: 0 | AX47: 0
E48: Closing eligible costs - adjusted for transfer | G48: =CONCATENATE(Inputs!$I$9,"m nominal prices") -> £m nominal prices | K48: =SUM(K46:K47) -> 0 | L48: 0 | M48: 0 | N48: 0 | O48: 0 | P48: 0 | Q48: 0 | R48: 0 | S48: 26.9861859 | T48: 115.1976475 | U48: =SUM(U46:U47) -> 198.4658336 | V48: =SUM(V46:V47) -> 0 | W48: 0 | X48: 0 | Y48: 0 | Z48: 0 | AA48: 0 | AB48: 0 | AC48: 0 | AD48: 0 | AE48: 0 | AF48: 0 | AG48: 0 | AH48: 0 | AI48: 0 | AJ48: 0 | AK48: 0 | AL48: 0 | AM48: 0 | AN48: 0 | AO48: 0 | AP48: 0 | AQ48: 0 | AR48: 0 | AS48: 0 | AT48: 0 | AU48: 0 | AV48: 0 | AW48: 0 | AX48: 0
C50: Eligible costs
C51: Note: Due to the circularity of the interest calculation, "Copy-PasteValues" must be performed from Row 52 to Row 53 until the circularity check shows 'OK'
E53: Eligible costs - copy | G53: =CONCATENATE(Inputs!$I$9,"m nominal prices") -> £m nominal prices | K53: =SUM(K41:K45) -> 0 | L53: 0 | M53: 0 | N53: 0 | O53: 0 | P53: 0 | Q53: 0 | R53: 0 | S53: =SUM(S41:S45) -> 26.9861859 | T53: 88.2114616 | U53: 83.26818615 | V53: 44.34626288 | W53: 0 | X53: 0 | Y53: 0 | Z53: 0 | AA53: 0 | AB53: 0 | AC53: 0 | AD53: 0 | AE53: 0 | AF53: 0 | AG53: 0 | AH53: 0 | AI53: 0 | AJ53: 0 | AK53: 0 | AL53: 0 | AM53: 0 | AN53: 0 | AO53: 0 | AP53: 0 | AQ53: 0 | AR53: 0 | AS53: 0 | AT53: 0 | AU53: 0 | AV53: 0 | AW53: 0 | AX53: 0
E54: Eligible costs - paste | G54: =CONCATENATE(Inputs!$I$9,"m nominal prices") -> £m nominal prices | K54: 0 | L54: 0 | M54: 0 | N54: 0 | O54: 0 | P54: 0 | Q54: 0 | R54: 0 | S54: 26.9861859 | T54: 88.2114616 | U54: 83.26818615 | V54: 44.34626288 | W54: 0 | X54: 0 | Y54: 0 | Z54: 0 | AA54: 0 | AB54: 0 | AC54: 0 | AD54: 0 | AE54: 0 | AF54: 0 | AG54: 0 | AH54: 0 | AI54: 0 | AJ54: 0 | AK54: 0 | AL54: 0 | AM54: 0 | AN54: 0 | AO54: 0 | AP54: 0 | AQ54: 0 | AR54: 0 | AS54: 0 | AT54: 0 | AU54: 0 | AV54: 0 | AW54: 0 | AX54: 0
E56: Delta | G56: =CONCATENATE(Inputs!$I$9,"m nominal prices") -> £m nominal prices | K56: =ABS(K53-K54) -> 0 | L56: =ABS(L53-L54) -> 0 | M56: 0 | N56: 0 | O56: 0 | P56: 0 | Q56: 0 | R56: 0 | S56: 0 | T56: 0 | U56: 0 | V56: 0 | W56: 0 | X56: 0 | Y56: 0 | Z56: 0 | AA56: 0 | AB56: 0 | AC56: 0 | AD56: 0 | AE56: 0 | AF56: 0 | AG56: 0 | AH56: 0 | AI56: 0 | AJ56: 0 | AK56: 0 | AL56: 0 | AM56: 0 | AN56: 0 | AO56: 0 | AP56: 0 | AQ56: 0 | AR56: 0 | AS56: 0 | AT56: 0 | AU56: 0 | AV56: 0 | AW56: 0 | AX56: 0
E57: Circularity check | I57: =IF(SUM(K56:AX56)<0.000001,"OK","Copy-Paste") -> OK
B59: End of sheet

Sheet Finance
A1: Finance | H1: Licence
E2: Parameter | G2: Units | H2: Terminology | I2: Constant | K2: Annual values
E3: Year commencing | K3: =Inputs!K17 -> 2013-01-01 | L3: =+K4+1 -> 2014-01-01 | M3: 2015-01-01 | N3: 2016-01-01 | O3: 2017-01-01 | P3: 2018-01-01 | Q3: 2019-01-01 | R3: 2020-01-01 | S3: 2021-01-01 | T3: 2022-01-01 | U3: 2023-01-01 | V3: 2024-01-01 | W3: 2025-01-01 | X3: 2026-01-01 | Y3: 2027-01-01 | Z3: 2028-01-01 | AA3: 2029-01-01 | AB3: 2030-01-01 | AC3: 2031-01-01 | AD3: 2032-01-01 | AE3: 2033-01-01 | AF3: 2034-01-01 | AG3: 2035-01-01 | AH3: 2036-01-01 | AI3: 2037-01-01 | AJ3: 2038-01-01 | AK3: 2039-01-01 | AL3: 2040-01-01 | AM3: 2041-01-01 | AN3: 2042-01-01 | AO3: 2043-01-01 | AP3: 2044-01-01 | AQ3: 2045-01-01 | AR3: 2046-01-01 | AS3: 2047-01-01 | AT3: 2048-01-01 | AU3: =+AT4+1 -> 2049-01-01 | AV3: =+AU4+1 -> 2050-01-01 | AW3: =+AV4+1 -> 2051-01-01 | AX3: =+AW4+1 -> 2052-01-01
E4: Year ending | K4: =Inputs!K18 -> 2013-12-31 | L4: =DATE(YEAR(K4) + 1, MONTH(K4), DAY(K4)) -> 2014-12-31 | M4: 2015-12-31 | N4: 2016-12-31 | O4: 2017-12-31 | P4: 2018-12-31 | Q4: 2019-12-31 | R4: 2020-12-31 | S4: 2021-12-31 | T4: 2022-12-31 | U4: 2023-12-31 | V4: 2024-12-31 | W4: 2025-12-31 | X4: 2026-12-31 | Y4: 2027-12-31 | Z4: 2028-12-31 | AA4: 2029-12-31 | AB4: 2030-12-31 | AC4: 2031-12-31 | AD4: 2032-12-31 | AE4: 2033-12-31 | AF4: 2034-12-31 | AG4: 2035-12-31 | AH4: 2036-12-31 | AI4: 2037-12-31 | AJ4: 2038-12-31 | AK4: 2039-12-31 | AL4: 2040-12-31 | AM4: 2041-12-31 | AN4: 2042-12-31 | AO4: 2043-12-31 | AP4: 2044-12-31 | AQ4: 2045-12-31 | AR4: 2046-12-31 | AS4: 2047-12-31 | AT4: 2048-12-31 | AU4: =DATE(YEAR(AT4) + 1, MONTH(AT4), DAY(AT4)) -> 2049-12-31 | AV4: =DATE(YEAR(AU4) + 1, MONTH(AU4), DAY(AU4)) -> 2050-12-31 | AW4: =DATE(YEAR(AV4) + 1, MONTH(AV4), DAY(AV4)) -> 2051-12-31 | AX4: =DATE(YEAR(AW4) + 1, MONTH(AW4), DAY(AW4)) -> 2052-12-31
B6: Flags
E8: Post-IDC and pre-operations flag | G8: flag | K8: =Inputs!K161 -> 0 | L8: =Inputs!L161 -> 0 | M8: =Inputs!M161 -> 0 | N8: =Inputs!N161 -> 0 | O8: =Inputs!O161 -> 0 | P8: =Inputs!P161 -> 0 | Q8: =Inputs!Q161 -> 0 | R8: =Inputs!R161 -> 0 | S8: =Inputs!S161 -> 0 | T8: =Inputs!T161 -> 0 | U8: =Inputs!U161 -> 0 | V8: =Inputs!V161 -> 0 | W8: =Inputs!W161 -> 0 | X8: =Inputs!X161 -> 0 | Y8: =Inputs!Y161 -> 0 | Z8: =Inputs!Z161 -> 0 | AA8: =Inputs!AA161 -> 0 | AB8: =Inputs!AB161 -> 0 | AC8: =Inputs!AC161 -> 0 | AD8: =Inputs!AD161 -> 0 | AE8: =Inputs!AE161 -> 0 | AF8: =Inputs!AF161 -> 0 | AG8: =Inputs!AG161 -> 0 | AH8: =Inputs!AH161 -> 0 | AI8: =Inputs!AI161 -> 0 | AJ8: =Inputs!AJ161 -> 0 | AK8: =Inputs!AK161 -> 0 | AL8: =Inputs!AL161 -> 0 | AM8: =Inputs!AM161 -> 0 | AN8: =Inputs!AN161 -> 0 | AO8: =Inputs!AO161 -> 0 | AP8: =Inputs!AP161 -> 0 | AQ8: =Inputs!AQ161 -> 0 | AR8: =Inputs!AR161 -> 0 | AS8: =Inputs!AS161 -> 0 | AT8: =Inputs!AT161 -> 0 | AU8: =Inputs!AU161 -> 0 | AV8: =Inputs!AV161 -> 0 | AW8: =Inputs!AW161 -> 0 | AX8: =Inputs!AX161 -> 0
E9: Operations flag | G9: flag | K9: =Inputs!K162 -> 0 | L9: =Inputs!L162 -> 0 | M9: =Inputs!M162 -> 0 | N9: =Inputs!N162 -> 0 | O9: =Inputs!O162 -> 0 | P9: =Inputs!P162 -> 0 | Q9: =Inputs!Q162 -> 0 | R9: =Inputs!R162 -> 0 | S9: =Inputs!S162 -> 0 | T9: =Inputs!T162 -> 0 | U9: =Inputs!U162 -> 0 | V9: =Inputs!V162 -> 0.08469945355 | W9: =Inputs!W162 -> 1 | X9: =Inputs!X162 -> 1 | Y9: =Inputs!Y162 -> 1 | Z9: =Inputs!Z162 -> 1 | AA9: =Inputs!AA162 -> 1 | AB9: =Inputs!AB162 -> 1 | AC9: =Inputs!AC162 -> 1 | AD9: =Inputs!AD162 -> 1 | AE9: =Inputs!AE162 -> 1 | AF9: =Inputs!AF162 -> 1 | AG9: =Inputs!AG162 -> 1 | AH9: =Inputs!AH162 -> 1 | AI9: =Inputs!AI162 -> 1 | AJ9: =Inputs!AJ162 -> 1 | AK9: =Inputs!AK162 -> 1 | AL9: =Inputs!AL162 -> 1 | AM9: =Inputs!AM162 -> 1 | AN9: =Inputs!AN162 -> 1 | AO9: =Inputs!AO162 -> 1 | AP9: =Inputs!AP162 -> 1 | AQ9: =Inputs!AQ162 -> 1 | AR9: =Inputs!AR162 -> 1 | AS9: =Inputs!AS162 -> 0.3287671233 | AT9: =Inputs!AT162 -> 0 | AU9: =Inputs!AU162 -> 0 | AV9: =Inputs!AV162 -> 0 | AW9: =Inputs!AW162 -> 0 | AX9: =Inputs!AX162 -> 0
E10: Regime years | G10: count | K10: =Inputs!K164 -> 0 | L10: =Inputs!L164 -> 0 | M10: =Inputs!M164 -> 0 | N10: =Inputs!N164 -> 0 | O10: =Inputs!O164 -> 0 | P10: =Inputs!P164 -> 0 | Q10: =Inputs!Q164 -> 0 | R10: =Inputs!R164 -> 0 | S10: =Inputs!S164 -> 0 | T10: =Inputs!T164 -> 1 | U10: =Inputs!U164 -> 2 | V10: =Inputs!V164 -> 3 | W10: =Inputs!W164 -> 4 | X10: =Inputs!X164 -> 5 | Y10: =Inputs!Y164 -> 6 | Z10: =Inputs!Z164 -> 7 | AA10: =Inputs!AA164 -> 8 | AB10: =Inputs!AB164 -> 9 | AC10: =Inputs!AC164 -> 10 | AD10: =Inputs!AD164 -> 11 | AE10: =Inputs!AE164 -> 12 | AF10: =Inputs!AF164 -> 13 | AG10: =Inputs!AG164 -> 14 | AH10: =Inputs!AH164 -> 15 | AI10: =Inputs!AI164 -> 16 | AJ10: =Inputs!AJ164 -> 17 | AK10: =Inputs!AK164 -> 18 | AL10: =Inputs!AL164 -> 19 | AM10: =Inputs!AM164 -> 20 | AN10: =Inputs!AN164 -> 21 | AO10: =Inputs!AO164 -> 22 | AP10: =Inputs!AP164 -> 23 | AQ10: =Inputs!AQ164 -> 24 | AR10: =Inputs!AR164 -> 25 | AS10: =Inputs!AS164 -> 25 | AT10: =Inputs!AT164 -> 0 | AU10: =Inputs!AU164 -> 0 | AV10: =Inputs!AV164 -> 0 | AW10: =Inputs!AW164 -> 0 | AX10: =Inputs!AX164 -> 0
E11: Transfer construction to operations flag - Notional | G11: flag | K11: =Inputs!K165 -> 0 | L11: =Inputs!L165 -> 0 | M11: =Inputs!M165 -> 0 | N11: =Inputs!N165 -> 0 | O11: =Inputs!O165 -> 0 | P11: =Inputs!P165 -> 0 | Q11: =Inputs!Q165 -> 0 | R11: =Inputs!R165 -> 0 | S11: =Inputs!S165 -> 0 | T11: =Inputs!T165 -> 0 | U11: =Inputs!U165 -> 0 | V11: =Inputs!V165 -> 1 | W11: =Inputs!W165 -> 0 | X11: =Inputs!X165 -> 0 | Y11: =Inputs!Y165 -> 0 | Z11: =Inputs!Z165 -> 0 | AA11: =Inputs!AA165 -> 0 | AB11: =Inputs!AB165 -> 0 | AC11: =Inputs!AC165 -> 0 | AD11: =Inputs!AD165 -> 0 | AE11: =Inputs!AE165 -> 0 | AF11: =Inputs!AF165 -> 0 | AG11: =Inputs!AG165 -> 0 | AH11: =Inputs!AH165 -> 0 | AI11: =Inputs!AI165 -> 0 | AJ11: =Inputs!AJ165 -> 0 | AK11: =Inputs!AK165 -> 0 | AL11: =Inputs!AL165 -> 0 | AM11: =Inputs!AM165 -> 0 | AN11: =Inputs!AN165 -> 0 | AO11: =Inputs!AO165 -> 0 | AP11: =Inputs!AP165 -> 0 | AQ11: =Inputs!AQ165 -> 0 | AR11: =Inputs!AR165 -> 0 | AS11: =Inputs!AS165 -> 0 | AT11: =Inputs!AT165 -> 0 | AU11: =Inputs!AU165 -> 0 | AV11: =Inputs!AV165 -> 0 | AW11: =Inputs!AW165 -> 0 | AX11: =Inputs!AX165 -> 0
E12: Transfer construction to operations flag - ACOD | G12: flag | K12: =Inputs!K166 -> 0 | L12: =Inputs!L166 -> 0 | M12: =Inputs!M166 -> 0 | N12: =Inputs!N166 -> 0 | O12: =Inputs!O166 -> 0 | P12: =Inputs!P166 -> 0 | Q12: =Inputs!Q166 -> 0 | R12: =Inputs!R166 -> 0 | S12: =Inputs!S166 -> 0 | T12: =Inputs!T166 -> 0 | U12: =Inputs!U166 -> 0 | V12: =Inputs!V166 -> 1 | W12: =Inputs!W166 -> 0 | X12: =Inputs!X166 -> 0 | Y12: =Inputs!Y166 -> 0 | Z12: =Inputs!Z166 -> 0 | AA12: =Inputs!AA166 -> 0 | AB12: =Inputs!AB166 -> 0 | AC12: =Inputs!AC166 -> 0 | AD12: =Inputs!AD166 -> 0 | AE12: =Inputs!AE166 -> 0 | AF12: =Inputs!AF166 -> 0 | AG12: =Inputs!AG166 -> 0 | AH12: =Inputs!AH166 -> 0 | AI12: =Inputs!AI166 -> 0 | AJ12: =Inputs!AJ166 -> 0 | AK12: =Inputs!AK166 -> 0 | AL12: =Inputs!AL166 -> 0 | AM12: =Inputs!AM166 -> 0 | AN12: =Inputs!AN166 -> 0 | AO12: =Inputs!AO166 -> 0 | AP12: =Inputs!AP166 -> 0 | AQ12: =Inputs!AQ166 -> 0 | AR12: =Inputs!AR166 -> 0 | AS12: =Inputs!AS166 -> 0 | AT12: =Inputs!AT166 -> 0 | AU12: =Inputs!AU166 -> 0 | AV12: =Inputs!AV166 -> 0 | AW12: =Inputs!AW166 -> 0 | AX12: =Inputs!AX166 -> 0
E13: Initial transaction costs flag | G13: flag | K13: =Inputs!K167 -> 0 | L13: =Inputs!L167 -> 0 | M13: =Inputs!M167 -> 0 | N13: =Inputs!N167 -> 0 | O13: =Inputs!O167 -> 0 | P13: =Inputs!P167 -> 0 | Q13: =Inputs!Q167 -> 0 | R13: =Inputs!R167 -> 1 | S13: =Inputs!S167 -> 0 | T13: =Inputs!T167 -> 0 | U13: =Inputs!U167 -> 0 | V13: =Inputs!V167 -> 0 | W13: =Inputs!W167 -> 0 | X13: =Inputs!X167 -> 0 | Y13: =Inputs!Y167 -> 0 | Z13: =Inputs!Z167 -> 0 | AA13: =Inputs!AA167 -> 0 | AB13: =Inputs!AB167 -> 0 | AC13: =Inputs!AC167 -> 0 | AD13: =Inputs!AD167 -> 0 | AE13: =Inputs!AE167 -> 0 | AF13: =Inputs!AF167 -> 0 | AG13: =Inputs!AG167 -> 0 | AH13: =Inputs!AH167 -> 0 | AI13: =Inputs!AI167 -> 0 | AJ13: =Inputs!AJ167 -> 0 | AK13: =Inputs!AK167 -> 0 | AL13: =Inputs!AL167 -> 0 | AM13: =Inputs!AM167 -> 0 | AN13: =Inputs!AN167 -> 0 | AO13: =Inputs!AO167 -> 0 | AP13: =Inputs!AP167 -> 0 | AQ13: =Inputs!AQ167 -> 0 | AR13: =Inputs!AR167 -> 0 | AS13: =Inputs!AS167 -> 0 | AT13: =Inputs!AT167 -> 0 | AU13: =Inputs!AU167 -> 0 | AV13: =Inputs!AV167 -> 0 | AW13: =Inputs!AW167 -> 0 | AX13: =Inputs!AX167 -> 0
E14: Financial close flag | G14: flag | K14: =Inputs!K168 -> 0 | L14: =Inputs!L168 -> 0 | M14: =Inputs!M168 -> 0 | N14: =Inputs!N168 -> 0 | O14: =Inputs!O168 -> 0 | P14: =Inputs!P168 -> 0 | Q14: =Inputs!Q168 -> 0 | R14: =Inputs!R168 -> 0 | S14: =Inputs!S168 -> 1 | T14: =Inputs!T168 -> 0 | U14: =Inputs!U168 -> 0 | V14: =Inputs!V168 -> 0 | W14: =Inputs!W168 -> 0 | X14: =Inputs!X168 -> 0 | Y14: =Inputs!Y168 -> 0 | Z14: =Inputs!Z168 -> 0 | AA14: =Inputs!AA168 -> 0 | AB14: =Inputs!AB168 -> 0 | AC14: =Inputs!AC168 -> 0 | AD14: =Inputs!AD168 -> 0 | AE14: =Inputs!AE168 -> 0 | AF14: =Inputs!AF168 -> 0 | AG14: =Inputs!AG168 -> 0 | AH14: =Inputs!AH168 -> 0 | AI14: =Inputs!AI168 -> 0 | AJ14: =Inputs!AJ168 -> 0 | AK14: =Inputs!AK168 -> 0 | AL14: =Inputs!AL168 -> 0 | AM14: =Inputs!AM168 -> 0 | AN14: =Inputs!AN168 -> 0 | AO14: =Inputs!AO168 -> 0 | AP14: =Inputs!AP168 -> 0 | AQ14: =Inputs!AQ168 -> 0 | AR14: =Inputs!AR168 -> 0 | AS14: =Inputs!AS168 -> 0 | AT14: =Inputs!AT168 -> 0 | AU14: =Inputs!AU168 -> 0 | AV14: =Inputs!AV168 -> 0 | AW14: =Inputs!AW168 -> 0 | AX14: =Inputs!AX168 -> 0
E15: Debt drawdown flag | G15: flag | K15: =Inputs!K169 -> 0 | L15: =Inputs!L169 -> 0 | M15: =Inputs!M169 -> 0 | N15: =Inputs!N169 -> 0 | O15: =Inputs!O169 -> 0 | P15: =Inputs!P169 -> 0 | Q15: =Inputs!Q169 -> 0 | R15: =Inputs!R169 -> 0 | S15: =Inputs!S169 -> 1 | T15: =Inputs!T169 -> 1 | U15: =Inputs!U169 -> 1 | V15: =Inputs!V169 -> 0 | W15: =Inputs!W169 -> 0 | X15: =Inputs!X169 -> 0 | Y15: =Inputs!Y169 -> 0 | Z15: =Inputs!Z169 -> 0 | AA15: =Inputs!AA169 -> 0 | AB15: =Inputs!AB169 -> 0 | AC15: =Inputs!AC169 -> 0 | AD15: =Inputs!AD169 -> 0 | AE15: =Inputs!AE169 -> 0 | AF15: =Inputs!AF169 -> 0 | AG15: =Inputs!AG169 -> 0 | AH15: =Inputs!AH169 -> 0 | AI15: =Inputs!AI169 -> 0 | AJ15: =Inputs!AJ169 -> 0 | AK15: =Inputs!AK169 -> 0 | AL15: =Inputs!AL169 -> 0 | AM15: =Inputs!AM169 -> 0 | AN15: =Inputs!AN169 -> 0 | AO15: =Inputs!AO169 -> 0 | AP15: =Inputs!AP169 -> 0 | AQ15: =Inputs!AQ169 -> 0 | AR15: =Inputs!AR169 -> 0 | AS15: =Inputs!AS169 -> 0 | AT15: =Inputs!AT169 -> 0 | AU15: =Inputs!AU169 -> 0 | AV15: =Inputs!AV169 -> 0 | AW15: =Inputs!AW169 -> 0 | AX15: =Inputs!AX169 -> 0
E16: Debt repayment year | G16: count | K16: =Inputs!K171 -> 0 | L16: =Inputs!L171 -> 0 | M16: =Inputs!M171 -> 0 | N16: =Inputs!N171 -> 0 | O16: =Inputs!O171 -> 0 | P16: =Inputs!P171 -> 0 | Q16: =Inputs!Q171 -> 0 | R16: =Inputs!R171 -> 0 | S16: =Inputs!S171 -> 0 | T16: =Inputs!T171 -> 0 | U16: =Inputs!U171 -> 0 | V16: =Inputs!V171 -> 0.08469945355 | W16: =Inputs!W171 -> 1.084699454 | X16: =Inputs!X171 -> 2.084699454 | Y16: =Inputs!Y171 -> 3.084699454 | Z16: =Inputs!Z171 -> 4.084699454 | AA16: =Inputs!AA171 -> 5.084699454 | AB16: =Inputs!AB171 -> 6.084699454 | AC16: =Inputs!AC171 -> 7.084699454 | AD16: =Inputs!AD171 -> 8.084699454 | AE16: =Inputs!AE171 -> 9.084699454 | AF16: =Inputs!AF171 -> 10.08469945 | AG16: =Inputs!AG171 -> 11.08469945 | AH16: =Inputs!AH171 -> 12.08469945 | AI16: =Inputs!AI171 -> 13.08469945 | AJ16: =Inputs!AJ171 -> 14.08469945 | AK16: =Inputs!AK171 -> 15.08469945 | AL16: =Inputs!AL171 -> 16.08469945 | AM16: =Inputs!AM171 -> 17.08469945 | AN16: =Inputs!AN171 -> 18.08469945 | AO16: =Inputs!AO171 -> 19.08469945 | AP16: =Inputs!AP171 -> 20.08469945 | AQ16: =Inputs!AQ171 -> 21.08469945 | AR16: =Inputs!AR171 -> 22.08469945 | AS16: =Inputs!AS171 -> 22.58058986 | AT16: =Inputs!AT171 -> 0 | AU16: =Inputs!AU171 -> 0 | AV16: =Inputs!AV171 -> 0 | AW16: =Inputs!AW171 -> 0 | AX16: =Inputs!AX171 -> 0
B18: Pre-operational interest during construction
C20: Pre-operational interest during construction
E22: Interest during construction rate | G22: =Inputs!G70 -> real annual % | I22: =Inputs!I70 -> 0.0521
E24: Opening pre-operational RAV (before transfers) | G24: =Inputs!$I$11 -> £m 20/21 prices | K24: ='Pre Op RAV'!K19 -> 0 | L24: ='Pre Op RAV'!L19 -> 0 | M24: ='Pre Op RAV'!M19 -> 0 | N24: ='Pre Op RAV'!N19 -> 0 | O24: ='Pre Op RAV'!O19 -> 1.182142252 | P24: ='Pre Op RAV'!P19 -> 2.112121834 | Q24: ='Pre Op RAV'!Q19 -> 3.825622637 | R24: ='Pre Op RAV'!R19 -> 7.74230692 | S24: ='Pre Op RAV'!S19 -> 11.1548512 | T24: ='Pre Op RAV'!T19 -> 19.75674503 | U24: ='Pre Op RAV'!U19 -> 96.79421477 | V24: ='Pre Op RAV'!V19 -> 170.2300335 | W24: ='Pre Op RAV'!W19 -> 0 | X24: ='Pre Op RAV'!X19 -> 0 | Y24: ='Pre Op RAV'!Y19 -> 0 | Z24: ='Pre Op RAV'!Z19 -> 0 | AA24: ='Pre Op RAV'!AA19 -> 0 | AB24: ='Pre Op RAV'!AB19 -> 0 | AC24: ='Pre Op RAV'!AC19 -> 0 | AD24: ='Pre Op RAV'!AD19 -> 0 | AE24: ='Pre Op RAV'!AE19 -> 0 | AF24: ='Pre Op RAV'!AF19 -> 0 | AG24: ='Pre Op RAV'!AG19 -> 0 | AH24: ='Pre Op RAV'!AH19 -> 0 | AI24: ='Pre Op RAV'!AI19 -> 0 | AJ24: ='Pre Op RAV'!AJ19 -> 0 | AK24: ='Pre Op RAV'!AK19 -> 0 | AL24: ='Pre Op RAV'!AL19 -> 0 | AM24: ='Pre Op RAV'!AM19 -> 0 | AN24: ='Pre Op RAV'!AN19 -> 0 | AO24: ='Pre Op RAV'!AO19 -> 0 | AP24: ='Pre Op RAV'!AP19 -> 0 | AQ24: ='Pre Op RAV'!AQ19 -> 0 | AR24: ='Pre Op RAV'!AR19 -> 0 | AS24: ='Pre Op RAV'!AS19 -> 0 | AT24: ='Pre Op RAV'!AT19 -> 0 | AU24: ='Pre Op RAV'!AU19 -> 0 | AV24: ='Pre Op RAV'!AV19 -> 0 | AW24: ='Pre Op RAV'!AW19 -> 0 | AX24: ='Pre Op RAV'!AX19 -> 0
E25: Development costs | G25: =Inputs!$I$11 -> £m 20/21 prices | K25: =Inputs!K34 -> 0 | L25: =Inputs!L34 -> 0 | M25: =Inputs!M34 -> 0 | N25: =Inputs!N34 -> 1.152872405 | O25: =Inputs!O34 -> 0.846888632 | P25: =Inputs!P34 -> 1.563757598 | Q25: =Inputs!Q34 -> 3.625327265 | R25: =Inputs!R34 -> 2.93466303 | S25: =Inputs!S34 -> 1.450720211 | T25: =Inputs!T34 -> 0 | U25: =Inputs!U34 -> 0 | V25: =Inputs!V34 -> 0 | W25: =Inputs!W34 -> 0 | X25: =Inputs!X34 -> 0 | Y25: =Inputs!Y34 -> 0 | Z25: =Inputs!Z34 -> 0 | AA25: =Inputs!AA34 -> 0 | AB25: =Inputs!AB34 -> 0 | AC25: =Inputs!AC34 -> 0 | AD25: =Inputs!AD34 -> 0 | AE25: =Inputs!AE34 -> 0 | AF25: =Inputs!AF34 -> 0 | AG25: =Inputs!AG34 -> 0 | AH25: =Inputs!AH34 -> 0 | AI25: =Inputs!AI34 -> 0 | AJ25: =Inputs!AJ34 -> 0 | AK25: =Inputs!AK34 -> 0 | AL25: =Inputs!AL34 -> 0 | AM25: =Inputs!AM34 -> 0 | AN25: =Inputs!AN34 -> 0 | AO25: =Inputs!AO34 -> 0 | AP25: =Inputs!AP34 -> 0 | AQ25: =Inputs!AQ34 -> 0 | AR25: =Inputs!AR34 -> 0 | AS25: =Inputs!AS34 -> 0 | AT25: =Inputs!AT34 -> 0 | AU25: =Inputs!AU34 -> 0 | AV25: =Inputs!AV34 -> 0 | AW25: =Inputs!AW34 -> 0 | AX25: =Inputs!AX34 -> 0
E26: Capex | G26: =Inputs!$I$11 -> £m 20/21 prices | K26: =Inputs!K35 -> 0 | L26: =Inputs!L35 -> 0 | M26: =Inputs!M35 -> 0 | N26: =Inputs!N35 -> 0 | O26: =Inputs!O35 -> 0 | P26: =Inputs!P35 -> 0 | Q26: =Inputs!Q35 -> 0 | R26: =Inputs!R35 -> 0 | S26: =Inputs!S35 -> 6.371412659 | T26: =Inputs!T35 -> 74.12618141 | U26: =Inputs!U35 -> 66.69943318 | V26: =Inputs!V35 -> 37.7179065 | W26: =Inputs!W35 -> 0 | X26: =Inputs!X35 -> 0 | Y26: =Inputs!Y35 -> 0 | Z26: =Inputs!Z35 -> 0 | AA26: =Inputs!AA35 -> 0 | AB26: =Inputs!AB35 -> 0 | AC26: =Inputs!AC35 -> 0 | AD26: =Inputs!AD35 -> 0 | AE26: =Inputs!AE35 -> 0 | AF26: =Inputs!AF35 -> 0 | AG26: =Inputs!AG35 -> 0 | AH26: =Inputs!AH35 -> 0 | AI26: =Inputs!AI35 -> 0 | AJ26: =Inputs!AJ35 -> 0 | AK26: =Inputs!AK35 -> 0 | AL26: =Inputs!AL35 -> 0 | AM26: =Inputs!AM35 -> 0 | AN26: =Inputs!AN35 -> 0 | AO26: =Inputs!AO35 -> 0 | AP26: =Inputs!AP35 -> 0 | AQ26: =Inputs!AQ35 -> 0 | AR26: =Inputs!AR35 -> 0 | AS26: =Inputs!AS35 -> 0 | AT26: =Inputs!AT35 -> 0 | AU26: =Inputs!AU35 -> 0 | AV26: =Inputs!AV35 -> 0 | AW26: =Inputs!AW35 -> 0 | AX26: =Inputs!AX35 -> 0
E27: Spares | G27: =Inputs!$I$11 -> £m 20/21 prices | K27: =Inputs!K36 -> 0 | L27: =Inputs!L36 -> 0 | M27: =Inputs!M36 -> 0 | N27: =Inputs!N36 -> 0 | O27: =Inputs!O36 -> 0 | P27: =Inputs!P36 -> 0 | Q27: =Inputs!Q36 -> 0 | R27: =Inputs!R36 -> 0 | S27: =Inputs!S36 -> 0 | T27: =Inputs!T36 -> 0 | U27: =Inputs!U36 -> 0 | V27: =Inputs!V36 -> 0 | W27: =Inputs!W36 -> 0 | X27: =Inputs!X36 -> 0 | Y27: =Inputs!Y36 -> 0 | Z27: =Inputs!Z36 -> 0 | AA27: =Inputs!AA36 -> 0 | AB27: =Inputs!AB36 -> 0 | AC27: =Inputs!AC36 -> 0 | AD27: =Inputs!AD36 -> 0 | AE27: =Inputs!AE36 -> 0 | AF27: =Inputs!AF36 -> 0 | AG27: =Inputs!AG36 -> 0 | AH27: =Inputs!AH36 -> 0 | AI27: =Inputs!AI36 -> 0 | AJ27: =Inputs!AJ36 -> 0 | AK27: =Inputs!AK36 -> 0 | AL27: =Inputs!AL36 -> 0 | AM27: =Inputs!AM36 -> 0 | AN27: =Inputs!AN36 -> 0 | AO27: =Inputs!AO36 -> 0 | AP27: =Inputs!AP36 -> 0 | AQ27: =Inputs!AQ36 -> 0 | AR27: =Inputs!AR36 -> 0 | AS27: =Inputs!AS36 -> 0 | AT27: =Inputs!AT36 -> 0 | AU27: =Inputs!AU36 -> 0 | AV27: =Inputs!AV36 -> 0 | AW27: =Inputs!AW36 -> 0 | AX27: =Inputs!AX36 -> 0
E28: Capitalised interest during construction | G28: =Inputs!$I$11 -> £m 20/21 prices | K28: =((1+$I22)^(1-K8-K9)-1)*(K24+(K25+K26+K27)/(2+$I22)) -> 0 | L28: =((1+$I22)^(1-L8-L9)-1)*(L24+(L25+L26+L27)/(2+$I22)) -> 0 | M28: 0 | N28: 0.02926984666 | O28: 0.08309095032 | P28: 0.1497432048 | Q28: 0.2913570185 | R28: 0.4778812535 | S28: 0.7797609559 | T28: 2.911288334 | U28: 6.736385572 | V28: 8.974802552 | W28: 0 | X28: 0 | Y28: 0 | Z28: 0 | AA28: 0 | AB28: 0 | AC28: 0 | AD28: 0 | AE28: 0 | AF28: 0 | AG28: 0 | AH28: 0 | AI28: 0 | AJ28: 0 | AK28: 0 | AL28: 0 | AM28: 0 | AN28: 0 | AO28: 0 | AP28: 0 | AQ28: 0 | AR28: 0 | AS28: 0 | AT28: 0 | AU28: 0 | AV28: 0 | AW28: 0 | AX28: 0
B30: Transaction costs
C32: Parameters
E34: Pre-operational notional gearing | G34: =Inputs!G73 -> % | I34: =Inputs!I73 -> 0.3977
E35: Operational notional gearing | G35: =Inputs!G74 -> % | I35: =Inputs!I74 -> 0.5
E37: Debt transaction costs | G37: =Inputs!G77 -> % | I37: =Inputs!I77 -> 0.025
E38: Equity transaction costs | G38: =Inputs!G76 -> % | I38: =Inputs!I76 -> 0.05
C40: Allowance
E42: Transaction costs - opening | G42: =Inputs!$I$11 -> £m 20/21 prices | K42: =J50 -> 0 | L42: =K50 -> 0 | M42: =L50 -> 0 | N42: =M50 -> 0 | O42: 0 | P42: 0 | Q42: 0 | R42: 0 | S42: 8.909994252 | T42: 9.374204953 | U42: 9.862601031 | V42: 10.37644254 | W42: 0 | X42: 0 | Y42: 0 | Z42: 0 | AA42: 0 | AB42: 0 | AC42: 0 | AD42: 0 | AE42: 0 | AF42: 0 | AG42: 0 | AH42: 0 | AI42: 0 | AJ42: 0 | AK42: 0 | AL42: 0 | AM42: 0 | AN42: 0 | AO42: 0 | AP42: 0 | AQ42: 0 | AR42: 0 | AS42: 0 | AT42: 0 | AU42: =AT50 -> 0 | AV42: =AU50 -> 0 | AW42: =AV50 -> 0 | AX42: =AW50 -> 0
E43: Initial debt transaction costs | G43: =Inputs!$I$11 -> £m 20/21 prices | K43: =$I34*K$13*$I37*'Op Rav'!$K$11 -> 0 | L43: =$I34*L$13*$I37*'Op Rav'!$K$11 -> 0 | M43: =$I34*M$13*$I37*'Op Rav'!$K$11 -> 0 | N43: =$I34*N$13*$I37*'Op Rav'!$K$11 -> 0 | O43: =$I34*O$13*$I37*'Op Rav'!$K$11 -> 0 | P43: =$I34*P$13*$I37*'Op Rav'!$K$11 -> 0 | Q43: =$I34*Q$13*$I37*'Op Rav'!$K$11 -> 0 | R43: =$I34*R$13*$I37*'Op Rav'!$K$11 -> 2.156754368 | S43: =$I34*S$13*$I37*'Op Rav'!$K$11 -> 0 | T43: =$I34*T$13*$I37*'Op Rav'!$K$11 -> 0 | U43: =$I34*U$13*$I37*'Op Rav'!$K$11 -> 0 | V43: =$I34*V$13*$I37*'Op Rav'!$K$11 -> 0 | W43: =$I34*W$13*$I37*'Op Rav'!$K$11 -> 0 | X43: =$I34*X$13*$I37*'Op Rav'!$K$11 -> 0 | Y43: =$I34*Y$13*$I37*'Op Rav'!$K$11 -> 0 | Z43: =$I34*Z$13*$I37*'Op Rav'!$K$11 -> 0 | AA43: =$I34*AA$13*$I37*'Op Rav'!$K$11 -> 0 | AB43: =$I34*AB$13*$I37*'Op Rav'!$K$11 -> 0 | AC43: =$I34*AC$13*$I37*'Op Rav'!$K$11 -> 0 | AD43: =$I34*AD$13*$I37*'Op Rav'!$K$11 -> 0 | AE43: =$I34*AE$13*$I37*'Op Rav'!$K$11 -> 0 | AF43: =$I34*AF$13*$I37*'Op Rav'!$K$11 -> 0 | AG43: =$I34*AG$13*$I37*'Op Rav'!$K$11 -> 0 | AH43: =$I34*AH$13*$I37*'Op Rav'!$K$11 -> 0 | AI43: =$I34*AI$13*$I37*'Op Rav'!$K$11 -> 0 | AJ43: =$I34*AJ$13*$I37*'Op Rav'!$K$11 -> 0 | AK43: =$I34*AK$13*$I37*'Op Rav'!$K$11 -> 0 | AL43: =$I34*AL$13*$I37*'Op Rav'!$K$11 -> 0 | AM43: =$I34*AM$13*$I37*'Op Rav'!$K$11 -> 0 | AN43: =$I34*AN$13*$I37*'Op Rav'!$K$11 -> 0 | AO43: =$I34*AO$13*$I37*'Op Rav'!$K$11 -> 0 | AP43: =$I34*AP$13*$I37*'Op Rav'!$K$11 -> 0 | AQ43: =$I34*AQ$13*$I37*'Op Rav'!$K$11 -> 0 | AR43: =$I34*AR$13*$I37*'Op Rav'!$K$11 -> 0 | AS43: =$I34*AS$13*$I37*'Op Rav'!$K$11 -> 0 | AT43: =$I34*AT$13*$I37*'Op Rav'!$K$11 -> 0 | AU43: =$I34*AU$13*$I37*'Op Rav'!$K$11 -> 0 | AV43: =$I34*AV$13*$I37*'Op Rav'!$K$11 -> 0 | AW43: =$I34*AW$13*$I37*'Op Rav'!$K$11 -> 0 | AX43: =$I34*AX$13*$I37*'Op Rav'!$K$11 -> 0
E44: Initial equity transaction costs | G44: =Inputs!$I$11 -> £m 20/21 prices | K44: =(1-$I34)*K$13*$I38*'Op Rav'!$K$11 -> 0 | L44: =(1-$I34)*L$13*$I38*'Op Rav'!$K$11 -> 0 | M44: =(1-$I34)*M$13*$I38*'Op Rav'!$K$11 -> 0 | N44: =(1-$I34)*N$13*$I38*'Op Rav'!$K$11 -> 0 | O44: =(1-$I34)*O$13*$I38*'Op Rav'!$K$11 -> 0 | P44: =(1-$I34)*P$13*$I38*'Op Rav'!$K$11 -> 0 | Q44: =(1-$I34)*Q$13*$I38*'Op Rav'!$K$11 -> 0 | R44: =(1-$I34)*R$13*$I38*'Op Rav'!$K$11 -> 6.532628393 | S44: =(1-$I34)*S$13*$I38*'Op Rav'!$K$11 -> 0 | T44: =(1-$I34)*T$13*$I38*'Op Rav'!$K$11 -> 0 | U44: =(1-$I34)*U$13*$I38*'Op Rav'!$K$11 -> 0 | V44: =(1-$I34)*V$13*$I38*'Op Rav'!$K$11 -> 0 | W44: =(1-$I34)*W$13*$I38*'Op Rav'!$K$11 -> 0 | X44: =(1-$I34)*X$13*$I38*'Op Rav'!$K$11 -> 0 | Y44: =(1-$I34)*Y$13*$I38*'Op Rav'!$K$11 -> 0 | Z44: =(1-$I34)*Z$13*$I38*'Op Rav'!$K$11 -> 0 | AA44: =(1-$I34)*AA$13*$I38*'Op Rav'!$K$11 -> 0 | AB44: =(1-$I34)*AB$13*$I38*'Op Rav'!$K$11 -> 0 | AC44: =(1-$I34)*AC$13*$I38*'Op Rav'!$K$11 -> 0 | AD44: =(1-$I34)*AD$13*$I38*'Op Rav'!$K$11 -> 0 | AE44: =(1-$I34)*AE$13*$I38*'Op Rav'!$K$11 -> 0 | AF44: =(1-$I34)*AF$13*$I38*'Op Rav'!$K$11 -> 0 | AG44: =(1-$I34)*AG$13*$I38*'Op Rav'!$K$11 -> 0 | AH44: =(1-$I34)*AH$13*$I38*'Op Rav'!$K$11 -> 0 | AI44: =(1-$I34)*AI$13*$I38*'Op Rav'!$K$11 -> 0 | AJ44: =(1-$I34)*AJ$13*$I38*'Op Rav'!$K$11 -> 0 | AK44: =(1-$I34)*AK$13*$I38*'Op Rav'!$K$11 -> 0 | AL44: =(1-$I34)*AL$13*$I38*'Op Rav'!$K$11 -> 0 | AM44: =(1-$I34)*AM$13*$I38*'Op Rav'!$K$11 -> 0 | AN44: =(1-$I34)*AN$13*$I38*'Op Rav'!$K$11 -> 0 | AO44: =(1-$I34)*AO$13*$I38*'Op Rav'!$K$11 -> 0 | AP44: =(1-$I34)*AP$13*$I38*'Op Rav'!$K$11 -> 0 | AQ44: =(1-$I34)*AQ$13*$I38*'Op Rav'!$K$11 -> 0 | AR44: =(1-$I34)*AR$13*$I38*'Op Rav'!$K$11 -> 0 | AS44: =(1-$I34)*AS$13*$I38*'Op Rav'!$K$11 -> 0 | AT44: =(1-$I34)*AT$13*$I38*'Op Rav'!$K$11 -> 0 | AU44: =(1-$I34)*AU$13*$I38*'Op Rav'!$K$11 -> 0 | AV44: =(1-$I34)*AV$13*$I38*'Op Rav'!$K$11 -> 0 | AW44: =(1-$I34)*AW$13*$I38*'Op Rav'!$K$11 -> 0 | AX44: =(1-$I34)*AX$13*$I38*'Op Rav'!$K$11 -> 0
E45: Final debt transaction costs | G45: =Inputs!$I$11 -> £m 20/21 prices | K45: =($I35-$I34)*'Op Rav'!$K$11*$I37*K$11 -> 0 | L45: =($I35-$I34)*'Op Rav'!$K$11*$I37*L$11 -> 0 | M45: =($I35-$I34)*'Op Rav'!$K$11*$I37*M$11 -> 0 | N45: =($I35-$I34)*'Op Rav'!$K$11*$I37*N$11 -> 0 | O45: =($I35-$I34)*'Op Rav'!$K$11*$I37*O$11 -> 0 | P45: =($I35-$I34)*'Op Rav'!$K$11*$I37*P$11 -> 0 | Q45: =($I35-$I34)*'Op Rav'!$K$11*$I37*Q$11 -> 0 | R45: =($I35-$I34)*'Op Rav'!$K$11*$I37*R$11 -> 0 | S45: =($I35-$I34)*'Op Rav'!$K$11*$I37*S$11 -> 0 | T45: =($I35-$I34)*'Op Rav'!$K$11*$I37*T$11 -> 0 | U45: =($I35-$I34)*'Op Rav'!$K$11*$I37*U$11 -> 0 | V45: =($I35-$I34)*'Op Rav'!$K$11*$I37*V$11 -> 0.5547799141 | W45: =($I35-$I34)*'Op Rav'!$K$11*$I37*W$11 -> 0 | X45: =($I35-$I34)*'Op Rav'!$K$11*$I37*X$11 -> 0 | Y45: =($I35-$I34)*'Op Rav'!$K$11*$I37*Y$11 -> 0 | Z45: =($I35-$I34)*'Op Rav'!$K$11*$I37*Z$11 -> 0 | AA45: =($I35-$I34)*'Op Rav'!$K$11*$I37*AA$11 -> 0 | AB45: =($I35-$I34)*'Op Rav'!$K$11*$I37*AB$11 -> 0 | AC45: =($I35-$I34)*'Op Rav'!$K$11*$I37*AC$11 -> 0 | AD45: =($I35-$I34)*'Op Rav'!$K$11*$I37*AD$11 -> 0 | AE45: =($I35-$I34)*'Op Rav'!$K$11*$I37*AE$11 -> 0 | AF45: =($I35-$I34)*'Op Rav'!$K$11*$I37*AF$11 -> 0 | AG45: =($I35-$I34)*'Op Rav'!$K$11*$I37*AG$11 -> 0 | AH45: =($I35-$I34)*'Op Rav'!$K$11*$I37*AH$11 -> 0 | AI45: =($I35-$I34)*'Op Rav'!$K$11*$I37*AI$11 -> 0 | AJ45: =($I35-$I34)*'Op Rav'!$K$11*$I37*AJ$11 -> 0 | AK45: =($I35-$I34)*'Op Rav'!$K$11*$I37*AK$11 -> 0 | AL45: =($I35-$I34)*'Op Rav'!$K$11*$I37*AL$11 -> 0 | AM45: =($I35-$I34)*'Op Rav'!$K$11*$I37*AM$11 -> 0 | AN45: =($I35-$I34)*'Op Rav'!$K$11*$I37*AN$11 -> 0 | AO45: =($I35-$I34)*'Op Rav'!$K$11*$I37*AO$11 -> 0 | AP45: =($I35-$I34)*'Op Rav'!$K$11*$I37*AP$11 -> 0 | AQ45: =($I35-$I34)*'Op Rav'!$K$11*$I37*AQ$11 -> 0 | AR45: =($I35-$I34)*'Op Rav'!$K$11*$I37*AR$11 -> 0 | AS45: =($I35-$I34)*'Op Rav'!$K$11*$I37*AS$11 -> 0 | AT45: =($I35-$I34)*'Op Rav'!$K$11*$I37*AT$11 -> 0 | AU45: =($I35-$I34)*'Op Rav'!$K$11*$I37*AU$11 -> 0 | AV45: =($I35-$I34)*'Op Rav'!$K$11*$I37*AV$11 -> 0 | AW45: =($I35-$I34)*'Op Rav'!$K$11*$I37*AW$11 -> 0 | AX45: =($I35-$I34)*'Op Rav'!$K$11*$I37*AX$11 -> 0
E46: Final equity transaction costs | G46: =Inputs!$I$11 -> £m 20/21 prices | K46: =($I34-$I35)*'Op Rav'!$K$11*$I38*K$11 -> 0 | L46: =($I34-$I35)*'Op Rav'!$K$11*$I38*L$11 -> 0 | M46: =($I34-$I35)*'Op Rav'!$K$11*$I38*M$11 -> 0 | N46: =($I34-$I35)*'Op Rav'!$K$11*$I38*N$11 -> 0 | O46: =($I34-$I35)*'Op Rav'!$K$11*$I38*O$11 -> 0 | P46: =($I34-$I35)*'Op Rav'!$K$11*$I38*P$11 -> 0 | Q46: =($I34-$I35)*'Op Rav'!$K$11*$I38*Q$11 -> 0 | R46: =($I34-$I35)*'Op Rav'!$K$11*$I38*R$11 -> 0 | S46: =($I34-$I35)*'Op Rav'!$K$11*$I38*S$11 -> 0 | T46: =($I34-$I35)*'Op Rav'!$K$11*$I38*T$11 -> 0 | U46: =($I34-$I35)*'Op Rav'!$K$11*$I38*U$11 -> 0 | V46: =($I34-$I35)*'Op Rav'!$K$11*$I38*V$11 -> -1.109559828 | W46: =($I34-$I35)*'Op Rav'!$K$11*$I38*W$11 -> 0 | X46: =($I34-$I35)*'Op Rav'!$K$11*$I38*X$11 -> 0 | Y46: =($I34-$I35)*'Op Rav'!$K$11*$I38*Y$11 -> 0 | Z46: =($I34-$I35)*'Op Rav'!$K$11*$I38*Z$11 -> 0 | AA46: =($I34-$I35)*'Op Rav'!$K$11*$I38*AA$11 -> 0 | AB46: =($I34-$I35)*'Op Rav'!$K$11*$I38*AB$11 -> 0 | AC46: =($I34-$I35)*'Op Rav'!$K$11*$I38*AC$11 -> 0 | AD46: =($I34-$I35)*'Op Rav'!$K$11*$I38*AD$11 -> 0 | AE46: =($I34-$I35)*'Op Rav'!$K$11*$I38*AE$11 -> 0 | AF46: =($I34-$I35)*'Op Rav'!$K$11*$I38*AF$11 -> 0 | AG46: =($I34-$I35)*'Op Rav'!$K$11*$I38*AG$11 -> 0 | AH46: =($I34-$I35)*'Op Rav'!$K$11*$I38*AH$11 -> 0 | AI46: =($I34-$I35)*'Op Rav'!$K$11*$I38*AI$11 -> 0 | AJ46: =($I34-$I35)*'Op Rav'!$K$11*$I38*AJ$11 -> 0 | AK46: =($I34-$I35)*'Op Rav'!$K$11*$I38*AK$11 -> 0 | AL46: =($I34-$I35)*'Op Rav'!$K$11*$I38*AL$11 -> 0 | AM46: =($I34-$I35)*'Op Rav'!$K$11*$I38*AM$11 -> 0 | AN46: =($I34-$I35)*'Op Rav'!$K$11*$I38*AN$11 -> 0 | AO46: =($I34-$I35)*'Op Rav'!$K$11*$I38*AO$11 -> 0 | AP46: =($I34-$I35)*'Op Rav'!$K$11*$I38*AP$11 -> 0 | AQ46: =($I34-$I35)*'Op Rav'!$K$11*$I38*AQ$11 -> 0 | AR46: =($I34-$I35)*'Op Rav'!$K$11*$I38*AR$11 -> 0 | AS46: =($I34-$I35)*'Op Rav'!$K$11*$I38*AS$11 -> 0 | AT46: =($I34-$I35)*'Op Rav'!$K$11*$I38*AT$11 -> 0 | AU46: =($I34-$I35)*'Op Rav'!$K$11*$I38*AU$11 -> 0 | AV46: =($I34-$I35)*'Op Rav'!$K$11*$I38*AV$11 -> 0 | AW46: =($I34-$I35)*'Op Rav'!$K$11*$I38*AW$11 -> 0 | AX46: =($I34-$I35)*'Op Rav'!$K$11*$I38*AX$11 -> 0
E47: Transaction costs - annual movement | G47: =Inputs!$I$11 -> £m 20/21 prices | K47: =SUM(K43:K46) -> 0 | L47: =SUM(L43:L46) -> 0 | M47: 0 | N47: 0 | O47: 0 | P47: 0 | Q47: 0 | R47: =SUM(R43:R46) -> 8.689382761 | S47: 0 | T47: 0 | U47: 0 | V47: -0.5547799141 | W47: 0 | X47: 0 | Y47: 0 | Z47: 0 | AA47: 0 | AB47: 0 | AC47: 0 | AD47: 0 | AE47: 0 | AF47: 0 | AG47: 0 | AH47: 0 | AI47: 0 | AJ47: 0 | AK47: 0 | AL47: 0 | AM47: 0 | AN47: 0 | AO47: 0 | AP47: 0 | AQ47: 0 | AR47: 0 | AS47: 0 | AT47: 0 | AU47: =SUM(AU43:AU46) -> 0 | AV47: 0 | AW47: 0 | AX47: 0
E48: Capitalised IDC on transaction costs | G48: =Inputs!$I$11 -> £m 20/21 prices | K48: =((1+$I22)^(1-K$9-K$8)-1)*(K42+(K43+K44+K45+K46)/(2+$I22)) -> 0 | L48: =((1+$I22)^(1-L$9-L$8)-1)*(L42+(L43+L44+L45+L46)/(2+$I22)) -> 0 | M48: 0 | N48: 0 | O48: 0 | P48: 0 | Q48: 0 | R48: 0.2206114916 | S48: 0.4642107005 | T48: 0.488396078 | U48: 0.5138415137 | V48: 0.4808871217 | W48: 0 | X48: 0 | Y48: 0 | Z48: 0 | AA48: 0 | AB48: 0 | AC48: 0 | AD48: 0 | AE48: 0 | AF48: 0 | AG48: 0 | AH48: 0 | AI48: 0 | AJ48: 0 | AK48: 0 | AL48: 0 | AM48: 0 | AN48: 0 | AO48: 0 | AP48: 0 | AQ48: 0 | AR48: 0 | AS48: 0 | AT48: 0 | AU48: 0 | AV48: 0 | AW48: 0 | AX48: 0
E49: Transfer to operational RAV | G49: =Inputs!$I$11 -> £m 20/21 prices | K49: =-SUM(K42,K47,K48)*K$11 -> 0 | L49: =-SUM(L42,L47,L48)*L$11 -> 0 | M49: 0 | N49: 0 | O49: 0 | P49: 0 | Q49: 0 | R49: 0 | S49: 0 | T49: 0 | U49: 0 | V49: -10.30254975 | W49: 0 | X49: 0 | Y49: 0 | Z49: 0 | AA49: 0 | AB49: 0 | AC49: 0 | AD49: 0 | AE49: 0 | AF49: 0 | AG49: 0 | AH49: 0 | AI49: 0 | AJ49: 0 | AK49: 0 | AL49: 0 | AM49: 0 | AN49: 0 | AO49: 0 | AP49: 0 | AQ49: 0 | AR49: 0 | AS49: 0 | AT49: 0 | AU49: 0 | AV49: 0 | AW49: 0 | AX49: 0
E50: Transaction costs - closing | G50: =Inputs!$I$11 -> £m 20/21 prices | K50: =SUM(K49,K48,K47,K42) -> 0 | L50: =SUM(L49,L48,L47,L42) -> 0 | M50: 0 | N50: 0 | O50: 0 | P50: 0 | Q50: 0 | R50: 8.909994252 | S50: 9.374204953 | T50: 9.862601031 | U50: 10.37644254 | V50: 0 | W50: 0 | X50: 0 | Y50: 0 | Z50: 0 | AA50: 0 | AB50: 0 | AC50: 0 | AD50: 0 | AE50: 0 | AF50: 0 | AG50: 0 | AH50: 0 | AI50: 0 | AJ50: 0 | AK50: 0 | AL50: 0 | AM50: 0 | AN50: 0 | AO50: 0 | AP50: 0 | AQ50: 0 | AR50: 0 | AS50: 0 | AT50: 0 | AU50: 0 | AV50: 0 | AW50: 0 | AX50: 0
B52: Actual cost of debt
C54: Debt balance and reserves
E56: Eligible costs | G56: =CONCATENATE(Inputs!$I$9,"m nominal prices") -> £m nominal prices | K56: ='Pre Op RAV'!K54 -> 0 | L56: ='Pre Op RAV'!L54 -> 0 | M56: ='Pre Op RAV'!M54 -> 0 | N56: ='Pre Op RAV'!N54 -> 0 | O56: ='Pre Op RAV'!O54 -> 0 | P56: ='Pre Op RAV'!P54 -> 0 | Q56: ='Pre Op RAV'!Q54 -> 0 | R56: ='Pre Op RAV'!R54 -> 0 | S56: ='Pre Op RAV'!S54 -> 26.9861859 | T56: ='Pre Op RAV'!T54 -> 88.2114616 | U56: ='Pre Op RAV'!U54 -> 83.26818615 | V56: ='Pre Op RAV'!V54 -> 44.34626288 | W56: ='Pre Op RAV'!W54 -> 0 | X56: ='Pre Op RAV'!X54 -> 0 | Y56: ='Pre Op RAV'!Y54 -> 0 | Z56: ='Pre Op RAV'!Z54 -> 0 | AA56: ='Pre Op RAV'!AA54 -> 0 | AB56: ='Pre Op RAV'!AB54 -> 0 | AC56: ='Pre Op RAV'!AC54 -> 0 | AD56: ='Pre Op RAV'!AD54 -> 0 | AE56: ='Pre Op RAV'!AE54 -> 0 | AF56: ='Pre Op RAV'!AF54 -> 0 | AG56: ='Pre Op RAV'!AG54 -> 0 | AH56: ='Pre Op RAV'!AH54 -> 0 | AI56: ='Pre Op RAV'!AI54 -> 0 | AJ56: ='Pre Op RAV'!AJ54 -> 0 | AK56: ='Pre Op RAV'!AK54 -> 0 | AL56: ='Pre Op RAV'!AL54 -> 0 | AM56: ='Pre Op RAV'!AM54 -> 0 | AN56: ='Pre Op RAV'!AN54 -> 0 | AO56: ='Pre Op RAV'!AO54 -> 0 | AP56: ='Pre Op RAV'!AP54 -> 0 | AQ56: ='Pre Op RAV'!AQ54 -> 0 | AR56: ='Pre Op RAV'!AR54 -> 0 | AS56: ='Pre Op RAV'!AS54 -> 0 | AT56: ='Pre Op RAV'!AT54 -> 0 | AU56: ='Pre Op RAV'!AU54 -> 0 | AV56: ='Pre Op RAV'!AV54 -> 0 | AW56: ='Pre Op RAV'!AW54 -> 0 | AX56: ='Pre Op RAV'!AX54 -> 0
E58: Project finance senior debt amount | G58: =CONCATENATE(Inputs!$I$9,"m nominal prices") -> £m nominal prices | I58: =IF(Inputs!I81=1,Inputs!I82,I59*SUM(K56:AX56)) -> 253.1145
E59: Project finance actual gearing on eligible costs | G59: % | I59: =IF(Inputs!I81=2,Inputs!I83,Finance!I58/SUM(Finance!K56:AX56)) -> 1.042429531
E60: Senior debt drawdown profile | G60: % | K60: =IF(Finance!K15>0,INDEX(Inputs!$K$98:$T$98,1,SUM(Finance!$K$15:K15)),0) -> 0 | L60: =IF(Finance!L15>0,INDEX(Inputs!$K$98:$T$98,1,SUM(Finance!$K$15:L15)),0) -> 0 | M60: =IF(Finance!M15>0,INDEX(Inputs!$K$98:$T$98,1,SUM(Finance!$K$15:M15)),0) -> 0 | N60: =IF(Finance!N15>0,INDEX(Inputs!$K$98:$T$98,1,SUM(Finance!$K$15:N15)),0) -> 0 | O60: =IF(Finance!O15>0,INDEX(Inputs!$K$98:$T$98,1,SUM(Finance!$K$15:O15)),0) -> 0 | P60: =IF(Finance!P15>0,INDEX(Inputs!$K$98:$T$98,1,SUM(Finance!$K$15:P15)),0) -> 0 | Q60: =IF(Finance!Q15>0,INDEX(Inputs!$K$98:$T$98,1,SUM(Finance!$K$15:Q15)),0) -> 0 | R60: =IF(Finance!R15>0,INDEX(Inputs!$K$98:$T$98,1,SUM(Finance!$K$15:R15)),0) -> 0 | S60: =IF(Finance!S15>0,INDEX(Inputs!$K$98:$T$98,1,SUM(Finance!$K$15:S15)),0) -> 0.5057421548 | T60: =IF(Finance!T15>0,INDEX(Inputs!$K$98:$T$98,1,SUM(Finance!$K$15:T15)),0) -> 0.4942578452 | U60: =IF(Finance!U15>0,INDEX(Inputs!$K$98:$T$98,1,SUM(Finance!$K$15:U15)),0) -> 0 | V60: =IF(Finance!V15>0,INDEX(Inputs!$K$98:$T$98,1,SUM(Finance!$K$15:V15)),0) -> 0 | W60: =IF(Finance!W15>0,INDEX(Inputs!$K$98:$T$98,1,SUM(Finance!$K$15:W15)),0) -> 0 | X60: =IF(Finance!X15>0,INDEX(Inputs!$K$98:$T$98,1,SUM(Finance!$K$15:X15)),0) -> 0 | Y60: =IF(Finance!Y15>0,INDEX(Inputs!$K$98:$T$98,1,SUM(Finance!$K$15:Y15)),0) -> 0 | Z60: =IF(Finance!Z15>0,INDEX(Inputs!$K$98:$T$98,1,SUM(Finance!$K$15:Z15)),0) -> 0 | AA60: =IF(Finance!AA15>0,INDEX(Inputs!$K$98:$T$98,1,SUM(Finance!$K$15:AA15)),0) -> 0 | AB60: =IF(Finance!AB15>0,INDEX(Inputs!$K$98:$T$98,1,SUM(Finance!$K$15:AB15)),0) -> 0 | AC60: =IF(Finance!AC15>0,INDEX(Inputs!$K$98:$T$98,1,SUM(Finance!$K$15:AC15)),0) -> 0 | AD60: =IF(Finance!AD15>0,INDEX(Inputs!$K$98:$T$98,1,SUM(Finance!$K$15:AD15)),0) -> 0 | AE60: =IF(Finance!AE15>0,INDEX(Inputs!$K$98:$T$98,1,SUM(Finance!$K$15:AE15)),0) -> 0 | AF60: =IF(Finance!AF15>0,INDEX(Inputs!$K$98:$T$98,1,SUM(Finance!$K$15:AF15)),0) -> 0 | AG60: =IF(Finance!AG15>0,INDEX(Inputs!$K$98:$T$98,1,SUM(Finance!$K$15:AG15)),0) -> 0 | AH60: =IF(Finance!AH15>0,INDEX(Inputs!$K$98:$T$98,1,SUM(Finance!$K$15:AH15)),0) -> 0 | AI60: =IF(Finance!AI15>0,INDEX(Inputs!$K$98:$T$98,1,SUM(Finance!$K$15:AI15)),0) -> 0 | AJ60: =IF(Finance!AJ15>0,INDEX(Inputs!$K$98:$T$98,1,SUM(Finance!$K$15:AJ15)),0) -> 0 | AK60: =IF(Finance!AK15>0,INDEX(Inputs!$K$98:$T$98,1,SUM(Finance!$K$15:AK15)),0) -> 0 | AL60: =IF(Finance!AL15>0,INDEX(Inputs!$K$98:$T$98,1,SUM(Finance!$K$15:AL15)),0) -> 0 | AM60: =IF(Finance!AM15>0,INDEX(Inputs!$K$98:$T$98,1,SUM(Finance!$K$15:AM15)),0) -> 0 | AN60: =IF(Finance!AN15>0,INDEX(Inputs!$K$98:$T$98,1,SUM(Finance!$K$15:AN15)),0) -> 0 | AO60: =IF(Finance!AO15>0,INDEX(Inputs!$K$98:$T$98,1,SUM(Finance!$K$15:AO15)),0) -> 0 | AP60: =IF(Finance!AP15>0,INDEX(Inputs!$K$98:$T$98,1,SUM(Finance!$K$15:AP15)),0) -> 0 | AQ60: =IF(Finance!AQ15>0,INDEX(Inputs!$K$98:$T$98,1,SUM(Finance!$K$15:AQ15)),0) -> 0 | AR60: =IF(Finance!AR15>0,INDEX(Inputs!$K$98:$T$98,1,SUM(Finance!$K$15:AR15)),0) -> 0 | AS60: =IF(Finance!AS15>0,INDEX(Inputs!$K$98:$T$98,1,SUM(Finance!$K$15:AS15)),0) -> 0 | AT60: =IF(Finance!AT15>0,INDEX(Inputs!$K$98:$T$98,1,SUM(Finance!$K$15:AT15)),0) -> 0 | AU60: =IF(Finance!AU15>0,INDEX(Inputs!$K$98:$T$98,1,SUM(Finance!$K$15:AU15)),0) -> 0 | AV60: =IF(Finance!AV15>0,INDEX(Inputs!$K$98:$T$98,1,SUM(Finance!$K$15:AV15)),0) -> 0 | AW60: =IF(Finance!AW15>0,INDEX(Inputs!$K$98:$T$98,1,SUM(Finance!$K$15:AW15)),0) -> 0 | AX60: =IF(Finance!AX15>0,INDEX(Inputs!$K$98:$T$98,1,SUM(Finance!$K$15:AX15)),0) -> 0
E61: Senior debt repayment profile | G61: % | K61: =SUMIF(Inputs!133:133,Finance!K16,Inputs!134:134)*(K16<>0) -> 0 | L61: =SUMIF(Inputs!133:133,Finance!L16,Inputs!134:134)*(L16<>0) -> 0 | M61: =SUMIF(Inputs!133:133,Finance!M16,Inputs!134:134)*(M16<>0) -> 0 | N61: =SUMIF(Inputs!133:133,Finance!N16,Inputs!134:134)*(N16<>0) -> 0 | O61: =SUMIF(Inputs!133:133,Finance!O16,Inputs!134:134)*(O16<>0) -> 0 | P61: =SUMIF(Inputs!133:133,Finance!P16,Inputs!134:134)*(P16<>0) -> 0 | Q61: =SUMIF(Inputs!133:133,Finance!Q16,Inputs!134:134)*(Q16<>0) -> 0 | R61: =SUMIF(Inputs!133:133,Finance!R16,Inputs!134:134)*(R16<>0) -> 0 | S61: =SUMIF(Inputs!133:133,Finance!S16,Inputs!134:134)*(S16<>0) -> 0 | T61: =SUMIF(Inputs!133:133,Finance!T16,Inputs!134:134)*(T16<>0) -> 0 | U61: =SUMIF(Inputs!133:133,Finance!U16,Inputs!134:134)*(U16<>0) -> 0 | V61: =SUMIF(Inputs!133:133,Finance!V16,Inputs!134:134)*(V16<>0) -> 0 | W61: =SUMIF(Inputs!133:133,Finance!W16,Inputs!134:134)*(W16<>0) -> 0.01943112133 | X61: =SUMIF(Inputs!133:133,Finance!X16,Inputs!134:134)*(X16<>0) -> 0.02437598917 | Y61: =SUMIF(Inputs!133:133,Finance!Y16,Inputs!134:134)*(Y16<>0) -> 0.02604695146 | Z61: =SUMIF(Inputs!133:133,Finance!Z16,Inputs!134:134)*(Z16<>0) -> 0.02958244724 | AA61: =SUMIF(Inputs!133:133,Finance!AA16,Inputs!134:134)*(AA16<>0) -> 0.03138361278 | AB61: =SUMIF(Inputs!133:133,Finance!AB16,Inputs!134:134)*(AB16<>0) -> 0.03201781862 | AC61: =SUMIF(Inputs!133:133,Finance!AC16,Inputs!134:134)*(AC16<>0) -> 0.02801434984 | AD61: =SUMIF(Inputs!133:133,Finance!AD16,Inputs!134:134)*(AD16<>0) -> 0.03580137648 | AE61: =SUMIF(Inputs!133:133,Finance!AE16,Inputs!134:134)*(AE16<>0) -> 0.04235618564 | AF61: =SUMIF(Inputs!133:133,Finance!AF16,Inputs!134:134)*(AF16<>0) -> 0.04399057074 | AG61: =SUMIF(Inputs!133:133,Finance!AG16,Inputs!134:134)*(AG16<>0) -> 0.04683001111 | AH61: =SUMIF(Inputs!133:133,Finance!AH16,Inputs!134:134)*(AH16<>0) -> 0.0468284142 | AI61: =SUMIF(Inputs!133:133,Finance!AI16,Inputs!134:134)*(AI16<>0) -> 0.05268936929 | AJ61: =SUMIF(Inputs!133:133,Finance!AJ16,Inputs!134:134)*(AJ16<>0) -> 0.05206847929 | AK61: =SUMIF(Inputs!133:133,Finance!AK16,Inputs!134:134)*(AK16<>0) -> 0.04573992834 | AL61: =SUMIF(Inputs!133:133,Finance!AL16,Inputs!134:134)*(AL16<>0) -> 0.04587787511 | AM61: =SUMIF(Inputs!133:133,Finance!AM16,Inputs!134:134)*(AM16<>0) -> 0.05616076474 | AN61: =SUMIF(Inputs!133:133,Finance!AN16,Inputs!134:134)*(AN16<>0) -> 0.05787967784 | AO61: =SUMIF(Inputs!133:133,Finance!AO16,Inputs!134:134)*(AO16<>0) -> 0.06207816142 | AP61: =SUMIF(Inputs!133:133,Finance!AP16,Inputs!134:134)*(AP16<>0) -> 0.06278318854 | AQ61: =SUMIF(Inputs!133:133,Finance!AQ16,Inputs!134:134)*(AQ16<>0) -> 0.06845716017 | AR61: =SUMIF(Inputs!133:133,Finance!AR16,Inputs!134:134)*(AR16<>0) -> 0.06978553204 | AS61: =SUMIF(Inputs!133:133,Finance!AS16,Inputs!134:134)*(AS16<>0) -> 0.01982101459 | AT61: =SUMIF(Inputs!133:133,Finance!AT16,Inputs!134:134)*(AT16<>0) -> 0 | AU61: =SUMIF(Inputs!133:133,Finance!AU16,Inputs!134:134)*(AU16<>0) -> 0 | AV61: =SUMIF(Inputs!133:133,Finance!AV16,Inputs!134:134)*(AV16<>0) -> 0 | AW61: =SUMIF(Inputs!133:133,Finance!AW16,Inputs!134:134)*(AW16<>0) -> 0 | AX61: =SUMIF(Inputs!133:133,Finance!AX16,Inputs!134:134)*(AX16<>0) -> 0
E63: Opening senior debt balance | G63: =CONCATENATE(Inputs!$I$9,"m nominal prices") -> £m nominal prices | L63: =K66 -> 0 | M63: =L66 -> 0 | N63: 0 | O63: 0 | P63: 0 | Q63: 0 | R63: 0 | S63: 0 | T63: 128.0106727 | U63: 253.1145 | V63: 253.1145 | W63: 253.1145 | X63: 248.1962014 | Y63: 242.0262851 | Z63: 235.433424 | AA63: 227.9456777 | AB63: 220.0020302 | AC63: 211.8978561 | AD63: 204.8070179 | AE63: 195.7451704 | AF63: 185.0242057 | AG63: 173.8895544 | AH63: 162.0361995 | AI63: 150.1832489 | AJ63: 136.8468055 | AK63: 123.6675184 | AL63: 112.0900793 | AM63: 100.4777239 | AN63: 86.26262 | AO63: 71.61243428 | AP63: =AO66 -> 55.89955149 | AQ63: 40.00821611 | AR63: 22.68071625 | AS63: 5.016986197 | AT63: -1.421085472e-14 | AU63: -1.421085472e-14 | AV63: -1.421085472e-14 | AW63: -1.421085472e-14 | AX63: -1.421085472e-14
E64: Senior debt drawdowns | G64: =CONCATENATE(Inputs!$I$9,"m nominal prices") -> £m nominal prices | K64: =K60*$I$58 -> 0 | L64: =L60*$I$58 -> 0 | M64: 0 | N64: 0 | O64: 0 | P64: 0 | Q64: 0 | R64: 0 | S64: 128.0106727 | T64: 125.1038273 | U64: 0 | V64: 0 | W64: 0 | X64: 0 | Y64: 0 | Z64: 0 | AA64: 0 | AB64: 0 | AC64: 0 | AD64: 0 | AE64: 0 | AF64: 0 | AG64: 0 | AH64: 0 | AI64: 0 | AJ64: 0 | AK64: 0 | AL64: 0 | AM64: 0 | AN64: 0 | AO64: 0 | AP64: 0 | AQ64: 0 | AR64: 0 | AS64: 0 | AT64: 0 | AU64: 0 | AV64: 0 | AW64: 0 | AX64: 0
E65: Senior debt repayments | G65: =CONCATENATE(Inputs!$I$9,"m nominal prices") -> £m nominal prices | K65: =-$I$58*K61 -> 0 | L65: =-$I$58*L61 -> 0 | M65: 0 | N65: 0 | O65: 0 | P65: 0 | Q65: 0 | R65: 0 | S65: 0 | T65: 0 | U65: 0 | V65: =-$I$58*V61 -> 0 | W65: -4.918298559 | X65: -6.169916312 | Y65: -6.592861096 | Z65: -7.487746341 | AA65: -7.943647457 | AB65: -8.104174152 | AC65: -7.090838153 | AD65: -9.061847506 | AE65: -10.72096475 | AF65: -11.13465132 | AG65: -11.85335485 | AH65: -11.85295065 | AI65: -13.33644336 | AJ65: -13.1792871 | AK65: -11.57743909 | AL65: -11.61235542 | AM65: -14.21510389 | AN65: -14.65018572 | AO65: -15.71288279 | AP65: -15.89133538 | AQ65: -17.32749987 | AR65: -17.66373005 | AS65: -5.016986197 | AT65: 0 | AU65: 0 | AV65: 0 | AW65: 0 | AX65: 0
E66: Closing senior debt balance | G66: =CONCATENATE(Inputs!$I$9,"m nominal prices") -> £m nominal prices | K66: =SUM(K63:K65) -> 0 | L66: =SUM(L63:L65) -> 0 | M66: 0 | N66: 0 | O66: 0 | P66: 0 | Q66: 0 | R66: 0 | S66: 128.0106727 | T66: 253.1145 | U66: 253.1145 | V66: 253.1145 | W66: 248.1962014 | X66: 242.0262851 | Y66: 235.433424 | Z66: 227.9456777 | AA66: 220.0020302 | AB66: 211.8978561 | AC66: 204.8070179 | AD66: 195.7451704 | AE66: 185.0242057 | AF66: 173.8895544 | AG66: 162.0361995 | AH66: 150.1832489 | AI66: 136.8468055 | AJ66: 123.6675184 | AK66: 112.0900793 | AL66: 100.4777239 | AM66: 86.26262 | AN66: 71.61243428 | AO66: 55.89955149 | AP66: 40.00821611 | AQ66: 22.68071625 | AR66: 5.016986197 | AS66: -1.421085472e-14 | AT66: -1.421085472e-14 | AU66: -1.421085472e-14 | AV66: -1.421085472e-14 | AW66: -1.421085472e-14 | AX66: -1.421085472e-14
E68: Debt Service Reserve Facility amount | G68: =CONCATENATE(Inputs!$I$9,"m nominal prices") -> £m nominal prices | I68: =Inputs!I100*(Inputs!I127=1) -> 8.788436695
E69: Cap and Floor Liquidity Facility amount | G69: =CONCATENATE(Inputs!$I$9,"m nominal prices") -> £m nominal prices | I69: =Inputs!I105 -> 23.22109174
E70: Cap and Floor Liquidity Facility average outstanding loan | G70: =CONCATENATE(Inputs!$I$9,"m nominal prices") -> £m nominal prices | I70: =Inputs!I106 -> 0
E71: Standby Debt Facility amount | G71: =CONCATENATE(Inputs!$I$9,"m nominal prices") -> £m nominal prices | I71: =Inputs!I111 -> 0
E72: VAT Facility amount | G72: =CONCATENATE(Inputs!$I$9,"m nominal prices") -> £m nominal prices | I72: =Inputs!I116 -> 0.4644218347
E73: VAT Facility average outstanding loan | G73: =CONCATENATE(Inputs!$I$9,"m nominal prices") -> £m nominal prices | I73: =Inputs!I117 -> 0.1918137857
E74: Other facilities amount | G74: =CONCATENATE(Inputs!$I$9,"m nominal prices") -> £m nominal prices | I74: =Inputs!I122 -> 12.5
C76: Financial expenses during construction
E78: Upfront fee - Senior Debt | G78: nominal % | I78: =Inputs!I94 -> 0.014
E79: Upfront fee - Debt Service Reserve Facility | G79: nominal % | I79: =Inputs!I101 -> 0.014
E80: Upfront fee - Cap and Floor Liquidity Facility | G80: nominal % | I80: =Inputs!I107 -> 0.014
E81: Upfront fee - Standby Debt Facility | G81: nominal % | I81: =Inputs!I112 -> 0.014
E82: Upfront fee - VAT Facility | G82: nominal % | I82: =Inputs!I118 -> 0.013
E83: Upfront fee - Other facilities | G83: nominal % | I83: =Inputs!I123 -> 0.014
E85: Fixed rate - Construction | G85: nominal % | I85: =Inputs!I89 -> 0.01314352189
E86: Construction margin - Senior Debt | G86: nominal % | I86: =Inputs!I92 -> 0.0177045
E87: of which: swap margin | G87: nominal % | I87: =Inputs!I93 -> 0.0017045
E88: Construction margin - Debt Service Reserve Facility | G88: nominal % | I88: =Inputs!I102 -> 0.01601203646
E89: Construction margin - Cap and Floor Liquidity Facility | G89: nominal % | I89: =Inputs!I108 -> 0.01603830372
E90: Construction margin - Standby Debt Facility | G90: nominal % | I90: =Inputs!I113 -> 0.016
E91: Construction margin - VAT Facility | G91: nominal % | I91: =Inputs!I119 -> 0.0125
E92: Construction margin - Other facilities | G92: nominal % | I92: =Inputs!I124 -> 0.0165
E94: Total interest rate - Senior Debt | G94: nominal % | K94: =($I$85+$I86)*K$15 -> 0 | L94: =($I$85+$I86)*L$15 -> 0 | M94: 0 | N94: 0 | O94: 0 | P94: 0 | Q94: 0 | R94: 0 | S94: =($I$85+$I86)*S$15 -> 0.03084802189 | T94: =($I$85+$I86)*T$15 -> 0.03084802189 | U94: 0.03084802189 | V94: 0 | W94: 0 | X94: 0 | Y94: 0 | Z94: 0 | AA94: 0 | AB94: 0 | AC94: 0 | AD94: 0 | AE94: 0 | AF94: 0 | AG94: 0 | AH94: 0 | AI94: 0 | AJ94: 0 | AK94: 0 | AL94: 0 | AM94: 0 | AN94: 0 | AO94: 0 | AP94: 0 | AQ94: 0 | AR94: 0 | AS94: 0 | AT94: 0 | AU94: 0 | AV94: 0 | AW94: 0 | AX94: 0
E95: Total interest rate - Debt Service Reserve Facility | G95: nominal % | K95: =($I$85+$I88)*K$15 -> 0 | L95: 0 | M95: 0 | N95: 0 | O95: 0 | P95: 0 | Q95: 0 | R95: 0 | S95: =($I$85+$I88)*S$15 -> 0.02915555835 | T95: 0.02915555835 | U95: 0.02915555835 | V95: 0 | W95: 0 | X95: 0 | Y95: 0 | Z95: 0 | AA95: 0 | AB95: 0 | AC95: 0 | AD95: 0 | AE95: 0 | AF95: 0 | AG95: 0 | AH95: 0 | AI95: 0 | AJ95: 0 | AK95: 0 | AL95: 0 | AM95: 0 | AN95: 0 | AO95: 0 | AP95: 0 | AQ95: 0 | AR95: 0 | AS95: 0 | AT95: 0 | AU95: 0 | AV95: 0 | AW95: 0 | AX95: 0
E96: Total interest rate - Cap and Floor Liquidity Facility | G96: nominal % | K96: =($I$85+$I89)*K$15 -> 0 | L96: =($I$85+$I89)*L$15 -> 0 | M96: 0 | N96: 0 | O96: 0 | P96: 0 | Q96: 0 | R96: 0 | S96: =($I$85+$I89)*S$15 -> 0.02918182561 | T96: 0.02918182561 | U96: 0.02918182561 | V96: 0 | W96: 0 | X96: 0 | Y96: 0 | Z96: 0 | AA96: 0 | AB96: 0 | AC96: 0 | AD96: 0 | AE96: 0 | AF96: 0 | AG96: 0 | AH96: 0 | AI96: 0 | AJ96: 0 | AK96: 0 | AL96: 0 | AM96: 0 | AN96: 0 | AO96: 0 | AP96: 0 | AQ96: 0 | AR96: 0 | AS96: 0 | AT96: 0 | AU96: 0 | AV96: 0 | AW96: 0 | AX96: 0
E97: Total interest rate - Standby Debt Facility | G97: nominal % | K97: =($I$85+$I90)*K$15 -> 0 | L97: 0 | M97: 0 | N97: 0 | O97: 0 | P97: 0 | Q97: 0 | R97: 0 | S97: =($I$85+$I90)*S$15 -> 0.02914352189 | T97: 0.02914352189 | U97: 0.02914352189 | V97: 0 | W97: 0 | X97: 0 | Y97: 0 | Z97: 0 | AA97: 0 | AB97: 0 | AC97: 0 | AD97: 0 | AE97: 0 | AF97: 0 | AG97: 0 | AH97: 0 | AI97: 0 | AJ97: 0 | AK97: 0 | AL97: 0 | AM97: 0 | AN97: 0 | AO97: 0 | AP97: 0 | AQ97: 0 | AR97: 0 | AS97: 0 | AT97: 0 | AU97: 0 | AV97: 0 | AW97: 0 | AX97: 0
E98: Total interest rate - VAT Facility | G98: nominal % | K98: =($I$85+$I91)*K$15 -> 0 | L98: 0 | M98: 0 | N98: 0 | O98: 0 | P98: 0 | Q98: 0 | R98: 0 | S98: =($I$85+$I91)*S$15 -> 0.02564352189 | T98: 0.02564352189 | U98: 0.02564352189 | V98: 0 | W98: 0 | X98: 0 | Y98: 0 | Z98: 0 | AA98: 0 | AB98: 0 | AC98: 0 | AD98: 0 | AE98: 0 | AF98: 0 | AG98: 0 | AH98: 0 | AI98: 0 | AJ98: 0 | AK98: 0 | AL98: 0 | AM98: 0 | AN98: 0 | AO98: 0 | AP98: 0 | AQ98: 0 | AR98: 0 | AS98: 0 | AT98: 0 | AU98: 0 | AV98: 0 | AW98: 0 | AX98: 0
E99: Total interest rate - Other facilities | G99: nominal % | K99: =($I$85+$I92)*K$15 -> 0 | L99: 0 | M99: 0 | N99: 0 | O99: 0 | P99: 0 | Q99: 0 | R99: 0 | S99: =($I$85+$I92)*S$15 -> 0.02964352189 | T99: 0.02964352189 | U99: 0.02964352189 | V99: 0 | W99: 0 | X99: 0 | Y99: 0 | Z99: 0 | AA99: 0 | AB99: 0 | AC99: 0 | AD99: 0 | AE99: 0 | AF99: 0 | AG99: 0 | AH99: 0 | AI99: 0 | AJ99: 0 | AK99: 0 | AL99: 0 | AM99: 0 | AN99: 0 | AO99: 0 | AP99: 0 | AQ99: 0 | AR99: 0 | AS99: 0 | AT99: 0 | AU99: 0 | AV99: 0 | AW99: 0 | AX99: 0
E101: Commitment fee - Senior Debt | G101: % of applicable margin | I101: =Inputs!I95 -> 0.35
E102: Commitment fee - Debt Service Reserve Facility | G102: % of applicable margin | I102: =Inputs!I103 -> 0.35
E103: Commitment fee - Cap and Floor Liquidity Facility | G103: % of applicable margin | I103: =Inputs!I109 -> 0.35
E104: Commitment fee - Standby Debt Facility | G104: % of applicable margin | I104: =Inputs!I114 -> 0.35
E105: Commitment fee - VAT Facility | G105: % of applicable margin | I105: =Inputs!I120 -> 0.35
E106: Commitment fee - Other facilities | G106: % of applicable margin | I106: =Inputs!I125 -> 0.35
E108: Upfront fee payable - Senior Debt | G108: =CONCATENATE(Inputs!$I$9,"m nominal prices") -> £m nominal prices | K108: =$I$58*$I$78*K14 -> 0 | L108: =$I$58*$I$78*L14 -> 0 | M108: 0 | N108: 0 | O108: 0 | P108: 0 | Q108: 0 | R108: 0 | S108: =$I$58*$I$78*S14 -> 3.543603 | T108: 0 | U108: 0 | V108: 0 | W108: 0 | X108: 0 | Y108: 0 | Z108: 0 | AA108: 0 | AB108: 0 | AC108: 0 | AD108: 0 | AE108: 0 | AF108: 0 | AG108: 0 | AH108: 0 | AI108: 0 | AJ108: 0 | AK108: 0 | AL108: 0 | AM108: 0 | AN108: 0 | AO108: 0 | AP108: 0 | AQ108: 0 | AR108: 0 | AS108: 0 | AT108: 0 | AU108: 0 | AV108: 0 | AW108: 0 | AX108: 0
E109: Upfront fee payable - Ancillary Facilities | G109: =CONCATENATE(Inputs!$I$9,"m nominal prices") -> £m nominal prices | K109: =($I$68*$I$79+$I$69*$I$80+$I$71*$I$81+$I$72*$I$82+$I$74*$I$83)*K14 -> 0 | L109: =($I$68*$I$79+$I$69*$I$80+$I$71*$I$81+$I$72*$I$82+$I$74*$I$83)*L14 -> 0 | M109: =($I$68*$I$79+$I$69*$I$80+$I$71*$I$81+$I$72*$I$82+$I$74*$I$83)*M14 -> 0 | N109: 0 | O109: 0 | P109: 0 | Q109: 0 | R109: =($I$68*$I$79+$I$69*$I$80+$I$71*$I$81+$I$72*$I$82+$I$74*$I$83)*R14 -> 0 | S109: =($I$68*$I$79+$I$69*$I$80+$I$71*$I$81+$I$72*$I$82+$I$74*$I$83)*S14 -> 0.6291708819 | T109: 0 | U109: 0 | V109: 0 | W109: 0 | X109: 0 | Y109: 0 | Z109: 0 | AA109: 0 | AB109: 0 | AC109: 0 | AD109: 0 | AE109: 0 | AF109: 0 | AG109: 0 | AH109: 0 | AI109: 0 | AJ109: 0 | AK109: 0 | AL109: 0 | AM109: 0 | AN109: 0 | AO109: 0 | AP109: 0 | AQ109: 0 | AR109: 0 | AS109: 0 | AT109: 0 | AU109: 0 | AV109: 0 | AW109: 0 | AX109: 0
E110: Interest payable - Senior Debt | G110: =CONCATENATE(Inputs!$I$9,"m nominal prices") -> £m nominal prices | K110: =SUM(K63:K64)*K94*K15 -> 0 | L110: =SUM(L63:L64)*L94*L15 -> 0 | M110: 0 | N110: 0 | O110: 0 | P110: 0 | Q110: 0 | R110: =SUM(R63:R64)*R94*R15 -> 0 | S110: =SUM(S63:S64)*S94*S15 -> 3.948876033 | T110: 7.808081638 | U110: 7.808081638 | V110: 0 | W110: 0 | X110: 0 | Y110: 0 | Z110: 0 | AA110: 0 | AB110: 0 | AC110: 0 | AD110: 0 | AE110: 0 | AF110: 0 | AG110: 0 | AH110: 0 | AI110: 0 | AJ110: 0 | AK110: 0 | AL110: 0 | AM110: 0 | AN110: 0 | AO110: 0 | AP110: 0 | AQ110: 0 | AR110: 0 | AS110: 0 | AT110: 0 | AU110: 0 | AV110: 0 | AW110: 0 | AX110: 0
E111: Interest payable - Ancillary Facilities | G111: =CONCATENATE(Inputs!$I$9,"m nominal prices") -> £m nominal prices | K111: =$I$73*K98*K15 -> 0 | L111: =$I$73*L98*L15 -> 0 | M111: 0 | N111: 0 | O111: 0 | P111: 0 | Q111: 0 | R111: 0 | S111: 0.004918781013 | T111: 0.004918781013 | U111: 0.004918781013 | V111: 0 | W111: 0 | X111: 0 | Y111: 0 | Z111: 0 | AA111: 0 | AB111: 0 | AC111: 0 | AD111: 0 | AE111: 0 | AF111: 0 | AG111: 0 | AH111: 0 | AI111: 0 | AJ111: 0 | AK111: 0 | AL111: 0 | AM111: 0 | AN111: 0 | AO111: 0 | AP111: 0 | AQ111: 0 | AR111: 0 | AS111: 0 | AT111: 0 | AU111: 0 | AV111: 0 | AW111: 0 | AX111: 0
E112: Commitment fee payable - Senior Debt | G112: =CONCATENATE(Inputs!$I$9,"m nominal prices") -> £m nominal prices | K112: =($I$58-SUM(K63:K64))*(K94-$I$85-$I$87)*$I$101*K15 -> 0 | L112: =($I$58-SUM(L63:L64))*(L94-$I$85-$I$87)*$I$101*L15 -> 0 | M112: 0 | N112: 0 | O112: 0 | P112: 0 | Q112: 0 | R112: 0 | S112: =($I$58-SUM(S63:S64))*(S94-$I$85-$I$87)*$I$101*S15 -> 0.7005814332 | T112: 0 | U112: 0 | V112: 0 | W112: 0 | X112: 0 | Y112: 0 | Z112: 0 | AA112: 0 | AB112: 0 | AC112: 0 | AD112: 0 | AE112: 0 | AF112: 0 | AG112: 0 | AH112: 0 | AI112: 0 | AJ112: 0 | AK112: 0 | AL112: 0 | AM112: 0 | AN112: 0 | AO112: 0 | AP112: 0 | AQ112: 0 | AR112: 0 | AS112: 0 | AT112: 0 | AU112: 0 | AV112: 0 | AW112: 0 | AX112: 0
E113: Commitment fee payable - Ancillary Facilities | G113: =CONCATENATE(Inputs!$I$9,"m nominal prices") -> £m nominal prices | K113: =($I$68*(K95-$I$85)*$I$102+$I$69*(K96-$I$85)*$I$103+$I$71*(K97-$I$85)*$I$104+($I$72-$I$73)*(K98-$I$85)*$I$105+$I$74*(K99-$I$85)*$I$106)*K15 -> 0 | L113: =($I$68*(L95-$I$85)*$I$102+$I$69*(L96-$I$85)*$I$103+$I$71*(L97-$I$85)*$I$104+($I$72-$I$73)*(L98-$I$85)*$I$105+$I$74*(L99-$I$85)*$I$106)*L15 -> 0 | M113: =($I$68*(M95-$I$85)*$I$102+$I$69*(M96-$I$85)*$I$103+$I$71*(M97-$I$85)*$I$104+($I$72-$I$73)*(M98-$I$85)*$I$105+$I$74*(M99-$I$85)*$I$106)*M15 -> 0 | N113: 0 | O113: 0 | P113: 0 | Q113: 0 | R113: 0 | S113: =($I$68*(S95-$I$85)*$I$102+$I$69*(S96-$I$85)*$I$103+$I$71*(S97-$I$85)*$I$104+($I$72-$I$73)*(S98-$I$85)*$I$105+$I$74*(S99-$I$85)*$I$106)*S15 -> 0.252981852 | T113: 0.252981852 | U113: =($I$68*(U95-$I$85)*$I$102+$I$69*(U96-$I$85)*$I$103+$I$71*(U97-$I$85)*$I$104+($I$72-$I$73)*(U98-$I$85)*$I$105+$I$74*(U99-$I$85)*$I$106)*U15 -> 0.252981852 | V113: =($I$68*(V95-$I$85)*$I$102+$I$69*(V96-$I$85)*$I$103+$I$71*(V97-$I$85)*$I$104+($I$72-$I$73)*(V98-$I$85)*$I$105+$I$74*(V99-$I$85)*$I$106)*V15 -> 0 | W113: 0 | X113: 0 | Y113: 0 | Z113: 0 | AA113: 0 | AB113: 0 | AC113: 0 | AD113: 0 | AE113: 0 | AF113: 0 | AG113: 0 | AH113: 0 | AI113: 0 | AJ113: 0 | AK113: 0 | AL113: 0 | AM113: 0 | AN113: 0 | AO113: 0 | AP113: 0 | AQ113: 0 | AR113: 0 | AS113: 0 | AT113: 0 | AU113: 0 | AV113: 0 | AW113: 0 | AX113: 0
E114: Financial expenses during construction | G114: =CONCATENATE(Inputs!$I$9,"m nominal prices") -> £m nominal prices | K114: =SUM(K108:K113) -> 0 | L114: =SUM(L108:L113) -> 0 | M114: 0 | N114: 0 | O114: 0 | P114: 0 | Q114: 0 | R114: 0 | S114: =SUM(S108:S113) -> 9.080131981 | T114: 8.065982271 | U114: 8.065982271 | V114: 0 | W114: 0 | X114: 0 | Y114: 0 | Z114: 0 | AA114: 0 | AB114: 0 | AC114: 0 | AD114: 0 | AE114: 0 | AF114: 0 | AG114: 0 | AH114: 0 | AI114: 0 | AJ114: 0 | AK114: 0 | AL114: 0 | AM114: 0 | AN114: 0 | AO114: 0 | AP114: 0 | AQ114: 0 | AR114: 0 | AS114: 0 | AT114: 0 | AU114: 0 | AV114: 0 | AW114: 0 | AX114: 0
C116: Financial expenses during operation
E118: Fixed rate - Operation | G118: nominal % | I118: =Inputs!I90 -> 0.0130107795
E119: Operation margin (including swap margin) - Senior Debt | G119: nominal % | K119: =SUMIF(Inputs!$133:$133,Finance!K$16,Inputs!136:136) -> 0 | L119: =SUMIF(Inputs!$133:$133,Finance!L$16,Inputs!136:136) -> 0 | M119: =SUMIF(Inputs!$133:$133,Finance!M$16,Inputs!136:136) -> 0 | N119: =SUMIF(Inputs!$133:$133,Finance!N$16,Inputs!136:136) -> 0 | O119: =SUMIF(Inputs!$133:$133,Finance!O$16,Inputs!136:136) -> 0 | P119: =SUMIF(Inputs!$133:$133,Finance!P$16,Inputs!136:136) -> 0 | Q119: =SUMIF(Inputs!$133:$133,Finance!Q$16,Inputs!136:136) -> 0 | R119: =SUMIF(Inputs!$133:$133,Finance!R$16,Inputs!136:136) -> 0 | S119: =SUMIF(Inputs!$133:$133,Finance!S$16,Inputs!136:136) -> 0 | T119: =SUMIF(Inputs!$133:$133,Finance!T$16,Inputs!136:136) -> 0 | U119: =SUMIF(Inputs!$133:$133,Finance!U$16,Inputs!136:136) -> 0 | V119: =SUMIF(Inputs!$133:$133,Finance!V$16,Inputs!136:136) -> 0.0162045 | W119: =SUMIF(Inputs!$133:$133,Finance!W$16,Inputs!136:136) -> 0.0162045 | X119: =SUMIF(Inputs!$133:$133,Finance!X$16,Inputs!136:136) -> 0.0162045 | Y119: =SUMIF(Inputs!$133:$133,Finance!Y$16,Inputs!136:136) -> 0.0162045 | Z119: =SUMIF(Inputs!$133:$133,Finance!Z$16,Inputs!136:136) -> 0.0162045 | AA119: =SUMIF(Inputs!$133:$133,Finance!AA$16,Inputs!136:136) -> 0.01628919945 | AB119: =SUMIF(Inputs!$133:$133,Finance!AB$16,Inputs!136:136) -> 0.0172045 | AC119: =SUMIF(Inputs!$133:$133,Finance!AC$16,Inputs!136:136) -> 0.0172045 | AD119: =SUMIF(Inputs!$133:$133,Finance!AD$16,Inputs!136:136) -> 0.0172045 | AE119: =SUMIF(Inputs!$133:$133,Finance!AE$16,Inputs!136:136) -> 0.0172045 | AF119: =SUMIF(Inputs!$133:$133,Finance!AF$16,Inputs!136:136) -> 0.01728919945 | AG119: =SUMIF(Inputs!$133:$133,Finance!AG$16,Inputs!136:136) -> 0.0182045 | AH119: =SUMIF(Inputs!$133:$133,Finance!AH$16,Inputs!136:136) -> 0.0182045 | AI119: =SUMIF(Inputs!$133:$133,Finance!AI$16,Inputs!136:136) -> 0.0182045 | AJ119: =SUMIF(Inputs!$133:$133,Finance!AJ$16,Inputs!136:136) -> 0.0182045 | AK119: =SUMIF(Inputs!$133:$133,Finance!AK$16,Inputs!136:136) -> 0.01828919945 | AL119: =SUMIF(Inputs!$133:$133,Finance!AL$16,Inputs!136:136) -> 0.0192045 | AM119: =SUMIF(Inputs!$133:$133,Finance!AM$16,Inputs!136:136) -> 0.0192045 | AN119: =SUMIF(Inputs!$133:$133,Finance!AN$16,Inputs!136:136) -> 0.0192045 | AO119: =SUMIF(Inputs!$133:$133,Finance!AO$16,Inputs!136:136) -> 0.0192045 | AP119: =SUMIF(Inputs!$133:$133,Finance!AP$16,Inputs!136:136) -> 0.01928919945 | AQ119: =SUMIF(Inputs!$133:$133,Finance!AQ$16,Inputs!136:136) -> 0.0202045 | AR119: =SUMIF(Inputs!$133:$133,Finance!AR$16,Inputs!136:136) -> 0.0202045 | AS119: =SUMIF(Inputs!$133:$133,Finance!AS$16,Inputs!136:136) -> 0.0202045 | AT119: =SUMIF(Inputs!$133:$133,Finance!AT$16,Inputs!136:136) -> 0 | AU119: =SUMIF(Inputs!$133:$133,Finance!AU$16,Inputs!136:136) -> 0 | AV119: =SUMIF(Inputs!$133:$133,Finance!AV$16,Inputs!136:136) -> 0 | AW119: =SUMIF(Inputs!$133:$133,Finance!AW$16,Inputs!136:136) -> 0 | AX119: =SUMIF(Inputs!$133:$133,Finance!AX$16,Inputs!136:136) -> 0
E120: Operation margin - Debt Service Reserve Facility | G120: nominal % | K120: =SUMIF(Inputs!$133:$133,Finance!K$16,Inputs!137:137) -> 0 | L120: =SUMIF(Inputs!$133:$133,Finance!L$16,Inputs!137:137) -> 0 | M120: =SUMIF(Inputs!$133:$133,Finance!M$16,Inputs!137:137) -> 0 | N120: =SUMIF(Inputs!$133:$133,Finance!N$16,Inputs!137:137) -> 0 | O120: =SUMIF(Inputs!$133:$133,Finance!O$16,Inputs!137:137) -> 0 | P120: =SUMIF(Inputs!$133:$133,Finance!P$16,Inputs!137:137) -> 0 | Q120: =SUMIF(Inputs!$133:$133,Finance!Q$16,Inputs!137:137) -> 0 | R120: =SUMIF(Inputs!$133:$133,Finance!R$16,Inputs!137:137) -> 0 | S120: =SUMIF(Inputs!$133:$133,Finance!S$16,Inputs!137:137) -> 0 | T120: =SUMIF(Inputs!$133:$133,Finance!T$16,Inputs!137:137) -> 0 | U120: =SUMIF(Inputs!$133:$133,Finance!U$16,Inputs!137:137) -> 0 | V120: =SUMIF(Inputs!$133:$133,Finance!V$16,Inputs!137:137) -> 0.01451203646 | W120: =SUMIF(Inputs!$133:$133,Finance!W$16,Inputs!137:137) -> 0.01451203646 | X120: =SUMIF(Inputs!$133:$133,Finance!X$16,Inputs!137:137) -> 0.01451203646 | Y120: =SUMIF(Inputs!$133:$133,Finance!Y$16,Inputs!137:137) -> 0.01451203646 | Z120: =SUMIF(Inputs!$133:$133,Finance!Z$16,Inputs!137:137) -> 0.01451203646 | AA120: =SUMIF(Inputs!$133:$133,Finance!AA$16,Inputs!137:137) -> 0.01459673591 | AB120: =SUMIF(Inputs!$133:$133,Finance!AB$16,Inputs!137:137) -> 0.01551203646 | AC120: =SUMIF(Inputs!$133:$133,Finance!AC$16,Inputs!137:137) -> 0.01551203646 | AD120: =SUMIF(Inputs!$133:$133,Finance!AD$16,Inputs!137:137) -> 0.01551203646 | AE120: =SUMIF(Inputs!$133:$133,Finance!AE$16,Inputs!137:137) -> 0.01551203646 | AF120: =SUMIF(Inputs!$133:$133,Finance!AF$16,Inputs!137:137) -> 0.01559673591 | AG120: =SUMIF(Inputs!$133:$133,Finance!AG$16,Inputs!137:137) -> 0.01651203646 | AH120: =SUMIF(Inputs!$133:$133,Finance!AH$16,Inputs!137:137) -> 0.01651203646 | AI120: =SUMIF(Inputs!$133:$133,Finance!AI$16,Inputs!137:137) -> 0.01651203646 | AJ120: =SUMIF(Inputs!$133:$133,Finance!AJ$16,Inputs!137:137) -> 0.01651203646 | AK120: =SUMIF(Inputs!$133:$133,Finance!AK$16,Inputs!137:137) -> 0.01659673591 | AL120: =SUMIF(Inputs!$133:$133,Finance!AL$16,Inputs!137:137) -> 0.01751203646 | AM120: =SUMIF(Inputs!$133:$133,Finance!AM$16,Inputs!137:137) -> 0.01751203646 | AN120: =SUMIF(Inputs!$133:$133,Finance!AN$16,Inputs!137:137) -> 0.01751203646 | AO120: =SUMIF(Inputs!$133:$133,Finance!AO$16,Inputs!137:137) -> 0.01751203646 | AP120: =SUMIF(Inputs!$133:$133,Finance!AP$16,Inputs!137:137) -> 0.01759673591 | AQ120: =SUMIF(Inputs!$133:$133,Finance!AQ$16,Inputs!137:137) -> 0.01851203646 | AR120: =SUMIF(Inputs!$133:$133,Finance!AR$16,Inputs!137:137) -> 0.01851203646 | AS120: =SUMIF(Inputs!$133:$133,Finance!AS$16,Inputs!137:137) -> 0.01851203646 | AT120: =SUMIF(Inputs!$133:$133,Finance!AT$16,Inputs!137:137) -> 0 | AU120: =SUMIF(Inputs!$133:$133,Finance!AU$16,Inputs!137:137) -> 0 | AV120: =SUMIF(Inputs!$133:$133,Finance!AV$16,Inputs!137:137) -> 0 | AW120: =SUMIF(Inputs!$133:$133,Finance!AW$16,Inputs!137:137) -> 0 | AX120: =SUMIF(Inputs!$133:$133,Finance!AX$16,Inputs!137:137) -> 0
E121: Operation margin - Cap and Floor Liquidity Facility | G121: nominal % | K121: =SUMIF(Inputs!$133:$133,Finance!K$16,Inputs!138:138) -> 0 | L121: =SUMIF(Inputs!$133:$133,Finance!L$16,Inputs!138:138) -> 0 | M121: =SUMIF(Inputs!$133:$133,Finance!M$16,Inputs!138:138) -> 0 | N121: =SUMIF(Inputs!$133:$133,Finance!N$16,Inputs!138:138) -> 0 | O121: =SUMIF(Inputs!$133:$133,Finance!O$16,Inputs!138:138) -> 0 | P121: =SUMIF(Inputs!$133:$133,Finance!P$16,Inputs!138:138) -> 0 | Q121: =SUMIF(Inputs!$133:$133,Finance!Q$16,Inputs!138:138) -> 0 | R121: =SUMIF(Inputs!$133:$133,Finance!R$16,Inputs!138:138) -> 0 | S121: =SUMIF(Inputs!$133:$133,Finance!S$16,Inputs!138:138) -> 0 | T121: =SUMIF(Inputs!$133:$133,Finance!T$16,Inputs!138:138) -> 0 | U121: =SUMIF(Inputs!$133:$133,Finance!U$16,Inputs!138:138) -> 0 | V121: =SUMIF(Inputs!$133:$133,Finance!V$16,Inputs!138:138) -> 0.01453830372 | W121: =SUMIF(Inputs!$133:$133,Finance!W$16,Inputs!138:138) -> 0.01453830372 | X121: =SUMIF(Inputs!$133:$133,Finance!X$16,Inputs!138:138) -> 0.01453830372 | Y121: =SUMIF(Inputs!$133:$133,Finance!Y$16,Inputs!138:138) -> 0.01453830372 | Z121: =SUMIF(Inputs!$133:$133,Finance!Z$16,Inputs!138:138) -> 0.01453830372 | AA121: =SUMIF(Inputs!$133:$133,Finance!AA$16,Inputs!138:138) -> 0.01462300317 | AB121: =SUMIF(Inputs!$133:$133,Finance!AB$16,Inputs!138:138) -> 0.01553830372 | AC121: =SUMIF(Inputs!$133:$133,Finance!AC$16,Inputs!138:138) -> 0.01553830372 | AD121: =SUMIF(Inputs!$133:$133,Finance!AD$16,Inputs!138:138) -> 0.01553830372 | AE121: =SUMIF(Inputs!$133:$133,Finance!AE$16,Inputs!138:138) -> 0.01553830372 | AF121: =SUMIF(Inputs!$133:$133,Finance!AF$16,Inputs!138:138) -> 0.01562300317 | AG121: =SUMIF(Inputs!$133:$133,Finance!AG$16,Inputs!138:138) -> 0.01653830372 | AH121: =SUMIF(Inputs!$133:$133,Finance!AH$16,Inputs!138:138) -> 0.01653830372 | AI121: =SUMIF(Inputs!$133:$133,Finance!AI$16,Inputs!138:138) -> 0.01653830372 | AJ121: =SUMIF(Inputs!$133:$133,Finance!AJ$16,Inputs!138:138) -> 0.01653830372 | AK121: =SUMIF(Inputs!$133:$133,Finance!AK$16,Inputs!138:138) -> 0.01662300317 | AL121: =SUMIF(Inputs!$133:$133,Finance!AL$16,Inputs!138:138) -> 0.01753830372 | AM121: =SUMIF(Inputs!$133:$133,Finance!AM$16,Inputs!138:138) -> 0.01753830372 | AN121: =SUMIF(Inputs!$133:$133,Finance!AN$16,Inputs!138:138) -> 0.01753830372 | AO121: =SUMIF(Inputs!$133:$133,Finance!AO$16,Inputs!138:138) -> 0.01753830372 | AP121: =SUMIF(Inputs!$133:$133,Finance!AP$16,Inputs!138:138) -> 0.01762300317 | AQ121: =SUMIF(Inputs!$133:$133,Finance!AQ$16,Inputs!138:138) -> 0.01853830372 | AR121: =SUMIF(Inputs!$133:$133,Finance!AR$16,Inputs!138:138) -> 0.01853830372 | AS121: =SUMIF(Inputs!$133:$133,Finance!AS$16,Inputs!138:138) -> 0.01853830372 | AT121: =SUMIF(Inputs!$133:$133,Finance!AT$16,Inputs!138:138) -> 0 | AU121: =SUMIF(Inputs!$133:$133,Finance!AU$16,Inputs!138:138) -> 0 | AV121: =SUMIF(Inputs!$133:$133,Finance!AV$16,Inputs!138:138) -> 0 | AW121: =SUMIF(Inputs!$133:$133,Finance!AW$16,Inputs!138:138) -> 0 | AX121: =SUMIF(Inputs!$133:$133,Finance!AX$16,Inputs!138:138) -> 0
E122: Operation margin - Standby Debt Facility | G122: nominal % | K122: =SUMIF(Inputs!$133:$133,Finance!K$16,Inputs!139:139) -> 0 | L122: =SUMIF(Inputs!$133:$133,Finance!L$16,Inputs!139:139) -> 0 | M122: =SUMIF(Inputs!$133:$133,Finance!M$16,Inputs!139:139) -> 0 | N122: =SUMIF(Inputs!$133:$133,Finance!N$16,Inputs!139:139) -> 0 | O122: =SUMIF(Inputs!$133:$133,Finance!O$16,Inputs!139:139) -> 0 | P122: =SUMIF(Inputs!$133:$133,Finance!P$16,Inputs!139:139) -> 0 | Q122: =SUMIF(Inputs!$133:$133,Finance!Q$16,Inputs!139:139) -> 0 | R122: =SUMIF(Inputs!$133:$133,Finance!R$16,Inputs!139:139) -> 0 | S122: =SUMIF(Inputs!$133:$133,Finance!S$16,Inputs!139:139) -> 0 | T122: =SUMIF(Inputs!$133:$133,Finance!T$16,Inputs!139:139) -> 0 | U122: =SUMIF(Inputs!$133:$133,Finance!U$16,Inputs!139:139) -> 0 | V122: =SUMIF(Inputs!$133:$133,Finance!V$16,Inputs!139:139) -> 0 | W122: =SUMIF(Inputs!$133:$133,Finance!W$16,Inputs!139:139) -> 0 | X122: =SUMIF(Inputs!$133:$133,Finance!X$16,Inputs!139:139) -> 0 | Y122: =SUMIF(Inputs!$133:$133,Finance!Y$16,Inputs!139:139) -> 0 | Z122: =SUMIF(Inputs!$133:$133,Finance!Z$16,Inputs!139:139) -> 0 | AA122: =SUMIF(Inputs!$133:$133,Finance!AA$16,Inputs!139:139) -> 0 | AB122: =SUMIF(Inputs!$133:$133,Finance!AB$16,Inputs!139:139) -> 0 | AC122: =SUMIF(Inputs!$133:$133,Finance!AC$16,Inputs!139:139) -> 0 | AD122: =SUMIF(Inputs!$133:$133,Finance!AD$16,Inputs!139:139) -> 0 | AE122: =SUMIF(Inputs!$133:$133,Finance!AE$16,Inputs!139:139) -> 0 | AF122: =SUMIF(Inputs!$133:$133,Finance!AF$16,Inputs!139:139) -> 0 | AG122: =SUMIF(Inputs!$133:$133,Finance!AG$16,Inputs!139:139) -> 0 | AH122: =SUMIF(Inputs!$133:$133,Finance!AH$16,Inputs!139:139) -> 0 | AI122: =SUMIF(Inputs!$133:$133,Finance!AI$16,Inputs!139:139) -> 0 | AJ122: =SUMIF(Inputs!$133:$133,Finance!AJ$16,Inputs!139:139) -> 0 | AK122: =SUMIF(Inputs!$133:$133,Finance!AK$16,Inputs!139:139) -> 0 | AL122: =SUMIF(Inputs!$133:$133,Finance!AL$16,Inputs!139:139) -> 0 | AM122: =SUMIF(Inputs!$133:$133,Finance!AM$16,Inputs!139:139) -> 0 | AN122: =SUMIF(Inputs!$133:$133,Finance!AN$16,Inputs!139:139) -> 0 | AO122: =SUMIF(Inputs!$133:$133,Finance!AO$16,Inputs!139:139) -> 0 | AP122: =SUMIF(Inputs!$133:$133,Finance!AP$16,Inputs!139:139) -> 0 | AQ122: =SUMIF(Inputs!$133:$133,Finance!AQ$16,Inputs!139:139) -> 0 | AR122: =SUMIF(Inputs!$133:$133,Finance!AR$16,Inputs!139:139) -> 0 | AS122: =SUMIF(Inputs!$133:$133,Finance!AS$16,Inputs!139:139) -> 0 | AT122: =SUMIF(Inputs!$133:$133,Finance!AT$16,Inputs!139:139) -> 0 | AU122: =SUMIF(Inputs!$133:$133,Finance!AU$16,Inputs!139:139) -> 0 | AV122: =SUMIF(Inputs!$133:$133,Finance!AV$16,Inputs!139:139) -> 0 | AW122: =SUMIF(Inputs!$133:$133,Finance!AW$16,Inputs!139:139) -> 0 | AX122: =SUMIF(Inputs!$133:$133,Finance!AX$16,Inputs!139:139) -> 0
E123: Operation margin - Other facilities | G123: nominal % | K123: =SUMIF(Inputs!$133:$133,Finance!K$16,Inputs!141:141) -> 0 | L123: =SUMIF(Inputs!$133:$133,Finance!L$16,Inputs!141:141) -> 0 | M123: =SUMIF(Inputs!$133:$133,Finance!M$16,Inputs!141:141) -> 0 | N123: =SUMIF(Inputs!$133:$133,Finance!N$16,Inputs!141:141) -> 0 | O123: =SUMIF(Inputs!$133:$133,Finance!O$16,Inputs!141:141) -> 0 | P123: =SUMIF(Inputs!$133:$133,Finance!P$16,Inputs!141:141) -> 0 | Q123: =SUMIF(Inputs!$133:$133,Finance!Q$16,Inputs!141:141) -> 0 | R123: =SUMIF(Inputs!$133:$133,Finance!R$16,Inputs!141:141) -> 0 | S123: =SUMIF(Inputs!$133:$133,Finance!S$16,Inputs!141:141) -> 0 | T123: =SUMIF(Inputs!$133:$133,Finance!T$16,Inputs!141:141) -> 0 | U123: =SUMIF(Inputs!$133:$133,Finance!U$16,Inputs!141:141) -> 0 | V123: =SUMIF(Inputs!$133:$133,Finance!V$16,Inputs!141:141) -> 0.015 | W123: =SUMIF(Inputs!$133:$133,Finance!W$16,Inputs!141:141) -> 0.015 | X123: =SUMIF(Inputs!$133:$133,Finance!X$16,Inputs!141:141) -> 0.015 | Y123: =SUMIF(Inputs!$133:$133,Finance!Y$16,Inputs!141:141) -> 0.015 | Z123: =SUMIF(Inputs!$133:$133,Finance!Z$16,Inputs!141:141) -> 0.015 | AA123: =SUMIF(Inputs!$133:$133,Finance!AA$16,Inputs!141:141) -> 0.01508469945 | AB123: =SUMIF(Inputs!$133:$133,Finance!AB$16,Inputs!141:141) -> 0.016 | AC123: =SUMIF(Inputs!$133:$133,Finance!AC$16,Inputs!141:141) -> 0.016 | AD123: =SUMIF(Inputs!$133:$133,Finance!AD$16,Inputs!141:141) -> 0.016 | AE123: =SUMIF(Inputs!$133:$133,Finance!AE$16,Inputs!141:141) -> 0.016 | AF123: =SUMIF(Inputs!$133:$133,Finance!AF$16,Inputs!141:141) -> 0.01608469945 | AG123: =SUMIF(Inputs!$133:$133,Finance!AG$16,Inputs!141:141) -> 0.017 | AH123: =SUMIF(Inputs!$133:$133,Finance!AH$16,Inputs!141:141) -> 0.017 | AI123: =SUMIF(Inputs!$133:$133,Finance!AI$16,Inputs!141:141) -> 0.017 | AJ123: =SUMIF(Inputs!$133:$133,Finance!AJ$16,Inputs!141:141) -> 0.017 | AK123: =SUMIF(Inputs!$133:$133,Finance!AK$16,Inputs!141:141) -> 0.01708469945 | AL123: =SUMIF(Inputs!$133:$133,Finance!AL$16,Inputs!141:141) -> 0.018 | AM123: =SUMIF(Inputs!$133:$133,Finance!AM$16,Inputs!141:141) -> 0.018 | AN123: =SUMIF(Inputs!$133:$133,Finance!AN$16,Inputs!141:141) -> 0.018 | AO123: =SUMIF(Inputs!$133:$133,Finance!AO$16,Inputs!141:141) -> 0.018 | AP123: =SUMIF(Inputs!$133:$133,Finance!AP$16,Inputs!141:141) -> 0.01808469945 | AQ123: =SUMIF(Inputs!$133:$133,Finance!AQ$16,Inputs!141:141) -> 0.019 | AR123: =SUMIF(Inputs!$133:$133,Finance!AR$16,Inputs!141:141) -> 0.019 | AS123: =SUMIF(Inputs!$133:$133,Finance!AS$16,Inputs!141:141) -> 0.019 | AT123: =SUMIF(Inputs!$133:$133,Finance!AT$16,Inputs!141:141) -> 0 | AU123: =SUMIF(Inputs!$133:$133,Finance!AU$16,Inputs!141:141) -> 0 | AV123: =SUMIF(Inputs!$133:$133,Finance!AV$16,Inputs!141:141) -> 0 | AW123: =SUMIF(Inputs!$133:$133,Finance!AW$16,Inputs!141:141) -> 0 | AX123: =SUMIF(Inputs!$133:$133,Finance!AX$16,Inputs!141:141) -> 0
E125: Total interest rate - Senior Debt | G125: nominal % | K125: =($I$118+K119)*(K$16<>0) -> 0 | L125: =($I$118+L119)*(L$16<>0) -> 0 | M125: 0 | N125: 0 | O125: 0 | P125: 0 | Q125: 0 | R125: 0 | S125: 0 | T125: 0 | U125: 0 | V125: 0.0292152795 | W125: 0.0292152795 | X125: 0.0292152795 | Y125: 0.0292152795 | Z125: 0.0292152795 | AA125: 0.02929997896 | AB125: 0.0302152795 | AC125: 0.0302152795 | AD125: 0.0302152795 | AE125: 0.0302152795 | AF125: 0.03029997896 | AG125: 0.0312152795 | AH125: 0.0312152795 | AI125: 0.0312152795 | AJ125: 0.0312152795 | AK125: 0.03129997896 | AL125: 0.0322152795 | AM125: 0.0322152795 | AN125: 0.0322152795 | AO125: 0.0322152795 | AP125: 0.03229997896 | AQ125: 0.0332152795 | AR125: 0.0332152795 | AS125: 0.0332152795 | AT125: 0 | AU125: 0 | AV125: 0 | AW125: 0 | AX125: 0
E126: Total interest rate - Debt Service Reserve Facility | G126: nominal % | K126: =($I$118+K120)*(K$16<>0) -> 0 | L126: 0 | M126: 0 | N126: 0 | O126: 0 | P126: 0 | Q126: 0 | R126: 0 | S126: 0 | T126: 0 | U126: 0 | V126: 0.02752281596 | W126: 0.02752281596 | X126: 0.02752281596 | Y126: 0.02752281596 | Z126: 0.02752281596 | AA126: 0.02760751542 | AB126: 0.02852281596 | AC126: 0.02852281596 | AD126: 0.02852281596 | AE126: 0.02852281596 | AF126: 0.02860751542 | AG126: 0.02952281596 | AH126: 0.02952281596 | AI126: 0.02952281596 | AJ126: 0.02952281596 | AK126: 0.02960751542 | AL126: 0.03052281596 | AM126: 0.03052281596 | AN126: 0.03052281596 | AO126: 0.03052281596 | AP126: 0.03060751542 | AQ126: 0.03152281596 | AR126: 0.03152281596 | AS126: 0.03152281596 | AT126: 0 | AU126: 0 | AV126: 0 | AW126: 0 | AX126: 0
E127: Total interest rate - Cap and Floor Liquidity Facility | G127: nominal % | K127: =($I$118+K121)*(K$16<>0) -> 0 | L127: 0 | M127: 0 | N127: 0 | O127: 0 | P127: 0 | Q127: 0 | R127: 0 | S127: 0 | T127: 0 | U127: 0 | V127: 0.02754908322 | W127: 0.02754908322 | X127: 0.02754908322 | Y127: 0.02754908322 | Z127: 0.02754908322 | AA127: 0.02763378267 | AB127: 0.02854908322 | AC127: 0.02854908322 | AD127: 0.02854908322 | AE127: 0.02854908322 | AF127: 0.02863378267 | AG127: 0.02954908322 | AH127: 0.02954908322 | AI127: 0.02954908322 | AJ127: 0.02954908322 | AK127: 0.02963378267 | AL127: 0.03054908322 | AM127: 0.03054908322 | AN127: 0.03054908322 | AO127: 0.03054908322 | AP127: 0.03063378267 | AQ127: 0.03154908322 | AR127: 0.03154908322 | AS127: 0.03154908322 | AT127: 0 | AU127: 0 | AV127: 0 | AW127: 0 | AX127: 0
E128: Total interest rate - Standby Debt Facility | G128: nominal % | K128: =($I$118+K122)*(K$16<>0) -> 0 | L128: 0 | M128: 0 | N128: 0 | O128: 0 | P128: 0 | Q128: 0 | R128: 0 | S128: 0 | T128: 0 | U128: 0 | V128: 0.0130107795 | W128: 0.0130107795 | X128: 0.0130107795 | Y128: 0.0130107795 | Z128: 0.0130107795 | AA128: 0.0130107795 | AB128: 0.0130107795 | AC128: 0.0130107795 | AD128: 0.0130107795 | AE128: 0.0130107795 | AF128: 0.0130107795 | AG128: 0.0130107795 | AH128: 0.0130107795 | AI128: 0.0130107795 | AJ128: 0.0130107795 | AK128: 0.0130107795 | AL128: 0.0130107795 | AM128: 0.0130107795 | AN128: 0.0130107795 | AO128: 0.0130107795 | AP128: 0.0130107795 | AQ128: 0.0130107795 | AR128: 0.0130107795 | AS128: 0.0130107795 | AT128: 0 | AU128: 0 | AV128: 0 | AW128: 0 | AX128: 0
E129: Total interest rate - Other facilities | G129: nominal % | K129: =($I$118+K123)*(K$16<>0) -> 0 | L129: 0 | M129: 0 | N129: 0 | O129: 0 | P129: 0 | Q129: 0 | R129: 0 | S129: 0 | T129: 0 | U129: 0 | V129: 0.0280107795 | W129: 0.0280107795 | X129: 0.0280107795 | Y129: 0.0280107795 | Z129: 0.0280107795 | AA129: 0.02809547896 | AB129: 0.0290107795 | AC129: 0.0290107795 | AD129: 0.0290107795 | AE129: 0.0290107795 | AF129: 0.02909547896 | AG129: 0.0300107795 | AH129: 0.0300107795 | AI129: 0.0300107795 | AJ129: 0.0300107795 | AK129: 0.03009547896 | AL129: 0.0310107795 | AM129: 0.0310107795 | AN129: 0.0310107795 | AO129: 0.0310107795 | AP129: 0.03109547896 | AQ129: 0.0320107795 | AR129: 0.0320107795 | AS129: 0.0320107795 | AT129: 0 | AU129: 0 | AV129: 0 | AW129: 0 | AX129: 0
E131: Commitment fee - Senior Debt | G131: % of applicable margin | I131: =Inputs!I95 -> 0.35
E132: Commitment fee - Debt Service Reserve Facility | G132: % of applicable margin | I132: =Inputs!I103 -> 0.35
E133: Commitment fee - Cap and Floor Liquidity Facility | G133: % of applicable margin | I133: =Inputs!I109 -> 0.35
E134: Commitment fee - Standby Debt Facility | G134: % of applicable margin | I134: =Inputs!I114 -> 0.35
E135: Commitment fee - Other facilities | G135: % of applicable margin | I135: =Inputs!I125 -> 0.35
E137: Interest payable - Senior Debt | G137: =CONCATENATE(Inputs!$I$9,"m nominal prices") -> £m nominal prices | K137: =SUM(K63:K64)*K125 -> 0 | L137: =SUM(L63:L64)*L125 -> 0 | M137: 0 | N137: 0 | O137: 0 | P137: 0 | Q137: 0 | R137: 0 | S137: 0 | T137: 0 | U137: 0 | V137: =SUM(V63:V64)*V125 -> 7.394810864 | W137: 7.394810864 | X137: 7.251121397 | Y137: 7.070865567 | Z137: 6.878253288 | AA137: 6.67880356 | AB137: 6.647422835 | AC137: 6.402552948 | AD137: 6.188301291 | AE137: 5.914495036 | AF137: 5.606229539 | AG137: 5.428011042 | AH137: 5.058005257 | AI137: 4.68801209 | AJ137: 4.271711283 | AK137: 3.870790724 | AL137: 3.611013234 | AM137: 3.236917959 | AN137: 2.778974414 | AO137: 2.307014586 | AP137: 1.805554337 | AQ137: 1.328884081 | AR137: 0.7533463295 | AS137: 0.1666405988 | AT137: 0 | AU137: 0 | AV137: 0 | AW137: 0 | AX137: 0
E138: Interest payable - Ancillary Facilities | G138: =CONCATENATE(Inputs!$I$9,"m nominal prices") -> £m nominal prices | K138: =$I$70*K127 -> 0 | L138: =$I$70*L127 -> 0 | M138: 0 | N138: 0 | O138: 0 | P138: 0 | Q138: 0 | R138: 0 | S138: 0 | T138: 0 | U138: 0 | V138: 0 | W138: 0 | X138: 0 | Y138: 0 | Z138: 0 | AA138: 0 | AB138: 0 | AC138: 0 | AD138: 0 | AE138: 0 | AF138: 0 | AG138: 0 | AH138: 0 | AI138: 0 | AJ138: 0 | AK138: 0 | AL138: 0 | AM138: 0 | AN138: 0 | AO138: 0 | AP138: 0 | AQ138: 0 | AR138: 0 | AS138: 0 | AT138: 0 | AU138: 0 | AV138: 0 | AW138: 0 | AX138: 0
E139: Commitment fee payable - Ancillary Facilities | G139: =CONCATENATE(Inputs!$I$9,"m nominal prices") -> £m nominal prices | K139: =($I$68*(K126-$I$118)*$I$132+($I$69-$I$70)*(K127-$I$118)*$I$133+$I$74*(K129-$I$118)*$I$135)*(K$16<>0) -> 0 | L139: =($I$68*(L126-$I$118)*$I$132+($I$69-$I$70)*(L127-$I$118)*$I$133+$I$74*(L129-$I$118)*$I$135)*(L$16<>0) -> 0 | M139: 0 | N139: 0 | O139: 0 | P139: 0 | Q139: 0 | R139: =($I$68*(R126-$I$118)*$I$132+($I$69-$I$70)*(R127-$I$118)*$I$133+$I$74*(R129-$I$118)*$I$135)*(R$16<>0) -> 0 | S139: 0 | T139: 0 | U139: 0 | V139: 0.2284216893 | W139: 0.2284216893 | X139: 0.2284216893 | Y139: 0.2284216893 | Z139: 0.2284216893 | AA139: 0.2297411658 | AB139: 0.2440000243 | AC139: 0.2440000243 | AD139: 0.2440000243 | AE139: 0.2440000243 | AF139: 0.2453195007 | AG139: 0.2595783592 | AH139: 0.2595783592 | AI139: 0.2595783592 | AJ139: 0.2595783592 | AK139: 0.2608978357 | AL139: 0.2751566942 | AM139: 0.2751566942 | AN139: 0.2751566942 | AO139: 0.2751566942 | AP139: 0.2764761706 | AQ139: 0.2907350291 | AR139: 0.2907350291 | AS139: 0.2907350291 | AT139: 0 | AU139: 0 | AV139: 0 | AW139: 0 | AX139: 0
E140: Financial expenses during operation | G140: =CONCATENATE(Inputs!$I$9,"m nominal prices") -> £m nominal prices | K140: =SUM(K137:K139) -> 0 | L140: =SUM(L137:L139) -> 0 | M140: 0 | N140: 0 | O140: 0 | P140: 0 | Q140: 0 | R140: 0 | S140: 0 | T140: 0 | U140: 0 | V140: =SUM(V137:V139) -> 7.623232553 | W140: 7.623232553 | X140: 7.479543086 | Y140: 7.299287257 | Z140: 7.106674977 | AA140: 6.908544726 | AB140: 6.891422859 | AC140: 6.646552972 | AD140: 6.432301315 | AE140: 6.15849506 | AF140: 5.851549039 | AG140: 5.687589401 | AH140: 5.317583617 | AI140: 4.947590449 | AJ140: 4.531289642 | AK140: 4.131688559 | AL140: 3.886169929 | AM140: 3.512074653 | AN140: 3.054131108 | AO140: 2.58217128 | AP140: 2.082030508 | AQ140: 1.61961911 | AR140: 1.044081359 | AS140: 0.4573756279 | AT140: 0 | AU140: 0 | AV140: 0 | AW140: 0 | AX140: 0
C142: Debt service
E144: Principal repayment | G144: =CONCATENATE(Inputs!$I$9,"m nominal prices") -> £m nominal prices | K144: =-K65 -> 0 | L144: =-L65 -> 0 | M144: 0 | N144: 0 | O144: 0 | P144: 0 | Q144: 0 | R144: 0 | S144: 0 | T144: 0 | U144: 0 | V144: 0 | W144: 4.918298559 | X144: 6.169916312 | Y144: 6.592861096 | Z144: 7.487746341 | AA144: 7.943647457 | AB144: 8.104174152 | AC144: 7.090838153 | AD144: 9.061847506 | AE144: 10.72096475 | AF144: 11.13465132 | AG144: 11.85335485 | AH144: 11.85295065 | AI144: 13.33644336 | AJ144: 13.1792871 | AK144: 11.57743909 | AL144: 11.61235542 | AM144: 14.21510389 | AN144: 14.65018572 | AO144: 15.71288279 | AP144: 15.89133538 | AQ144: 17.32749987 | AR144: 17.66373005 | AS144: 5.016986197 | AT144: 0 | AU144: 0 | AV144: 0 | AW144: 0 | AX144: 0
E145: Financial expenses during operation | G145: =CONCATENATE(Inputs!$I$9,"m nominal prices") -> £m nominal prices | K145: =K140 -> 0 | L145: =L140 -> 0 | M145: 0 | N145: 0 | O145: 0 | P145: 0 | Q145: 0 | R145: 0 | S145: 0 | T145: 0 | U145: 0 | V145: 7.623232553 | W145: 7.623232553 | X145: 7.479543086 | Y145: 7.299287257 | Z145: 7.106674977 | AA145: 6.908544726 | AB145: 6.891422859 | AC145: 6.646552972 | AD145: 6.432301315 | AE145: 6.15849506 | AF145: 5.851549039 | AG145: 5.687589401 | AH145: 5.317583617 | AI145: 4.947590449 | AJ145: 4.531289642 | AK145: 4.131688559 | AL145: 3.886169929 | AM145: 3.512074653 | AN145: 3.054131108 | AO145: 2.58217128 | AP145: 2.082030508 | AQ145: 1.61961911 | AR145: 1.044081359 | AS145: 0.4573756279 | AT145: 0 | AU145: 0 | AV145: 0 | AW145: 0 | AX145: 0
E146: Total debt service | G146: =CONCATENATE(Inputs!$I$9,"m nominal prices") -> £m nominal prices | K146: =SUM(K144:K145) -> 0 | L146: =SUM(L144:L145) -> 0 | M146: 0 | N146: 0 | O146: 0 | P146: 0 | Q146: 0 | R146: 0 | S146: 0 | T146: 0 | U146: 0 | V146: 7.623232553 | W146: 12.54153111 | X146: 13.6494594 | Y146: 13.89214835 | Z146: 14.59442132 | AA146: 14.85219218 | AB146: 14.99559701 | AC146: 13.73739112 | AD146: 15.49414882 | AE146: 16.87945981 | AF146: 16.98620036 | AG146: 17.54094425 | AH146: 17.17053426 | AI146: 18.28403381 | AJ146: 17.71057674 | AK146: 15.70912765 | AL146: 15.49852535 | AM146: 17.72717854 | AN146: 17.70431682 | AO146: 18.29505407 | AP146: 17.97336588 | AQ146: 18.94711898 | AR146: 18.70781141 | AS146: 5.474361825 | AT146: 0 | AU146: 0 | AV146: 0 | AW146: 0 | AX146: 0
E148: DSCR sizing | G148: =Inputs!G87 -> DSCRx | I148: =Inputs!I87 -> 1.2
E150: Total debt service including buffer | G150: =CONCATENATE(Inputs!$I$9,"m nominal prices") -> £m nominal prices | K150: =K146*$I$148 -> 0 | L150: =L146*$I$148 -> 0 | M150: 0 | N150: 0 | O150: 0 | P150: 0 | Q150: 0 | R150: 0 | S150: 0 | T150: 0 | U150: 0 | V150: 9.147879064 | W150: 15.04983734 | X150: 16.37935128 | Y150: 16.67057802 | Z150: 17.51330558 | AA150: 17.82263062 | AB150: 17.99471641 | AC150: 16.48486935 | AD150: 18.59297859 | AE150: 20.25535177 | AF150: 20.38344043 | AG150: 21.0491331 | AH150: 20.60464112 | AI150: 21.94084058 | AJ150: 21.25269209 | AK150: 18.85095318 | AL150: 18.59823042 | AM150: 21.27261425 | AN150: 21.24518019 | AO150: 21.95406488 | AP150: 21.56803906 | AQ150: 22.73654277 | AR150: 22.44937369 | AS150: 6.56923419 | AT150: 0 | AU150: 0 | AV150: 0 | AW150: 0 | AX150: 0
E151: Total debt service including buffer | G151: =Inputs!$I$11 -> £m 20/21 prices | K151: =K150/Inputs!K$32 -> 0 | L151: =L150/Inputs!L$32 -> 0 | M151: =M150/Inputs!M$32 -> 0 | N151: =N150/Inputs!N$32 -> 0 | O151: =O150/Inputs!O$32 -> 0 | P151: =P150/Inputs!P$32 -> 0 | Q151: =Q150/Inputs!Q$32 -> 0 | R151: =R150/Inputs!R$32 -> 0 | S151: =S150/Inputs!S$32 -> 0 | T151: =T150/Inputs!T$32 -> 0 | U151: =U150/Inputs!U$32 -> 0 | V151: =V150/Inputs!V$32 -> 7.780561987 | W151: =W150/Inputs!W$32 -> 12.27499534 | X151: =X150/Inputs!X$32 -> 12.81106411 | Y151: =Y150/Inputs!Y$32 -> 12.50368844 | Z151: =Z150/Inputs!Z$32 -> 12.59663624 | AA151: =AA150/Inputs!AA$32 -> 12.29298202 | AB151: =AB150/Inputs!AB$32 -> 11.90225976 | AC151: =AC150/Inputs!AC$32 -> 10.45608017 | AD151: =AD150/Inputs!AD$32 -> 11.30918586 | AE151: =AE150/Inputs!AE$32 -> 11.8146576 | AF151: =AF150/Inputs!AF$32 -> 11.40139038 | AG151: =AG150/Inputs!AG$32 -> 11.29050895 | AH151: =AH150/Inputs!AH$32 -> 10.59847396 | AI151: =AI150/Inputs!AI$32 -> 10.82257295 | AJ151: =AJ150/Inputs!AJ$32 -> 10.05287281 | AK151: =AK150/Inputs!AK$32 -> 8.550835072 | AL151: =AL150/Inputs!AL$32 -> 8.089949611 | AM151: =AM150/Inputs!AM$32 -> 8.873481227 | AN151: =AN150/Inputs!AN$32 -> 8.498309947 | AO151: =AO150/Inputs!AO$32 -> 8.42143437 | AP151: =AP150/Inputs!AP$32 -> 7.933791152 | AQ151: =AQ150/Inputs!AQ$32 -> 8.020353463 | AR151: =AR150/Inputs!AR$32 -> 7.594029621 | AS151: =AS150/Inputs!AS$32 -> 2.130991805 | AT151: =AT150/Inputs!AT$32 -> 0 | AU151: =AU150/Inputs!AU$32 -> 0 | AV151: =AV150/Inputs!AV$32 -> 0 | AW151: =AW150/Inputs!AW$32 -> 0 | AX151: =AX150/Inputs!AX$32 -> 0
C153: DSRA calculation
E155: DSRA pre-funding | K155: =Inputs!$I$100*Finance!K12*(Inputs!$I$127=2) -> 0 | L155: =Inputs!$I$100*Finance!L12*(Inputs!$I$127=2) -> 0 | M155: =Inputs!$I$100*Finance!M12*(Inputs!$I$127=2) -> 0 | N155: =Inputs!$I$100*Finance!N12*(Inputs!$I$127=2) -> 0 | O155: =Inputs!$I$100*Finance!O12*(Inputs!$I$127=2) -> 0 | P155: =Inputs!$I$100*Finance!P12*(Inputs!$I$127=2) -> 0 | Q155: =Inputs!$I$100*Finance!Q12*(Inputs!$I$127=2) -> 0 | R155: =Inputs!$I$100*Finance!R12*(Inputs!$I$127=2) -> 0 | S155: =Inputs!$I$100*Finance!S12*(Inputs!$I$127=2) -> 0 | T155: =Inputs!$I$100*Finance!T12*(Inputs!$I$127=2) -> 0 | U155: =Inputs!$I$100*Finance!U12*(Inputs!$I$127=2) -> 0 | V155: =Inputs!$I$100*Finance!V12*(Inputs!$I$127=2) -> 0 | W155: =Inputs!$I$100*Finance!W12*(Inputs!$I$127=2) -> 0 | X155: =Inputs!$I$100*Finance!X12*(Inputs!$I$127=2) -> 0 | Y155: =Inputs!$I$100*Finance!Y12*(Inputs!$I$127=2) -> 0 | Z155: =Inputs!$I$100*Finance!Z12*(Inputs!$I$127=2) -> 0 | AA155: =Inputs!$I$100*Finance!AA12*(Inputs!$I$127=2) -> 0 | AB155: =Inputs!$I$100*Finance!AB12*(Inputs!$I$127=2) -> 0 | AC155: =Inputs!$I$100*Finance!AC12*(Inputs!$I$127=2) -> 0 | AD155: =Inputs!$I$100*Finance!AD12*(Inputs!$I$127=2) -> 0 | AE155: =Inputs!$I$100*Finance!AE12*(Inputs!$I$127=2) -> 0 | AF155: =Inputs!$I$100*Finance!AF12*(Inputs!$I$127=2) -> 0 | AG155: =Inputs!$I$100*Finance!AG12*(Inputs!$I$127=2) -> 0 | AH155: =Inputs!$I$100*Finance!AH12*(Inputs!$I$127=2) -> 0 | AI155: =Inputs!$I$100*Finance!AI12*(Inputs!$I$127=2) -> 0 | AJ155: =Inputs!$I$100*Finance!AJ12*(Inputs!$I$127=2) -> 0 | AK155: =Inputs!$I$100*Finance!AK12*(Inputs!$I$127=2) -> 0 | AL155: =Inputs!$I$100*Finance!AL12*(Inputs!$I$127=2) -> 0 | AM155: =Inputs!$I$100*Finance!AM12*(Inputs!$I$127=2) -> 0 | AN155: =Inputs!$I$100*Finance!AN12*(Inputs!$I$127=2) -> 0 | AO155: =Inputs!$I$100*Finance!AO12*(Inputs!$I$127=2) -> 0 | AP155: =Inputs!$I$100*Finance!AP12*(Inputs!$I$127=2) -> 0 | AQ155: =Inputs!$I$100*Finance!AQ12*(Inputs!$I$127=2) -> 0 | AR155: =Inputs!$I$100*Finance!AR12*(Inputs!$I$127=2) -> 0 | AS155: =Inputs!$I$100*Finance!AS12*(Inputs!$I$127=2) -> 0 | AT155: =Inputs!$I$100*Finance!AT12*(Inputs!$I$127=2) -> 0 | AU155: =Inputs!$I$100*Finance!AU12*(Inputs!$I$127=2) -> 0 | AV155: =Inputs!$I$100*Finance!AV12*(Inputs!$I$127=2) -> 0 | AW155: =Inputs!$I$100*Finance!AW12*(Inputs!$I$127=2) -> 0 | AX155: =Inputs!$I$100*Finance!AX12*(Inputs!$I$127=2) -> 0
B157: End of sheet

Sheet Op Rav
A1: Op RAV | H1: Licence
E2: Parameter | G2: Units | H2: Terminology | I2: Constant | K2: Annual values
E3: Project year | K3: Year 1 | L3: Year 2 | M3: Year 3 | N3: Year 4 | O3: Year 5 | P3: Year 6 | Q3: Year 7 | R3: Year 8 | S3: Year 9 | T3: Year 10 | U3: Year 11 | V3: Year 12 | W3: Year 13 | X3: Year 14 | Y3: Year 15 | Z3: Year 16 | AA3: Year 17 | AB3: Year 18 | AC3: Year 19 | AD3: Year 20 | AE3: Year 21 | AF3: Year 22 | AG3: Year 23 | AH3: Year 24 | AI3: Year 25
B5: RAV
C7: Operational
E9: Opening operational RAV (before transfers) | G9: =Inputs!$I$11 -> £m 20/21 prices | K9: =J15 -> 0 | L9: 218.1362806 | M9: 209.0472689 | N9: 199.9582572 | O9: 190.8692456 | P9: 181.7802339 | Q9: 172.6912222 | R9: 165.3482946 | S9: 156.1622782 | T9: 146.9762618 | U9: 137.7902455 | V9: 128.6042291 | W9: 119.4182127 | X9: 110.2321964 | Y9: 101.04618 | Z9: 93.60624774 | AA9: 85.99170705 | AB9: 76.43707293 | AC9: 66.88243882 | AD9: 57.3278047 | AE9: 47.77317058 | AF9: 38.21853647 | AG9: 28.66390235 | AH9: 21.29187334 | AI9: 10.64593667
E10: Transfers of transaction costs | G10: =Inputs!$I$11 -> £m 20/21 prices | K10: =-SUM(Finance!K49:AX49) -> 10.30254975
E11: Transfers of pre-operational RAV | G11: =Inputs!$I$11 -> £m 20/21 prices | K11: =-SUM('Pre Op RAV'!K25:AX25) -> 216.9227426
E12: Opening operational RAV (after transfers) | G12: =Inputs!$I$11 -> £m 20/21 prices | K12: =SUM(K9:K11) -> 227.2252923 | L12: =SUM(L9:L11) -> 218.1362806 | M12: =SUM(M9:M11) -> 209.0472689 | N12: 199.9582572 | O12: 190.8692456 | P12: 181.7802339 | Q12: 172.6912222 | R12: 165.3482946 | S12: 156.1622782 | T12: 146.9762618 | U12: 137.7902455 | V12: 128.6042291 | W12: 119.4182127 | X12: 110.2321964 | Y12: 101.04618 | Z12: 93.60624774 | AA12: 85.99170705 | AB12: 76.43707293 | AC12: 66.88243882 | AD12: 57.3278047 | AE12: 47.77317058 | AF12: 38.21853647 | AG12: 28.66390235 | AH12: 21.29187334 | AI12: 10.64593667
E13: Replacement Capex | G13: =Inputs!$I$11 -> £m 20/21 prices | K13: =Inputs!K59 -> 0 | L13: =Inputs!L59 -> 0 | M13: =Inputs!M59 -> 0 | N13: =Inputs!N59 -> 0 | O13: =Inputs!O59 -> 0 | P13: =Inputs!P59 -> 0 | Q13: =Inputs!Q59 -> 1.746084089 | R13: =Inputs!R59 -> 0 | S13: =Inputs!S59 -> 0 | T13: =Inputs!T59 -> 0 | U13: =Inputs!U59 -> 0 | V13: =Inputs!V59 -> 0 | W13: =Inputs!W59 -> 0 | X13: =Inputs!X59 -> 0 | Y13: =Inputs!Y59 -> 1.746084089 | Z13: =Inputs!Z59 -> 1.746084089 | AA13: =Inputs!AA59 -> 0 | AB13: =Inputs!AB59 -> 0 | AC13: =Inputs!AC59 -> 0 | AD13: =Inputs!AD59 -> 0 | AE13: =Inputs!AE59 -> 0 | AF13: =Inputs!AF59 -> 0 | AG13: =Inputs!AG59 -> 2.182605111 | AH13: =Inputs!AH59 -> 0 | AI13: =Inputs!AI59 -> 0
E14: Depreciation (negative) | G14: =Inputs!$I$11 -> £m 20/21 prices | K14: =- K25 -> -9.089011693 | L14: =- L25 -> -9.089011693 | M14: =- M25 -> -9.089011693 | N14: -9.089011693 | O14: -9.089011693 | P14: -9.089011693 | Q14: -9.089011693 | R14: -9.186016365 | S14: -9.186016365 | T14: -9.186016365 | U14: -9.186016365 | V14: -9.186016365 | W14: -9.186016365 | X14: -9.186016365 | Y14: -9.186016365 | Z14: -9.360624774 | AA14: -9.554634117 | AB14: -9.554634117 | AC14: -9.554634117 | AD14: -9.554634117 | AE14: -9.554634117 | AF14: -9.554634117 | AG14: -9.554634117 | AH14: -10.64593667 | AI14: -10.64593667
E15: Closing operational RAV | G15: =Inputs!$I$11 -> £m 20/21 prices | K15: =SUM(K12:K14) -> 218.1362806 | L15: 209.0472689 | M15: 199.9582572 | N15: 190.8692456 | O15: 181.7802339 | P15: 172.6912222 | Q15: 165.3482946 | R15: 156.1622782 | S15: 146.9762618 | T15: 137.7902455 | U15: 128.6042291 | V15: 119.4182127 | W15: 110.2321964 | X15: 101.04618 | Y15: 93.60624774 | Z15: 85.99170705 | AA15: 76.43707293 | AB15: 66.88243882 | AC15: 57.3278047 | AD15: 47.77317058 | AE15: 38.21853647 | AF15: 28.66390235 | AG15: 21.29187334 | AH15: 10.64593667 | AI15: 0
E17: Average operational RAV | G17: =Inputs!$I$11 -> £m 20/21 prices | K17: =AVERAGE(K12, K15) -> 222.6807865 | L17: =AVERAGE(L12, L15) -> 213.5917748 | M17: 204.5027631 | N17: 195.4137514 | O17: 186.3247397 | P17: 177.235728 | Q17: 169.0197584 | R17: 160.7552864 | S17: 151.56927 | T17: 142.3832537 | U17: 133.1972373 | V17: 124.0112209 | W17: 114.8252046 | X17: 105.6391882 | Y17: 97.32621387 | Z17: 89.79897739 | AA17: =AVERAGE(AA12, AA15) -> 81.21438999 | AB17: 71.65975588 | AC17: 62.10512176 | AD17: 52.55048764 | AE17: 42.99585353 | AF17: 33.44121941 | AG17: 24.97788785 | AH17: 15.96890501 | AI17: 5.322968336
B19: Operational RAV depreciation
E21: Number of operational years | G21: full years | I21: =Inputs!I155 -> 25
E22: Years remaining until end of operational period | G22: full years | K22: =I21 -> 25 | L22: =+K22-1 -> 24 | M22: =+L22-1 -> 23 | N22: 22 | O22: 21 | P22: 20 | Q22: 19 | R22: 18 | S22: 17 | T22: 16 | U22: 15 | V22: 14 | W22: 13 | X22: 12 | Y22: 11 | Z22: 10 | AA22: 9 | AB22: 8 | AC22: 7 | AD22: 6 | AE22: 5 | AF22: 4 | AG22: 3 | AH22: 2 | AI22: 1
E23: Year is before end of operational period | G23: flag | K23: =K22 > 0 -> TRUE | L23: TRUE | M23: TRUE | N23: TRUE | O23: TRUE | P23: TRUE | Q23: TRUE | R23: TRUE | S23: TRUE | T23: TRUE | U23: TRUE | V23: TRUE | W23: TRUE | X23: TRUE | Y23: TRUE | Z23: TRUE | AA23: TRUE | AB23: TRUE | AC23: TRUE | AD23: TRUE | AE23: TRUE | AF23: TRUE | AG23: TRUE | AH23: TRUE | AI23: TRUE
E25: RAV depreciation | G25: =Inputs!$I$11 -> £m 20/21 prices | K25: =IF(K23, IF(K22=1,SUM(K12:K13),K12 / K22), 0) -> 9.089011693 | L25: =IF(L23, IF(L22=1,SUM(L12:L13),L12 / L22), 0) -> 9.089011693 | M25: 9.089011693 | N25: 9.089011693 | O25: 9.089011693 | P25: 9.089011693 | Q25: 9.089011693 | R25: 9.186016365 | S25: 9.186016365 | T25: 9.186016365 | U25: 9.186016365 | V25: 9.186016365 | W25: 9.186016365 | X25: 9.186016365 | Y25: 9.186016365 | Z25: 9.360624774 | AA25: 9.554634117 | AB25: 9.554634117 | AC25: 9.554634117 | AD25: 9.554634117 | AE25: 9.554634117 | AF25: 9.554634117 | AG25: 9.554634117 | AH25: 10.64593667 | AI25: 10.64593667
E27: Depreciation equal to additions | G27: check | I27: =IF(ABS(SUM('Pre Op RAV'!K20:AX23,Finance!K43:AX46,Finance!K48:AX48,K13:AI13)-SUM(K25:AI25))<0.00000001,"TRUE","FALSE") -> TRUE
B29: Operational RAV return
E31: Cap return rate | G31: =Inputs!G68 -> real annual % | I31: =Inputs!I68 -> 0.081
E32: Floor return rate | G32: =Inputs!G69 -> real annual % | I32: =Inputs!I69 -> -0.0084
E34: Opening operational RAV (after transfers) | G34: =Inputs!$I$11 -> £m 20/21 prices | K34: =K12 -> 227.2252923 | L34: 218.1362806 | M34: 209.0472689 | N34: 199.9582572 | O34: 190.8692456 | P34: 181.7802339 | Q34: 172.6912222 | R34: 165.3482946 | S34: 156.1622782 | T34: 146.9762618 | U34: 137.7902455 | V34: 128.6042291 | W34: 119.4182127 | X34: 110.2321964 | Y34: 101.04618 | Z34: 93.60624774 | AA34: 85.99170705 | AB34: 76.43707293 | AC34: 66.88243882 | AD34: 57.3278047 | AE34: 47.77317058 | AF34: 38.21853647 | AG34: 28.66390235 | AH34: 21.29187334 | AI34: 10.64593667
E35: Closing operational RAV | G35: =Inputs!$I$11 -> £m 20/21 prices | K35: =K15 -> 218.1362806 | L35: 209.0472689 | M35: 199.9582572 | N35: 190.8692456 | O35: 181.7802339 | P35: 172.6912222 | Q35: 165.3482946 | R35: 156.1622782 | S35: 146.9762618 | T35: 137.7902455 | U35: 128.6042291 | V35: 119.4182127 | W35: 110.2321964 | X35: 101.04618 | Y35: 93.60624774 | Z35: 85.99170705 | AA35: 76.43707293 | AB35: 66.88243882 | AC35: 57.3278047 | AD35: 47.77317058 | AE35: 38.21853647 | AF35: 28.66390235 | AG35: 21.29187334 | AH35: 10.64593667 | AI35: 0
E37: NPV neutral return base (cap) | G37: =Inputs!$I$11 -> £m 20/21 prices | K37: =0.5 * K$34 + 0.5 * K$35 / (1 + $I31) -> 214.5082431 | L37: =0.5 * L$34 + 0.5 * L$35 / (1 + $I31) -> 205.7597541 | M37: 197.011265 | N37: 188.262776 | O37: 179.5142869 | P37: 170.7657979 | Q37: 162.8249333 | R37: 154.9046182 | S37: 146.0627588 | T37: 137.2208994 | U37: 128.37904 | V37: 119.5371806 | W37: 110.6953212 | X37: 101.8534617 | Y37: 93.81922679 | Z37: 86.57727144 | AA37: 78.35065137 | AB37: 69.15398458 | AC37: 59.95731779 | AD37: 50.760651 | AE37: 41.56398421 | AF37: 32.36731742 | AG37: 24.18018121 | AH37: 15.57005169 | AI37: 5.322968336
E38: NPV neutral return base (floor) | G38: =Inputs!$I$11 -> £m 20/21 prices | K38: =0.5 * K$34 + 0.5 * K$35 / (1 + $I32) -> 223.6047199 | L38: 214.477211 | M38: 205.3497021 | N38: 196.2221931 | O38: 187.0946842 | P38: 177.9671753 | Q38: 169.7201041 | R38: 161.416724 | S38: 152.1917996 | T38: 142.9668751 | U38: 133.7419506 | V38: 124.5170262 | W38: 115.2921017 | X38: 106.0671773 | Y38: 97.72269052 | Z38: 90.16320205 | AA38: 81.53814524 | AB38: 71.94304172 | AC38: 62.3479382 | AD38: 52.75283467 | AE38: 43.15773115 | AF38: 33.56262763 | AG38: 25.06807126 | AH38: 16.01399671 | AI38: 5.322968336
E40: Return (cap) | G40: =Inputs!$I$11 -> £m 20/21 prices | K40: =K37 * $I31 -> 17.37516769 | L40: 16.66654008 | M40: 15.95791247 | N40: 15.24928485 | O40: 14.54065724 | P40: 13.83202963 | Q40: 13.18881959 | R40: 12.54727408 | S40: 11.83108346 | T40: 11.11489285 | U40: 10.39870224 | V40: 9.682511627 | W40: 8.966321014 | X40: 8.250130401 | Y40: 7.59935737 | Z40: 7.012758987 | AA40: 6.346402761 | AB40: 5.601472751 | AC40: 4.856542741 | AD40: 4.111612731 | AE40: 3.366682721 | AF40: 2.621752711 | AG40: 1.958594678 | AH40: 1.261174187 | AI40: 0.4311604352
E41: Return (floor) | G41: =Inputs!$I$11 -> £m 20/21 prices | K41: =K38 * $I32 -> -1.878279647 | L41: -1.801608572 | M41: -1.724937497 | N41: -1.648266422 | O41: -1.571595347 | P41: -1.494924273 | Q41: -1.425648875 | R41: -1.355900482 | S41: -1.278411116 | T41: -1.200921751 | U41: -1.123432385 | V41: -1.04594302 | W41: -0.9684536544 | X41: -0.890964289 | Y41: -0.8208706004 | Z41: -0.7573708972 | AA41: -0.68492042 | AB41: -0.6043215505 | AC41: -0.5237226809 | AD41: -0.4431238113 | AE41: -0.3625249417 | AF41: -0.2819260721 | AG41: -0.2105717986 | AH41: -0.1345175724 | AI41: -0.04471293402
B43: End of sheet

Sheet Allowances Cap
A1: Allowances Cap | H1: Licence
E2: Parameter | G2: Units | H2: Terminology | I2: Constant | K2: Annual values
E3: Project year | K3: Year 1 | L3: Year 2 | M3: Year 3 | N3: Year 4 | O3: Year 5 | P3: Year 6 | Q3: Year 7 | R3: Year 8 | S3: Year 9 | T3: Year 10 | U3: Year 11 | V3: Year 12 | W3: Year 13 | X3: Year 14 | Y3: Year 15 | Z3: Year 16 | AA3: Year 17 | AB3: Year 18 | AC3: Year 19 | AD3: Year 20 | AE3: Year 21 | AF3: Year 22 | AG3: Year 23 | AH3: Year 24 | AI3: Year 25
E4: Year | K4: 1 | L4: =+K4+1 -> 2 | M4: =+L4+1 -> 3 | N4: 4 | O4: 5 | P4: 6 | Q4: 7 | R4: 8 | S4: 9 | T4: 10 | U4: 11 | V4: 12 | W4: 13 | X4: 14 | Y4: 15 | Z4: 16 | AA4: 17 | AB4: 18 | AC4: 19 | AD4: 20 | AE4: 21 | AF4: 22 | AG4: 23 | AH4: 24 | AI4: 25
B6: Unprofiled allowances except tax (cap)
E8: Controllable Opex | G8: =Inputs!$I$11 -> £m 20/21 prices | K8: =Inputs!K61 -> 4.827075555 | L8: =Inputs!L61 -> 4.827075555 | M8: =Inputs!M61 -> 4.827075555 | N8: =Inputs!N61 -> 4.827075555 | O8: =Inputs!O61 -> 4.827075555 | P8: =Inputs!P61 -> 4.827075555 | Q8: =Inputs!Q61 -> 4.827075555 | R8: =Inputs!R61 -> 4.827075555 | S8: =Inputs!S61 -> 4.827075555 | T8: =Inputs!T61 -> 4.827075555 | U8: =Inputs!U61 -> 4.827075555 | V8: =Inputs!V61 -> 4.827075555 | W8: =Inputs!W61 -> 4.827075555 | X8: =Inputs!X61 -> 4.827075555 | Y8: =Inputs!Y61 -> 4.827075555 | Z8: =Inputs!Z61 -> 4.827075555 | AA8: =Inputs!AA61 -> 4.827075555 | AB8: =Inputs!AB61 -> 4.827075555 | AC8: =Inputs!AC61 -> 4.827075555 | AD8: =Inputs!AD61 -> 4.827075555 | AE8: =Inputs!AE61 -> 4.827075555 | AF8: =Inputs!AF61 -> 4.827075555 | AG8: =Inputs!AG61 -> 4.827075555 | AH8: =Inputs!AH61 -> 4.827075555 | AI8: =Inputs!AI61 -> 4.827075555
E9: Non-controllable Opex (baseline) | G9: =Inputs!$I$11 -> £m 20/21 prices | K9: =Inputs!K62 -> 1.231869349 | L9: =Inputs!L62 -> 1.231869349 | M9: =Inputs!M62 -> 1.231869349 | N9: =Inputs!N62 -> 1.231869349 | O9: =Inputs!O62 -> 1.231869349 | P9: =Inputs!P62 -> 1.231869349 | Q9: =Inputs!Q62 -> 1.231869349 | R9: =Inputs!R62 -> 1.231869349 | S9: =Inputs!S62 -> 1.231869349 | T9: =Inputs!T62 -> 1.231869349 | U9: =Inputs!U62 -> 1.231869349 | V9: =Inputs!V62 -> 1.231869349 | W9: =Inputs!W62 -> 1.231869349 | X9: =Inputs!X62 -> 1.231869349 | Y9: =Inputs!Y62 -> 1.231869349 | Z9: =Inputs!Z62 -> 1.231869349 | AA9: =Inputs!AA62 -> 1.231869349 | AB9: =Inputs!AB62 -> 1.231869349 | AC9: =Inputs!AC62 -> 1.231869349 | AD9: =Inputs!AD62 -> 1.231869349 | AE9: =Inputs!AE62 -> 1.231869349 | AF9: =Inputs!AF62 -> 1.231869349 | AG9: =Inputs!AG62 -> 1.231869349 | AH9: =Inputs!AH62 -> 1.231869349 | AI9: =Inputs!AI62 -> 1.231869349
E10: Decommissioning baseline | G10: =Inputs!$I$11 -> £m 20/21 prices | K10: =Inputs!K60 -> 0.1533342809 | L10: =Inputs!L60 -> 0.1533342809 | M10: =Inputs!M60 -> 0.1533342809 | N10: =Inputs!N60 -> 0.1533342809 | O10: =Inputs!O60 -> 0.1533342809 | P10: =Inputs!P60 -> 0.1533342809 | Q10: =Inputs!Q60 -> 0.1533342809 | R10: =Inputs!R60 -> 0.1533342809 | S10: =Inputs!S60 -> 0.1533342809 | T10: =Inputs!T60 -> 0.1533342809 | U10: =Inputs!U60 -> 0.1533342809 | V10: =Inputs!V60 -> 0.1533342809 | W10: =Inputs!W60 -> 0.1533342809 | X10: =Inputs!X60 -> 0.1533342809 | Y10: =Inputs!Y60 -> 0.1533342809 | Z10: =Inputs!Z60 -> 0.1533342809 | AA10: =Inputs!AA60 -> 0.1533342809 | AB10: =Inputs!AB60 -> 0.1533342809 | AC10: =Inputs!AC60 -> 0.1533342809 | AD10: =Inputs!AD60 -> 0.1533342809 | AE10: =Inputs!AE60 -> 0.1533342809 | AF10: =Inputs!AF60 -> 0.1533342809 | AG10: =Inputs!AG60 -> 0.1533342809 | AH10: =Inputs!AH60 -> 0.1533342809 | AI10: =Inputs!AI60 -> 0.1533342809
E11: RAV depreciation | G11: =Inputs!$I$11 -> £m 20/21 prices | K11: ='Op Rav'!K25 -> 9.089011693 | L11: ='Op Rav'!L25 -> 9.089011693 | M11: ='Op Rav'!M25 -> 9.089011693 | N11: ='Op Rav'!N25 -> 9.089011693 | O11: ='Op Rav'!O25 -> 9.089011693 | P11: ='Op Rav'!P25 -> 9.089011693 | Q11: ='Op Rav'!Q25 -> 9.089011693 | R11: ='Op Rav'!R25 -> 9.186016365 | S11: ='Op Rav'!S25 -> 9.186016365 | T11: ='Op Rav'!T25 -> 9.186016365 | U11: ='Op Rav'!U25 -> 9.186016365 | V11: ='Op Rav'!V25 -> 9.186016365 | W11: ='Op Rav'!W25 -> 9.186016365 | X11: ='Op Rav'!X25 -> 9.186016365 | Y11: ='Op Rav'!Y25 -> 9.186016365 | Z11: ='Op Rav'!Z25 -> 9.360624774 | AA11: ='Op Rav'!AA25 -> 9.554634117 | AB11: ='Op Rav'!AB25 -> 9.554634117 | AC11: ='Op Rav'!AC25 -> 9.554634117 | AD11: ='Op Rav'!AD25 -> 9.554634117 | AE11: ='Op Rav'!AE25 -> 9.554634117 | AF11: ='Op Rav'!AF25 -> 9.554634117 | AG11: ='Op Rav'!AG25 -> 9.554634117 | AH11: ='Op Rav'!AH25 -> 10.64593667 | AI11: ='Op Rav'!AI25 -> 10.64593667
E12: Return (cap) | G12: =Inputs!$I$11 -> £m 20/21 prices | K12: ='Op Rav'!K40 -> 17.37516769 | L12: ='Op Rav'!L40 -> 16.66654008 | M12: ='Op Rav'!M40 -> 15.95791247 | N12: ='Op Rav'!N40 -> 15.24928485 | O12: ='Op Rav'!O40 -> 14.54065724 | P12: ='Op Rav'!P40 -> 13.83202963 | Q12: ='Op Rav'!Q40 -> 13.18881959 | R12: ='Op Rav'!R40 -> 12.54727408 | S12: ='Op Rav'!S40 -> 11.83108346 | T12: ='Op Rav'!T40 -> 11.11489285 | U12: ='Op Rav'!U40 -> 10.39870224 | V12: ='Op Rav'!V40 -> 9.682511627 | W12: ='Op Rav'!W40 -> 8.966321014 | X12: ='Op Rav'!X40 -> 8.250130401 | Y12: ='Op Rav'!Y40 -> 7.59935737 | Z12: ='Op Rav'!Z40 -> 7.012758987 | AA12: ='Op Rav'!AA40 -> 6.346402761 | AB12: ='Op Rav'!AB40 -> 5.601472751 | AC12: ='Op Rav'!AC40 -> 4.856542741 | AD12: ='Op Rav'!AD40 -> 4.111612731 | AE12: ='Op Rav'!AE40 -> 3.366682721 | AF12: ='Op Rav'!AF40 -> 2.621752711 | AG12: ='Op Rav'!AG40 -> 1.958594678 | AH12: ='Op Rav'!AH40 -> 1.261174187 | AI12: ='Op Rav'!AI40 -> 0.4311604352
E13: Unprofiled allowances except tax (cap) | G13: =Inputs!$I$11 -> £m 20/21 prices | K13: =SUM(K8:K12) -> 32.67645857 | L13: =SUM(L8:L12) -> 31.96783096 | M13: 31.25920334 | N13: 30.55057573 | O13: 29.84194812 | P13: 29.1333205 | Q13: 28.49011047 | R13: 27.94556963 | S13: 27.22937901 | T13: 26.5131884 | U13: 25.79699779 | V13: 25.08080718 | W13: 24.36461656 | X13: 23.64842595 | Y13: 22.99765292 | Z13: 22.58566295 | AA13: 22.11331606 | AB13: 21.36838605 | AC13: 20.62345604 | AD13: 19.87852603 | AE13: 19.13359602 | AF13: 18.38866601 | AG13: 17.72550798 | AH13: 18.11939004 | AI13: 17.28937629
B15: Profiled allowances except tax (cap)
C17: Annuity parameters
E19: Cap return rate | G19: =Inputs!G68 -> real annual % | I19: =Inputs!I68 -> 0.081
E20: Number of operational years | G20: =Inputs!G155 -> full years | I20: =Inputs!I155 -> 25
E21: Annuity factor (cap) | G21: scalar | I21: =I19 / (1 - (1 + I19)^(-I20)) -> 0.09448027673
E23: Year is within operational period | G23: flag | K23: =AND(K4 > 0, K4<= $I20) -> TRUE | L23: TRUE | M23: TRUE | N23: TRUE | O23: TRUE | P23: TRUE | Q23: TRUE | R23: TRUE | S23: TRUE | T23: TRUE | U23: TRUE | V23: TRUE | W23: TRUE | X23: TRUE | Y23: TRUE | Z23: TRUE | AA23: TRUE | AB23: TRUE | AC23: TRUE | AD23: TRUE | AE23: TRUE | AF23: TRUE | AG23: TRUE | AH23: TRUE | AI23: TRUE
E24: Discount factor to start of operational period (cap) | G24: scalar | K24: =(1 + $I19) ^ - K4 -> 0.9250693802 | L24: 0.8557533582 | M24: 0.7916312287 | N24: 0.7323138101 | O24: 0.6774410824 | P24: 0.6266800022 | Q24: 0.5797224812 | R24: 0.5362835164 | S24: 0.4960994601 | T24: 0.4589264201 | U24: 0.424538779 | V24: 0.3927278252 | W24: 0.3633004858 | X24: 0.3360781552 | Y24: 0.3108956108 | Z24: 0.28760001 | AA24: 0.266049963 | AB24: 0.2461146743 | AC24: 0.2276731492 | AD24: 0.2106134591 | AE24: 0.194832062 | AF24: 0.1802331749 | AG24: 0.1667281914 | AH24: 0.1542351447 | AI24: 0.1426782097
C26: Allowances except tax
E28: Discounted unprofiled allowances except tax (cap) | G28: =Inputs!$I$11 -> £m 20/21 prices | K28: =K13 * K$24 -> 30.22799128 | L28: =L13 * L$24 -> 27.3565787 | M28: 24.74576155 | N28: 22.37260851 | O28: 20.21616163 | P28: 18.25726936 | Q28: 16.51635753 | R28: 14.98674835 | S28: 13.50848023 | T28: 12.16760264 | U28: 10.95182594 | V28: 9.849930856 | W28: 8.851677034 | X28: 7.947719368 | Y28: =Y13 * Y$24 -> 7.149869351 | Z28: =Z13 * Z$24 -> 6.495636888 | AA28: 5.883246919 | AB28: 5.259073375 | AC28: 4.695407186 | AD28: 4.186685129 | AE28: 3.727837967 | AF28: 3.314247657 | AG28: 2.955341887 | AH28: 2.794646745 | AI28: 2.466817256
E29: NPV of allowances except tax (cap) | G29: =Inputs!$I$11 -> £m 20/21 prices | I29: =SUM(K28:AI28) -> 286.8855233
E31: Annuity factor (cap) | G31: =G$21 -> scalar | I31: =I$21 -> 0.09448027673
E33: Annuity of allowances except tax (cap) | G33: =Inputs!$I$11 -> £m 20/21 prices | I33: =I29 * I31 -> 27.10502364
E34: Annuitised allowances except tax (cap) | G34: =Inputs!$I$11 -> £m 20/21 prices | K34: =K$23 * $I33 -> 27.10502364 | L34: 27.10502364 | M34: 27.10502364 | N34: 27.10502364 | O34: 27.10502364 | P34: 27.10502364 | Q34: 27.10502364 | R34: 27.10502364 | S34: 27.10502364 | T34: 27.10502364 | U34: 27.10502364 | V34: 27.10502364 | W34: 27.10502364 | X34: =X$23 * $I33 -> 27.10502364 | Y34: =Y$23 * $I33 -> 27.10502364 | Z34: 27.10502364 | AA34: 27.10502364 | AB34: 27.10502364 | AC34: 27.10502364 | AD34: 27.10502364 | AE34: 27.10502364 | AF34: 27.10502364 | AG34: 27.10502364 | AH34: 27.10502364 | AI34: 27.10502364
B36: End of sheet

Sheet Allowances Floor
A1: Allowances Floor | H1: Licence
E2: Parameter | G2: Units | H2: Terminology | I2: Constant | K2: Annual values
E3: Project year | K3: Year 1 | L3: Year 2 | M3: Year 3 | N3: Year 4 | O3: Year 5 | P3: Year 6 | Q3: Year 7 | R3: Year 8 | S3: Year 9 | T3: Year 10 | U3: Year 11 | V3: Year 12 | W3: Year 13 | X3: Year 14 | Y3: Year 15 | Z3: Year 16 | AA3: Year 17 | AB3: Year 18 | AC3: Year 19 | AD3: Year 20 | AE3: Year 21 | AF3: Year 22 | AG3: Year 23 | AH3: Year 24 | AI3: Year 25
E4: Year | K4: 1 | L4: =+K4+1 -> 2 | M4: =+L4+1 -> 3 | N4: 4 | O4: 5 | P4: 6 | Q4: 7 | R4: 8 | S4: 9 | T4: 10 | U4: 11 | V4: 12 | W4: 13 | X4: 14 | Y4: 15 | Z4: 16 | AA4: 17 | AB4: 18 | AC4: 19 | AD4: 20 | AE4: 21 | AF4: 22 | AG4: 23 | AH4: 24 | AI4: 25
B6: Unprofiled allowances except tax (notional floor)
E8: Controllable Opex | G8: =Inputs!$I$11 -> £m 20/21 prices | K8: =Inputs!K61 -> 4.827075555 | L8: =Inputs!L61 -> 4.827075555 | M8: =Inputs!M61 -> 4.827075555 | N8: =Inputs!N61 -> 4.827075555 | O8: =Inputs!O61 -> 4.827075555 | P8: =Inputs!P61 -> 4.827075555 | Q8: =Inputs!Q61 -> 4.827075555 | R8: =Inputs!R61 -> 4.827075555 | S8: =Inputs!S61 -> 4.827075555 | T8: =Inputs!T61 -> 4.827075555 | U8: =Inputs!U61 -> 4.827075555 | V8: =Inputs!V61 -> 4.827075555 | W8: =Inputs!W61 -> 4.827075555 | X8: =Inputs!X61 -> 4.827075555 | Y8: =Inputs!Y61 -> 4.827075555 | Z8: =Inputs!Z61 -> 4.827075555 | AA8: =Inputs!AA61 -> 4.827075555 | AB8: =Inputs!AB61 -> 4.827075555 | AC8: =Inputs!AC61 -> 4.827075555 | AD8: =Inputs!AD61 -> 4.827075555 | AE8: =Inputs!AE61 -> 4.827075555 | AF8: =Inputs!AF61 -> 4.827075555 | AG8: =Inputs!AG61 -> 4.827075555 | AH8: =Inputs!AH61 -> 4.827075555 | AI8: =Inputs!AI61 -> 4.827075555
E9: Non-controllable Opex (baseline) | G9: =Inputs!$I$11 -> £m 20/21 prices | K9: =Inputs!K62 -> 1.231869349 | L9: =Inputs!L62 -> 1.231869349 | M9: =Inputs!M62 -> 1.231869349 | N9: =Inputs!N62 -> 1.231869349 | O9: =Inputs!O62 -> 1.231869349 | P9: =Inputs!P62 -> 1.231869349 | Q9: =Inputs!Q62 -> 1.231869349 | R9: =Inputs!R62 -> 1.231869349 | S9: =Inputs!S62 -> 1.231869349 | T9: =Inputs!T62 -> 1.231869349 | U9: =Inputs!U62 -> 1.231869349 | V9: =Inputs!V62 -> 1.231869349 | W9: =Inputs!W62 -> 1.231869349 | X9: =Inputs!X62 -> 1.231869349 | Y9: =Inputs!Y62 -> 1.231869349 | Z9: =Inputs!Z62 -> 1.231869349 | AA9: =Inputs!AA62 -> 1.231869349 | AB9: =Inputs!AB62 -> 1.231869349 | AC9: =Inputs!AC62 -> 1.231869349 | AD9: =Inputs!AD62 -> 1.231869349 | AE9: =Inputs!AE62 -> 1.231869349 | AF9: =Inputs!AF62 -> 1.231869349 | AG9: =Inputs!AG62 -> 1.231869349 | AH9: =Inputs!AH62 -> 1.231869349 | AI9: =Inputs!AI62 -> 1.231869349
E10: Decommissioning baseline | G10: =Inputs!$I$11 -> £m 20/21 prices | K10: =Inputs!K60 -> 0.1533342809 | L10: =Inputs!L60 -> 0.1533342809 | M10: =Inputs!M60 -> 0.1533342809 | N10: =Inputs!N60 -> 0.1533342809 | O10: =Inputs!O60 -> 0.1533342809 | P10: =Inputs!P60 -> 0.1533342809 | Q10: =Inputs!Q60 -> 0.1533342809 | R10: =Inputs!R60 -> 0.1533342809 | S10: =Inputs!S60 -> 0.1533342809 | T10: =Inputs!T60 -> 0.1533342809 | U10: =Inputs!U60 -> 0.1533342809 | V10: =Inputs!V60 -> 0.1533342809 | W10: =Inputs!W60 -> 0.1533342809 | X10: =Inputs!X60 -> 0.1533342809 | Y10: =Inputs!Y60 -> 0.1533342809 | Z10: =Inputs!Z60 -> 0.1533342809 | AA10: =Inputs!AA60 -> 0.1533342809 | AB10: =Inputs!AB60 -> 0.1533342809 | AC10: =Inputs!AC60 -> 0.1533342809 | AD10: =Inputs!AD60 -> 0.1533342809 | AE10: =Inputs!AE60 -> 0.1533342809 | AF10: =Inputs!AF60 -> 0.1533342809 | AG10: =Inputs!AG60 -> 0.1533342809 | AH10: =Inputs!AH60 -> 0.1533342809 | AI10: =Inputs!AI60 -> 0.1533342809
E11: RAV depreciation | G11: =Inputs!$I$11 -> £m 20/21 prices | K11: ='Op Rav'!K25 -> 9.089011693 | L11: ='Op Rav'!L25 -> 9.089011693 | M11: ='Op Rav'!M25 -> 9.089011693 | N11: ='Op Rav'!N25 -> 9.089011693 | O11: ='Op Rav'!O25 -> 9.089011693 | P11: ='Op Rav'!P25 -> 9.089011693 | Q11: ='Op Rav'!Q25 -> 9.089011693 | R11: ='Op Rav'!R25 -> 9.186016365 | S11: ='Op Rav'!S25 -> 9.186016365 | T11: ='Op Rav'!T25 -> 9.186016365 | U11: ='Op Rav'!U25 -> 9.186016365 | V11: ='Op Rav'!V25 -> 9.186016365 | W11: ='Op Rav'!W25 -> 9.186016365 | X11: ='Op Rav'!X25 -> 9.186016365 | Y11: ='Op Rav'!Y25 -> 9.186016365 | Z11: ='Op Rav'!Z25 -> 9.360624774 | AA11: ='Op Rav'!AA25 -> 9.554634117 | AB11: ='Op Rav'!AB25 -> 9.554634117 | AC11: ='Op Rav'!AC25 -> 9.554634117 | AD11: ='Op Rav'!AD25 -> 9.554634117 | AE11: ='Op Rav'!AE25 -> 9.554634117 | AF11: ='Op Rav'!AF25 -> 9.554634117 | AG11: ='Op Rav'!AG25 -> 9.554634117 | AH11: ='Op Rav'!AH25 -> 10.64593667 | AI11: ='Op Rav'!AI25 -> 10.64593667
E12: Return (floor) | G12: =Inputs!$I$11 -> £m 20/21 prices | K12: ='Op Rav'!K41 -> -1.878279647 | L12: ='Op Rav'!L41 -> -1.801608572 | M12: ='Op Rav'!M41 -> -1.724937497 | N12: ='Op Rav'!N41 -> -1.648266422 | O12: ='Op Rav'!O41 -> -1.571595347 | P12: ='Op Rav'!P41 -> -1.494924273 | Q12: ='Op Rav'!Q41 -> -1.425648875 | R12: ='Op Rav'!R41 -> -1.355900482 | S12: ='Op Rav'!S41 -> -1.278411116 | T12: ='Op Rav'!T41 -> -1.200921751 | U12: ='Op Rav'!U41 -> -1.123432385 | V12: ='Op Rav'!V41 -> -1.04594302 | W12: ='Op Rav'!W41 -> -0.9684536544 | X12: ='Op Rav'!X41 -> -0.890964289 | Y12: ='Op Rav'!Y41 -> -0.8208706004 | Z12: ='Op Rav'!Z41 -> -0.7573708972 | AA12: ='Op Rav'!AA41 -> -0.68492042 | AB12: ='Op Rav'!AB41 -> -0.6043215505 | AC12: ='Op Rav'!AC41 -> -0.5237226809 | AD12: ='Op Rav'!AD41 -> -0.4431238113 | AE12: ='Op Rav'!AE41 -> -0.3625249417 | AF12: ='Op Rav'!AF41 -> -0.2819260721 | AG12: ='Op Rav'!AG41 -> -0.2105717986 | AH12: ='Op Rav'!AH41 -> -0.1345175724 | AI12: ='Op Rav'!AI41 -> -0.04471293402
E13: Unprofiled allowances except tax (floor) | G13: =Inputs!$I$11 -> £m 20/21 prices | K13: =SUM(K8:K12) -> 13.42301123 | L13: 13.49968231 | M13: 13.57635338 | N13: 13.65302446 | O13: 13.72969553 | P13: 13.80636661 | Q13: 13.875642 | R13: 14.04239507 | S13: 14.11988443 | T13: 14.1973738 | U13: 14.27486316 | V13: 14.35235253 | W13: 14.4298419 | X13: 14.50733126 | Y13: 14.57742495 | Z13: 14.81553306 | AA13: 15.08199288 | AB13: 15.16259175 | AC13: 15.24319062 | AD13: 15.32378949 | AE13: 15.40438836 | AF13: 15.48498723 | AG13: 15.5563415 | AH13: 16.72369829 | AI13: 16.81350292
B15: Profiled allowances except tax (notional floor)
C17: Annuity parameters
E19: Floor return rate | G19: =Inputs!G69 -> real annual % | I19: =Inputs!I69 -> -0.0084
E20: Number of operational years | G20: =Inputs!G155 -> full years | I20: =Inputs!I155 -> 25
E21: Annuity factor (floor) | G21: scalar | I21: =I19 / (1 - (1 + I19)^(-I20)) -> 0.03577927538
E23: Year is within operational period | G23: flag | K23: =AND(K4 > 0, K4<= $I20) -> TRUE | L23: TRUE | M23: TRUE | N23: TRUE | O23: TRUE | P23: TRUE | Q23: TRUE | R23: TRUE | S23: TRUE | T23: TRUE | U23: TRUE | V23: TRUE | W23: TRUE | X23: TRUE | Y23: TRUE | Z23: TRUE | AA23: TRUE | AB23: TRUE | AC23: TRUE | AD23: TRUE | AE23: TRUE | AF23: TRUE | AG23: TRUE | AH23: TRUE | AI23: TRUE
E24: Discount factor to start of operational period (floor) | G24: scalar | K24: =(1 + $I19) ^ - K4 -> 1.008471158 | L24: 1.017014076 | M24: 1.025629363 | N24: 1.034317631 | O24: 1.043079498 | P24: 1.051915589 | Q24: 1.060826532 | R24: 1.069812961 | S24: 1.078875516 | T24: 1.08801484 | U24: 1.097231585 | V24: 1.106526407 | W24: 1.115899967 | X24: 1.125352932 | Y24: 1.134885974 | Z24: 1.144499772 | AA24: 1.15419501 | AB24: 1.163972378 | AC24: 1.173832572 | AD24: 1.183776292 | AE24: 1.193804248 | AF24: 1.203917152 | AG24: 1.214115724 | AH24: 1.22440069 | AI24: 1.234772781
C26: Allowances except tax
E28: Discounted unprofiled allowances except tax (floor) | G28: =Inputs!$I$11 -> £m 20/21 prices | K28: =K13 * K$24 -> 13.53671968 | L28: =L13 * L$24 -> 13.72936693 | M28: 13.92430666 | N28: 14.12156391 | O28: 14.32116393 | P28: 14.52313227 | Q28: 14.71964919 | R28: 15.02273625 | S28: 15.2335976 | T28: 15.44695338 | U28: 15.66283074 | V28: 15.88125708 | W28: 16.1022601 | X28: =X13 * X$24 -> 16.32586777 | Y28: 16.54371511 | Z28: 16.95637421 | AA28: 17.40756093 | AB28: 17.64883798 | AC28: 17.89295365 | AD28: 18.13993871 | AE28: 18.38982426 | AF28: 18.64264173 | AG28: 18.88719883 | AH28: 20.47650772 | AI28: 20.76085577
E29: NPV of allowances except tax (floor) | G29: =Inputs!$I$11 -> £m 20/21 prices | I29: =SUM(K28:AI28) -> 410.2978144
E31: Annuity factor (floor) | G31: =G$21 -> scalar | I31: =I$21 -> 0.03577927538
E33: Annuity of allowances except tax (floor) | G33: =Inputs!$I$11 -> £m 20/21 prices | I33: =I29 * I31 -> 14.68015849
E34: Annuitised allowances except tax (floor) | G34: =Inputs!$I$11 -> £m 20/21 prices | K34: =K$23 * $I33 -> 14.68015849 | L34: 14.68015849 | M34: 14.68015849 | N34: 14.68015849 | O34: 14.68015849 | P34: 14.68015849 | Q34: 14.68015849 | R34: 14.68015849 | S34: 14.68015849 | T34: 14.68015849 | U34: 14.68015849 | V34: 14.68015849 | W34: 14.68015849 | X34: =X$23 * $I33 -> 14.68015849 | Y34: 14.68015849 | Z34: 14.68015849 | AA34: 14.68015849 | AB34: 14.68015849 | AC34: 14.68015849 | AD34: 14.68015849 | AE34: 14.68015849 | AF34: 14.68015849 | AG34: 14.68015849 | AH34: 14.68015849 | AI34: 14.68015849
B36: Unprofiled allowances except tax (actual floor during debt tenor and tail period)
E38: Controllable Opex | G38: =Inputs!$I$11 -> £m 20/21 prices | K38: =Inputs!K61*K56 -> 0 | L38: =Inputs!L61*L56 -> 0 | M38: =Inputs!M61*M56 -> 4.827075555 | N38: =Inputs!N61*N56 -> 4.827075555 | O38: =Inputs!O61*O56 -> 4.827075555 | P38: =Inputs!P61*P56 -> 4.827075555 | Q38: =Inputs!Q61*Q56 -> 4.827075555 | R38: =Inputs!R61*R56 -> 4.827075555 | S38: =Inputs!S61*S56 -> 4.827075555 | T38: =Inputs!T61*T56 -> 4.827075555 | U38: =Inputs!U61*U56 -> 4.827075555 | V38: =Inputs!V61*V56 -> 4.827075555 | W38: =Inputs!W61*W56 -> 4.827075555 | X38: =Inputs!X61*X56 -> 4.827075555 | Y38: =Inputs!Y61*Y56 -> 4.827075555 | Z38: =Inputs!Z61*Z56 -> 4.827075555 | AA38: =Inputs!AA61*AA56 -> 4.827075555 | AB38: =Inputs!AB61*AB56 -> 4.827075555 | AC38: =Inputs!AC61*AC56 -> 4.827075555 | AD38: =Inputs!AD61*AD56 -> 4.827075555 | AE38: =Inputs!AE61*AE56 -> 4.827075555 | AF38: =Inputs!AF61*AF56 -> 4.827075555 | AG38: =Inputs!AG61*AG56 -> 4.827075555 | AH38: =Inputs!AH61*AH56 -> 4.827075555 | AI38: =Inputs!AI61*AI56 -> 4.827075555
E39: Non-controllable Opex (baseline) | G39: =Inputs!$I$11 -> £m 20/21 prices | K39: =Inputs!K62*K56 -> 0 | L39: =Inputs!L62*L56 -> 0 | M39: =Inputs!M62*M56 -> 1.231869349 | N39: =Inputs!N62*N56 -> 1.231869349 | O39: =Inputs!O62*O56 -> 1.231869349 | P39: =Inputs!P62*P56 -> 1.231869349 | Q39: =Inputs!Q62*Q56 -> 1.231869349 | R39: =Inputs!R62*R56 -> 1.231869349 | S39: =Inputs!S62*S56 -> 1.231869349 | T39: =Inputs!T62*T56 -> 1.231869349 | U39: =Inputs!U62*U56 -> 1.231869349 | V39: =Inputs!V62*V56 -> 1.231869349 | W39: =Inputs!W62*W56 -> 1.231869349 | X39: =Inputs!X62*X56 -> 1.231869349 | Y39: =Inputs!Y62*Y56 -> 1.231869349 | Z39: =Inputs!Z62*Z56 -> 1.231869349 | AA39: =Inputs!AA62*AA56 -> 1.231869349 | AB39: =Inputs!AB62*AB56 -> 1.231869349 | AC39: =Inputs!AC62*AC56 -> 1.231869349 | AD39: =Inputs!AD62*AD56 -> 1.231869349 | AE39: =Inputs!AE62*AE56 -> 1.231869349 | AF39: =Inputs!AF62*AF56 -> 1.231869349 | AG39: =Inputs!AG62*AG56 -> 1.231869349 | AH39: =Inputs!AH62*AH56 -> 1.231869349 | AI39: =Inputs!AI62*AI56 -> 1.231869349
E40: Decommissioning baseline | G40: =Inputs!$I$11 -> £m 20/21 prices | K40: =Inputs!K60*K56 -> 0 | L40: =Inputs!L60*L56 -> 0 | M40: =Inputs!M60*M56 -> 0.1533342809 | N40: =Inputs!N60*N56 -> 0.1533342809 | O40: =Inputs!O60*O56 -> 0.1533342809 | P40: =Inputs!P60*P56 -> 0.1533342809 | Q40: =Inputs!Q60*Q56 -> 0.1533342809 | R40: =Inputs!R60*R56 -> 0.1533342809 | S40: =Inputs!S60*S56 -> 0.1533342809 | T40: =Inputs!T60*T56 -> 0.1533342809 | U40: =Inputs!U60*U56 -> 0.1533342809 | V40: =Inputs!V60*V56 -> 0.1533342809 | W40: =Inputs!W60*W56 -> 0.1533342809 | X40: =Inputs!X60*X56 -> 0.1533342809 | Y40: =Inputs!Y60*Y56 -> 0.1533342809 | Z40: =Inputs!Z60*Z56 -> 0.1533342809 | AA40: =Inputs!AA60*AA56 -> 0.1533342809 | AB40: =Inputs!AB60*AB56 -> 0.1533342809 | AC40: =Inputs!AC60*AC56 -> 0.1533342809 | AD40: =Inputs!AD60*AD56 -> 0.1533342809 | AE40: =Inputs!AE60*AE56 -> 0.1533342809 | AF40: =Inputs!AF60*AF56 -> 0.1533342809 | AG40: =Inputs!AG60*AG56 -> 0.1533342809 | AH40: =Inputs!AH60*AH56 -> 0.1533342809 | AI40: =Inputs!AI60*AI56 -> 0.1533342809
E41: Total debt service including buffer | G41: =Inputs!$I$11 -> £m 20/21 prices | K41: =SUMIF(Finance!10:10,'Allowances Floor'!K4,Finance!151:151) -> 0 | L41: =SUMIF(Finance!10:10,'Allowances Floor'!L4,Finance!151:151) -> 0 | M41: =SUMIF(Finance!10:10,'Allowances Floor'!M4,Finance!151:151) -> 7.780561987 | N41: =SUMIF(Finance!10:10,'Allowances Floor'!N4,Finance!151:151) -> 12.27499534 | O41: =SUMIF(Finance!10:10,'Allowances Floor'!O4,Finance!151:151) -> 12.81106411 | P41: =SUMIF(Finance!10:10,'Allowances Floor'!P4,Finance!151:151) -> 12.50368844 | Q41: =SUMIF(Finance!10:10,'Allowances Floor'!Q4,Finance!151:151) -> 12.59663624 | R41: =SUMIF(Finance!10:10,'Allowances Floor'!R4,Finance!151:151) -> 12.29298202 | S41: =SUMIF(Finance!10:10,'Allowances Floor'!S4,Finance!151:151) -> 11.90225976 | T41: =SUMIF(Finance!10:10,'Allowances Floor'!T4,Finance!151:151) -> 10.45608017 | U41: =SUMIF(Finance!10:10,'Allowances Floor'!U4,Finance!151:151) -> 11.30918586 | V41: =SUMIF(Finance!10:10,'Allowances Floor'!V4,Finance!151:151) -> 11.8146576 | W41: =SUMIF(Finance!10:10,'Allowances Floor'!W4,Finance!151:151) -> 11.40139038 | X41: =SUMIF(Finance!10:10,'Allowances Floor'!X4,Finance!151:151) -> 11.29050895 | Y41: =SUMIF(Finance!10:10,'Allowances Floor'!Y4,Finance!151:151) -> 10.59847396 | Z41: =SUMIF(Finance!10:10,'Allowances Floor'!Z4,Finance!151:151) -> 10.82257295 | AA41: =SUMIF(Finance!10:10,'Allowances Floor'!AA4,Finance!151:151) -> 10.05287281 | AB41: =SUMIF(Finance!10:10,'Allowances Floor'!AB4,Finance!151:151) -> 8.550835072 | AC41: =SUMIF(Finance!10:10,'Allowances Floor'!AC4,Finance!151:151) -> 8.089949611 | AD41: =SUMIF(Finance!10:10,'Allowances Floor'!AD4,Finance!151:151) -> 8.873481227 | AE41: =SUMIF(Finance!10:10,'Allowances Floor'!AE4,Finance!151:151) -> 8.498309947 | AF41: =SUMIF(Finance!10:10,'Allowances Floor'!AF4,Finance!151:151) -> 8.42143437 | AG41: =SUMIF(Finance!10:10,'Allowances Floor'!AG4,Finance!151:151) -> 7.933791152 | AH41: =SUMIF(Finance!10:10,'Allowances Floor'!AH4,Finance!151:151) -> 8.020353463 | AI41: =SUMIF(Finance!10:10,'Allowances Floor'!AI4,Finance!151:151) -> 9.725021426
E42: Unprofiled allowances except tax (floor) | G42: =Inputs!$I$11 -> £m 20/21 prices | K42: =SUM(K38:K41) -> 0 | L42: 0 | M42: 13.99284117 | N42: 18.48727453 | O42: 19.0233433 | P42: 18.71596762 | Q42: 18.80891542 | R42: 18.5052612 | S42: 18.11453895 | T42: 16.66835936 | U42: 17.52146505 | V42: 18.02693679 | W42: 17.61366956 | X42: 17.50278813 | Y42: 16.81075314 | Z42: 17.03485214 | AA42: 16.26515199 | AB42: 14.76311426 | AC42: 14.3022288 | AD42: 15.08576041 | AE42: 14.71058913 | AF42: 14.63371356 | AG42: 14.14607034 | AH42: 14.23263265 | AI42: 15.93730061
B44: Profiled allowances except tax (actual floor during debt tenor and tail period)
C46: Annuity parameters during debt tenor
E48: Actual cost of debt | G48: nominal % | K48: =SUMIF(Finance!10:10,'Allowances Floor'!K4,Finance!125:125) -> 0 | L48: =SUMIF(Finance!10:10,'Allowances Floor'!L4,Finance!125:125) -> 0 | M48: =SUMIF(Finance!10:10,'Allowances Floor'!M4,Finance!125:125) -> 0.0292152795 | N48: =SUMIF(Finance!10:10,'Allowances Floor'!N4,Finance!125:125) -> 0.0292152795 | O48: =SUMIF(Finance!10:10,'Allowances Floor'!O4,Finance!125:125) -> 0.0292152795 | P48: =SUMIF(Finance!10:10,'Allowances Floor'!P4,Finance!125:125) -> 0.0292152795 | Q48: =SUMIF(Finance!10:10,'Allowances Floor'!Q4,Finance!125:125) -> 0.0292152795 | R48: =SUMIF(Finance!10:10,'Allowances Floor'!R4,Finance!125:125) -> 0.02929997896 | S48: =SUMIF(Finance!10:10,'Allowances Floor'!S4,Finance!125:125) -> 0.0302152795 | T48: =SUMIF(Finance!10:10,'Allowances Floor'!T4,Finance!125:125) -> 0.0302152795 | U48: =SUMIF(Finance!10:10,'Allowances Floor'!U4,Finance!125:125) -> 0.0302152795 | V48: =SUMIF(Finance!10:10,'Allowances Floor'!V4,Finance!125:125) -> 0.0302152795 | W48: =SUMIF(Finance!10:10,'Allowances Floor'!W4,Finance!125:125) -> 0.03029997896 | X48: =SUMIF(Finance!10:10,'Allowances Floor'!X4,Finance!125:125) -> 0.0312152795 | Y48: =SUMIF(Finance!10:10,'Allowances Floor'!Y4,Finance!125:125) -> 0.0312152795 | Z48: =SUMIF(Finance!10:10,'Allowances Floor'!Z4,Finance!125:125) -> 0.0312152795 | AA48: =SUMIF(Finance!10:10,'Allowances Floor'!AA4,Finance!125:125) -> 0.0312152795 | AB48: =SUMIF(Finance!10:10,'Allowances Floor'!AB4,Finance!125:125) -> 0.03129997896 | AC48: =SUMIF(Finance!10:10,'Allowances Floor'!AC4,Finance!125:125) -> 0.0322152795 | AD48: =SUMIF(Finance!10:10,'Allowances Floor'!AD4,Finance!125:125) -> 0.0322152795 | AE48: =SUMIF(Finance!10:10,'Allowances Floor'!AE4,Finance!125:125) -> 0.0322152795 | AF48: =SUMIF(Finance!10:10,'Allowances Floor'!AF4,Finance!125:125) -> 0.0322152795 | AG48: =SUMIF(Finance!10:10,'Allowances Floor'!AG4,Finance!125:125) -> 0.03229997896 | AH48: =SUMIF(Finance!10:10,'Allowances Floor'!AH4,Finance!125:125) -> 0.0332152795 | AI48: =SUMIF(Finance!10:10,'Allowances Floor'!AI4,Finance!125:125) -> 0.06643055901
E49: Actual cost of debt | G49: real % | K49: =IF(K48=0,0,(1+K48)/(1+Inputs!$I$179)-1) -> 0 | L49: =IF(L48=0,0,(1+L48)/(1+Inputs!$I$179)-1) -> 0 | M49: =IF(M48=0,0,(1+M48)/(1+Inputs!$I$179)-1) -> -0.01302715813 | N49: =IF(N48=0,0,(1+N48)/(1+Inputs!$I$179)-1) -> -0.01302715813 | O49: =IF(O48=0,0,(1+O48)/(1+Inputs!$I$179)-1) -> -0.01302715813 | P49: =IF(P48=0,0,(1+P48)/(1+Inputs!$I$179)-1) -> -0.01302715813 | Q49: =IF(Q48=0,0,(1+Q48)/(1+Inputs!$I$179)-1) -> -0.01302715813 | R49: =IF(R48=0,0,(1+R48)/(1+Inputs!$I$179)-1) -> -0.01294593502 | S49: =IF(S48=0,0,(1+S48)/(1+Inputs!$I$179)-1) -> -0.01206820147 | T49: =IF(T48=0,0,(1+T48)/(1+Inputs!$I$179)-1) -> -0.01206820147 | U49: =IF(U48=0,0,(1+U48)/(1+Inputs!$I$179)-1) -> -0.01206820147 | V49: =IF(V48=0,0,(1+V48)/(1+Inputs!$I$179)-1) -> -0.01206820147 | W49: =IF(W48=0,0,(1+W48)/(1+Inputs!$I$179)-1) -> -0.01198697837 | X49: =IF(X48=0,0,(1+X48)/(1+Inputs!$I$179)-1) -> -0.01110924482 | Y49: =IF(Y48=0,0,(1+Y48)/(1+Inputs!$I$179)-1) -> -0.01110924482 | Z49: =IF(Z48=0,0,(1+Z48)/(1+Inputs!$I$179)-1) -> -0.01110924482 | AA49: =IF(AA48=0,0,(1+AA48)/(1+Inputs!$I$179)-1) -> -0.01110924482 | AB49: =IF(AB48=0,0,(1+AB48)/(1+Inputs!$I$179)-1) -> -0.01102802171 | AC49: =IF(AC48=0,0,(1+AC48)/(1+Inputs!$I$179)-1) -> -0.01015028816 | AD49: =IF(AD48=0,0,(1+AD48)/(1+Inputs!$I$179)-1) -> -0.01015028816 | AE49: =IF(AE48=0,0,(1+AE48)/(1+Inputs!$I$179)-1) -> -0.01015028816 | AF49: =IF(AF48=0,0,(1+AF48)/(1+Inputs!$I$179)-1) -> -0.01015028816 | AG49: =IF(AG48=0,0,(1+AG48)/(1+Inputs!$I$179)-1) -> -0.01006906506 | AH49: =IF(AH48=0,0,(1+AH48)/(1+Inputs!$I$179)-1) -> -0.009191331507 | AI49: =IF(AI48=0,0,(1+AI48)/(1+Inputs!$I$179)-1) -> 0.02266068183
E50: Cost of debt weighting | G50: % | K50: =SUMIF(Finance!10:10,'Allowances Floor'!K4,Finance!140:140)/SUM(Finance!$K$140:$AX$140) -> 0 | L50: =SUMIF(Finance!10:10,'Allowances Floor'!L4,Finance!140:140)/SUM(Finance!$K$140:$AX$140) -> 0 | M50: =SUMIF(Finance!10:10,'Allowances Floor'!M4,Finance!140:140)/SUM(Finance!$K$140:$AX$140) -> 0.06412855375 | N50: =SUMIF(Finance!10:10,'Allowances Floor'!N4,Finance!140:140)/SUM(Finance!$K$140:$AX$140) -> 0.06412855375 | O50: =SUMIF(Finance!10:10,'Allowances Floor'!O4,Finance!140:140)/SUM(Finance!$K$140:$AX$140) -> 0.06291980173 | P50: =SUMIF(Finance!10:10,'Allowances Floor'!P4,Finance!140:140)/SUM(Finance!$K$140:$AX$140) -> 0.06140344426 | Q50: =SUMIF(Finance!10:10,'Allowances Floor'!Q4,Finance!140:140)/SUM(Finance!$K$140:$AX$140) -> 0.05978314121 | R50: =SUMIF(Finance!10:10,'Allowances Floor'!R4,Finance!140:140)/SUM(Finance!$K$140:$AX$140) -> 0.0581164196 | S50: =SUMIF(Finance!10:10,'Allowances Floor'!S4,Finance!140:140)/SUM(Finance!$K$140:$AX$140) -> 0.05797238614 | T50: =SUMIF(Finance!10:10,'Allowances Floor'!T4,Finance!140:140)/SUM(Finance!$K$140:$AX$140) -> 0.05591247893 | U50: =SUMIF(Finance!10:10,'Allowances Floor'!U4,Finance!140:140)/SUM(Finance!$K$140:$AX$140) -> 0.05411013999 | V50: =SUMIF(Finance!10:10,'Allowances Floor'!V4,Finance!140:140)/SUM(Finance!$K$140:$AX$140) -> 0.05180681276 | W50: =SUMIF(Finance!10:10,'Allowances Floor'!W4,Finance!140:140)/SUM(Finance!$K$140:$AX$140) -> 0.04922470546 | X50: =SUMIF(Finance!10:10,'Allowances Floor'!X4,Finance!140:140)/SUM(Finance!$K$140:$AX$140) -> 0.04784543566 | Y50: =SUMIF(Finance!10:10,'Allowances Floor'!Y4,Finance!140:140)/SUM(Finance!$K$140:$AX$140) -> 0.04473285373 | Z50: =SUMIF(Finance!10:10,'Allowances Floor'!Z4,Finance!140:140)/SUM(Finance!$K$140:$AX$140) -> 0.04162037795 | AA50: =SUMIF(Finance!10:10,'Allowances Floor'!AA4,Finance!140:140)/SUM(Finance!$K$140:$AX$140) -> 0.03811835063 | AB50: =SUMIF(Finance!10:10,'Allowances Floor'!AB4,Finance!140:140)/SUM(Finance!$K$140:$AX$140) -> 0.03475680559 | AC50: =SUMIF(Finance!10:10,'Allowances Floor'!AC4,Finance!140:140)/SUM(Finance!$K$140:$AX$140) -> 0.03269144099 | AD50: =SUMIF(Finance!10:10,'Allowances Floor'!AD4,Finance!140:140)/SUM(Finance!$K$140:$AX$140) -> 0.02954445723 | AE50: =SUMIF(Finance!10:10,'Allowances Floor'!AE4,Finance!140:140)/SUM(Finance!$K$140:$AX$140) -> 0.02569212071 | AF50: =SUMIF(Finance!10:10,'Allowances Floor'!AF4,Finance!140:140)/SUM(Finance!$K$140:$AX$140) -> 0.02172187567 | AG50: =SUMIF(Finance!10:10,'Allowances Floor'!AG4,Finance!140:140)/SUM(Finance!$K$140:$AX$140) -> 0.01751456543 | AH50: =SUMIF(Finance!10:10,'Allowances Floor'!AH4,Finance!140:140)/SUM(Finance!$K$140:$AX$140) -> 0.01362464419 | AI50: =SUMIF(Finance!10:10,'Allowances Floor'!AI4,Finance!140:140)/SUM(Finance!$K$140:$AX$140) -> 0.01263063463
E52: Floor return rate | I52: =SUMPRODUCT(K49:AI49,K50:AI50) -> -0.01149020203
E53: Debt tenor | G53: =Inputs!G85 -> full years | I53: =Inputs!I85 -> 22.59178082
E54: Annuity factor over debt tenor | G54: scalar | I54: =I52 / (1 - (1 + I52)^(-I53)) -> 0.03851370582
E56: Year within debt tenor | G56: flag | K56: =(SUMIF(Inputs!164:164,'Allowances Floor'!K4,Inputs!171:171)<>0) -> FALSE | L56: =(SUMIF(Inputs!164:164,'Allowances Floor'!L4,Inputs!171:171)<>0) -> FALSE | M56: =(SUMIF(Inputs!164:164,'Allowances Floor'!M4,Inputs!171:171)<>0) -> TRUE | N56: =(SUMIF(Inputs!164:164,'Allowances Floor'!N4,Inputs!171:171)<>0) -> TRUE | O56: =(SUMIF(Inputs!164:164,'Allowances Floor'!O4,Inputs!171:171)<>0) -> TRUE | P56: =(SUMIF(Inputs!164:164,'Allowances Floor'!P4,Inputs!171:171)<>0) -> TRUE | Q56: =(SUMIF(Inputs!164:164,'Allowances Floor'!Q4,Inputs!171:171)<>0) -> TRUE | R56: =(SUMIF(Inputs!164:164,'Allowances Floor'!R4,Inputs!171:171)<>0) -> TRUE | S56: =(SUMIF(Inputs!164:164,'Allowances Floor'!S4,Inputs!171:171)<>0) -> TRUE | T56: =(SUMIF(Inputs!164:164,'Allowances Floor'!T4,Inputs!171:171)<>0) -> TRUE | U56: =(SUMIF(Inputs!164:164,'Allowances Floor'!U4,Inputs!171:171)<>0) -> TRUE | V56: =(SUMIF(Inputs!164:164,'Allowances Floor'!V4,Inputs!171:171)<>0) -> TRUE | W56: =(SUMIF(Inputs!164:164,'Allowances Floor'!W4,Inputs!171:171)<>0) -> TRUE | X56: =(SUMIF(Inputs!164:164,'Allowances Floor'!X4,Inputs!171:171)<>0) -> TRUE | Y56: =(SUMIF(Inputs!164:164,'Allowances Floor'!Y4,Inputs!171:171)<>0) -> TRUE | Z56: =(SUMIF(Inputs!164:164,'Allowances Floor'!Z4,Inputs!171:171)<>0) -> TRUE | AA56: =(SUMIF(Inputs!164:164,'Allowances Floor'!AA4,Inputs!171:171)<>0) -> TRUE | AB56: =(SUMIF(Inputs!164:164,'Allowances Floor'!AB4,Inputs!171:171)<>0) -> TRUE | AC56: =(SUMIF(Inputs!164:164,'Allowances Floor'!AC4,Inputs!171:171)<>0) -> TRUE | AD56: =(SUMIF(Inputs!164:164,'Allowances Floor'!AD4,Inputs!171:171)<>0) -> TRUE | AE56: =(SUMIF(Inputs!164:164,'Allowances Floor'!AE4,Inputs!171:171)<>0) -> TRUE | AF56: =(SUMIF(Inputs!164:164,'Allowances Floor'!AF4,Inputs!171:171)<>0) -> TRUE | AG56: =(SUMIF(Inputs!164:164,'Allowances Floor'!AG4,Inputs!171:171)<>0) -> TRUE | AH56: =(SUMIF(Inputs!164:164,'Allowances Floor'!AH4,Inputs!171:171)<>0) -> TRUE | AI56: =(SUMIF(Inputs!164:164,'Allowances Floor'!AI4,Inputs!171:171)<>0) -> TRUE
E57: Discount factor to start of debt period (floor) | G57: scalar | K57: =(1 + $I52) ^ - K4 -> 1.011623761 | L57: =(1 + $I52) ^ - L4 -> 1.023382635 | M57: 1.03527819 | N57: 1.047312017 | O57: 1.059485722 | P57: 1.071800931 | Q57: 1.084259289 | R57: 1.096862461 | S57: 1.109612128 | T57: 1.122509995 | U57: 1.135557783 | V57: 1.148757236 | W57: 1.162110116 | X57: 1.175618207 | Y57: 1.189283312 | Z57: 1.203107258 | AA57: 1.217091889 | AB57: 1.231239075 | AC57: 1.245550704 | AD57: 1.260028688 | AE57: 1.274674961 | AF57: 1.289491479 | AG57: 1.30448022 | AH57: 1.319643187 | AI57: 1.334982405
C59: Allowances except tax during debt tenor
E61: Discounted unprofiled allowances except tax (floor) during debt period | G61: =Inputs!$I$11 -> £m 20/21 prices | K61: =K42 * K$57 *K56 -> 0 | L61: =L42 * L$57 *L56 -> 0 | M61: 14.48648328 | N61: 19.36194477 | O61: 20.1549606 | P61: 20.05979152 | Q61: 20.39374127 | R61: 20.29772634 | S61: 20.10011211 | T61: 18.71039998 | U61: 19.89663601 | V61: 20.70857408 | W61: 20.46902358 | X61: 20.5765964 | Y61: 19.99274818 | Z61: 20.49475424 | AA61: 19.79618457 | AB61: 18.17692314 | AC61: 17.81415115 | AD61: 19.00849091 | AE61: 18.75121963 | AF61: 18.87004893 | AG61: 18.45326895 | AH61: 18.78199671 | AI61: 21.27601589
E62: NPV of allowances except tax (floor) during debt period | G62: =Inputs!$I$11 -> £m 20/21 prices | I62: =SUM(K61:AI61) -> 446.6317922
E64: Annuity factor (floor) | G64: =G$21 -> scalar | I64: =I$54 -> 0.03851370582
E66: Annuity of allowances except tax (floor) during debt tenor | G66: =Inputs!$I$11 -> £m 20/21 prices | I66: =I62 * I64 -> 17.20144546
E67: Annuitised allowances except tax (floor) during debt tenor | G67: =Inputs!$I$11 -> £m 20/21 prices | K67: =K$56 * $I66 -> 0 | L67: =L$56 * $I66 -> 0 | M67: =M$56 * $I66 -> 17.20144546 | N67: 17.20144546 | O67: 17.20144546 | P67: 17.20144546 | Q67: 17.20144546 | R67: 17.20144546 | S67: 17.20144546 | T67: 17.20144546 | U67: 17.20144546 | V67: 17.20144546 | W67: 17.20144546 | X67: 17.20144546 | Y67: 17.20144546 | Z67: 17.20144546 | AA67: 17.20144546 | AB67: 17.20144546 | AC67: 17.20144546 | AD67: 17.20144546 | AE67: 17.20144546 | AF67: 17.20144546 | AG67: 17.20144546 | AH67: 17.20144546 | AI67: 17.20144546
C69: Allowances except tax during debt tail period
E71: Debt tenor | G71: =Inputs!G85 -> full years | I71: =Inputs!I85 -> 22.59178082
E72: Debt tail requirement | G72: =Inputs!G86 -> full years | I72: =Inputs!I86 -> 0
E74: Year within tail requirement period | G74: flag | K74: =AND((SUMIF(Inputs!164:164,'Allowances Floor'!K4,Inputs!172:172)<>0),K56<>TRUE) -> FALSE | L74: =AND((SUMIF(Inputs!164:164,'Allowances Floor'!L4,Inputs!172:172)<>0),L56<>TRUE) -> FALSE | M74: =AND((SUMIF(Inputs!164:164,'Allowances Floor'!M4,Inputs!172:172)<>0),M56<>TRUE) -> FALSE | N74: =AND((SUMIF(Inputs!164:164,'Allowances Floor'!N4,Inputs!172:172)<>0),N56<>TRUE) -> FALSE | O74: =AND((SUMIF(Inputs!164:164,'Allowances Floor'!O4,Inputs!172:172)<>0),O56<>TRUE) -> FALSE | P74: =AND((SUMIF(Inputs!164:164,'Allowances Floor'!P4,Inputs!172:172)<>0),P56<>TRUE) -> FALSE | Q74: =AND((SUMIF(Inputs!164:164,'Allowances Floor'!Q4,Inputs!172:172)<>0),Q56<>TRUE) -> FALSE | R74: =AND((SUMIF(Inputs!164:164,'Allowances Floor'!R4,Inputs!172:172)<>0),R56<>TRUE) -> FALSE | S74: =AND((SUMIF(Inputs!164:164,'Allowances Floor'!S4,Inputs!172:172)<>0),S56<>TRUE) -> FALSE | T74: =AND((SUMIF(Inputs!164:164,'Allowances Floor'!T4,Inputs!172:172)<>0),T56<>TRUE) -> FALSE | U74: =AND((SUMIF(Inputs!164:164,'Allowances Floor'!U4,Inputs!172:172)<>0),U56<>TRUE) -> FALSE | V74: =AND((SUMIF(Inputs!164:164,'Allowances Floor'!V4,Inputs!172:172)<>0),V56<>TRUE) -> FALSE | W74: =AND((SUMIF(Inputs!164:164,'Allowances Floor'!W4,Inputs!172:172)<>0),W56<>TRUE) -> FALSE | X74: =AND((SUMIF(Inputs!164:164,'Allowances Floor'!X4,Inputs!172:172)<>0),X56<>TRUE) -> FALSE | Y74: =AND((SUMIF(Inputs!164:164,'Allowances Floor'!Y4,Inputs!172:172)<>0),Y56<>TRUE) -> FALSE | Z74: =AND((SUMIF(Inputs!164:164,'Allowances Floor'!Z4,Inputs!172:172)<>0),Z56<>TRUE) -> FALSE | AA74: =AND((SUMIF(Inputs!164:164,'Allowances Floor'!AA4,Inputs!172:172)<>0),AA56<>TRUE) -> FALSE | AB74: =AND((SUMIF(Inputs!164:164,'Allowances Floor'!AB4,Inputs!172:172)<>0),AB56<>TRUE) -> FALSE | AC74: =AND((SUMIF(Inputs!164:164,'Allowances Floor'!AC4,Inputs!172:172)<>0),AC56<>TRUE) -> FALSE | AD74: =AND((SUMIF(Inputs!164:164,'Allowances Floor'!AD4,Inputs!172:172)<>0),AD56<>TRUE) -> FALSE | AE74: =AND((SUMIF(Inputs!164:164,'Allowances Floor'!AE4,Inputs!172:172)<>0),AE56<>TRUE) -> FALSE | AF74: =AND((SUMIF(Inputs!164:164,'Allowances Floor'!AF4,Inputs!172:172)<>0),AF56<>TRUE) -> FALSE | AG74: =AND((SUMIF(Inputs!164:164,'Allowances Floor'!AG4,Inputs!172:172)<>0),AG56<>TRUE) -> FALSE | AH74: =AND((SUMIF(Inputs!164:164,'Allowances Floor'!AH4,Inputs!172:172)<>0),AH56<>TRUE) -> FALSE | AI74: =AND((SUMIF(Inputs!164:164,'Allowances Floor'!AI4,Inputs!172:172)<>0),AI56<>TRUE) -> FALSE
E76: Annuitised allowances except tax (floor) during tail period | G76: =Inputs!$I$11 -> £m 20/21 prices | K76: =K$74 * $I66 -> 0 | L76: =L$74 * $I66 -> 0 | M76: 0 | N76: 0 | O76: 0 | P76: 0 | Q76: 0 | R76: 0 | S76: 0 | T76: 0 | U76: 0 | V76: 0 | W76: 0 | X76: 0 | Y76: 0 | Z76: 0 | AA76: 0 | AB76: 0 | AC76: 0 | AD76: 0 | AE76: 0 | AF76: 0 | AG76: 0 | AH76: 0 | AI76: 0
B78: End of sheet

Sheet Tax Deductions
A1: Tax Deductions | H1: Licence
E2: Parameter | G2: Units | H2: Terminology | I2: Constant | K2: Annual values
E3: Project year | K3: Year 1 | L3: Year 2 | M3: Year 3 | N3: Year 4 | O3: Year 5 | P3: Year 6 | Q3: Year 7 | R3: Year 8 | S3: Year 9 | T3: Year 10 | U3: Year 11 | V3: Year 12 | W3: Year 13 | X3: Year 14 | Y3: Year 15 | Z3: Year 16 | AA3: Year 17 | AB3: Year 18 | AC3: Year 19 | AD3: Year 20 | AE3: Year 21 | AF3: Year 22 | AG3: Year 23 | AH3: Year 24 | AI3: Year 25
E4: Year | K4: 1 | L4: 2 | M4: 3 | N4: 4 | O4: 5 | P4: 6 | Q4: 7 | R4: 8 | S4: 9 | T4: 10 | U4: 11 | V4: 12 | W4: 13 | X4: 14 | Y4: 15 | Z4: 16 | AA4: 17 | AB4: 18 | AC4: 19 | AD4: 20 | AE4: 21 | AF4: 22 | AG4: 23 | AH4: 24 | AI4: 25
B6: Tax deductions
C8: Inflation
E10: =Inputs!E195 -> UK RPI uplift from 2020/21 term to start of regime | G10: scalar | I10: =Inputs!I195 -> 1.06856935
E11: =Inputs!E192 -> Long-term expected UK RPI inflation | G11: % | I11: =Inputs!I192 -> 0.0428
E12: Forecast UK inflation uplift | G12: scalar | K12: =I10*(1+$I$11)^0.5 -> 1.091197154 | L12: =K12*(1+$I$11) -> 1.137900392 | M12: =L12*(1+$I$11) -> 1.186602529 | N12: 1.237389117 | O12: 1.290349371 | P12: 1.345576324 | Q12: 1.403166991 | R12: 1.463222538 | S12: 1.525848463 | T12: 1.591154777 | U12: 1.659256201 | V12: 1.730272367 | W12: 1.804328024 | X12: 1.881553263 | Y12: 1.962083743 | Z12: 2.046060927 | AA12: 2.133632335 | AB12: 2.224951799 | AC12: 2.320179736 | AD12: 2.419483429 | AE12: 2.523037319 | AF12: 2.631023317 | AG12: 2.743631114 | AH12: 2.861058526 | AI12: 2.983511831
C14: Total tax deductions - Notional cost of debt
E16: Revenue pool additions | G16: £m nominal | K16: =K38 -> 6.611503434 | L16: 6.894475781 | M16: 7.189559344 | N16: 7.497272484 | O16: 7.818155746 | P16: 8.152772812 | Q16: 8.501711489 | R16: 8.86558474 | S16: 9.245031767 | T16: 9.640719127 | U16: 10.05334191 | V16: 10.48362494 | W16: 10.93232409 | X16: 11.40022756 | Y16: 11.8881573 | Z16: 12.39697043 | AA16: 12.92756076 | AB16: 13.48086036 | AC16: 14.05784119 | AD16: 14.65951679 | AE16: 15.28694411 | AF16: 15.94122532 | AG16: 16.62350976 | AH16: 17.33499598 | AI16: 18.07693381
E17: Capital allowances | G17: £m nominal | K17: =K53 -> 12.378 | L17: 11.63532 | M17: 10.9372008 | N17: 10.28096875 | O17: 9.664110627 | P17: 9.084263989 | Q17: 8.686211003 | R17: 8.165038343 | S17: 7.675136043 | T17: 7.21462788 | U17: 6.781750207 | V17: 6.374845195 | W17: 5.992354483 | X17: 5.632813214 | Y17: 5.500402214 | Z17: 5.384733747 | AA17: 5.061649722 | AB17: 4.757950738 | AC17: 4.472473694 | AD17: 4.204125272 | AE17: 3.951877756 | AF17: 3.714765091 | AG17: 3.851174983 | AH17: 3.620104484 | AI17: 56.71497025
E18: Interest payable | G18: £m nominal | K18: =K69 -> 4.132616104 | L18: 4.025153992 | M18: 3.914033819 | N18: 3.799131061 | O18: 3.680316958 | P18: 3.557458366 | Q18: 3.430417609 | R18: 3.299052323 | S18: 3.1632153 | T18: 3.022754319 | U18: 2.877511979 | V18: 2.72732552 | W18: 2.572026643 | X18: 2.411441316 | Y18: 2.245389588 | Z18: 2.07368538 | AA18: 1.896136278 | AB18: 1.712543319 | AC18: 1.522700768 | AD18: 1.326395885 | AE18: 1.12340869 | AF18: 0.9135117136 | AG18: 0.6964697431 | AH18: 0.4720395597 | AI18: 0.2399696652
E19: Debt transaction costs | G19: £m nominal | K19: =SUMPRODUCT(Finance!K43:AX43,Inputs!K183:AX183)+SUMPRODUCT(Finance!K45:AX45,Inputs!K183:AX183) -> 2.801513495
E20: Total tax deductions | G20: £m nominal | K20: =SUM(K16:K19) -> 25.92363303 | L20: 22.55494977 | M20: 22.04079396 | N20: 21.5773723 | O20: 21.16258333 | P20: 20.79449517 | Q20: 20.6183401 | R20: 20.32967541 | S20: =SUM(S16:S19) -> 20.08338311 | T20: 19.87810133 | U20: 19.71260409 | V20: 19.58579565 | W20: 19.49670521 | X20: 19.44448209 | Y20: 19.6339491 | Z20: 19.85538956 | AA20: 19.88534676 | AB20: 19.95135442 | AC20: 20.05301565 | AD20: 20.19003795 | AE20: 20.36223056 | AF20: 20.56950212 | AG20: 21.17115449 | AH20: 21.42714002 | AI20: 75.03187372
C22: Total tax deductions - Actual cost of debt
E24: Year within debt tenor or tail period | G24: flag | K24: =OR('Allowances Floor'!K56,'Allowances Floor'!K74) -> FALSE | L24: =OR('Allowances Floor'!L56,'Allowances Floor'!L74) -> FALSE | M24: =OR('Allowances Floor'!M56,'Allowances Floor'!M74) -> TRUE | N24: =OR('Allowances Floor'!N56,'Allowances Floor'!N74) -> TRUE | O24: =OR('Allowances Floor'!O56,'Allowances Floor'!O74) -> TRUE | P24: =OR('Allowances Floor'!P56,'Allowances Floor'!P74) -> TRUE | Q24: =OR('Allowances Floor'!Q56,'Allowances Floor'!Q74) -> TRUE | R24: =OR('Allowances Floor'!R56,'Allowances Floor'!R74) -> TRUE | S24: =OR('Allowances Floor'!S56,'Allowances Floor'!S74) -> TRUE | T24: =OR('Allowances Floor'!T56,'Allowances Floor'!T74) -> TRUE | U24: =OR('Allowances Floor'!U56,'Allowances Floor'!U74) -> TRUE | V24: =OR('Allowances Floor'!V56,'Allowances Floor'!V74) -> TRUE | W24: =OR('Allowances Floor'!W56,'Allowances Floor'!W74) -> TRUE | X24: =OR('Allowances Floor'!X56,'Allowances Floor'!X74) -> TRUE | Y24: =OR('Allowances Floor'!Y56,'Allowances Floor'!Y74) -> TRUE | Z24: =OR('Allowances Floor'!Z56,'Allowances Floor'!Z74) -> TRUE | AA24: =OR('Allowances Floor'!AA56,'Allowances Floor'!AA74) -> TRUE | AB24: =OR('Allowances Floor'!AB56,'Allowances Floor'!AB74) -> TRUE | AC24: =OR('Allowances Floor'!AC56,'Allowances Floor'!AC74) -> TRUE | AD24: =OR('Allowances Floor'!AD56,'Allowances Floor'!AD74) -> TRUE | AE24: =OR('Allowances Floor'!AE56,'Allowances Floor'!AE74) -> TRUE | AF24: =OR('Allowances Floor'!AF56,'Allowances Floor'!AF74) -> TRUE | AG24: =OR('Allowances Floor'!AG56,'Allowances Floor'!AG74) -> TRUE | AH24: =OR('Allowances Floor'!AH56,'Allowances Floor'!AH74) -> TRUE | AI24: =OR('Allowances Floor'!AI56,'Allowances Floor'!AI74) -> TRUE
E26: Revenue pool additions | G26: £m nominal | K26: =K38*K$24 -> 0 | L26: 0 | M26: 7.189559344 | N26: 7.497272484 | O26: 7.818155746 | P26: 8.152772812 | Q26: 8.501711489 | R26: 8.86558474 | S26: 9.245031767 | T26: 9.640719127 | U26: 10.05334191 | V26: 10.48362494 | W26: 10.93232409 | X26: 11.40022756 | Y26: 11.8881573 | Z26: 12.39697043 | AA26: 12.92756076 | AB26: 13.48086036 | AC26: 14.05784119 | AD26: 14.65951679 | AE26: 15.28694411 | AF26: 15.94122532 | AG26: 16.62350976 | AH26: 17.33499598 | AI26: 18.07693381
E27: Capital allowances | G27: £m nominal | K27: =K53*K$24 -> 0 | L27: 0 | M27: 10.9372008 | N27: 10.28096875 | O27: =O53*O$24 -> 9.664110627 | P27: 9.084263989 | Q27: 8.686211003 | R27: 8.165038343 | S27: 7.675136043 | T27: 7.21462788 | U27: 6.781750207 | V27: 6.374845195 | W27: 5.992354483 | X27: 5.632813214 | Y27: 5.500402214 | Z27: 5.384733747 | AA27: 5.061649722 | AB27: 4.757950738 | AC27: 4.472473694 | AD27: 4.204125272 | AE27: 3.951877756 | AF27: 3.714765091 | AG27: 3.851174983 | AH27: 3.620104484 | AI27: 56.71497025
E28: Financial expenses during operation | G28: £m nominal | K28: =SUMIF(Finance!10:10,'Tax Deductions'!K4,Finance!140:140)*K$24 -> 0 | L28: =SUMIF(Finance!10:10,'Tax Deductions'!L4,Finance!140:140)*L$24 -> 0 | M28: =SUMIF(Finance!10:10,'Tax Deductions'!M4,Finance!140:140)*M$24 -> 7.623232553 | N28: =SUMIF(Finance!10:10,'Tax Deductions'!N4,Finance!140:140)*N$24 -> 7.623232553 | O28: =SUMIF(Finance!10:10,'Tax Deductions'!O4,Finance!140:140)*O$24 -> 7.479543086 | P28: =SUMIF(Finance!10:10,'Tax Deductions'!P4,Finance!140:140)*P$24 -> 7.299287257 | Q28: =SUMIF(Finance!10:10,'Tax Deductions'!Q4,Finance!140:140)*Q$24 -> 7.106674977 | R28: =SUMIF(Finance!10:10,'Tax Deductions'!R4,Finance!140:140)*R$24 -> 6.908544726 | S28: =SUMIF(Finance!10:10,'Tax Deductions'!S4,Finance!140:140)*S$24 -> 6.891422859 | T28: =SUMIF(Finance!10:10,'Tax Deductions'!T4,Finance!140:140)*T$24 -> 6.646552972 | U28: =SUMIF(Finance!10:10,'Tax Deductions'!U4,Finance!140:140)*U$24 -> 6.432301315 | V28: =SUMIF(Finance!10:10,'Tax Deductions'!V4,Finance!140:140)*V$24 -> 6.15849506 | W28: =SUMIF(Finance!10:10,'Tax Deductions'!W4,Finance!140:140)*W$24 -> 5.851549039 | X28: =SUMIF(Finance!10:10,'Tax Deductions'!X4,Finance!140:140)*X$24 -> 5.687589401 | Y28: =SUMIF(Finance!10:10,'Tax Deductions'!Y4,Finance!140:140)*Y$24 -> 5.317583617 | Z28: =SUMIF(Finance!10:10,'Tax Deductions'!Z4,Finance!140:140)*Z$24 -> 4.947590449 | AA28: =SUMIF(Finance!10:10,'Tax Deductions'!AA4,Finance!140:140)*AA$24 -> 4.531289642 | AB28: =SUMIF(Finance!10:10,'Tax Deductions'!AB4,Finance!140:140)*AB$24 -> 4.131688559 | AC28: =SUMIF(Finance!10:10,'Tax Deductions'!AC4,Finance!140:140)*AC$24 -> 3.886169929 | AD28: =SUMIF(Finance!10:10,'Tax Deductions'!AD4,Finance!140:140)*AD$24 -> 3.512074653 | AE28: =SUMIF(Finance!10:10,'Tax Deductions'!AE4,Finance!140:140)*AE$24 -> 3.054131108 | AF28: =SUMIF(Finance!10:10,'Tax Deductions'!AF4,Finance!140:140)*AF$24 -> 2.58217128 | AG28: =SUMIF(Finance!10:10,'Tax Deductions'!AG4,Finance!140:140)*AG$24 -> 2.082030508 | AH28: =SUMIF(Finance!10:10,'Tax Deductions'!AH4,Finance!140:140)*AH$24 -> 1.61961911 | AI28: =SUMIF(Finance!10:10,'Tax Deductions'!AI4,Finance!140:140)*AI$24 -> 1.501456987
E29: Debt transaction costs | G29: £m nominal | K29: =IF(Inputs!I128=1,'Tax Deductions'!K19,SUMPRODUCT(Finance!108:108,Finance!14:14)+SUMPRODUCT(Finance!109:109,Finance!14:14)) -> 4.172773882
E30: Total tax deductions | G30: £m nominal | K30: =SUM(K26:K29) -> 4.172773882 | L30: 0 | M30: 25.7499927 | N30: 25.40147379 | O30: 24.96180946 | P30: 24.53632406 | Q30: 24.29459747 | R30: 23.93916781 | S30: 23.81159067 | T30: 23.50189998 | U30: 23.26739343 | V30: 23.01696519 | W30: 22.77622761 | X30: 22.72063017 | Y30: 22.70614313 | Z30: 22.72929462 | AA30: 22.52050013 | AB30: 22.37049966 | AC30: 22.41648481 | AD30: 22.37571672 | AE30: 22.29295297 | AF30: 22.23816169 | AG30: 22.55671525 | AH30: 22.57471957 | AI30: 76.29336104
B32: Tax pools
C34: Revenue pool
E36: Controllable Opex | G36: £m nominal | K36: =Inputs!K61* K$12 -> 5.267291106 | L36: =Inputs!L61* L$12 -> 5.492731165 | M36: =Inputs!M61* M$12 -> 5.727820059 | N36: =Inputs!N61* N$12 -> 5.972970758 | O36: =Inputs!O61* O$12 -> 6.228613906 | P36: =Inputs!P61* P$12 -> 6.495198581 | Q36: =Inputs!Q61* Q$12 -> 6.773193081 | R36: =Inputs!R61* R$12 -> 7.063085745 | S36: =Inputs!S61* S$12 -> 7.365385814 | T36: =Inputs!T61* T$12 -> 7.680624327 | U36: =Inputs!U61* U$12 -> 8.009355049 | V36: =Inputs!V61* V$12 -> 8.352155445 | W36: =Inputs!W61* W$12 -> 8.709627698 | X36: =Inputs!X61* X$12 -> 9.082399763 | Y36: =Inputs!Y61* Y$12 -> 9.471126473 | Z36: =Inputs!Z61* Z$12 -> 9.876490686 | AA36: =Inputs!AA61* AA$12 -> 10.29920449 | AB36: =Inputs!AB61* AB$12 -> 10.74001044 | AC36: =Inputs!AC61* AC$12 -> 11.19968289 | AD36: =Inputs!AD61* AD$12 -> 11.67902931 | AE36: =Inputs!AE61* AE$12 -> 12.17889177 | AF36: =Inputs!AF61* AF$12 -> 12.70014834 | AG36: =Inputs!AG61* AG$12 -> 13.24371468 | AH36: =Inputs!AH61* AH$12 -> 13.81054567 | AI36: =Inputs!AI61* AI$12 -> 14.40163703
E37: Non-controllable Opex (baseline) | G37: £m nominal | K37: =Inputs!K62* K$12 -> 1.344212328 | L37: =Inputs!L62* L$12 -> 1.401744615 | M37: =Inputs!M62* M$12 -> 1.461739285 | N37: =Inputs!N62* N$12 -> 1.524301726 | O37: =Inputs!O62* O$12 -> 1.58954184 | P37: =Inputs!P62* P$12 -> 1.657574231 | Q37: =Inputs!Q62* Q$12 -> 1.728518408 | R37: =Inputs!R62* R$12 -> 1.802498996 | S37: =Inputs!S62* S$12 -> 1.879645953 | T37: =Inputs!T62* T$12 -> 1.960094799 | U37: =Inputs!U62* U$12 -> 2.043986857 | V37: =Inputs!V62* V$12 -> 2.131469494 | W37: =Inputs!W62* W$12 -> 2.222696389 | X37: =Inputs!X62* X$12 -> 2.317827794 | Y37: =Inputs!Y62* Y$12 -> 2.417030824 | Z37: =Inputs!Z62* Z$12 -> 2.520479743 | AA37: =Inputs!AA62* AA$12 -> 2.628356276 | AB37: =Inputs!AB62* AB$12 -> 2.740849925 | AC37: =Inputs!AC62* AC$12 -> 2.858158301 | AD37: =Inputs!AD62* AD$12 -> 2.980487477 | AE37: =Inputs!AE62* AE$12 -> 3.108052341 | AF37: =Inputs!AF62* AF$12 -> 3.241076981 | AG37: =Inputs!AG62* AG$12 -> 3.379795076 | AH37: =Inputs!AH62* AH$12 -> 3.524450305 | AI37: =Inputs!AI62* AI$12 -> 3.675296778
E38: Revenue pool additions | G38: £m nominal | K38: =SUM(K36:K37) -> 6.611503434 | L38: 6.894475781 | M38: 7.189559344 | N38: 7.497272484 | O38: 7.818155746 | P38: 8.152772812 | Q38: 8.501711489 | R38: 8.86558474 | S38: 9.245031767 | T38: 9.640719127 | U38: 10.05334191 | V38: 10.48362494 | W38: 10.93232409 | X38: 11.40022756 | Y38: 11.8881573 | Z38: 12.39697043 | AA38: 12.92756076 | AB38: 13.48086036 | AC38: 14.05784119 | AD38: 14.65951679 | AE38: 15.28694411 | AF38: 15.94122532 | AG38: 16.62350976 | AH38: 17.33499598 | AI38: 18.07693381
C40: Capital allowance pool
E42: Capital allowance rate (declining balance) | G42: =Inputs!G190 -> % | K42: =Inputs!K190 -> 0.06 | L42: =Inputs!L190 -> 0.06 | M42: =Inputs!M190 -> 0.06 | N42: =Inputs!N190 -> 0.06 | O42: =Inputs!O190 -> 0.06 | P42: =Inputs!P190 -> 0.06 | Q42: =Inputs!Q190 -> 0.06 | R42: =Inputs!R190 -> 0.06 | S42: =Inputs!S190 -> 0.06 | T42: =Inputs!T190 -> 0.06 | U42: =Inputs!U190 -> 0.06 | V42: =Inputs!V190 -> 0.06 | W42: =Inputs!W190 -> 0.06 | X42: =Inputs!X190 -> 0.06 | Y42: =Inputs!Y190 -> 0.06 | Z42: =Inputs!Z190 -> 0.06 | AA42: =Inputs!AA190 -> 0.06 | AB42: =Inputs!AB190 -> 0.06 | AC42: =Inputs!AC190 -> 0.06 | AD42: =Inputs!AD190 -> 0.06 | AE42: =Inputs!AE190 -> 0.06 | AF42: =Inputs!AF190 -> 0.06 | AG42: =Inputs!AG190 -> 0.06 | AH42: =Inputs!AH190 -> 0.06 | AI42: =Inputs!AI190 -> 0.06
E43: Number of operational years | G43: =Inputs!G155 -> full years | I43: =Inputs!I155 -> 25
E45: Opening balance brought forward | G45: £m nominal | K45: =J51 -> 0 | L45: 193.922 | M45: 182.28668 | N45: 171.3494792 | O45: 161.0685104 | P45: 151.4043998 | Q45: 142.3201358 | R45: 136.0839724 | S45: 127.918934 | T45: 120.243798 | U45: 113.0291701 | V45: 106.2474199 | W45: 99.87257472 | X45: 93.88022023 | Y45: 88.24740702 | Z45: 86.17296801 | AA45: 84.3608287 | AB45: 79.29917897 | AC45: 74.54122824 | AD45: 70.06875454 | AE45: 65.86462927 | AF45: 61.91275151 | AG45: 58.19798642 | AH45: 60.33507473 | AI45: 56.71497025
E46: Capex | G46: £m nominal | K46: =SUMPRODUCT('Pre Op RAV'!K21:AX21,Inputs!K183:AX183) -> 206.3
E47: Replacement Capex | G47: £m nominal | K47: ='Op Rav'!K13 * K$12 -> 0 | L47: ='Op Rav'!L13 * L$12 -> 0 | M47: ='Op Rav'!M13 * M$12 -> 0 | N47: ='Op Rav'!N13 * N$12 -> 0 | O47: ='Op Rav'!O13 * O$12 -> 0 | P47: ='Op Rav'!P13 * P$12 -> 0 | Q47: ='Op Rav'!Q13 * Q$12 -> 2.450047557 | R47: ='Op Rav'!R13 * R$12 -> 0 | S47: ='Op Rav'!S13 * S$12 -> 0 | T47: ='Op Rav'!T13 * T$12 -> 0 | U47: ='Op Rav'!U13 * U$12 -> 0 | V47: ='Op Rav'!V13 * V$12 -> 0 | W47: ='Op Rav'!W13 * W$12 -> 0 | X47: ='Op Rav'!X13 * X$12 -> 0 | Y47: ='Op Rav'!Y13 * Y$12 -> 3.425963205 | Z47: ='Op Rav'!Z13 * Z$12 -> 3.57259443 | AA47: ='Op Rav'!AA13 * AA$12 -> 0 | AB47: ='Op Rav'!AB13 * AB$12 -> 0 | AC47: ='Op Rav'!AC13 * AC$12 -> 0 | AD47: ='Op Rav'!AD13 * AD$12 -> 0 | AE47: ='Op Rav'!AE13 * AE$12 -> 0 | AF47: ='Op Rav'!AF13 * AF$12 -> 0 | AG47: ='Op Rav'!AG13 * AG$12 -> 5.988263294 | AH47: ='Op Rav'!AH13 * AH$12 -> 0 | AI47: ='Op Rav'!AI13 * AI$12 -> 0
E48: Tax book value pre-depreciation | G48: £m nominal | K48: =SUM(K45:K47) -> 206.3 | L48: 193.922 | M48: 182.28668 | N48: 171.3494792 | O48: 161.0685104 | P48: 151.4043998 | Q48: 144.7701834 | R48: 136.0839724 | S48: 127.918934 | T48: 120.243798 | U48: 113.0291701 | V48: 106.2474199 | W48: 99.87257472 | X48: 93.88022023 | Y48: 91.67337023 | Z48: 89.74556244 | AA48: 84.3608287 | AB48: 79.29917897 | AC48: 74.54122824 | AD48: 70.06875454 | AE48: 65.86462927 | AF48: 61.91275151 | AG48: 64.18624972 | AH48: 60.33507473 | AI48: 56.71497025
E49: Capital allowance (reducing balance) | G49: £m nominal | K49: =-K48 * K42 -> -12.378 | L49: =-L48 * L42 -> -11.63532 | M49: =-M48 * M42 -> -10.9372008 | N49: -10.28096875 | O49: -9.664110627 | P49: -9.084263989 | Q49: -8.686211003 | R49: -8.165038343 | S49: -7.675136043 | T49: -7.21462788 | U49: -6.781750207 | V49: -6.374845195 | W49: -5.992354483 | X49: -5.632813214 | Y49: -5.500402214 | Z49: -5.384733747 | AA49: -5.061649722 | AB49: -4.757950738 | AC49: -4.472473694 | AD49: -4.204125272 | AE49: -3.951877756 | AF49: -3.714765091 | AG49: -3.851174983 | AH49: -3.620104484 | AI49: -3.402898215
E50: Write-back allowance | G50: £m nominal | AI50: =-SUM(AI48:AI49) -> -53.31207203
E51: Closing balance carried forward | G51: £m nominal | K51: =SUM(K48:K50) -> 193.922 | L51: =SUM(L48:L50) -> 182.28668 | M51: 171.3494792 | N51: 161.0685104 | O51: 151.4043998 | P51: 142.3201358 | Q51: 136.0839724 | R51: 127.918934 | S51: 120.243798 | T51: 113.0291701 | U51: 106.2474199 | V51: 99.87257472 | W51: 93.88022023 | X51: 88.24740702 | Y51: 86.17296801 | Z51: 84.3608287 | AA51: 79.29917897 | AB51: 74.54122824 | AC51: 70.06875454 | AD51: 65.86462927 | AE51: 61.91275151 | AF51: 58.19798642 | AG51: 60.33507473 | AH51: 56.71497025 | AI51: =SUM(AI48:AI50) -> 0
E53: Capital allowances | G53: £m nominal | K53: =-(K49 + K50) -> 12.378 | L53: 11.63532 | M53: 10.9372008 | N53: 10.28096875 | O53: 9.664110627 | P53: 9.084263989 | Q53: 8.686211003 | R53: 8.165038343 | S53: 7.675136043 | T53: 7.21462788 | U53: 6.781750207 | V53: =-(V49 + V50) -> 6.374845195 | W53: 5.992354483 | X53: 5.632813214 | Y53: 5.500402214 | Z53: 5.384733747 | AA53: 5.061649722 | AB53: 4.757950738 | AC53: 4.472473694 | AD53: 4.204125272 | AE53: 3.951877756 | AF53: 3.714765091 | AG53: 3.851174983 | AH53: 3.620104484 | AI53: 56.71497025
B55: Interest - Notional cost of debt
C57: Cost of debt
E59: Cost of debt (for tax) | G59: =Inputs!G69 -> real annual % | I59: =Inputs!I71 -> -0.0084
E60: Expected UK RPI inflation | G60: =Inputs!G192 -> % | I60: =Inputs!I192 -> 0.0428
E61: Cost of debt (for tax) | G61: nominal annual % | I61: =(1 + I59) * (1 + I$60) - 1 -> 0.03404048
C63: Net debt
E65: Number of operational years | G65: =Inputs!G155 -> full years | I65: =Inputs!I155 -> 25
E66: Operational notional gearing | G66: =Inputs!G74 -> % | I66: =Inputs!I74 -> 0.5
E68: Principal repayments | G68: £m nominal | K68: =K70 - K69 -> 3.156891792 | L68: =L70 - L69 -> 3.264353904 | M68: 3.375474078 | N68: 3.490376835 | O68: 3.609190938 | P68: 3.73204953 | Q68: 3.859090288 | R68: 3.990455573 | S68: 4.126292597 | T68: 4.266753577 | U68: 4.411995917 | V68: 4.562182376 | W68: 4.717481254 | X68: 4.87806658 | Y68: 5.044118308 | Z68: 5.215822516 | AA68: 5.393371618 | AB68: 5.576964577 | AC68: 5.766807128 | AD68: 5.963112011 | AE68: 6.166099206 | AF68: 6.375996183 | AG68: 6.593038153 | AH68: 6.817468336 | AI68: 7.049538231
E69: Net interest paid | G69: £m nominal | K69: =$I61 * K72 -> 4.132616104 | L69: 4.025153992 | M69: 3.914033819 | N69: 3.799131061 | O69: 3.680316958 | P69: 3.557458366 | Q69: 3.430417609 | R69: 3.299052323 | S69: 3.1632153 | T69: 3.022754319 | U69: 2.877511979 | V69: 2.72732552 | W69: 2.572026643 | X69: 2.411441316 | Y69: 2.245389588 | Z69: 2.07368538 | AA69: 1.896136278 | AB69: 1.712543319 | AC69: 1.522700768 | AD69: 1.326395885 | AE69: 1.12340869 | AF69: 0.9135117136 | AG69: 0.6964697431 | AH69: 0.4720395597 | AI69: 0.2399696652
E70: Total | G70: £m nominal | K70: =$K$72*$I61/(1-(1+$I61)^(-$I65)) -> 7.289507896 | L70: =$K$72*$I61/(1-(1+$I61)^(-$I65)) -> 7.289507896 | M70: 7.289507896 | N70: 7.289507896 | O70: 7.289507896 | P70: 7.289507896 | Q70: 7.289507896 | R70: 7.289507896 | S70: 7.289507896 | T70: 7.289507896 | U70: 7.289507896 | V70: 7.289507896 | W70: 7.289507896 | X70: 7.289507896 | Y70: 7.289507896 | Z70: 7.289507896 | AA70: 7.289507896 | AB70: 7.289507896 | AC70: 7.289507896 | AD70: 7.289507896 | AE70: 7.289507896 | AF70: 7.289507896 | AG70: 7.289507896 | AH70: 7.289507896 | AI70: 7.289507896
E72: Opening net debt | G72: £m nominal | K72: ='Op Rav'!K12*I10*I66 -> 121.4029915 | L72: =K74 -> 118.2460997 | M72: =L74 -> 114.9817458 | N72: 111.6062717 | O72: 108.1158949 | P72: 104.506704 | Q72: 100.7746544 | R72: 96.91556414 | S72: 92.92510857 | T72: 88.79881597 | U72: 84.53206239 | V72: 80.12006648 | W72: 75.5578841 | X72: 70.84040285 | Y72: 65.96233627 | Z72: 60.91821796 | AA72: 55.70239544 | AB72: 50.30902382 | AC72: 44.73205925 | AD72: 38.96525212 | AE72: 33.00214011 | AF72: 26.8360409 | AG72: 20.46004472 | AH72: 13.86700657 | AI72: 7.049538231
E73: Less principal repayment | G73: £m nominal | K73: =IF(K3 = "Year "&$I65, -K72, -K68) -> -3.156891792 | L73: -3.264353904 | M73: -3.375474078 | N73: -3.490376835 | O73: -3.609190938 | P73: -3.73204953 | Q73: -3.859090288 | R73: -3.990455573 | S73: -4.126292597 | T73: -4.266753577 | U73: -4.411995917 | V73: -4.562182376 | W73: -4.717481254 | X73: -4.87806658 | Y73: -5.044118308 | Z73: -5.215822516 | AA73: -5.393371618 | AB73: -5.576964577 | AC73: -5.766807128 | AD73: -5.963112011 | AE73: -6.166099206 | AF73: -6.375996183 | AG73: -6.593038153 | AH73: -6.817468336 | AI73: -7.049538231
E74: Closing net debt | G74: £m nominal | K74: =SUM(K72:K73) -> 118.2460997 | L74: =SUM(L72:L73) -> 114.9817458 | M74: 111.6062717 | N74: 108.1158949 | O74: 104.506704 | P74: 100.7746544 | Q74: 96.91556414 | R74: 92.92510857 | S74: 88.79881597 | T74: 84.53206239 | U74: 80.12006648 | V74: 75.5578841 | W74: 70.84040285 | X74: =SUM(X72:X73) -> 65.96233627 | Y74: =SUM(Y72:Y73) -> 60.91821796 | Z74: 55.70239544 | AA74: 50.30902382 | AB74: 44.73205925 | AC74: 38.96525212 | AD74: 33.00214011 | AE74: 26.8360409 | AF74: 20.46004472 | AG74: 13.86700657 | AH74: 7.049538231 | AI74: 0
B76: End of sheet

Sheet Tax Cap
A1: Tax Cap | H1: Licence
E2: Parameter | G2: Units | H2: Terminology | I2: Constant | K2: Annual values
E3: Project year | K3: Year 1 | L3: Year 2 | M3: Year 3 | N3: Year 4 | O3: Year 5 | P3: Year 6 | Q3: Year 7 | R3: Year 8 | S3: Year 9 | T3: Year 10 | U3: Year 11 | V3: Year 12 | W3: Year 13 | X3: Year 14 | Y3: Year 15 | Z3: Year 16 | AA3: Year 17 | AB3: Year 18 | AC3: Year 19 | AD3: Year 20 | AE3: Year 21 | AF3: Year 22 | AG3: Year 23 | AH3: Year 24 | AI3: Year 25
B5: Unprofiled tax allowance (cap)
C7: Profits attributable to corporation tax
E9: Annuitised allowances except tax (cap) | G9: £m nominal prices | K9: ='Allowances Cap'!K34* 'Tax Deductions'!K$12 -> 29.57692464 | L9: ='Allowances Cap'!L34* 'Tax Deductions'!L$12 -> 30.84281702 | M9: ='Allowances Cap'!M34* 'Tax Deductions'!M$12 -> 32.16288958 | N9: ='Allowances Cap'!N34* 'Tax Deductions'!N$12 -> 33.53946126 | O9: ='Allowances Cap'!O34* 'Tax Deductions'!O$12 -> 34.9749502 | P9: ='Allowances Cap'!P34* 'Tax Deductions'!P$12 -> 36.47187807 | Q9: ='Allowances Cap'!Q34* 'Tax Deductions'!Q$12 -> 38.03287445 | R9: ='Allowances Cap'!R34* 'Tax Deductions'!R$12 -> 39.66068148 | S9: ='Allowances Cap'!S34* 'Tax Deductions'!S$12 -> 41.35815864 | T9: ='Allowances Cap'!T34* 'Tax Deductions'!T$12 -> 43.12828783 | U9: ='Allowances Cap'!U34* 'Tax Deductions'!U$12 -> 44.97417855 | V9: ='Allowances Cap'!V34* 'Tax Deductions'!V$12 -> 46.89907339 | W9: ='Allowances Cap'!W34* 'Tax Deductions'!W$12 -> 48.90635374 | X9: ='Allowances Cap'!X34* 'Tax Deductions'!X$12 -> 50.99954568 | Y9: ='Allowances Cap'!Y34* 'Tax Deductions'!Y$12 -> 53.18232623 | Z9: ='Allowances Cap'!Z34* 'Tax Deductions'!Z$12 -> 55.45852979 | AA9: ='Allowances Cap'!AA34* 'Tax Deductions'!AA$12 -> 57.83215487 | AB9: ='Allowances Cap'!AB34* 'Tax Deductions'!AB$12 -> 60.3073711 | AC9: ='Allowances Cap'!AC34* 'Tax Deductions'!AC$12 -> 62.88852658 | AD9: ='Allowances Cap'!AD34* 'Tax Deductions'!AD$12 -> 65.58015552 | AE9: ='Allowances Cap'!AE34* 'Tax Deductions'!AE$12 -> 68.38698617 | AF9: ='Allowances Cap'!AF34* 'Tax Deductions'!AF$12 -> 71.31394918 | AG9: ='Allowances Cap'!AG34* 'Tax Deductions'!AG$12 -> 74.36618621 | AH9: ='Allowances Cap'!AH34* 'Tax Deductions'!AH$12 -> 77.54905898 | AI9: ='Allowances Cap'!AI34* 'Tax Deductions'!AI$12 -> 80.8681587
E10: Less tax deductions | G10: £m nominal prices | K10: =-'Tax Deductions'!K20 -> -25.92363303 | L10: =-'Tax Deductions'!L20 -> -22.55494977 | M10: =-'Tax Deductions'!M20 -> -22.04079396 | N10: =-'Tax Deductions'!N20 -> -21.5773723 | O10: =-'Tax Deductions'!O20 -> -21.16258333 | P10: =-'Tax Deductions'!P20 -> -20.79449517 | Q10: =-'Tax Deductions'!Q20 -> -20.6183401 | R10: =-'Tax Deductions'!R20 -> -20.32967541 | S10: =-'Tax Deductions'!S20 -> -20.08338311 | T10: =-'Tax Deductions'!T20 -> -19.87810133 | U10: =-'Tax Deductions'!U20 -> -19.71260409 | V10: =-'Tax Deductions'!V20 -> -19.58579565 | W10: =-'Tax Deductions'!W20 -> -19.49670521 | X10: =-'Tax Deductions'!X20 -> -19.44448209 | Y10: =-'Tax Deductions'!Y20 -> -19.6339491 | Z10: =-'Tax Deductions'!Z20 -> -19.85538956 | AA10: =-'Tax Deductions'!AA20 -> -19.88534676 | AB10: =-'Tax Deductions'!AB20 -> -19.95135442 | AC10: =-'Tax Deductions'!AC20 -> -20.05301565 | AD10: =-'Tax Deductions'!AD20 -> -20.19003795 | AE10: =-'Tax Deductions'!AE20 -> -20.36223056 | AF10: =-'Tax Deductions'!AF20 -> -20.56950212 | AG10: =-'Tax Deductions'!AG20 -> -21.17115449 | AH10: =-'Tax Deductions'!AH20 -> -21.42714002 | AI10: =-'Tax Deductions'!AI20 -> -75.03187372
E11: Profits attributable to corporation tax | G11: £m nominal prices | K11: =SUM(K9:K10) -> 3.653291608 | L11: =SUM(L9:L10) -> 8.287867242 | M11: 10.12209562 | N11: 11.96208896 | O11: 13.81236687 | P11: 15.6773829 | Q11: 17.41453435 | R11: 19.33100607 | S11: 21.27477553 | T11: 23.25018651 | U11: 25.26157446 | V11: 27.31327774 | W11: 29.40964852 | X11: 31.55506359 | Y11: 33.54837713 | Z11: 35.60314024 | AA11: 37.94680811 | AB11: 40.35601667 | AC11: 42.83551093 | AD11: 45.39011757 | AE11: 48.02475562 | AF11: 50.74444706 | AG11: 53.19503172 | AH11: 56.12191895 | AI11: 5.83628498
C13: Tax losses
E15: Taxable losses brought forward | G15: £m nominal prices | K15: =J18 -> 0 | L15: =K18 -> 0 | M15: 0 | N15: 0 | O15: 0 | P15: 0 | Q15: 0 | R15: 0 | S15: 0 | T15: 0 | U15: 0 | V15: 0 | W15: 0 | X15: 0 | Y15: 0 | Z15: 0 | AA15: 0 | AB15: 0 | AC15: 0 | AD15: 0 | AE15: 0 | AF15: 0 | AG15: 0 | AH15: 0 | AI15: 0
E16: In-year taxable loss | G16: £m nominal prices | K16: =MIN(K11, 0) -> 0 | L16: 0 | M16: 0 | N16: 0 | O16: 0 | P16: 0 | Q16: 0 | R16: 0 | S16: 0 | T16: 0 | U16: 0 | V16: 0 | W16: 0 | X16: 0 | Y16: 0 | Z16: 0 | AA16: 0 | AB16: 0 | AC16: 0 | AD16: 0 | AE16: 0 | AF16: 0 | AG16: 0 | AH16: 0 | AI16: 0
E17: Profits used to offset losses | G17: £m nominal prices | K17: =IF(K11 >= 0, MIN(K11, -K15), 0) -> 0 | L17: 0 | M17: 0 | N17: 0 | O17: 0 | P17: 0 | Q17: 0 | R17: 0 | S17: 0 | T17: 0 | U17: 0 | V17: 0 | W17: 0 | X17: 0 | Y17: 0 | Z17: 0 | AA17: 0 | AB17: 0 | AC17: 0 | AD17: 0 | AE17: 0 | AF17: 0 | AG17: 0 | AH17: 0 | AI17: 0
E18: Taxable losses carried forward | G18: £m nominal prices | K18: =SUM(K15:K17) -> 0 | L18: =SUM(L15:L17) -> 0 | M18: 0 | N18: 0 | O18: 0 | P18: 0 | Q18: 0 | R18: 0 | S18: 0 | T18: 0 | U18: 0 | V18: 0 | W18: 0 | X18: 0 | Y18: 0 | Z18: 0 | AA18: 0 | AB18: 0 | AC18: 0 | AD18: 0 | AE18: 0 | AF18: 0 | AG18: 0 | AH18: 0 | AI18: 0
C20: Tax allowance
E22: Profits attributable to corporation tax (after taxable losses) | G22: £m nominal prices | K22: =MAX(K11 - K17,0) -> 3.653291608 | L22: 8.287867242 | M22: 10.12209562 | N22: 11.96208896 | O22: 13.81236687 | P22: 15.6773829 | Q22: 17.41453435 | R22: 19.33100607 | S22: 21.27477553 | T22: 23.25018651 | U22: 25.26157446 | V22: 27.31327774 | W22: 29.40964852 | X22: =MAX(X11 - X17,0) -> 31.55506359 | Y22: =MAX(Y11 - Y17,0) -> 33.54837713 | Z22: 35.60314024 | AA22: 37.94680811 | AB22: 40.35601667 | AC22: 42.83551093 | AD22: 45.39011757 | AE22: 48.02475562 | AF22: 50.74444706 | AG22: 53.19503172 | AH22: 56.12191895 | AI22: 5.83628498
E23: Corporation tax rate | G23: =Inputs!G189 -> % | K23: =Inputs!K189 -> 0.25 | L23: =Inputs!L189 -> 0.25 | M23: =Inputs!M189 -> 0.25 | N23: =Inputs!N189 -> 0.25 | O23: =Inputs!O189 -> 0.25 | P23: =Inputs!P189 -> 0.25 | Q23: =Inputs!Q189 -> 0.25 | R23: =Inputs!R189 -> 0.25 | S23: =Inputs!S189 -> 0.25 | T23: =Inputs!T189 -> 0.25 | U23: =Inputs!U189 -> 0.25 | V23: =Inputs!V189 -> 0.25 | W23: =Inputs!W189 -> 0.25 | X23: =Inputs!X189 -> 0.25 | Y23: =Inputs!Y189 -> 0.25 | Z23: =Inputs!Z189 -> 0.25 | AA23: =Inputs!AA189 -> 0.25 | AB23: =Inputs!AB189 -> 0.25 | AC23: =Inputs!AC189 -> 0.25 | AD23: =Inputs!AD189 -> 0.25 | AE23: =Inputs!AE189 -> 0.25 | AF23: =Inputs!AF189 -> 0.25 | AG23: =Inputs!AG189 -> 0.25 | AH23: =Inputs!AH189 -> 0.25 | AI23: =Inputs!AI189 -> 0.25
E24: Corporation tax charge after losses | G24: £m nominal prices | K24: =K22 * K23 -> 0.913322902 | L24: 2.071966811 | M24: 2.530523905 | N24: 2.99052224 | O24: 3.453091717 | P24: 3.919345725 | Q24: 4.353633587 | R24: 4.832751517 | S24: 5.318693883 | T24: 5.812546627 | U24: 6.315393615 | V24: 6.828319435 | W24: 7.352412131 | X24: =X22 * X23 -> 7.888765897 | Y24: =Y22 * Y23 -> 8.387094283 | Z24: 8.900785059 | AA24: 9.486702026 | AB24: 10.08900417 | AC24: 10.70887773 | AD24: 11.34752939 | AE24: 12.0061889 | AF24: 12.68611177 | AG24: 13.29875793 | AH24: 14.03047974 | AI24: 1.459071245
E26: Grossing-up factor for tax on tax charge after losses | G26: scalar | K26: =1 / (1 - K23) -> 1.333333333 | L26: 1.333333333 | M26: 1.333333333 | N26: 1.333333333 | O26: 1.333333333 | P26: 1.333333333 | Q26: 1.333333333 | R26: 1.333333333 | S26: 1.333333333 | T26: 1.333333333 | U26: 1.333333333 | V26: 1.333333333 | W26: 1.333333333 | X26: =1 / (1 - X23) -> 1.333333333 | Y26: =1 / (1 - Y23) -> 1.333333333 | Z26: 1.333333333 | AA26: 1.333333333 | AB26: 1.333333333 | AC26: 1.333333333 | AD26: 1.333333333 | AE26: 1.333333333 | AF26: 1.333333333 | AG26: 1.333333333 | AH26: 1.333333333 | AI26: 1.333333333
E28: Unprofiled tax allowance (cap) | G28: £m nominal prices | K28: =K24 * K26 -> 1.217763869 | L28: 2.762622414 | M28: 3.374031874 | N28: 3.987362987 | O28: 4.60412229 | P28: 5.2257943 | Q28: 5.804844783 | R28: 6.44366869 | S28: 7.091591845 | T28: 7.750062169 | U28: 8.42052482 | V28: 9.104425913 | W28: 9.803216175 | X28: =X24 * X26 -> 10.51835453 | Y28: =Y24 * Y26 -> 11.18279238 | Z28: =Z24 * Z26 -> 11.86771341 | AA28: 12.64893604 | AB28: 13.45200556 | AC28: 14.27850364 | AD28: 15.13003919 | AE28: 16.00825187 | AF28: 16.91481569 | AG28: 17.73167724 | AH28: 18.70730632 | AI28: 1.945428327
B30: Profiled tax allowance (cap)
E32: Unprofiled tax allowance (cap) | G32: =Inputs!$I$11 -> £m 20/21 prices | K32: ='Tax Cap'!K28 / 'Tax Deductions'!K12 -> 1.115988862 | L32: ='Tax Cap'!L28 / 'Tax Deductions'!L12 -> 2.427824469 | M32: ='Tax Cap'!M28 / 'Tax Deductions'!M12 -> 2.843438972 | N32: ='Tax Cap'!N28 / 'Tax Deductions'!N12 -> 3.22240024 | O32: ='Tax Cap'!O28 / 'Tax Deductions'!O12 -> 3.568120691 | P32: ='Tax Cap'!P28 / 'Tax Deductions'!P12 -> 3.883684788 | Q32: ='Tax Cap'!Q28 / 'Tax Deductions'!Q12 -> 4.136959337 | R32: ='Tax Cap'!R28 / 'Tax Deductions'!R12 -> 4.403751666 | S32: ='Tax Cap'!S28 / 'Tax Deductions'!S12 -> 4.647638359 | T32: ='Tax Cap'!T28 / 'Tax Deductions'!T12 -> 4.870715459 | U32: ='Tax Cap'!U28 / 'Tax Deductions'!U12 -> 5.074879222 | V32: ='Tax Cap'!V28 / 'Tax Deductions'!V12 -> 5.261845527 | W32: ='Tax Cap'!W28 / 'Tax Deductions'!W12 -> 5.433167387 | X32: ='Tax Cap'!X28 / 'Tax Deductions'!X12 -> 5.590250743 | Y32: ='Tax Cap'!Y28 / 'Tax Deductions'!Y12 -> 5.699447038 | Z32: ='Tax Cap'!Z28 / 'Tax Deductions'!Z12 -> 5.800273714 | AA32: ='Tax Cap'!AA28 / 'Tax Deductions'!AA12 -> 5.928357866 | AB32: ='Tax Cap'!AB28 / 'Tax Deductions'!AB12 -> 6.045976171 | AC32: ='Tax Cap'!AC28 / 'Tax Deductions'!AC12 -> 6.154050664 | AD32: ='Tax Cap'!AD28 / 'Tax Deductions'!AD12 -> 6.25341716 | AE32: ='Tax Cap'!AE28 / 'Tax Deductions'!AE12 -> 6.344833566 | AF32: ='Tax Cap'!AF28 / 'Tax Deductions'!AF12 -> 6.428987376 | AG32: ='Tax Cap'!AG28 / 'Tax Deductions'!AG12 -> 6.462850325 | AH32: ='Tax Cap'!AH28 / 'Tax Deductions'!AH12 -> 6.538596169 | AI32: ='Tax Cap'!AI28 / 'Tax Deductions'!AI12 -> 0.6520598666
E33: Discount factor to start of operational period (cap) | G33: ='Allowances Cap'!G24 -> scalar | K33: ='Allowances Cap'!K24 -> 0.9250693802 | L33: ='Allowances Cap'!L24 -> 0.8557533582 | M33: ='Allowances Cap'!M24 -> 0.7916312287 | N33: ='Allowances Cap'!N24 -> 0.7323138101 | O33: ='Allowances Cap'!O24 -> 0.6774410824 | P33: ='Allowances Cap'!P24 -> 0.6266800022 | Q33: ='Allowances Cap'!Q24 -> 0.5797224812 | R33: ='Allowances Cap'!R24 -> 0.5362835164 | S33: ='Allowances Cap'!S24 -> 0.4960994601 | T33: ='Allowances Cap'!T24 -> 0.4589264201 | U33: ='Allowances Cap'!U24 -> 0.424538779 | V33: ='Allowances Cap'!V24 -> 0.3927278252 | W33: ='Allowances Cap'!W24 -> 0.3633004858 | X33: ='Allowances Cap'!X24 -> 0.3360781552 | Y33: ='Allowances Cap'!Y24 -> 0.3108956108 | Z33: ='Allowances Cap'!Z24 -> 0.28760001 | AA33: ='Allowances Cap'!AA24 -> 0.266049963 | AB33: ='Allowances Cap'!AB24 -> 0.2461146743 | AC33: ='Allowances Cap'!AC24 -> 0.2276731492 | AD33: ='Allowances Cap'!AD24 -> 0.2106134591 | AE33: ='Allowances Cap'!AE24 -> 0.194832062 | AF33: ='Allowances Cap'!AF24 -> 0.1802331749 | AG33: ='Allowances Cap'!AG24 -> 0.1667281914 | AH33: ='Allowances Cap'!AH24 -> 0.1542351447 | AI33: ='Allowances Cap'!AI24 -> 0.1426782097
E35: Discounted unprofiled tax allowance (cap) | G35: =Inputs!$I$11 -> £m 20/21 prices | K35: =K32 * K33 -> 1.032367125 | L35: 2.077618942 | M35: 2.250955087 | N35: 2.359808197 | O35: 2.417191543 | P35: 2.433827591 | Q35: 2.398288331 | R35: 2.361659429 | S35: 2.305690881 | T35: 2.235300009 | U35: 2.154483029 | V35: 2.06647315 | W35: 1.973872351 | X35: =X32 * X33 -> 1.878761157 | Y35: =Y32 * Y33 -> 1.771933068 | Z35: 1.668158778 | AA35: 1.577239391 | AB35: 1.488003456 | AC35: 1.401112095 | AD35: 1.317053819 | AE35: 1.236177007 | AF35: 1.158716806 | AG35: 1.077539346 | AH35: 1.008481326 | AI35: 0.09303473437
E36: NPV of tax allowance (cap) | G36: =Inputs!$I$11 -> £m 20/21 prices | I36: =SUM(K35:AI35) -> 43.74374665
E38: Annuity factor (cap) | G38: ='Allowances Cap'!G31 -> scalar | I38: ='Allowances Cap'!I31 -> 0.09448027673
E40: Annuity of tax allowance (cap) | G40: =Inputs!$I$11 -> £m 20/21 prices | I40: =I36 * I38 -> 4.132921289
B42: End of sheet

Sheet Tax Floor
A1: Tax Floor | H1: Licence
E2: Parameter | G2: Units | H2: Terminology | I2: Constant | K2: Annual values
E3: Project year | K3: Year 1 | L3: Year 2 | M3: Year 3 | N3: Year 4 | O3: Year 5 | P3: Year 6 | Q3: Year 7 | R3: Year 8 | S3: Year 9 | T3: Year 10 | U3: Year 11 | V3: Year 12 | W3: Year 13 | X3: Year 14 | Y3: Year 15 | Z3: Year 16 | AA3: Year 17 | AB3: Year 18 | AC3: Year 19 | AD3: Year 20 | AE3: Year 21 | AF3: Year 22 | AG3: Year 23 | AH3: Year 24 | AI3: Year 25
B5: Unprofiled tax allowance (notional floor)
C7: Profits attributable to corporation tax
E9: Annuitised allowances except tax (floor) | G9: £m nominal prices | K9: ='Allowances Floor'!K34* 'Tax Deductions'!K$12 -> 16.01894716 | L9: ='Allowances Floor'!L34* 'Tax Deductions'!L$12 -> 16.7045581 | M9: ='Allowances Floor'!M34* 'Tax Deductions'!M$12 -> 17.41951318 | N9: ='Allowances Floor'!N34* 'Tax Deductions'!N$12 -> 18.16506835 | O9: ='Allowances Floor'!O34* 'Tax Deductions'!O$12 -> 18.94253327 | P9: ='Allowances Floor'!P34* 'Tax Deductions'!P$12 -> 19.7532737 | Q9: ='Allowances Floor'!Q34* 'Tax Deductions'!Q$12 -> 20.59871381 | R9: ='Allowances Floor'!R34* 'Tax Deductions'!R$12 -> 21.48033876 | S9: ='Allowances Floor'!S34* 'Tax Deductions'!S$12 -> 22.39969726 | T9: ='Allowances Floor'!T34* 'Tax Deductions'!T$12 -> 23.3584043 | U9: ='Allowances Floor'!U34* 'Tax Deductions'!U$12 -> 24.35814401 | V9: ='Allowances Floor'!V34* 'Tax Deductions'!V$12 -> 25.40067257 | W9: ='Allowances Floor'!W34* 'Tax Deductions'!W$12 -> 26.48782136 | X9: ='Allowances Floor'!X34* 'Tax Deductions'!X$12 -> 27.62150011 | Y9: ='Allowances Floor'!Y34* 'Tax Deductions'!Y$12 -> 28.80370032 | Z9: ='Allowances Floor'!Z34* 'Tax Deductions'!Z$12 -> 30.03649869 | AA9: ='Allowances Floor'!AA34* 'Tax Deductions'!AA$12 -> 31.32206083 | AB9: ='Allowances Floor'!AB34* 'Tax Deductions'!AB$12 -> 32.66264504 | AC9: ='Allowances Floor'!AC34* 'Tax Deductions'!AC$12 -> 34.06060625 | AD9: ='Allowances Floor'!AD34* 'Tax Deductions'!AD$12 -> 35.51840019 | AE9: ='Allowances Floor'!AE34* 'Tax Deductions'!AE$12 -> 37.03858772 | AF9: ='Allowances Floor'!AF34* 'Tax Deductions'!AF$12 -> 38.62383928 | AG9: ='Allowances Floor'!AG34* 'Tax Deductions'!AG$12 -> 40.2769396 | AH9: ='Allowances Floor'!AH34* 'Tax Deductions'!AH$12 -> 42.00079261 | AI9: ='Allowances Floor'!AI34* 'Tax Deductions'!AI$12 -> 43.79842654
E10: Less tax deductions | G10: £m nominal prices | K10: =-'Tax Deductions'!K20 -> -25.92363303 | L10: =-'Tax Deductions'!L20 -> -22.55494977 | M10: =-'Tax Deductions'!M20 -> -22.04079396 | N10: =-'Tax Deductions'!N20 -> -21.5773723 | O10: =-'Tax Deductions'!O20 -> -21.16258333 | P10: =-'Tax Deductions'!P20 -> -20.79449517 | Q10: =-'Tax Deductions'!Q20 -> -20.6183401 | R10: =-'Tax Deductions'!R20 -> -20.32967541 | S10: =-'Tax Deductions'!S20 -> -20.08338311 | T10: =-'Tax Deductions'!T20 -> -19.87810133 | U10: =-'Tax Deductions'!U20 -> -19.71260409 | V10: =-'Tax Deductions'!V20 -> -19.58579565 | W10: =-'Tax Deductions'!W20 -> -19.49670521 | X10: =-'Tax Deductions'!X20 -> -19.44448209 | Y10: =-'Tax Deductions'!Y20 -> -19.6339491 | Z10: =-'Tax Deductions'!Z20 -> -19.85538956 | AA10: =-'Tax Deductions'!AA20 -> -19.88534676 | AB10: =-'Tax Deductions'!AB20 -> -19.95135442 | AC10: =-'Tax Deductions'!AC20 -> -20.05301565 | AD10: =-'Tax Deductions'!AD20 -> -20.19003795 | AE10: =-'Tax Deductions'!AE20 -> -20.36223056 | AF10: =-'Tax Deductions'!AF20 -> -20.56950212 | AG10: =-'Tax Deductions'!AG20 -> -21.17115449 | AH10: =-'Tax Deductions'!AH20 -> -21.42714002 | AI10: =-'Tax Deductions'!AI20 -> -75.03187372
E11: Profits attributable to corporation tax | G11: £m nominal prices | K11: =SUM(K9:K10) -> -9.904685875 | L11: =SUM(L9:L10) -> -5.850391676 | M11: -4.621280779 | N11: -3.412303949 | O11: -2.220050058 | P11: -1.041221471 | Q11: -0.01962628937 | R11: 1.150663356 | S11: 2.316314152 | T11: 3.480302978 | U11: 4.645539916 | V11: 5.814876918 | W11: 6.991116146 | X11: 8.177018024 | Y11: 9.169751218 | Z11: 10.18110913 | AA11: 11.43671407 | AB11: 12.71129062 | AC11: 14.0075906 | AD11: 15.32836224 | AE11: 16.67635717 | AF11: 18.05433715 | AG11: 19.10578511 | AH11: 20.57365259 | AI11: -31.23344719
C13: Tax losses
E15: Taxable losses brought forward | G15: £m nominal prices | K15: =J18 -> 0 | L15: =K18 -> -9.904685875 | M15: -15.75507755 | N15: -20.37635833 | O15: -23.78866228 | P15: -26.00871234 | Q15: -27.04993381 | R15: -27.0695601 | S15: -25.91889674 | T15: -23.60258259 | U15: -20.12227961 | V15: -15.4767397 | W15: -9.661862778 | X15: -2.670746632 | Y15: 0 | Z15: 0 | AA15: 0 | AB15: 0 | AC15: 0 | AD15: 0 | AE15: 0 | AF15: 0 | AG15: 0 | AH15: 0 | AI15: 0
E16: In-year taxable loss | G16: £m nominal prices | K16: =MIN(K11, 0) -> -9.904685875 | L16: -5.850391676 | M16: -4.621280779 | N16: -3.412303949 | O16: -2.220050058 | P16: -1.041221471 | Q16: -0.01962628937 | R16: 0 | S16: 0 | T16: 0 | U16: 0 | V16: 0 | W16: 0 | X16: 0 | Y16: 0 | Z16: 0 | AA16: 0 | AB16: 0 | AC16: 0 | AD16: 0 | AE16: 0 | AF16: 0 | AG16: 0 | AH16: 0 | AI16: -31.23344719
E17: Profits used to offset losses | G17: £m nominal prices | K17: =IF(K11 >= 0, MIN(K11, -K15), 0) -> 0 | L17: 0 | M17: 0 | N17: 0 | O17: 0 | P17: 0 | Q17: 0 | R17: 1.150663356 | S17: 2.316314152 | T17: 3.480302978 | U17: 4.645539916 | V17: 5.814876918 | W17: 6.991116146 | X17: 2.670746632 | Y17: 0 | Z17: 0 | AA17: 0 | AB17: 0 | AC17: 0 | AD17: 0 | AE17: 0 | AF17: 0 | AG17: 0 | AH17: 0 | AI17: 0
E18: Taxable losses carried forward | G18: £m nominal prices | K18: =SUM(K15:K17) -> -9.904685875 | L18: =SUM(L15:L17) -> -15.75507755 | M18: -20.37635833 | N18: -23.78866228 | O18: -26.00871234 | P18: -27.04993381 | Q18: -27.0695601 | R18: -25.91889674 | S18: -23.60258259 | T18: -20.12227961 | U18: -15.4767397 | V18: -9.661862778 | W18: -2.670746632 | X18: 0 | Y18: 0 | Z18: 0 | AA18: 0 | AB18: 0 | AC18: 0 | AD18: 0 | AE18: 0 | AF18: 0 | AG18: 0 | AH18: 0 | AI18: -31.23344719
C20: Tax allowance
E22: Profits attributable to corporation tax (after taxable losses) | G22: £m nominal prices | K22: =MAX(K11 - K17,0) -> 0 | L22: 0 | M22: 0 | N22: 0 | O22: 0 | P22: 0 | Q22: 0 | R22: 0 | S22: 0 | T22: 0 | U22: 0 | V22: 0 | W22: 0 | X22: 5.506271392 | Y22: 9.169751218 | Z22: 10.18110913 | AA22: 11.43671407 | AB22: 12.71129062 | AC22: 14.0075906 | AD22: 15.32836224 | AE22: 16.67635717 | AF22: 18.05433715 | AG22: 19.10578511 | AH22: 20.57365259 | AI22: 0
E23: Corporation tax rate | G23: =Inputs!G189 -> % | K23: =Inputs!K189 -> 0.25 | L23: =Inputs!L189 -> 0.25 | M23: =Inputs!M189 -> 0.25 | N23: =Inputs!N189 -> 0.25 | O23: =Inputs!O189 -> 0.25 | P23: =Inputs!P189 -> 0.25 | Q23: =Inputs!Q189 -> 0.25 | R23: =Inputs!R189 -> 0.25 | S23: =Inputs!S189 -> 0.25 | T23: =Inputs!T189 -> 0.25 | U23: =Inputs!U189 -> 0.25 | V23: =Inputs!V189 -> 0.25 | W23: =Inputs!W189 -> 0.25 | X23: =Inputs!X189 -> 0.25 | Y23: =Inputs!Y189 -> 0.25 | Z23: =Inputs!Z189 -> 0.25 | AA23: =Inputs!AA189 -> 0.25 | AB23: =Inputs!AB189 -> 0.25 | AC23: =Inputs!AC189 -> 0.25 | AD23: =Inputs!AD189 -> 0.25 | AE23: =Inputs!AE189 -> 0.25 | AF23: =Inputs!AF189 -> 0.25 | AG23: =Inputs!AG189 -> 0.25 | AH23: =Inputs!AH189 -> 0.25 | AI23: =Inputs!AI189 -> 0.25
E24: Corporation tax charge after losses | G24: £m nominal prices | K24: =K22 * K23 -> 0 | L24: =L22 * L23 -> 0 | M24: 0 | N24: 0 | O24: 0 | P24: 0 | Q24: 0 | R24: 0 | S24: 0 | T24: 0 | U24: 0 | V24: 0 | W24: 0 | X24: 1.376567848 | Y24: 2.292437805 | Z24: 2.545277284 | AA24: 2.859178518 | AB24: 3.177822654 | AC24: 3.501897649 | AD24: 3.832090561 | AE24: 4.169089291 | AF24: 4.513584289 | AG24: 4.776446277 | AH24: 5.143413147 | AI24: 0
E26: Grossing-up factor for tax on tax charge after losses | G26: scalar | K26: =1 / (1 - K23) -> 1.333333333 | L26: 1.333333333 | M26: 1.333333333 | N26: 1.333333333 | O26: 1.333333333 | P26: 1.333333333 | Q26: 1.333333333 | R26: 1.333333333 | S26: 1.333333333 | T26: 1.333333333 | U26: 1.333333333 | V26: 1.333333333 | W26: 1.333333333 | X26: 1.333333333 | Y26: 1.333333333 | Z26: 1.333333333 | AA26: 1.333333333 | AB26: 1.333333333 | AC26: 1.333333333 | AD26: 1.333333333 | AE26: 1.333333333 | AF26: 1.333333333 | AG26: 1.333333333 | AH26: 1.333333333 | AI26: 1.333333333
E28: Unprofiled tax allowance (floor) | G28: £m nominal prices | K28: =K24 * K26 -> 0 | L28: 0 | M28: 0 | N28: 0 | O28: 0 | P28: 0 | Q28: 0 | R28: 0 | S28: 0 | T28: 0 | U28: 0 | V28: 0 | W28: 0 | X28: 1.835423797 | Y28: 3.056583739 | Z28: 3.393703045 | AA28: 3.812238024 | AB28: 4.237096872 | AC28: 4.669196865 | AD28: 5.109454081 | AE28: 5.558785722 | AF28: 6.018112385 | AG28: 6.368595037 | AH28: 6.857884196 | AI28: 0
B30: Profiled tax allowance (notional floor)
E32: Unprofiled tax allowance (floor) | G32: =Inputs!$I$11 -> £m 20/21 prices | K32: ='Tax Floor'!K28 / 'Tax Deductions'!K$12 -> 0 | L32: ='Tax Floor'!L28 / 'Tax Deductions'!L$12 -> 0 | M32: ='Tax Floor'!M28 / 'Tax Deductions'!M$12 -> 0 | N32: ='Tax Floor'!N28 / 'Tax Deductions'!N$12 -> 0 | O32: ='Tax Floor'!O28 / 'Tax Deductions'!O$12 -> 0 | P32: ='Tax Floor'!P28 / 'Tax Deductions'!P$12 -> 0 | Q32: ='Tax Floor'!Q28 / 'Tax Deductions'!Q$12 -> 0 | R32: ='Tax Floor'!R28 / 'Tax Deductions'!R$12 -> 0 | S32: ='Tax Floor'!S28 / 'Tax Deductions'!S$12 -> 0 | T32: ='Tax Floor'!T28 / 'Tax Deductions'!T$12 -> 0 | U32: ='Tax Floor'!U28 / 'Tax Deductions'!U$12 -> 0 | V32: ='Tax Floor'!V28 / 'Tax Deductions'!V$12 -> 0 | W32: ='Tax Floor'!W28 / 'Tax Deductions'!W$12 -> 0 | X32: ='Tax Floor'!X28 / 'Tax Deductions'!X$12 -> 0.9754833058 | Y32: ='Tax Floor'!Y28 / 'Tax Deductions'!Y$12 -> 1.557825322 | Z32: ='Tax Floor'!Z28 / 'Tax Deductions'!Z$12 -> 1.658651998 | AA32: ='Tax Floor'!AA28 / 'Tax Deductions'!AA$12 -> 1.78673615 | AB32: ='Tax Floor'!AB28 / 'Tax Deductions'!AB$12 -> 1.904354456 | AC32: ='Tax Floor'!AC28 / 'Tax Deductions'!AC$12 -> 2.012428948 | AD32: ='Tax Floor'!AD28 / 'Tax Deductions'!AD$12 -> 2.111795444 | AE32: ='Tax Floor'!AE28 / 'Tax Deductions'!AE$12 -> 2.203211851 | AF32: ='Tax Floor'!AF28 / 'Tax Deductions'!AF$12 -> 2.28736566 | AG32: ='Tax Floor'!AG28 / 'Tax Deductions'!AG$12 -> 2.321228609 | AH32: ='Tax Floor'!AH28 / 'Tax Deductions'!AH$12 -> 2.396974453 | AI32: ='Tax Floor'!AI28 / 'Tax Deductions'!AI$12 -> 0
E33: Discount factor to start of operational period (floor) | G33: ='Allowances Floor'!G24 -> scalar | K33: ='Allowances Floor'!K24 -> 1.008471158 | L33: ='Allowances Floor'!L24 -> 1.017014076 | M33: ='Allowances Floor'!M24 -> 1.025629363 | N33: ='Allowances Floor'!N24 -> 1.034317631 | O33: ='Allowances Floor'!O24 -> 1.043079498 | P33: ='Allowances Floor'!P24 -> 1.051915589 | Q33: ='Allowances Floor'!Q24 -> 1.060826532 | R33: ='Allowances Floor'!R24 -> 1.069812961 | S33: ='Allowances Floor'!S24 -> 1.078875516 | T33: ='Allowances Floor'!T24 -> 1.08801484 | U33: ='Allowances Floor'!U24 -> 1.097231585 | V33: ='Allowances Floor'!V24 -> 1.106526407 | W33: ='Allowances Floor'!W24 -> 1.115899967 | X33: ='Allowances Floor'!X24 -> 1.125352932 | Y33: ='Allowances Floor'!Y24 -> 1.134885974 | Z33: ='Allowances Floor'!Z24 -> 1.144499772 | AA33: ='Allowances Floor'!AA24 -> 1.15419501 | AB33: ='Allowances Floor'!AB24 -> 1.163972378 | AC33: ='Allowances Floor'!AC24 -> 1.173832572 | AD33: ='Allowances Floor'!AD24 -> 1.183776292 | AE33: ='Allowances Floor'!AE24 -> 1.193804248 | AF33: ='Allowances Floor'!AF24 -> 1.203917152 | AG33: ='Allowances Floor'!AG24 -> 1.214115724 | AH33: ='Allowances Floor'!AH24 -> 1.22440069 | AI33: ='Allowances Floor'!AI24 -> 1.234772781
E35: Discounted unprofiled tax allowance (floor) | G35: =Inputs!$I$11 -> £m 20/21 prices | K35: =K32*K33 -> 0 | L35: =L32*L33 -> 0 | M35: 0 | N35: 0 | O35: 0 | P35: 0 | Q35: 0 | R35: 0 | S35: 0 | T35: 0 | U35: 0 | V35: 0 | W35: 0 | X35: 1.097762998 | Y35: 1.767954108 | Z35: 1.898326833 | AA35: 2.062241949 | AB35: 2.216615984 | AC35: 2.362254647 | AD35: 2.499893381 | AE35: 2.630203667 | AF35: 2.753798751 | AG35: 2.818240154 | AH35: 2.934857175 | AI35: 0
E36: NPV of tax allowance (floor) | G36: =Inputs!$I$11 -> £m 20/21 prices | I36: =SUM(K35:AI35) -> 25.04214965
E38: Annuity factor (floor) | G38: ='Allowances Floor'!G31 -> scalar | I38: ='Allowances Floor'!I31 -> 0.03577927538
E40: Annuity of tax allowance (floor) | G40: =Inputs!$I$11 -> £m 20/21 prices | I40: =I36 * I38 -> 0.8959899684
B42: Unprofiled tax allowance (actual floor)
C44: Profits attributable to corporation tax
E46: Annuitised allowances except tax (floor) | G46: £m nominal prices | K46: =('Allowances Floor'!K67+'Allowances Floor'!K76)* 'Tax Deductions'!K$12 -> 0 | L46: =('Allowances Floor'!L67+'Allowances Floor'!L76)* 'Tax Deductions'!L$12 -> 0 | M46: =('Allowances Floor'!M67+'Allowances Floor'!M76)* 'Tax Deductions'!M$12 -> 20.41127867 | N46: =('Allowances Floor'!N67+'Allowances Floor'!N76)* 'Tax Deductions'!N$12 -> 21.2848814 | O46: =('Allowances Floor'!O67+'Allowances Floor'!O76)* 'Tax Deductions'!O$12 -> 22.19587433 | P46: =('Allowances Floor'!P67+'Allowances Floor'!P76)* 'Tax Deductions'!P$12 -> 23.14585775 | Q46: =('Allowances Floor'!Q67+'Allowances Floor'!Q76)* 'Tax Deductions'!Q$12 -> 24.13650046 | R46: =('Allowances Floor'!R67+'Allowances Floor'!R76)* 'Tax Deductions'!R$12 -> 25.16954268 | S46: =('Allowances Floor'!S67+'Allowances Floor'!S76)* 'Tax Deductions'!S$12 -> 26.2467991 | T46: =('Allowances Floor'!T67+'Allowances Floor'!T76)* 'Tax Deductions'!T$12 -> 27.37016211 | U46: =('Allowances Floor'!U67+'Allowances Floor'!U76)* 'Tax Deductions'!U$12 -> 28.54160504 | V46: =('Allowances Floor'!V67+'Allowances Floor'!V76)* 'Tax Deductions'!V$12 -> 29.76318574 | W46: =('Allowances Floor'!W67+'Allowances Floor'!W76)* 'Tax Deductions'!W$12 -> 31.03705009 | X46: =('Allowances Floor'!X67+'Allowances Floor'!X76)* 'Tax Deductions'!X$12 -> 32.36543583 | Y46: =('Allowances Floor'!Y67+'Allowances Floor'!Y76)* 'Tax Deductions'!Y$12 -> 33.75067649 | Z46: =('Allowances Floor'!Z67+'Allowances Floor'!Z76)* 'Tax Deductions'!Z$12 -> 35.19520544 | AA46: =('Allowances Floor'!AA67+'Allowances Floor'!AA76)* 'Tax Deductions'!AA$12 -> 36.70156023 | AB46: =('Allowances Floor'!AB67+'Allowances Floor'!AB76)* 'Tax Deductions'!AB$12 -> 38.27238701 | AC46: =('Allowances Floor'!AC67+'Allowances Floor'!AC76)* 'Tax Deductions'!AC$12 -> 39.91044518 | AD46: =('Allowances Floor'!AD67+'Allowances Floor'!AD76)* 'Tax Deductions'!AD$12 -> 41.61861223 | AE46: =('Allowances Floor'!AE67+'Allowances Floor'!AE76)* 'Tax Deductions'!AE$12 -> 43.39988883 | AF46: =('Allowances Floor'!AF67+'Allowances Floor'!AF76)* 'Tax Deductions'!AF$12 -> 45.25740407 | AG46: =('Allowances Floor'!AG67+'Allowances Floor'!AG76)* 'Tax Deductions'!AG$12 -> 47.19442097 | AH46: =('Allowances Floor'!AH67+'Allowances Floor'!AH76)* 'Tax Deductions'!AH$12 -> 49.21434219 | AI46: =('Allowances Floor'!AI67+'Allowances Floor'!AI76)* 'Tax Deductions'!AI$12 -> 51.32071603
E47: Less tax deductions | G47: £m nominal prices | K47: =-'Tax Deductions'!K30 -> -4.172773882 | L47: =-'Tax Deductions'!L30 -> 0 | M47: =-'Tax Deductions'!M30 -> -25.7499927 | N47: =-'Tax Deductions'!N30 -> -25.40147379 | O47: =-'Tax Deductions'!O30 -> -24.96180946 | P47: =-'Tax Deductions'!P30 -> -24.53632406 | Q47: =-'Tax Deductions'!Q30 -> -24.29459747 | R47: =-'Tax Deductions'!R30 -> -23.93916781 | S47: =-'Tax Deductions'!S30 -> -23.81159067 | T47: =-'Tax Deductions'!T30 -> -23.50189998 | U47: =-'Tax Deductions'!U30 -> -23.26739343 | V47: =-'Tax Deductions'!V30 -> -23.01696519 | W47: =-'Tax Deductions'!W30 -> -22.77622761 | X47: =-'Tax Deductions'!X30 -> -22.72063017 | Y47: =-'Tax Deductions'!Y30 -> -22.70614313 | Z47: =-'Tax Deductions'!Z30 -> -22.72929462 | AA47: =-'Tax Deductions'!AA30 -> -22.52050013 | AB47: =-'Tax Deductions'!AB30 -> -22.37049966 | AC47: =-'Tax Deductions'!AC30 -> -22.41648481 | AD47: =-'Tax Deductions'!AD30 -> -22.37571672 | AE47: =-'Tax Deductions'!AE30 -> -22.29295297 | AF47: =-'Tax Deductions'!AF30 -> -22.23816169 | AG47: =-'Tax Deductions'!AG30 -> -22.55671525 | AH47: =-'Tax Deductions'!AH30 -> -22.57471957 | AI47: =-'Tax Deductions'!AI30 -> -76.29336104
E48: Profits attributable to corporation tax | G48: £m nominal prices | K48: =SUM(K46:K47) -> -4.172773882 | L48: =SUM(L46:L47) -> 0 | M48: -5.338714023 | N48: -4.116592388 | O48: -2.765935134 | P48: -1.390466312 | Q48: -0.1580970108 | R48: 1.230374869 | S48: 2.435208435 | T48: 3.868262127 | U48: 5.274211616 | V48: 6.746220546 | W48: 8.260822481 | X48: 9.644805661 | Y48: 11.04453336 | Z48: 12.46591082 | AA48: 14.18106011 | AB48: 15.90188735 | AC48: 17.49396037 | AD48: 19.24289551 | AE48: 21.10693586 | AF48: 23.01924239 | AG48: 24.63770572 | AH48: 26.63962261 | AI48: -24.97264501
C50: Tax losses
E52: Taxable losses brought forward | G52: £m nominal prices | K52: =J55 -> 0 | L52: =K55 -> -4.172773882 | M52: -4.172773882 | N52: -9.511487905 | O52: -13.62808029 | P52: -16.39401543 | Q52: -17.78448174 | R52: -17.94257875 | S52: -16.71220388 | T52: -14.27699544 | U52: -10.40873332 | V52: -5.134521702 | W52: 0 | X52: 0 | Y52: 0 | Z52: 0 | AA52: 0 | AB52: 0 | AC52: 0 | AD52: 0 | AE52: 0 | AF52: 0 | AG52: 0 | AH52: 0 | AI52: 0
E53: In-year taxable loss | G53: £m nominal prices | K53: =MIN(K48, 0) -> -4.172773882 | L53: 0 | M53: -5.338714023 | N53: -4.116592388 | O53: -2.765935134 | P53: -1.390466312 | Q53: -0.1580970108 | R53: 0 | S53: 0 | T53: 0 | U53: 0 | V53: 0 | W53: 0 | X53: 0 | Y53: 0 | Z53: 0 | AA53: 0 | AB53: 0 | AC53: 0 | AD53: 0 | AE53: 0 | AF53: 0 | AG53: 0 | AH53: 0 | AI53: -24.97264501
E54: Profits used to offset losses | G54: £m nominal prices | K54: =IF(K48 >= 0, MIN(K48, -K52), 0) -> 0 | L54: 0 | M54: 0 | N54: 0 | O54: 0 | P54: 0 | Q54: 0 | R54: 1.230374869 | S54: 2.435208435 | T54: 3.868262127 | U54: 5.274211616 | V54: 5.134521702 | W54: 0 | X54: 0 | Y54: 0 | Z54: 0 | AA54: 0 | AB54: 0 | AC54: 0 | AD54: 0 | AE54: 0 | AF54: 0 | AG54: 0 | AH54: 0 | AI54: 0
E55: Taxable losses carried forward | G55: £m nominal prices | K55: =SUM(K52:K54) -> -4.172773882 | L55: =SUM(L52:L54) -> -4.172773882 | M55: -9.511487905 | N55: -13.62808029 | O55: -16.39401543 | P55: -17.78448174 | Q55: -17.94257875 | R55: -16.71220388 | S55: -14.27699544 | T55: -10.40873332 | U55: -5.134521702 | V55: 0 | W55: 0 | X55: 0 | Y55: 0 | Z55: 0 | AA55: 0 | AB55: 0 | AC55: 0 | AD55: 0 | AE55: 0 | AF55: 0 | AG55: 0 | AH55: 0 | AI55: -24.97264501
C57: Tax allowance
E59: Profits attributable to corporation tax (after taxable losses) | G59: £m nominal prices | K59: =MAX(K48 - K54,0) -> 0 | L59: 0 | M59: 0 | N59: 0 | O59: =MAX(O48 - O54,0) -> 0 | P59: 0 | Q59: 0 | R59: 0 | S59: 0 | T59: 0 | U59: 0 | V59: 1.611698845 | W59: 8.260822481 | X59: 9.644805661 | Y59: 11.04453336 | Z59: 12.46591082 | AA59: 14.18106011 | AB59: 15.90188735 | AC59: 17.49396037 | AD59: 19.24289551 | AE59: 21.10693586 | AF59: 23.01924239 | AG59: 24.63770572 | AH59: 26.63962261 | AI59: 0
E60: Corporation tax rate | G60: =Inputs!G189 -> % | K60: =Inputs!K189 -> 0.25 | L60: =Inputs!L189 -> 0.25 | M60: =Inputs!M189 -> 0.25 | N60: =Inputs!N189 -> 0.25 | O60: =Inputs!O189 -> 0.25 | P60: =Inputs!P189 -> 0.25 | Q60: =Inputs!Q189 -> 0.25 | R60: =Inputs!R189 -> 0.25 | S60: =Inputs!S189 -> 0.25 | T60: =Inputs!T189 -> 0.25 | U60: =Inputs!U189 -> 0.25 | V60: =Inputs!V189 -> 0.25 | W60: =Inputs!W189 -> 0.25 | X60: =Inputs!X189 -> 0.25 | Y60: =Inputs!Y189 -> 0.25 | Z60: =Inputs!Z189 -> 0.25 | AA60: =Inputs!AA189 -> 0.25 | AB60: =Inputs!AB189 -> 0.25 | AC60: =Inputs!AC189 -> 0.25 | AD60: =Inputs!AD189 -> 0.25 | AE60: =Inputs!AE189 -> 0.25 | AF60: =Inputs!AF189 -> 0.25 | AG60: =Inputs!AG189 -> 0.25 | AH60: =Inputs!AH189 -> 0.25 | AI60: =Inputs!AI189 -> 0.25
E61: Corporation tax charge after losses | G61: £m nominal prices | K61: =K59 * K60 -> 0 | L61: =L59 * L60 -> 0 | M61: 0 | N61: 0 | O61: 0 | P61: 0 | Q61: 0 | R61: 0 | S61: 0 | T61: 0 | U61: 0 | V61: 0.4029247111 | W61: 2.06520562 | X61: 2.411201415 | Y61: 2.76113334 | Z61: 3.116477704 | AA61: 3.545265027 | AB61: 3.975471838 | AC61: 4.373490091 | AD61: 4.810723878 | AE61: 5.276733965 | AF61: 5.754810597 | AG61: 6.15942643 | AH61: 6.659905654 | AI61: 0
E63: Grossing-up factor for tax on tax charge after losses | G63: scalar | K63: =1 / (1 - K60) -> 1.333333333 | L63: 1.333333333 | M63: 1.333333333 | N63: 1.333333333 | O63: 1.333333333 | P63: 1.333333333 | Q63: 1.333333333 | R63: 1.333333333 | S63: 1.333333333 | T63: 1.333333333 | U63: 1.333333333 | V63: 1.333333333 | W63: 1.333333333 | X63: 1.333333333 | Y63: 1.333333333 | Z63: 1.333333333 | AA63: 1.333333333 | AB63: 1.333333333 | AC63: 1.333333333 | AD63: 1.333333333 | AE63: 1.333333333 | AF63: 1.333333333 | AG63: 1.333333333 | AH63: 1.333333333 | AI63: 1.333333333
E65: Unprofiled tax allowance (floor) | G65: £m nominal prices | K65: =K61 * K63 -> 0 | L65: 0 | M65: 0 | N65: 0 | O65: 0 | P65: 0 | Q65: 0 | R65: 0 | S65: 0 | T65: 0 | U65: 0 | V65: 0.5372329482 | W65: 2.753607494 | X65: 3.21493522 | Y65: 3.68151112 | Z65: 4.155303605 | AA65: 4.727020036 | AB65: 5.300629117 | AC65: 5.831320122 | AD65: 6.414298504 | AE65: 7.035645287 | AF65: 7.673080796 | AG65: 8.212568573 | AH65: 8.879874205 | AI65: 0
B67: Profiled tax allowance (actual floor)
E69: Unprofiled tax allowance (floor) | G69: =Inputs!$I$11 -> £m 20/21 prices | K69: ='Tax Floor'!K65 / 'Tax Deductions'!K$12 -> 0 | L69: ='Tax Floor'!L65 / 'Tax Deductions'!L$12 -> 0 | M69: ='Tax Floor'!M65 / 'Tax Deductions'!M$12 -> 0 | N69: ='Tax Floor'!N65 / 'Tax Deductions'!N$12 -> 0 | O69: ='Tax Floor'!O65 / 'Tax Deductions'!O$12 -> 0 | P69: ='Tax Floor'!P65 / 'Tax Deductions'!P$12 -> 0 | Q69: ='Tax Floor'!Q65 / 'Tax Deductions'!Q$12 -> 0 | R69: ='Tax Floor'!R65 / 'Tax Deductions'!R$12 -> 0 | S69: ='Tax Floor'!S65 / 'Tax Deductions'!S$12 -> 0 | T69: ='Tax Floor'!T65 / 'Tax Deductions'!T$12 -> 0 | U69: ='Tax Floor'!U65 / 'Tax Deductions'!U$12 -> 0 | V69: ='Tax Floor'!V65 / 'Tax Deductions'!V$12 -> 0.3104903936 | W69: ='Tax Floor'!W65 / 'Tax Deductions'!W$12 -> 1.526112468 | X69: ='Tax Floor'!X65 / 'Tax Deductions'!X$12 -> 1.708660224 | Y69: ='Tax Floor'!Y65 / 'Tax Deductions'!Y$12 -> 1.876327212 | Z69: ='Tax Floor'!Z65 / 'Tax Deductions'!Z$12 -> 2.030879702 | AA69: ='Tax Floor'!AA65 / 'Tax Deductions'!AA$12 -> 2.215480127 | AB69: ='Tax Floor'!AB65 / 'Tax Deductions'!AB$12 -> 2.382356831 | AC69: ='Tax Floor'!AC65 / 'Tax Deductions'!AC$12 -> 2.513305341 | AD69: ='Tax Floor'!AD65 / 'Tax Deductions'!AD$12 -> 2.651102475 | AE69: ='Tax Floor'!AE65 / 'Tax Deductions'!AE$12 -> 2.78856172 | AF69: ='Tax Floor'!AF65 / 'Tax Deductions'!AF$12 -> 2.916386467 | AG69: ='Tax Floor'!AG65 / 'Tax Deductions'!AG$12 -> 2.993320979 | AH69: ='Tax Floor'!AH65 / 'Tax Deductions'!AH$12 -> 3.103702397 | AI69: ='Tax Floor'!AI65 / 'Tax Deductions'!AI$12 -> 0
E70: Discount factor to start of operational period (floor) | G70: ='Allowances Floor'!G57 -> scalar | K70: ='Allowances Floor'!K57 -> 1.011623761 | L70: ='Allowances Floor'!L57 -> 1.023382635 | M70: ='Allowances Floor'!M57 -> 1.03527819 | N70: ='Allowances Floor'!N57 -> 1.047312017 | O70: ='Allowances Floor'!O57 -> 1.059485722 | P70: ='Allowances Floor'!P57 -> 1.071800931 | Q70: ='Allowances Floor'!Q57 -> 1.084259289 | R70: ='Allowances Floor'!R57 -> 1.096862461 | S70: ='Allowances Floor'!S57 -> 1.109612128 | T70: ='Allowances Floor'!T57 -> 1.122509995 | U70: ='Allowances Floor'!U57 -> 1.135557783 | V70: ='Allowances Floor'!V57 -> 1.148757236 | W70: ='Allowances Floor'!W57 -> 1.162110116 | X70: ='Allowances Floor'!X57 -> 1.175618207 | Y70: ='Allowances Floor'!Y57 -> 1.189283312 | Z70: ='Allowances Floor'!Z57 -> 1.203107258 | AA70: ='Allowances Floor'!AA57 -> 1.217091889 | AB70: ='Allowances Floor'!AB57 -> 1.231239075 | AC70: ='Allowances Floor'!AC57 -> 1.245550704 | AD70: ='Allowances Floor'!AD57 -> 1.260028688 | AE70: ='Allowances Floor'!AE57 -> 1.274674961 | AF70: ='Allowances Floor'!AF57 -> 1.289491479 | AG70: ='Allowances Floor'!AG57 -> 1.30448022 | AH70: ='Allowances Floor'!AH57 -> 1.319643187 | AI70: ='Allowances Floor'!AI57 -> 1.334982405
E72: Discounted unprofiled tax allowance (floor) | G72: =Inputs!$I$11 -> £m 20/21 prices | K72: =K69*K70 -> 0 | L72: =L69*L70 -> 0 | M72: 0 | N72: 0 | O72: 0 | P72: 0 | Q72: 0 | R72: 0 | S72: 0 | T72: 0 | U72: 0 | V72: 0.3566780863 | W72: 1.773510737 | X72: 2.008732068 | Y72: 2.231484642 | Z72: 2.443366108 | AA72: 2.696442893 | AB72: 2.933250821 | AC72: 3.130449237 | AD72: 3.340465174 | AE72: 3.554509802 | AF72: 3.760655499 | AG72: 3.904728009 | AH72: 4.095779722 | AI72: 0
E73: NPV of tax allowance (floor) | G73: =Inputs!$I$11 -> £m 20/21 prices | I73: =SUM(K72:AI72) -> 36.2300528
E75: Annuity factor (floor) | G75: ='Allowances Floor'!G64 -> scalar | I75: ='Allowances Floor'!I64 -> 0.03851370582
E77: Annuity of tax allowance (floor) | G77: =Inputs!$I$11 -> £m 20/21 prices | I77: =I73 * I75 -> 1.395353595
B79: End of sheet

Sheet Cap Floor Levels
A1: Cap Floor Levels | H1: Licence
E2: Parameter | G2: Units | H2: Terminology | I2: Constant
B4: Cap and floor levels and adjustments
C6: Cap and Notional Floor levels at FPA (Preliminary) / PCR (Final) and PCA adjustments at PCR
C7: Relevant stage: FPA for preliminary levels; PCR for final levels
E8: Cap at relevant stage excluding tax (calculated through the model) | G8: =Inputs!$I$11 -> £m 20/21 prices | I8: ='Allowances Cap'!$I33 -> 27.10502364
E9: Floor at relevant stage excluding tax (calculated through the model) | G9: =Inputs!$I$11 -> £m 20/21 prices | I9: ='Allowances Floor'!$I33 -> 14.68015849
E11: Cap at relevant stage - tax element (calculated through the model) | G11: =Inputs!$I$11 -> £m 20/21 prices | I11: =IF(Inputs!$I$199="No",'Tax Cap'!I40,0) -> 4.132921289
E12: Floor at relevant stage - tax element (calculated through the model) | G12: =Inputs!$I$11 -> £m 20/21 prices | I12: =IF(Inputs!$I$199="No",'Tax Floor'!I40,0) -> 0.8959899684
E14: Cap at relevant stage - tax element (previously calculated through the model and fixed) | G14: =Inputs!$I$11 -> £m 20/21 prices
E15: Floor at relevant stage - tax element (previously calculated through the model and fixed) | G15: =Inputs!$I$11 -> £m 20/21 prices
E17: Cap at relevant stage including tax (calculated through the model) | G17: =Inputs!$I$11 -> £m 20/21 prices | I17: =I8+IF(Inputs!$I$199="Yes",I14,I11) -> 31.23794492
E18: Floor at relevant stage including tax (calculated through the model) | G18: =Inputs!$I$11 -> £m 20/21 prices | I18: =I9+IF(Inputs!$I$199="Yes",I15,I12) -> 15.57614846
E20: Preliminary Cap including tax (hardcoded at FPA) | G20: =Inputs!$I$11 -> £m 20/21 prices | H20: PCL
E21: Preliminary Floor including tax (hardcoded at FPA) | G21: =Inputs!$I$11 -> £m 20/21 prices | H21: PFL
E23: Cap PCA adjustment (at PCR) | G23: =Inputs!$I$11 -> £m 20/21 prices | H23: PCAC | I23: =I17-I20 -> 31.23794492
E24: Floor PCA adjustment (at PCR) | G24: =Inputs!$I$11 -> £m 20/21 prices | H24: PCAF | I24: =I18-I21 -> 15.57614846
C26: Actual floor level at FPA (Preliminary) / PCR (Final)
C27: Relevant stage: FPA for preliminary levels; PCR for final levels
E28: Floor at relevant stage excluding tax during debt tenor and tail period (calculated through the model) | G28: =Inputs!$I$11 -> £m 20/21 prices | I28: ='Allowances Floor'!$I66 -> 17.20144546
E30: Floor at relevant stage - tax element during debt tenor and tail period (calculated through the model) | G30: =Inputs!$I$11 -> £m 20/21 prices | I30: =IF(Inputs!$I$199="No",'Tax Floor'!I77,0) -> 1.395353595
E32: Floor at relevant stage - tax element during debt tenor and tail period (previously calculated through the model and fixed) | G32: =Inputs!$I$11 -> £m 20/21 prices
E34: Floor at relevant stage including tax during debt tenor and tail period (calculated through the model) | G34: =Inputs!$I$11 -> £m 20/21 prices | I34: =I28+IF(Inputs!$I$199="Yes",I32,I30) -> 18.59679905
E36: Preliminary Floor including tax during debt tenor and tail period (hardcoded at FPA) | G36: =Inputs!$I$11 -> £m 20/21 prices
E38: Floor adjustment during debt tenor and tail period (at PCR) | G38: =Inputs!$I$11 -> £m 20/21 prices | I38: =I34-I36 -> 18.59679905
B40: End of sheet
